Workbook

Sheet CAB
L1: 2019 CABINET PRICING PROGRAM v.1.18
N3: FOR ESTIMATE QUESTIONS CONTACT: cabinetdesign@midwestfloors.com Phone 801-975-6125
B8: Account Name (REQUIRED): | V8: Date: | AF8: Form Completed By:
B9: DBA: | O9: Acct #: | V9: Revision Date: | AH9: Revision Number:
B10: Contact: | O10: At:
B11: Sidemark: | Y11: REQUIRED TO CHOOSE ONE:
B12: Customer P.O.# (REQUIRED): | AD12: Requested Ship Date (REQUIRED):
B14: CABINET SELECTION
B15: Price Factor | P15: ESTIMATE TOTAL | T15: =+Q60+AM60+Q71+AI19 -> 0 | Z15: REQUIRED:
B16: Assemble | P16: (DOES NOT INCLUDE TAX OR FREIGHT) | Z16: SIGN or TYPE name to approve estimate | AL16: Date
B17: Wood Species/Style | H17: Select_Wood | P17: SEND APPROVED ORDERS TO: orders@midwestfloors.com
R19: Total Items | U19: =+J60+AH60 -> 0 | X19: Total Weight | AA19: =+DATA3!$AR$85 -> 0 | AD19: Assembly | AI19: =AM30 -> 0
J21: Quantity | K21: Hinge L/R | L21: Finished End
B24: ITEMS | E24: FUL SKU | M24: LIST $ | O24: COST$ | Q24: TOTAL $ | T24: NOTES | Z24: Notes:
A25: 1 | E25: =IF(AND(B25<>"",$H$17=DATA3!$AU$10),INDEX(DATA2!$C$324:$C$645,MATCH(B25,DATA2!$E$324:$E$645,0)),IF(AND(B25<>"",$H$17=DATA3!$AU$11),INDEX(DATA2!$C$647:$C$968,MATCH(B25,DATA2!$E$647:$E$968,0)),IF(AND(B25<>"",$H$17=DATA3!$AU$12),INDEX(DATA2!$C$969:$C$1287,MATCH(B25,DATA2!$E$969:$E$1287,0)),""))) ->  | M25: =IF(AND(J25<>"",$H$17=DATA3!$AU$10),INDEX(DATA2!$AU$324:$AU$645,MATCH($E25,DATA2!$C$324:$C$645,0)),IF(AND(J25<>"",$H$17=DATA3!$AU$11),INDEX(DATA2!$AU$647:$AU$968,MATCH($E25,DATA2!$C$647:$C$968,0)),IF(AND(J25<>"",$H$17=DATA3!$AU$12),INDEX(DATA2!$AU$969:$AU$1287,MATCH($E25,DATA2!$C$969:$C$1287,0)),""))) ->  | O25: =IF(AND($M25<>"",$H$17=DATA3!$AU$10),(INDEX(DATA2!$AV$324:$BA$645,MATCH(E25,DATA2!$C$324:$C$645,0),MATCH($F$15,DATA2!$AV$3:$BA$3,0))*(1+UP!$A$3)),IF(AND($M25<>"",$H$17=DATA3!$AU$11),(INDEX(DATA2!$AV$647:$BA$968,MATCH(E25,DATA2!$C$647:$C$968,0),MATCH($F$15,DATA2!$AV$3:$BA$3,0))*(1+UP!$A$3)),IF(AND($M25<>"",$H$17=DATA3!$AU$12),(INDEX(DATA2!$AV$969:$BA$1287,MATCH(E25,DATA2!$C$969:$C$1287,0),MATCH($F$15,DATA2!$AV$3:$BA$3,0))*(1+UP!$A$3)),""))) ->  | P25: =IF(AND($M25<>"",$H$17=#REF!),(INDEX(DATA2!$AV$5:$BA$1291,MATCH(F25,DATA2!$C$5:$C$1291,0),MATCH(#REF!,DATA2!$AV$3:$BA$3,0))),IF(AND($M25<>"",$H$17=#REF!),(INDEX(DATA2!$AV$5:$BA$1291,MATCH(F25,DATA2!$C$5:$C$1291,0),MATCH(#REF!,DATA2!$AV$3:$BA$3,0))),IF(AND($M25<>"",$H$17=#REF!),(INDEX(DATA2!$AV$5:$BA$1291,MATCH(F25,DATA2!$C$5:$C$1291,0),MATCH(#REF!,DATA2!$AV$3:$BA$3,0))),""))) ->  | Q25: =IF($J25<>"",(($J25*$O25)),"") ->  | R25: =IF($M25<>"",(($J25*$O25)),"") -> 
A26: 2 | E26: =IF(AND(B26<>"",$H$17=DATA3!$AU$10),INDEX(DATA2!$C$324:$C$645,MATCH(B26,DATA2!$E$324:$E$645,0)),IF(AND(B26<>"",$H$17=DATA3!$AU$11),INDEX(DATA2!$C$647:$C$968,MATCH(B26,DATA2!$E$647:$E$968,0)),IF(AND(B26<>"",$H$17=DATA3!$AU$12),INDEX(DATA2!$C$969:$C$1287,MATCH(B26,DATA2!$E$969:$E$1287,0)),""))) ->  | M26: =IF(AND(J26<>"",$H$17=DATA3!$AU$10),INDEX(DATA2!$AU$324:$AU$645,MATCH($E26,DATA2!$C$324:$C$645,0)),IF(AND(J26<>"",$H$17=DATA3!$AU$11),INDEX(DATA2!$AU$647:$AU$968,MATCH($E26,DATA2!$C$647:$C$968,0)),IF(AND(J26<>"",$H$17=DATA3!$AU$12),INDEX(DATA2!$AU$969:$AU$1287,MATCH($E26,DATA2!$C$969:$C$1287,0)),""))) ->  | O26: =IF(AND($M26<>"",$H$17=DATA3!$AU$10),(INDEX(DATA2!$AV$324:$BA$645,MATCH(E26,DATA2!$C$324:$C$645,0),MATCH($F$15,DATA2!$AV$3:$BA$3,0))*(1+UP!$A$3)),IF(AND($M26<>"",$H$17=DATA3!$AU$11),(INDEX(DATA2!$AV$647:$BA$968,MATCH(E26,DATA2!$C$647:$C$968,0),MATCH($F$15,DATA2!$AV$3:$BA$3,0))*(1+UP!$A$3)),IF(AND($M26<>"",$H$17=DATA3!$AU$12),(INDEX(DATA2!$AV$969:$BA$1287,MATCH(E26,DATA2!$C$969:$C$1287,0),MATCH($F$15,DATA2!$AV$3:$BA$3,0))*(1+UP!$A$3)),""))) ->  | P26: =IF(AND($M26<>"",$H$17=#REF!),(INDEX(DATA2!$AV$5:$BA$1291,MATCH(F26,DATA2!$C$5:$C$1291,0),MATCH(#REF!,DATA2!$AV$3:$BA$3,0))),IF(AND($M26<>"",$H$17=#REF!),(INDEX(DATA2!$AV$5:$BA$1291,MATCH(F26,DATA2!$C$5:$C$1291,0),MATCH(#REF!,DATA2!$AV$3:$BA$3,0))),IF(AND($M26<>"",$H$17=#REF!),(INDEX(DATA2!$AV$5:$BA$1291,MATCH(F26,DATA2!$C$5:$C$1291,0),MATCH(#REF!,DATA2!$AV$3:$BA$3,0))),""))) -> 
A27: 3 | E27: =IF(AND(B27<>"",$H$17=DATA3!$AU$10),INDEX(DATA2!$C$324:$C$645,MATCH(B27,DATA2!$E$324:$E$645,0)),IF(AND(B27<>"",$H$17=DATA3!$AU$11),INDEX(DATA2!$C$647:$C$968,MATCH(B27,DATA2!$E$647:$E$968,0)),IF(AND(B27<>"",$H$17=DATA3!$AU$12),INDEX(DATA2!$C$969:$C$1287,MATCH(B27,DATA2!$E$969:$E$1287,0)),""))) ->  | M27: =IF(AND(J27<>"",$H$17=DATA3!$AU$10),INDEX(DATA2!$AU$324:$AU$645,MATCH($E27,DATA2!$C$324:$C$645,0)),IF(AND(J27<>"",$H$17=DATA3!$AU$11),INDEX(DATA2!$AU$647:$AU$968,MATCH($E27,DATA2!$C$647:$C$968,0)),IF(AND(J27<>"",$H$17=DATA3!$AU$12),INDEX(DATA2!$AU$969:$AU$1287,MATCH($E27,DATA2!$C$969:$C$1287,0)),""))) ->  | O27: =IF(AND($M27<>"",$H$17=DATA3!$AU$10),(INDEX(DATA2!$AV$324:$BA$645,MATCH(E27,DATA2!$C$324:$C$645,0),MATCH($F$15,DATA2!$AV$3:$BA$3,0))*(1+UP!$A$3)),IF(AND($M27<>"",$H$17=DATA3!$AU$11),(INDEX(DATA2!$AV$647:$BA$968,MATCH(E27,DATA2!$C$647:$C$968,0),MATCH($F$15,DATA2!$AV$3:$BA$3,0))*(1+UP!$A$3)),IF(AND($M27<>"",$H$17=DATA3!$AU$12),(INDEX(DATA2!$AV$969:$BA$1287,MATCH(E27,DATA2!$C$969:$C$1287,0),MATCH($F$15,DATA2!$AV$3:$BA$3,0))*(1+UP!$A$3)),""))) ->  | P27: =IF(AND($M27<>"",$H$17=#REF!),(INDEX(DATA2!$AV$5:$BA$1291,MATCH(F27,DATA2!$C$5:$C$1291,0),MATCH(#REF!,DATA2!$AV$3:$BA$3,0))),IF(AND($M27<>"",$H$17=#REF!),(INDEX(DATA2!$AV$5:$BA$1291,MATCH(F27,DATA2!$C$5:$C$1291,0),MATCH(#REF!,DATA2!$AV$3:$BA$3,0))),IF(AND($M27<>"",$H$17=#REF!),(INDEX(DATA2!$AV$5:$BA$1291,MATCH(F27,DATA2!$C$5:$C$1291,0),MATCH(#REF!,DATA2!$AV$3:$BA$3,0))),""))) -> 
A28: 4 | E28: =IF(AND(B28<>"",$H$17=DATA3!$AU$10),INDEX(DATA2!$C$324:$C$645,MATCH(B28,DATA2!$E$324:$E$645,0)),IF(AND(B28<>"",$H$17=DATA3!$AU$11),INDEX(DATA2!$C$647:$C$968,MATCH(B28,DATA2!$E$647:$E$968,0)),IF(AND(B28<>"",$H$17=DATA3!$AU$12),INDEX(DATA2!$C$969:$C$1287,MATCH(B28,DATA2!$E$969:$E$1287,0)),""))) ->  | M28: =IF(AND(J28<>"",$H$17=DATA3!$AU$10),INDEX(DATA2!$AU$324:$AU$645,MATCH($E28,DATA2!$C$324:$C$645,0)),IF(AND(J28<>"",$H$17=DATA3!$AU$11),INDEX(DATA2!$AU$647:$AU$968,MATCH($E28,DATA2!$C$647:$C$968,0)),IF(AND(J28<>"",$H$17=DATA3!$AU$12),INDEX(DATA2!$AU$969:$AU$1287,MATCH($E28,DATA2!$C$969:$C$1287,0)),""))) ->  | O28: =IF(AND($M28<>"",$H$17=DATA3!$AU$10),(INDEX(DATA2!$AV$324:$BA$645,MATCH(E28,DATA2!$C$324:$C$645,0),MATCH($F$15,DATA2!$AV$3:$BA$3,0))*(1+UP!$A$3)),IF(AND($M28<>"",$H$17=DATA3!$AU$11),(INDEX(DATA2!$AV$647:$BA$968,MATCH(E28,DATA2!$C$647:$C$968,0),MATCH($F$15,DATA2!$AV$3:$BA$3,0))*(1+UP!$A$3)),IF(AND($M28<>"",$H$17=DATA3!$AU$12),(INDEX(DATA2!$AV$969:$BA$1287,MATCH(E28,DATA2!$C$969:$C$1287,0),MATCH($F$15,DATA2!$AV$3:$BA$3,0))*(1+UP!$A$3)),""))) ->  | P28: =IF(AND($M28<>"",$H$17=#REF!),(INDEX(DATA2!$AV$5:$BA$1291,MATCH(F28,DATA2!$C$5:$C$1291,0),MATCH(#REF!,DATA2!$AV$3:$BA$3,0))),IF(AND($M28<>"",$H$17=#REF!),(INDEX(DATA2!$AV$5:$BA$1291,MATCH(F28,DATA2!$C$5:$C$1291,0),MATCH(#REF!,DATA2!$AV$3:$BA$3,0))),IF(AND($M28<>"",$H$17=#REF!),(INDEX(DATA2!$AV$5:$BA$1291,MATCH(F28,DATA2!$C$5:$C$1291,0),MATCH(#REF!,DATA2!$AV$3:$BA$3,0))),""))) -> 
A29: 5 | E29: =IF(AND(B29<>"",$H$17=DATA3!$AU$10),INDEX(DATA2!$C$324:$C$645,MATCH(B29,DATA2!$E$324:$E$645,0)),IF(AND(B29<>"",$H$17=DATA3!$AU$11),INDEX(DATA2!$C$647:$C$968,MATCH(B29,DATA2!$E$647:$E$968,0)),IF(AND(B29<>"",$H$17=DATA3!$AU$12),INDEX(DATA2!$C$969:$C$1287,MATCH(B29,DATA2!$E$969:$E$1287,0)),""))) ->  | M29: =IF(AND(J29<>"",$H$17=DATA3!$AU$10),INDEX(DATA2!$AU$324:$AU$645,MATCH($E29,DATA2!$C$324:$C$645,0)),IF(AND(J29<>"",$H$17=DATA3!$AU$11),INDEX(DATA2!$AU$647:$AU$968,MATCH($E29,DATA2!$C$647:$C$968,0)),IF(AND(J29<>"",$H$17=DATA3!$AU$12),INDEX(DATA2!$AU$969:$AU$1287,MATCH($E29,DATA2!$C$969:$C$1287,0)),""))) ->  | O29: =IF(AND($M29<>"",$H$17=DATA3!$AU$10),(INDEX(DATA2!$AV$324:$BA$645,MATCH(E29,DATA2!$C$324:$C$645,0),MATCH($F$15,DATA2!$AV$3:$BA$3,0))*(1+UP!$A$3)),IF(AND($M29<>"",$H$17=DATA3!$AU$11),(INDEX(DATA2!$AV$647:$BA$968,MATCH(E29,DATA2!$C$647:$C$968,0),MATCH($F$15,DATA2!$AV$3:$BA$3,0))*(1+UP!$A$3)),IF(AND($M29<>"",$H$17=DATA3!$AU$12),(INDEX(DATA2!$AV$969:$BA$1287,MATCH(E29,DATA2!$C$969:$C$1287,0),MATCH($F$15,DATA2!$AV$3:$BA$3,0))*(1+UP!$A$3)),""))) ->  | P29: =IF(AND($M29<>"",$H$17=#REF!),(INDEX(DATA2!$AV$5:$BA$1291,MATCH(F29,DATA2!$C$5:$C$1291,0),MATCH(#REF!,DATA2!$AV$3:$BA$3,0))),IF(AND($M29<>"",$H$17=#REF!),(INDEX(DATA2!$AV$5:$BA$1291,MATCH(F29,DATA2!$C$5:$C$1291,0),MATCH(#REF!,DATA2!$AV$3:$BA$3,0))),IF(AND($M29<>"",$H$17=#REF!),(INDEX(DATA2!$AV$5:$BA$1291,MATCH(F29,DATA2!$C$5:$C$1291,0),MATCH(#REF!,DATA2!$AV$3:$BA$3,0))),""))) ->  | AD29: FULL SKU | AJ29: Qty. | AK29: COST $ | AM29: TOTAL $
A30: 6 | E30: =IF(AND(B30<>"",$H$17=DATA3!$AU$10),INDEX(DATA2!$C$324:$C$645,MATCH(B30,DATA2!$E$324:$E$645,0)),IF(AND(B30<>"",$H$17=DATA3!$AU$11),INDEX(DATA2!$C$647:$C$968,MATCH(B30,DATA2!$E$647:$E$968,0)),IF(AND(B30<>"",$H$17=DATA3!$AU$12),INDEX(DATA2!$C$969:$C$1287,MATCH(B30,DATA2!$E$969:$E$1287,0)),""))) ->  | M30: =IF(AND(J30<>"",$H$17=DATA3!$AU$10),INDEX(DATA2!$AU$324:$AU$645,MATCH($E30,DATA2!$C$324:$C$645,0)),IF(AND(J30<>"",$H$17=DATA3!$AU$11),INDEX(DATA2!$AU$647:$AU$968,MATCH($E30,DATA2!$C$647:$C$968,0)),IF(AND(J30<>"",$H$17=DATA3!$AU$12),INDEX(DATA2!$AU$969:$AU$1287,MATCH($E30,DATA2!$C$969:$C$1287,0)),""))) ->  | O30: =IF(AND($M30<>"",$H$17=DATA3!$AU$10),(INDEX(DATA2!$AV$324:$BA$645,MATCH(E30,DATA2!$C$324:$C$645,0),MATCH($F$15,DATA2!$AV$3:$BA$3,0))*(1+UP!$A$3)),IF(AND($M30<>"",$H$17=DATA3!$AU$11),(INDEX(DATA2!$AV$647:$BA$968,MATCH(E30,DATA2!$C$647:$C$968,0),MATCH($F$15,DATA2!$AV$3:$BA$3,0))*(1+UP!$A$3)),IF(AND($M30<>"",$H$17=DATA3!$AU$12),(INDEX(DATA2!$AV$969:$BA$1287,MATCH(E30,DATA2!$C$969:$C$1287,0),MATCH($F$15,DATA2!$AV$3:$BA$3,0))*(1+UP!$A$3)),""))) ->  | P30: =IF(AND($M30<>"",$H$17=#REF!),(INDEX(DATA2!$AV$5:$BA$1291,MATCH(F30,DATA2!$C$5:$C$1291,0),MATCH(#REF!,DATA2!$AV$3:$BA$3,0))),IF(AND($M30<>"",$H$17=#REF!),(INDEX(DATA2!$AV$5:$BA$1291,MATCH(F30,DATA2!$C$5:$C$1291,0),MATCH(#REF!,DATA2!$AV$3:$BA$3,0))),IF(AND($M30<>"",$H$17=#REF!),(INDEX(DATA2!$AV$5:$BA$1291,MATCH(F30,DATA2!$C$5:$C$1291,0),MATCH(#REF!,DATA2!$AV$3:$BA$3,0))),""))) ->  | Z30: Assemble | AC30: =IF(DATA3!AZ20>0,"LABASSEMBLE","") ->  | AI30: =IF(AC30<>"",J60," ") ->  | AK30: =IF(AC30<>"",30," ") ->  | AM30: =IF(AC30<>"",AI30*AK30,0) -> 0
A31: 7 | E31: =IF(AND(B31<>"",$H$17=DATA3!$AU$10),INDEX(DATA2!$C$324:$C$645,MATCH(B31,DATA2!$E$324:$E$645,0)),IF(AND(B31<>"",$H$17=DATA3!$AU$11),INDEX(DATA2!$C$647:$C$968,MATCH(B31,DATA2!$E$647:$E$968,0)),IF(AND(B31<>"",$H$17=DATA3!$AU$12),INDEX(DATA2!$C$969:$C$1287,MATCH(B31,DATA2!$E$969:$E$1287,0)),""))) ->  | M31: =IF(AND(J31<>"",$H$17=DATA3!$AU$10),INDEX(DATA2!$AU$324:$AU$645,MATCH($E31,DATA2!$C$324:$C$645,0)),IF(AND(J31<>"",$H$17=DATA3!$AU$11),INDEX(DATA2!$AU$647:$AU$968,MATCH($E31,DATA2!$C$647:$C$968,0)),IF(AND(J31<>"",$H$17=DATA3!$AU$12),INDEX(DATA2!$AU$969:$AU$1287,MATCH($E31,DATA2!$C$969:$C$1287,0)),""))) ->  | O31: =IF(AND($M31<>"",$H$17=DATA3!$AU$10),(INDEX(DATA2!$AV$324:$BA$645,MATCH(E31,DATA2!$C$324:$C$645,0),MATCH($F$15,DATA2!$AV$3:$BA$3,0))*(1+UP!$A$3)),IF(AND($M31<>"",$H$17=DATA3!$AU$11),(INDEX(DATA2!$AV$647:$BA$968,MATCH(E31,DATA2!$C$647:$C$968,0),MATCH($F$15,DATA2!$AV$3:$BA$3,0))*(1+UP!$A$3)),IF(AND($M31<>"",$H$17=DATA3!$AU$12),(INDEX(DATA2!$AV$969:$BA$1287,MATCH(E31,DATA2!$C$969:$C$1287,0),MATCH($F$15,DATA2!$AV$3:$BA$3,0))*(1+UP!$A$3)),""))) ->  | P31: =IF(AND($M31<>"",$H$17=#REF!),(INDEX(DATA2!$AV$5:$BA$1291,MATCH(F31,DATA2!$C$5:$C$1291,0),MATCH(#REF!,DATA2!$AV$3:$BA$3,0))),IF(AND($M31<>"",$H$17=#REF!),(INDEX(DATA2!$AV$5:$BA$1291,MATCH(F31,DATA2!$C$5:$C$1291,0),MATCH(#REF!,DATA2!$AV$3:$BA$3,0))),IF(AND($M31<>"",$H$17=#REF!),(INDEX(DATA2!$AV$5:$BA$1291,MATCH(F31,DATA2!$C$5:$C$1291,0),MATCH(#REF!,DATA2!$AV$3:$BA$3,0))),""))) ->  | AH31: Qty
A32: 8 | E32: =IF(AND(B32<>"",$H$17=DATA3!$AU$10),INDEX(DATA2!$C$324:$C$645,MATCH(B32,DATA2!$E$324:$E$645,0)),IF(AND(B32<>"",$H$17=DATA3!$AU$11),INDEX(DATA2!$C$647:$C$968,MATCH(B32,DATA2!$E$647:$E$968,0)),IF(AND(B32<>"",$H$17=DATA3!$AU$12),INDEX(DATA2!$C$969:$C$1287,MATCH(B32,DATA2!$E$969:$E$1287,0)),""))) ->  | M32: =IF(AND(J32<>"",$H$17=DATA3!$AU$10),INDEX(DATA2!$AU$324:$AU$645,MATCH($E32,DATA2!$C$324:$C$645,0)),IF(AND(J32<>"",$H$17=DATA3!$AU$11),INDEX(DATA2!$AU$647:$AU$968,MATCH($E32,DATA2!$C$647:$C$968,0)),IF(AND(J32<>"",$H$17=DATA3!$AU$12),INDEX(DATA2!$AU$969:$AU$1287,MATCH($E32,DATA2!$C$969:$C$1287,0)),""))) ->  | O32: =IF(AND($M32<>"",$H$17=DATA3!$AU$10),(INDEX(DATA2!$AV$324:$BA$645,MATCH(E32,DATA2!$C$324:$C$645,0),MATCH($F$15,DATA2!$AV$3:$BA$3,0))*(1+UP!$A$3)),IF(AND($M32<>"",$H$17=DATA3!$AU$11),(INDEX(DATA2!$AV$647:$BA$968,MATCH(E32,DATA2!$C$647:$C$968,0),MATCH($F$15,DATA2!$AV$3:$BA$3,0))*(1+UP!$A$3)),IF(AND($M32<>"",$H$17=DATA3!$AU$12),(INDEX(DATA2!$AV$969:$BA$1287,MATCH(E32,DATA2!$C$969:$C$1287,0),MATCH($F$15,DATA2!$AV$3:$BA$3,0))*(1+UP!$A$3)),""))) ->  | P32: =IF(AND($M32<>"",$H$17=#REF!),(INDEX(DATA2!$AV$5:$BA$1291,MATCH(F32,DATA2!$C$5:$C$1291,0),MATCH(#REF!,DATA2!$AV$3:$BA$3,0))),IF(AND($M32<>"",$H$17=#REF!),(INDEX(DATA2!$AV$5:$BA$1291,MATCH(F32,DATA2!$C$5:$C$1291,0),MATCH(#REF!,DATA2!$AV$3:$BA$3,0))),IF(AND($M32<>"",$H$17=#REF!),(INDEX(DATA2!$AV$5:$BA$1291,MATCH(F32,DATA2!$C$5:$C$1291,0),MATCH(#REF!,DATA2!$AV$3:$BA$3,0))),""))) ->  | Z32: ACCESSORY | AD32: FULL SKU | AI32: LIST $ | AK32: COST $ | AM32: TOTAL $
A33: 9 | E33: =IF(AND(B33<>"",$H$17=DATA3!$AU$10),INDEX(DATA2!$C$324:$C$645,MATCH(B33,DATA2!$E$324:$E$645,0)),IF(AND(B33<>"",$H$17=DATA3!$AU$11),INDEX(DATA2!$C$647:$C$968,MATCH(B33,DATA2!$E$647:$E$968,0)),IF(AND(B33<>"",$H$17=DATA3!$AU$12),INDEX(DATA2!$C$969:$C$1287,MATCH(B33,DATA2!$E$969:$E$1287,0)),""))) ->  | M33: =IF(AND(J33<>"",$H$17=DATA3!$AU$10),INDEX(DATA2!$AU$324:$AU$645,MATCH($E33,DATA2!$C$324:$C$645,0)),IF(AND(J33<>"",$H$17=DATA3!$AU$11),INDEX(DATA2!$AU$647:$AU$968,MATCH($E33,DATA2!$C$647:$C$968,0)),IF(AND(J33<>"",$H$17=DATA3!$AU$12),INDEX(DATA2!$AU$969:$AU$1287,MATCH($E33,DATA2!$C$969:$C$1287,0)),""))) ->  | O33: =IF(AND($M33<>"",$H$17=DATA3!$AU$10),(INDEX(DATA2!$AV$324:$BA$645,MATCH(E33,DATA2!$C$324:$C$645,0),MATCH($F$15,DATA2!$AV$3:$BA$3,0))*(1+UP!$A$3)),IF(AND($M33<>"",$H$17=DATA3!$AU$11),(INDEX(DATA2!$AV$647:$BA$968,MATCH(E33,DATA2!$C$647:$C$968,0),MATCH($F$15,DATA2!$AV$3:$BA$3,0))*(1+UP!$A$3)),IF(AND($M33<>"",$H$17=DATA3!$AU$12),(INDEX(DATA2!$AV$969:$BA$1287,MATCH(E33,DATA2!$C$969:$C$1287,0),MATCH($F$15,DATA2!$AV$3:$BA$3,0))*(1+UP!$A$3)),""))) ->  | P33: =IF(AND($M33<>"",$H$17=#REF!),(INDEX(DATA2!$AV$5:$BA$1291,MATCH(F33,DATA2!$C$5:$C$1291,0),MATCH(#REF!,DATA2!$AV$3:$BA$3,0))),IF(AND($M33<>"",$H$17=#REF!),(INDEX(DATA2!$AV$5:$BA$1291,MATCH(F33,DATA2!$C$5:$C$1291,0),MATCH(#REF!,DATA2!$AV$3:$BA$3,0))),IF(AND($M33<>"",$H$17=#REF!),(INDEX(DATA2!$AV$5:$BA$1291,MATCH(F33,DATA2!$C$5:$C$1291,0),MATCH(#REF!,DATA2!$AV$3:$BA$3,0))),""))) ->  | Y33: 1 | AC33: =IF(AND(Z33<>"",$H$17=DATA3!$AU$10),INDEX(DATA2!$C$1333:$C$1366,MATCH(Z33,DATA2!$E$1333:$E$1366,0)),IF(AND(Z33<>"",$H$17=DATA3!$AU$11),INDEX(DATA2!$C$1372:$C$1405,MATCH(Z33,DATA2!$E$1372:$E$1405,0)),IF(AND(Z33<>"",$H$17=DATA3!$AU$12),INDEX(DATA2!$C$1410:$C$1441,MATCH(Z33,DATA2!$E$1410:$E$1441,0)),""))) ->  | AI33: =IF(AND(Z33<>"",$H$17=DATA3!$AU$10),INDEX(DATA2!$AU$1333:$AU$1366,MATCH($AC33,DATA2!$B$1333:$B$1366,0)),IF(AND(Z33<>"",$H$17=DATA3!$AU$11),INDEX(DATA2!$AU$1372:$AU$1405,MATCH($AC33,DATA2!$B$1372:$B$1405,0)),IF(AND(Z33<>"",$H$17=DATA3!$AU$12),INDEX(DATA2!$AU$1410:$AU$1441,MATCH($AC33,DATA2!$B$1410:$B$1441,0)),""))) ->  | AJ33: =IF(AND(AG33<>"",$H$17=#REF!),INDEX(DATA2!$AU$1331:$AU$1369,MATCH($V35,DATA2!$B$1331:$B$1369,0)),IF(AND(AG33<>"",$H$17=#REF!),INDEX(DATA2!$AU$1292:$AU$1330,MATCH($V35,DATA2!$B$1292:$B$1330,0)),IF(AND(AG33<>"",$H$17=#REF!),INDEX(DATA2!$AU$1370:$AU$1570,MATCH($V35,DATA2!$B$1370:$B$1570,0)),""))) ->  | AK33: =IF(AND($Z33<>"",$H$17=DATA3!$AU$10),(INDEX(DATA2!$AV$1333:$BA$1366,MATCH(AC33,DATA2!$C$1333:$C$1366,0),MATCH($F$15,DATA2!$AV$3:$BA$3,0))*(1+UP!$A$3)),IF(AND($Z33<>"",$H$17=DATA3!$AU$11),(INDEX(DATA2!$AV$1372:$BA$1405,MATCH(AC33,DATA2!$C$1372:$C$1405,0),MATCH($F$15,DATA2!$AV$3:$BA$3,0))*(1+UP!$A$3)),IF(AND($Z33<>"",$H$17=DATA3!$AU$12),(INDEX(DATA2!$AV$1410:$BA$1441,MATCH(AC33,DATA2!$C$1410:$C$1441,0),MATCH($F$15,DATA2!$AV$3:$BA$3,0))*(1+UP!$A$3)),""))) ->  | AM33: =IF($AH33<>"",$AK33*$AH33,"") -> 
A34: 10 | E34: =IF(AND(B34<>"",$H$17=DATA3!$AU$10),INDEX(DATA2!$C$324:$C$645,MATCH(B34,DATA2!$E$324:$E$645,0)),IF(AND(B34<>"",$H$17=DATA3!$AU$11),INDEX(DATA2!$C$647:$C$968,MATCH(B34,DATA2!$E$647:$E$968,0)),IF(AND(B34<>"",$H$17=DATA3!$AU$12),INDEX(DATA2!$C$969:$C$1287,MATCH(B34,DATA2!$E$969:$E$1287,0)),""))) ->  | M34: =IF(AND(J34<>"",$H$17=DATA3!$AU$10),INDEX(DATA2!$AU$324:$AU$645,MATCH($E34,DATA2!$C$324:$C$645,0)),IF(AND(J34<>"",$H$17=DATA3!$AU$11),INDEX(DATA2!$AU$647:$AU$968,MATCH($E34,DATA2!$C$647:$C$968,0)),IF(AND(J34<>"",$H$17=DATA3!$AU$12),INDEX(DATA2!$AU$969:$AU$1287,MATCH($E34,DATA2!$C$969:$C$1287,0)),""))) ->  | O34: =IF(AND($M34<>"",$H$17=DATA3!$AU$10),(INDEX(DATA2!$AV$324:$BA$645,MATCH(E34,DATA2!$C$324:$C$645,0),MATCH($F$15,DATA2!$AV$3:$BA$3,0))*(1+UP!$A$3)),IF(AND($M34<>"",$H$17=DATA3!$AU$11),(INDEX(DATA2!$AV$647:$BA$968,MATCH(E34,DATA2!$C$647:$C$968,0),MATCH($F$15,DATA2!$AV$3:$BA$3,0))*(1+UP!$A$3)),IF(AND($M34<>"",$H$17=DATA3!$AU$12),(INDEX(DATA2!$AV$969:$BA$1287,MATCH(E34,DATA2!$C$969:$C$1287,0),MATCH($F$15,DATA2!$AV$3:$BA$3,0))*(1+UP!$A$3)),""))) ->  | P34: =IF(AND($M34<>"",$H$17=#REF!),(INDEX(DATA2!$AV$5:$BA$1291,MATCH(F34,DATA2!$C$5:$C$1291,0),MATCH(#REF!,DATA2!$AV$3:$BA$3,0))),IF(AND($M34<>"",$H$17=#REF!),(INDEX(DATA2!$AV$5:$BA$1291,MATCH(F34,DATA2!$C$5:$C$1291,0),MATCH(#REF!,DATA2!$AV$3:$BA$3,0))),IF(AND($M34<>"",$H$17=#REF!),(INDEX(DATA2!$AV$5:$BA$1291,MATCH(F34,DATA2!$C$5:$C$1291,0),MATCH(#REF!,DATA2!$AV$3:$BA$3,0))),""))) ->  | Y34: 2 | AC34: =IF(AND(Z34<>"",$H$17=DATA3!$AU$10),INDEX(DATA2!$C$1333:$C$1366,MATCH(Z34,DATA2!$E$1333:$E$1366,0)),IF(AND(Z34<>"",$H$17=DATA3!$AU$11),INDEX(DATA2!$C$1372:$C$1405,MATCH(Z34,DATA2!$E$1372:$E$1405,0)),IF(AND(Z34<>"",$H$17=DATA3!$AU$12),INDEX(DATA2!$C$1410:$C$1441,MATCH(Z34,DATA2!$E$1410:$E$1441,0)),""))) ->  | AI34: =IF(AND(Z34<>"",$H$17=DATA3!$AU$10),INDEX(DATA2!$AU$1333:$AU$1366,MATCH($AC34,DATA2!$B$1333:$B$1366,0)),IF(AND(Z34<>"",$H$17=DATA3!$AU$11),INDEX(DATA2!$AU$1372:$AU$1405,MATCH($AC34,DATA2!$B$1372:$B$1405,0)),IF(AND(Z34<>"",$H$17=DATA3!$AU$12),INDEX(DATA2!$AU$1410:$AU$1441,MATCH($AC34,DATA2!$B$1410:$B$1441,0)),""))) ->  | AJ34: =IF(AND(AG34<>"",$H$17=#REF!),INDEX(DATA2!$AU$1331:$AU$1369,MATCH($V36,DATA2!$B$1331:$B$1369,0)),IF(AND(AG34<>"",$H$17=#REF!),INDEX(DATA2!$AU$1292:$AU$1330,MATCH($V36,DATA2!$B$1292:$B$1330,0)),IF(AND(AG34<>"",$H$17=#REF!),INDEX(DATA2!$AU$1370:$AU$1570,MATCH($V36,DATA2!$B$1370:$B$1570,0)),""))) ->  | AK34: =IF(AND($Z34<>"",$H$17=DATA3!$AU$10),(INDEX(DATA2!$AV$1333:$BA$1366,MATCH(AC34,DATA2!$C$1333:$C$1366,0),MATCH($F$15,DATA2!$AV$3:$BA$3,0))*(1+UP!$A$3)),IF(AND($Z34<>"",$H$17=DATA3!$AU$11),(INDEX(DATA2!$AV$1372:$BA$1405,MATCH(AC34,DATA2!$C$1372:$C$1405,0),MATCH($F$15,DATA2!$AV$3:$BA$3,0))*(1+UP!$A$3)),IF(AND($Z34<>"",$H$17=DATA3!$AU$12),(INDEX(DATA2!$AV$1410:$BA$1441,MATCH(AC34,DATA2!$C$1410:$C$1441,0),MATCH($F$15,DATA2!$AV$3:$BA$3,0))*(1+UP!$A$3)),""))) ->  | AM34: =IF($AH34<>"",$AK34*$AH34,"") -> 
A35: 11 | E35: =IF(AND(B35<>"",$H$17=DATA3!$AU$10),INDEX(DATA2!$C$324:$C$645,MATCH(B35,DATA2!$E$324:$E$645,0)),IF(AND(B35<>"",$H$17=DATA3!$AU$11),INDEX(DATA2!$C$647:$C$968,MATCH(B35,DATA2!$E$647:$E$968,0)),IF(AND(B35<>"",$H$17=DATA3!$AU$12),INDEX(DATA2!$C$969:$C$1287,MATCH(B35,DATA2!$E$969:$E$1287,0)),""))) ->  | M35: =IF(AND(J35<>"",$H$17=DATA3!$AU$10),INDEX(DATA2!$AU$324:$AU$645,MATCH($E35,DATA2!$C$324:$C$645,0)),IF(AND(J35<>"",$H$17=DATA3!$AU$11),INDEX(DATA2!$AU$647:$AU$968,MATCH($E35,DATA2!$C$647:$C$968,0)),IF(AND(J35<>"",$H$17=DATA3!$AU$12),INDEX(DATA2!$AU$969:$AU$1287,MATCH($E35,DATA2!$C$969:$C$1287,0)),""))) ->  | O35: =IF(AND($M35<>"",$H$17=DATA3!$AU$10),(INDEX(DATA2!$AV$324:$BA$645,MATCH(E35,DATA2!$C$324:$C$645,0),MATCH($F$15,DATA2!$AV$3:$BA$3,0))*(1+UP!$A$3)),IF(AND($M35<>"",$H$17=DATA3!$AU$11),(INDEX(DATA2!$AV$647:$BA$968,MATCH(E35,DATA2!$C$647:$C$968,0),MATCH($F$15,DATA2!$AV$3:$BA$3,0))*(1+UP!$A$3)),IF(AND($M35<>"",$H$17=DATA3!$AU$12),(INDEX(DATA2!$AV$969:$BA$1287,MATCH(E35,DATA2!$C$969:$C$1287,0),MATCH($F$15,DATA2!$AV$3:$BA$3,0))*(1+UP!$A$3)),""))) ->  | P35: =IF(AND($M35<>"",$H$17=#REF!),(INDEX(DATA2!$AV$5:$BA$1291,MATCH(F35,DATA2!$C$5:$C$1291,0),MATCH(#REF!,DATA2!$AV$3:$BA$3,0))),IF(AND($M35<>"",$H$17=#REF!),(INDEX(DATA2!$AV$5:$BA$1291,MATCH(F35,DATA2!$C$5:$C$1291,0),MATCH(#REF!,DATA2!$AV$3:$BA$3,0))),IF(AND($M35<>"",$H$17=#REF!),(INDEX(DATA2!$AV$5:$BA$1291,MATCH(F35,DATA2!$C$5:$C$1291,0),MATCH(#REF!,DATA2!$AV$3:$BA$3,0))),""))) ->  | Y35: 3 | AC35: =IF(AND(Z35<>"",$H$17=DATA3!$AU$10),INDEX(DATA2!$C$1333:$C$1366,MATCH(Z35,DATA2!$E$1333:$E$1366,0)),IF(AND(Z35<>"",$H$17=DATA3!$AU$11),INDEX(DATA2!$C$1372:$C$1405,MATCH(Z35,DATA2!$E$1372:$E$1405,0)),IF(AND(Z35<>"",$H$17=DATA3!$AU$12),INDEX(DATA2!$C$1410:$C$1441,MATCH(Z35,DATA2!$E$1410:$E$1441,0)),""))) ->  | AI35: =IF(AND(Z35<>"",$H$17=DATA3!$AU$10),INDEX(DATA2!$AU$1333:$AU$1366,MATCH($AC35,DATA2!$B$1333:$B$1366,0)),IF(AND(Z35<>"",$H$17=DATA3!$AU$11),INDEX(DATA2!$AU$1372:$AU$1405,MATCH($AC35,DATA2!$B$1372:$B$1405,0)),IF(AND(Z35<>"",$H$17=DATA3!$AU$12),INDEX(DATA2!$AU$1410:$AU$1441,MATCH($AC35,DATA2!$B$1410:$B$1441,0)),""))) ->  | AJ35: =IF(AND(AG35<>"",$H$17=#REF!),INDEX(DATA2!$AU$1331:$AU$1369,MATCH($V37,DATA2!$B$1331:$B$1369,0)),IF(AND(AG35<>"",$H$17=#REF!),INDEX(DATA2!$AU$1292:$AU$1330,MATCH($V37,DATA2!$B$1292:$B$1330,0)),IF(AND(AG35<>"",$H$17=#REF!),INDEX(DATA2!$AU$1370:$AU$1570,MATCH($V37,DATA2!$B$1370:$B$1570,0)),""))) ->  | AK35: =IF(AND($Z35<>"",$H$17=DATA3!$AU$10),(INDEX(DATA2!$AV$1333:$BA$1366,MATCH(AC35,DATA2!$C$1333:$C$1366,0),MATCH($F$15,DATA2!$AV$3:$BA$3,0))*(1+UP!$A$3)),IF(AND($Z35<>"",$H$17=DATA3!$AU$11),(INDEX(DATA2!$AV$1372:$BA$1405,MATCH(AC35,DATA2!$C$1372:$C$1405,0),MATCH($F$15,DATA2!$AV$3:$BA$3,0))*(1+UP!$A$3)),IF(AND($Z35<>"",$H$17=DATA3!$AU$12),(INDEX(DATA2!$AV$1410:$BA$1441,MATCH(AC35,DATA2!$C$1410:$C$1441,0),MATCH($F$15,DATA2!$AV$3:$BA$3,0))*(1+UP!$A$3)),""))) -> 
A36: 12 | E36: =IF(AND(B36<>"",$H$17=DATA3!$AU$10),INDEX(DATA2!$C$324:$C$645,MATCH(B36,DATA2!$E$324:$E$645,0)),IF(AND(B36<>"",$H$17=DATA3!$AU$11),INDEX(DATA2!$C$647:$C$968,MATCH(B36,DATA2!$E$647:$E$968,0)),IF(AND(B36<>"",$H$17=DATA3!$AU$12),INDEX(DATA2!$C$969:$C$1287,MATCH(B36,DATA2!$E$969:$E$1287,0)),""))) ->  | M36: =IF(AND(J36<>"",$H$17=DATA3!$AU$10),INDEX(DATA2!$AU$324:$AU$645,MATCH($E36,DATA2!$C$324:$C$645,0)),IF(AND(J36<>"",$H$17=DATA3!$AU$11),INDEX(DATA2!$AU$647:$AU$968,MATCH($E36,DATA2!$C$647:$C$968,0)),IF(AND(J36<>"",$H$17=DATA3!$AU$12),INDEX(DATA2!$AU$969:$AU$1287,MATCH($E36,DATA2!$C$969:$C$1287,0)),""))) ->  | O36: =IF(AND($M36<>"",$H$17=DATA3!$AU$10),(INDEX(DATA2!$AV$324:$BA$645,MATCH(E36,DATA2!$C$324:$C$645,0),MATCH($F$15,DATA2!$AV$3:$BA$3,0))*(1+UP!$A$3)),IF(AND($M36<>"",$H$17=DATA3!$AU$11),(INDEX(DATA2!$AV$647:$BA$968,MATCH(E36,DATA2!$C$647:$C$968,0),MATCH($F$15,DATA2!$AV$3:$BA$3,0))*(1+UP!$A$3)),IF(AND($M36<>"",$H$17=DATA3!$AU$12),(INDEX(DATA2!$AV$969:$BA$1287,MATCH(E36,DATA2!$C$969:$C$1287,0),MATCH($F$15,DATA2!$AV$3:$BA$3,0))*(1+UP!$A$3)),""))) ->  | P36: =IF(AND($M36<>"",$H$17=#REF!),(INDEX(DATA2!$AV$5:$BA$1291,MATCH(F36,DATA2!$C$5:$C$1291,0),MATCH(#REF!,DATA2!$AV$3:$BA$3,0))),IF(AND($M36<>"",$H$17=#REF!),(INDEX(DATA2!$AV$5:$BA$1291,MATCH(F36,DATA2!$C$5:$C$1291,0),MATCH(#REF!,DATA2!$AV$3:$BA$3,0))),IF(AND($M36<>"",$H$17=#REF!),(INDEX(DATA2!$AV$5:$BA$1291,MATCH(F36,DATA2!$C$5:$C$1291,0),MATCH(#REF!,DATA2!$AV$3:$BA$3,0))),""))) ->  | Y36: 4 | AC36: =IF(AND(Z36<>"",$H$17=DATA3!$AU$10),INDEX(DATA2!$C$1333:$C$1366,MATCH(Z36,DATA2!$E$1333:$E$1366,0)),IF(AND(Z36<>"",$H$17=DATA3!$AU$11),INDEX(DATA2!$C$1372:$C$1405,MATCH(Z36,DATA2!$E$1372:$E$1405,0)),IF(AND(Z36<>"",$H$17=DATA3!$AU$12),INDEX(DATA2!$C$1410:$C$1441,MATCH(Z36,DATA2!$E$1410:$E$1441,0)),""))) ->  | AI36: =IF(AND(Z36<>"",$H$17=DATA3!$AU$10),INDEX(DATA2!$AU$1333:$AU$1366,MATCH($AC36,DATA2!$B$1333:$B$1366,0)),IF(AND(Z36<>"",$H$17=DATA3!$AU$11),INDEX(DATA2!$AU$1372:$AU$1405,MATCH($AC36,DATA2!$B$1372:$B$1405,0)),IF(AND(Z36<>"",$H$17=DATA3!$AU$12),INDEX(DATA2!$AU$1410:$AU$1441,MATCH($AC36,DATA2!$B$1410:$B$1441,0)),""))) ->  | AJ36: =IF(AND(AG36<>"",$H$17=#REF!),INDEX(DATA2!$AU$1331:$AU$1369,MATCH($V38,DATA2!$B$1331:$B$1369,0)),IF(AND(AG36<>"",$H$17=#REF!),INDEX(DATA2!$AU$1292:$AU$1330,MATCH($V38,DATA2!$B$1292:$B$1330,0)),IF(AND(AG36<>"",$H$17=#REF!),INDEX(DATA2!$AU$1370:$AU$1570,MATCH($V38,DATA2!$B$1370:$B$1570,0)),""))) ->  | AK36: =IF(AND($Z36<>"",$H$17=DATA3!$AU$10),(INDEX(DATA2!$AV$1333:$BA$1366,MATCH(AC36,DATA2!$C$1333:$C$1366,0),MATCH($F$15,DATA2!$AV$3:$BA$3,0))*(1+UP!$A$3)),IF(AND($Z36<>"",$H$17=DATA3!$AU$11),(INDEX(DATA2!$AV$1372:$BA$1405,MATCH(AC36,DATA2!$C$1372:$C$1405,0),MATCH($F$15,DATA2!$AV$3:$BA$3,0))*(1+UP!$A$3)),IF(AND($Z36<>"",$H$17=DATA3!$AU$12),(INDEX(DATA2!$AV$1410:$BA$1441,MATCH(AC36,DATA2!$C$1410:$C$1441,0),MATCH($F$15,DATA2!$AV$3:$BA$3,0))*(1+UP!$A$3)),""))) -> 
A37: 13 | E37: =IF(AND(B37<>"",$H$17=DATA3!$AU$10),INDEX(DATA2!$C$324:$C$645,MATCH(B37,DATA2!$E$324:$E$645,0)),IF(AND(B37<>"",$H$17=DATA3!$AU$11),INDEX(DATA2!$C$647:$C$968,MATCH(B37,DATA2!$E$647:$E$968,0)),IF(AND(B37<>"",$H$17=DATA3!$AU$12),INDEX(DATA2!$C$969:$C$1287,MATCH(B37,DATA2!$E$969:$E$1287,0)),""))) ->  | M37: =IF(AND(J37<>"",$H$17=DATA3!$AU$10),INDEX(DATA2!$AU$324:$AU$645,MATCH($E37,DATA2!$C$324:$C$645,0)),IF(AND(J37<>"",$H$17=DATA3!$AU$11),INDEX(DATA2!$AU$647:$AU$968,MATCH($E37,DATA2!$C$647:$C$968,0)),IF(AND(J37<>"",$H$17=DATA3!$AU$12),INDEX(DATA2!$AU$969:$AU$1287,MATCH($E37,DATA2!$C$969:$C$1287,0)),""))) ->  | O37: =IF(AND($M37<>"",$H$17=DATA3!$AU$10),(INDEX(DATA2!$AV$324:$BA$645,MATCH(E37,DATA2!$C$324:$C$645,0),MATCH($F$15,DATA2!$AV$3:$BA$3,0))*(1+UP!$A$3)),IF(AND($M37<>"",$H$17=DATA3!$AU$11),(INDEX(DATA2!$AV$647:$BA$968,MATCH(E37,DATA2!$C$647:$C$968,0),MATCH($F$15,DATA2!$AV$3:$BA$3,0))*(1+UP!$A$3)),IF(AND($M37<>"",$H$17=DATA3!$AU$12),(INDEX(DATA2!$AV$969:$BA$1287,MATCH(E37,DATA2!$C$969:$C$1287,0),MATCH($F$15,DATA2!$AV$3:$BA$3,0))*(1+UP!$A$3)),""))) ->  | P37: =IF(AND($M37<>"",$H$17=#REF!),(INDEX(DATA2!$AV$5:$BA$1291,MATCH(F37,DATA2!$C$5:$C$1291,0),MATCH(#REF!,DATA2!$AV$3:$BA$3,0))),IF(AND($M37<>"",$H$17=#REF!),(INDEX(DATA2!$AV$5:$BA$1291,MATCH(F37,DATA2!$C$5:$C$1291,0),MATCH(#REF!,DATA2!$AV$3:$BA$3,0))),IF(AND($M37<>"",$H$17=#REF!),(INDEX(DATA2!$AV$5:$BA$1291,MATCH(F37,DATA2!$C$5:$C$1291,0),MATCH(#REF!,DATA2!$AV$3:$BA$3,0))),""))) ->  | Y37: 5 | AC37: =IF(AND(Z37<>"",$H$17=DATA3!$AU$10),INDEX(DATA2!$C$1333:$C$1366,MATCH(Z37,DATA2!$E$1333:$E$1366,0)),IF(AND(Z37<>"",$H$17=DATA3!$AU$11),INDEX(DATA2!$C$1372:$C$1405,MATCH(Z37,DATA2!$E$1372:$E$1405,0)),IF(AND(Z37<>"",$H$17=DATA3!$AU$12),INDEX(DATA2!$C$1410:$C$1441,MATCH(Z37,DATA2!$E$1410:$E$1441,0)),""))) ->  | AI37: =IF(AND(Z37<>"",$H$17=DATA3!$AU$10),INDEX(DATA2!$AU$1333:$AU$1366,MATCH($AC37,DATA2!$B$1333:$B$1366,0)),IF(AND(Z37<>"",$H$17=DATA3!$AU$11),INDEX(DATA2!$AU$1372:$AU$1405,MATCH($AC37,DATA2!$B$1372:$B$1405,0)),IF(AND(Z37<>"",$H$17=DATA3!$AU$12),INDEX(DATA2!$AU$1410:$AU$1441,MATCH($AC37,DATA2!$B$1410:$B$1441,0)),""))) ->  | AJ37: =IF(AND(AG37<>"",$H$17=#REF!),INDEX(DATA2!$AU$1331:$AU$1369,MATCH($V39,DATA2!$B$1331:$B$1369,0)),IF(AND(AG37<>"",$H$17=#REF!),INDEX(DATA2!$AU$1292:$AU$1330,MATCH($V39,DATA2!$B$1292:$B$1330,0)),IF(AND(AG37<>"",$H$17=#REF!),INDEX(DATA2!$AU$1370:$AU$1570,MATCH($V39,DATA2!$B$1370:$B$1570,0)),""))) ->  | AK37: =IF(AND($Z37<>"",$H$17=DATA3!$AU$10),(INDEX(DATA2!$AV$1333:$BA$1366,MATCH(AC37,DATA2!$C$1333:$C$1366,0),MATCH($F$15,DATA2!$AV$3:$BA$3,0))*(1+UP!$A$3)),IF(AND($Z37<>"",$H$17=DATA3!$AU$11),(INDEX(DATA2!$AV$1372:$BA$1405,MATCH(AC37,DATA2!$C$1372:$C$1405,0),MATCH($F$15,DATA2!$AV$3:$BA$3,0))*(1+UP!$A$3)),IF(AND($Z37<>"",$H$17=DATA3!$AU$12),(INDEX(DATA2!$AV$1410:$BA$1441,MATCH(AC37,DATA2!$C$1410:$C$1441,0),MATCH($F$15,DATA2!$AV$3:$BA$3,0))*(1+UP!$A$3)),""))) -> 
A38: 14 | E38: =IF(AND(B38<>"",$H$17=DATA3!$AU$10),INDEX(DATA2!$C$324:$C$645,MATCH(B38,DATA2!$E$324:$E$645,0)),IF(AND(B38<>"",$H$17=DATA3!$AU$11),INDEX(DATA2!$C$647:$C$968,MATCH(B38,DATA2!$E$647:$E$968,0)),IF(AND(B38<>"",$H$17=DATA3!$AU$12),INDEX(DATA2!$C$969:$C$1287,MATCH(B38,DATA2!$E$969:$E$1287,0)),""))) ->  | M38: =IF(AND(J38<>"",$H$17=DATA3!$AU$10),INDEX(DATA2!$AU$324:$AU$645,MATCH($E38,DATA2!$C$324:$C$645,0)),IF(AND(J38<>"",$H$17=DATA3!$AU$11),INDEX(DATA2!$AU$647:$AU$968,MATCH($E38,DATA2!$C$647:$C$968,0)),IF(AND(J38<>"",$H$17=DATA3!$AU$12),INDEX(DATA2!$AU$969:$AU$1287,MATCH($E38,DATA2!$C$969:$C$1287,0)),""))) ->  | O38: =IF(AND($M38<>"",$H$17=DATA3!$AU$10),(INDEX(DATA2!$AV$324:$BA$645,MATCH(E38,DATA2!$C$324:$C$645,0),MATCH($F$15,DATA2!$AV$3:$BA$3,0))*(1+UP!$A$3)),IF(AND($M38<>"",$H$17=DATA3!$AU$11),(INDEX(DATA2!$AV$647:$BA$968,MATCH(E38,DATA2!$C$647:$C$968,0),MATCH($F$15,DATA2!$AV$3:$BA$3,0))*(1+UP!$A$3)),IF(AND($M38<>"",$H$17=DATA3!$AU$12),(INDEX(DATA2!$AV$969:$BA$1287,MATCH(E38,DATA2!$C$969:$C$1287,0),MATCH($F$15,DATA2!$AV$3:$BA$3,0))*(1+UP!$A$3)),""))) ->  | P38: =IF(AND($M38<>"",$H$17=#REF!),(INDEX(DATA2!$AV$5:$BA$1291,MATCH(F38,DATA2!$C$5:$C$1291,0),MATCH(#REF!,DATA2!$AV$3:$BA$3,0))),IF(AND($M38<>"",$H$17=#REF!),(INDEX(DATA2!$AV$5:$BA$1291,MATCH(F38,DATA2!$C$5:$C$1291,0),MATCH(#REF!,DATA2!$AV$3:$BA$3,0))),IF(AND($M38<>"",$H$17=#REF!),(INDEX(DATA2!$AV$5:$BA$1291,MATCH(F38,DATA2!$C$5:$C$1291,0),MATCH(#REF!,DATA2!$AV$3:$BA$3,0))),""))) ->  | Y38: 6 | AC38: =IF(AND(Z38<>"",$H$17=DATA3!$AU$10),INDEX(DATA2!$C$1333:$C$1366,MATCH(Z38,DATA2!$E$1333:$E$1366,0)),IF(AND(Z38<>"",$H$17=DATA3!$AU$11),INDEX(DATA2!$C$1372:$C$1405,MATCH(Z38,DATA2!$E$1372:$E$1405,0)),IF(AND(Z38<>"",$H$17=DATA3!$AU$12),INDEX(DATA2!$C$1410:$C$1441,MATCH(Z38,DATA2!$E$1410:$E$1441,0)),""))) ->  | AI38: =IF(AND(Z38<>"",$H$17=DATA3!$AU$10),INDEX(DATA2!$AU$1333:$AU$1366,MATCH($AC38,DATA2!$B$1333:$B$1366,0)),IF(AND(Z38<>"",$H$17=DATA3!$AU$11),INDEX(DATA2!$AU$1372:$AU$1405,MATCH($AC38,DATA2!$B$1372:$B$1405,0)),IF(AND(Z38<>"",$H$17=DATA3!$AU$12),INDEX(DATA2!$AU$1410:$AU$1441,MATCH($AC38,DATA2!$B$1410:$B$1441,0)),""))) ->  | AJ38: =IF(AND(AG38<>"",$H$17=#REF!),INDEX(DATA2!$AU$1331:$AU$1369,MATCH($V40,DATA2!$B$1331:$B$1369,0)),IF(AND(AG38<>"",$H$17=#REF!),INDEX(DATA2!$AU$1292:$AU$1330,MATCH($V40,DATA2!$B$1292:$B$1330,0)),IF(AND(AG38<>"",$H$17=#REF!),INDEX(DATA2!$AU$1370:$AU$1570,MATCH($V40,DATA2!$B$1370:$B$1570,0)),""))) ->  | AK38: =IF(AND($Z38<>"",$H$17=DATA3!$AU$10),(INDEX(DATA2!$AV$1333:$BA$1366,MATCH(AC38,DATA2!$C$1333:$C$1366,0),MATCH($F$15,DATA2!$AV$3:$BA$3,0))*(1+UP!$A$3)),IF(AND($Z38<>"",$H$17=DATA3!$AU$11),(INDEX(DATA2!$AV$1372:$BA$1405,MATCH(AC38,DATA2!$C$1372:$C$1405,0),MATCH($F$15,DATA2!$AV$3:$BA$3,0))*(1+UP!$A$3)),IF(AND($Z38<>"",$H$17=DATA3!$AU$12),(INDEX(DATA2!$AV$1410:$BA$1441,MATCH(AC38,DATA2!$C$1410:$C$1441,0),MATCH($F$15,DATA2!$AV$3:$BA$3,0))*(1+UP!$A$3)),""))) -> 
A39: 15 | E39: =IF(AND(B39<>"",$H$17=DATA3!$AU$10),INDEX(DATA2!$C$324:$C$645,MATCH(B39,DATA2!$E$324:$E$645,0)),IF(AND(B39<>"",$H$17=DATA3!$AU$11),INDEX(DATA2!$C$647:$C$968,MATCH(B39,DATA2!$E$647:$E$968,0)),IF(AND(B39<>"",$H$17=DATA3!$AU$12),INDEX(DATA2!$C$969:$C$1287,MATCH(B39,DATA2!$E$969:$E$1287,0)),""))) ->  | M39: =IF(AND(J39<>"",$H$17=DATA3!$AU$10),INDEX(DATA2!$AU$324:$AU$645,MATCH($E39,DATA2!$C$324:$C$645,0)),IF(AND(J39<>"",$H$17=DATA3!$AU$11),INDEX(DATA2!$AU$647:$AU$968,MATCH($E39,DATA2!$C$647:$C$968,0)),IF(AND(J39<>"",$H$17=DATA3!$AU$12),INDEX(DATA2!$AU$969:$AU$1287,MATCH($E39,DATA2!$C$969:$C$1287,0)),""))) ->  | O39: =IF(AND($M39<>"",$H$17=DATA3!$AU$10),(INDEX(DATA2!$AV$324:$BA$645,MATCH(E39,DATA2!$C$324:$C$645,0),MATCH($F$15,DATA2!$AV$3:$BA$3,0))*(1+UP!$A$3)),IF(AND($M39<>"",$H$17=DATA3!$AU$11),(INDEX(DATA2!$AV$647:$BA$968,MATCH(E39,DATA2!$C$647:$C$968,0),MATCH($F$15,DATA2!$AV$3:$BA$3,0))*(1+UP!$A$3)),IF(AND($M39<>"",$H$17=DATA3!$AU$12),(INDEX(DATA2!$AV$969:$BA$1287,MATCH(E39,DATA2!$C$969:$C$1287,0),MATCH($F$15,DATA2!$AV$3:$BA$3,0))*(1+UP!$A$3)),""))) ->  | P39: =IF(AND($M39<>"",$H$17=#REF!),(INDEX(DATA2!$AV$5:$BA$1291,MATCH(F39,DATA2!$C$5:$C$1291,0),MATCH(#REF!,DATA2!$AV$3:$BA$3,0))),IF(AND($M39<>"",$H$17=#REF!),(INDEX(DATA2!$AV$5:$BA$1291,MATCH(F39,DATA2!$C$5:$C$1291,0),MATCH(#REF!,DATA2!$AV$3:$BA$3,0))),IF(AND($M39<>"",$H$17=#REF!),(INDEX(DATA2!$AV$5:$BA$1291,MATCH(F39,DATA2!$C$5:$C$1291,0),MATCH(#REF!,DATA2!$AV$3:$BA$3,0))),""))) ->  | Y39: 7 | AC39: =IF(AND(Z39<>"",$H$17=DATA3!$AU$10),INDEX(DATA2!$C$1333:$C$1366,MATCH(Z39,DATA2!$E$1333:$E$1366,0)),IF(AND(Z39<>"",$H$17=DATA3!$AU$11),INDEX(DATA2!$C$1372:$C$1405,MATCH(Z39,DATA2!$E$1372:$E$1405,0)),IF(AND(Z39<>"",$H$17=DATA3!$AU$12),INDEX(DATA2!$C$1410:$C$1441,MATCH(Z39,DATA2!$E$1410:$E$1441,0)),""))) ->  | AI39: =IF(AND(Z39<>"",$H$17=DATA3!$AU$10),INDEX(DATA2!$AU$1333:$AU$1366,MATCH($AC39,DATA2!$B$1333:$B$1366,0)),IF(AND(Z39<>"",$H$17=DATA3!$AU$11),INDEX(DATA2!$AU$1372:$AU$1405,MATCH($AC39,DATA2!$B$1372:$B$1405,0)),IF(AND(Z39<>"",$H$17=DATA3!$AU$12),INDEX(DATA2!$AU$1410:$AU$1441,MATCH($AC39,DATA2!$B$1410:$B$1441,0)),""))) ->  | AJ39: =IF(AND(AG39<>"",$H$17=#REF!),INDEX(DATA2!$AU$1331:$AU$1369,MATCH($V41,DATA2!$B$1331:$B$1369,0)),IF(AND(AG39<>"",$H$17=#REF!),INDEX(DATA2!$AU$1292:$AU$1330,MATCH($V41,DATA2!$B$1292:$B$1330,0)),IF(AND(AG39<>"",$H$17=#REF!),INDEX(DATA2!$AU$1370:$AU$1570,MATCH($V41,DATA2!$B$1370:$B$1570,0)),""))) ->  | AK39: =IF(AND($Z39<>"",$H$17=DATA3!$AU$10),(INDEX(DATA2!$AV$1333:$BA$1366,MATCH(AC39,DATA2!$C$1333:$C$1366,0),MATCH($F$15,DATA2!$AV$3:$BA$3,0))*(1+UP!$A$3)),IF(AND($Z39<>"",$H$17=DATA3!$AU$11),(INDEX(DATA2!$AV$1372:$BA$1405,MATCH(AC39,DATA2!$C$1372:$C$1405,0),MATCH($F$15,DATA2!$AV$3:$BA$3,0))*(1+UP!$A$3)),IF(AND($Z39<>"",$H$17=DATA3!$AU$12),(INDEX(DATA2!$AV$1410:$BA$1441,MATCH(AC39,DATA2!$C$1410:$C$1441,0),MATCH($F$15,DATA2!$AV$3:$BA$3,0))*(1+UP!$A$3)),""))) -> 
A40: 16 | E40: =IF(AND(B40<>"",$H$17=DATA3!$AU$10),INDEX(DATA2!$C$324:$C$645,MATCH(B40,DATA2!$E$324:$E$645,0)),IF(AND(B40<>"",$H$17=DATA3!$AU$11),INDEX(DATA2!$C$647:$C$968,MATCH(B40,DATA2!$E$647:$E$968,0)),IF(AND(B40<>"",$H$17=DATA3!$AU$12),INDEX(DATA2!$C$969:$C$1287,MATCH(B40,DATA2!$E$969:$E$1287,0)),""))) ->  | M40: =IF(AND(J40<>"",$H$17=DATA3!$AU$10),INDEX(DATA2!$AU$324:$AU$645,MATCH($E40,DATA2!$C$324:$C$645,0)),IF(AND(J40<>"",$H$17=DATA3!$AU$11),INDEX(DATA2!$AU$647:$AU$968,MATCH($E40,DATA2!$C$647:$C$968,0)),IF(AND(J40<>"",$H$17=DATA3!$AU$12),INDEX(DATA2!$AU$969:$AU$1287,MATCH($E40,DATA2!$C$969:$C$1287,0)),""))) ->  | O40: =IF(AND($M40<>"",$H$17=DATA3!$AU$10),(INDEX(DATA2!$AV$324:$BA$645,MATCH(E40,DATA2!$C$324:$C$645,0),MATCH($F$15,DATA2!$AV$3:$BA$3,0))*(1+UP!$A$3)),IF(AND($M40<>"",$H$17=DATA3!$AU$11),(INDEX(DATA2!$AV$647:$BA$968,MATCH(E40,DATA2!$C$647:$C$968,0),MATCH($F$15,DATA2!$AV$3:$BA$3,0))*(1+UP!$A$3)),IF(AND($M40<>"",$H$17=DATA3!$AU$12),(INDEX(DATA2!$AV$969:$BA$1287,MATCH(E40,DATA2!$C$969:$C$1287,0),MATCH($F$15,DATA2!$AV$3:$BA$3,0))*(1+UP!$A$3)),""))) ->  | P40: =IF(AND($M40<>"",$H$17=#REF!),(INDEX(DATA2!$AV$5:$BA$1291,MATCH(F40,DATA2!$C$5:$C$1291,0),MATCH(#REF!,DATA2!$AV$3:$BA$3,0))),IF(AND($M40<>"",$H$17=#REF!),(INDEX(DATA2!$AV$5:$BA$1291,MATCH(F40,DATA2!$C$5:$C$1291,0),MATCH(#REF!,DATA2!$AV$3:$BA$3,0))),IF(AND($M40<>"",$H$17=#REF!),(INDEX(DATA2!$AV$5:$BA$1291,MATCH(F40,DATA2!$C$5:$C$1291,0),MATCH(#REF!,DATA2!$AV$3:$BA$3,0))),""))) ->  | Y40: 8 | AC40: =IF(AND(Z40<>"",$H$17=DATA3!$AU$10),INDEX(DATA2!$C$1333:$C$1366,MATCH(Z40,DATA2!$E$1333:$E$1366,0)),IF(AND(Z40<>"",$H$17=DATA3!$AU$11),INDEX(DATA2!$C$1372:$C$1405,MATCH(Z40,DATA2!$E$1372:$E$1405,0)),IF(AND(Z40<>"",$H$17=DATA3!$AU$12),INDEX(DATA2!$C$1410:$C$1441,MATCH(Z40,DATA2!$E$1410:$E$1441,0)),""))) ->  | AI40: =IF(AND(Z40<>"",$H$17=DATA3!$AU$10),INDEX(DATA2!$AU$1333:$AU$1366,MATCH($AC40,DATA2!$B$1333:$B$1366,0)),IF(AND(Z40<>"",$H$17=DATA3!$AU$11),INDEX(DATA2!$AU$1372:$AU$1405,MATCH($AC40,DATA2!$B$1372:$B$1405,0)),IF(AND(Z40<>"",$H$17=DATA3!$AU$12),INDEX(DATA2!$AU$1410:$AU$1441,MATCH($AC40,DATA2!$B$1410:$B$1441,0)),""))) ->  | AJ40: =IF(AND(AG40<>"",$H$17=#REF!),INDEX(DATA2!$AU$1331:$AU$1369,MATCH($V42,DATA2!$B$1331:$B$1369,0)),IF(AND(AG40<>"",$H$17=#REF!),INDEX(DATA2!$AU$1292:$AU$1330,MATCH($V42,DATA2!$B$1292:$B$1330,0)),IF(AND(AG40<>"",$H$17=#REF!),INDEX(DATA2!$AU$1370:$AU$1570,MATCH($V42,DATA2!$B$1370:$B$1570,0)),""))) ->  | AK40: =IF(AND($Z40<>"",$H$17=DATA3!$AU$10),(INDEX(DATA2!$AV$1333:$BA$1366,MATCH(AC40,DATA2!$C$1333:$C$1366,0),MATCH($F$15,DATA2!$AV$3:$BA$3,0))*(1+UP!$A$3)),IF(AND($Z40<>"",$H$17=DATA3!$AU$11),(INDEX(DATA2!$AV$1372:$BA$1405,MATCH(AC40,DATA2!$C$1372:$C$1405,0),MATCH($F$15,DATA2!$AV$3:$BA$3,0))*(1+UP!$A$3)),IF(AND($Z40<>"",$H$17=DATA3!$AU$12),(INDEX(DATA2!$AV$1410:$BA$1441,MATCH(AC40,DATA2!$C$1410:$C$1441,0),MATCH($F$15,DATA2!$AV$3:$BA$3,0))*(1+UP!$A$3)),""))) -> 
A41: 17 | E41: =IF(AND(B41<>"",$H$17=DATA3!$AU$10),INDEX(DATA2!$C$324:$C$645,MATCH(B41,DATA2!$E$324:$E$645,0)),IF(AND(B41<>"",$H$17=DATA3!$AU$11),INDEX(DATA2!$C$647:$C$968,MATCH(B41,DATA2!$E$647:$E$968,0)),IF(AND(B41<>"",$H$17=DATA3!$AU$12),INDEX(DATA2!$C$969:$C$1287,MATCH(B41,DATA2!$E$969:$E$1287,0)),""))) ->  | M41: =IF(AND(J41<>"",$H$17=DATA3!$AU$10),INDEX(DATA2!$AU$324:$AU$645,MATCH($E41,DATA2!$C$324:$C$645,0)),IF(AND(J41<>"",$H$17=DATA3!$AU$11),INDEX(DATA2!$AU$647:$AU$968,MATCH($E41,DATA2!$C$647:$C$968,0)),IF(AND(J41<>"",$H$17=DATA3!$AU$12),INDEX(DATA2!$AU$969:$AU$1287,MATCH($E41,DATA2!$C$969:$C$1287,0)),""))) ->  | O41: =IF(AND($M41<>"",$H$17=DATA3!$AU$10),(INDEX(DATA2!$AV$324:$BA$645,MATCH(E41,DATA2!$C$324:$C$645,0),MATCH($F$15,DATA2!$AV$3:$BA$3,0))*(1+UP!$A$3)),IF(AND($M41<>"",$H$17=DATA3!$AU$11),(INDEX(DATA2!$AV$647:$BA$968,MATCH(E41,DATA2!$C$647:$C$968,0),MATCH($F$15,DATA2!$AV$3:$BA$3,0))*(1+UP!$A$3)),IF(AND($M41<>"",$H$17=DATA3!$AU$12),(INDEX(DATA2!$AV$969:$BA$1287,MATCH(E41,DATA2!$C$969:$C$1287,0),MATCH($F$15,DATA2!$AV$3:$BA$3,0))*(1+UP!$A$3)),""))) ->  | P41: =IF(AND($M41<>"",$H$17=#REF!),(INDEX(DATA2!$AV$5:$BA$1291,MATCH(F41,DATA2!$C$5:$C$1291,0),MATCH(#REF!,DATA2!$AV$3:$BA$3,0))),IF(AND($M41<>"",$H$17=#REF!),(INDEX(DATA2!$AV$5:$BA$1291,MATCH(F41,DATA2!$C$5:$C$1291,0),MATCH(#REF!,DATA2!$AV$3:$BA$3,0))),IF(AND($M41<>"",$H$17=#REF!),(INDEX(DATA2!$AV$5:$BA$1291,MATCH(F41,DATA2!$C$5:$C$1291,0),MATCH(#REF!,DATA2!$AV$3:$BA$3,0))),""))) ->  | Y41: 9 | AC41: =IF(AND(Z41<>"",$H$17=DATA3!$AU$10),INDEX(DATA2!$C$1333:$C$1366,MATCH(Z41,DATA2!$E$1333:$E$1366,0)),IF(AND(Z41<>"",$H$17=DATA3!$AU$11),INDEX(DATA2!$C$1372:$C$1405,MATCH(Z41,DATA2!$E$1372:$E$1405,0)),IF(AND(Z41<>"",$H$17=DATA3!$AU$12),INDEX(DATA2!$C$1410:$C$1441,MATCH(Z41,DATA2!$E$1410:$E$1441,0)),""))) ->  | AI41: =IF(AND(Z41<>"",$H$17=DATA3!$AU$10),INDEX(DATA2!$AU$1333:$AU$1366,MATCH($AC41,DATA2!$B$1333:$B$1366,0)),IF(AND(Z41<>"",$H$17=DATA3!$AU$11),INDEX(DATA2!$AU$1372:$AU$1405,MATCH($AC41,DATA2!$B$1372:$B$1405,0)),IF(AND(Z41<>"",$H$17=DATA3!$AU$12),INDEX(DATA2!$AU$1410:$AU$1441,MATCH($AC41,DATA2!$B$1410:$B$1441,0)),""))) ->  | AJ41: =IF(AND(AG41<>"",$H$17=#REF!),INDEX(DATA2!$AU$1331:$AU$1369,MATCH($V43,DATA2!$B$1331:$B$1369,0)),IF(AND(AG41<>"",$H$17=#REF!),INDEX(DATA2!$AU$1292:$AU$1330,MATCH($V43,DATA2!$B$1292:$B$1330,0)),IF(AND(AG41<>"",$H$17=#REF!),INDEX(DATA2!$AU$1370:$AU$1570,MATCH($V43,DATA2!$B$1370:$B$1570,0)),""))) ->  | AK41: =IF(AND($Z41<>"",$H$17=DATA3!$AU$10),(INDEX(DATA2!$AV$1333:$BA$1366,MATCH(AC41,DATA2!$C$1333:$C$1366,0),MATCH($F$15,DATA2!$AV$3:$BA$3,0))*(1+UP!$A$3)),IF(AND($Z41<>"",$H$17=DATA3!$AU$11),(INDEX(DATA2!$AV$1372:$BA$1405,MATCH(AC41,DATA2!$C$1372:$C$1405,0),MATCH($F$15,DATA2!$AV$3:$BA$3,0))*(1+UP!$A$3)),IF(AND($Z41<>"",$H$17=DATA3!$AU$12),(INDEX(DATA2!$AV$1410:$BA$1441,MATCH(AC41,DATA2!$C$1410:$C$1441,0),MATCH($F$15,DATA2!$AV$3:$BA$3,0))*(1+UP!$A$3)),""))) -> 
A42: 18 | E42: =IF(AND(B42<>"",$H$17=DATA3!$AU$10),INDEX(DATA2!$C$324:$C$645,MATCH(B42,DATA2!$E$324:$E$645,0)),IF(AND(B42<>"",$H$17=DATA3!$AU$11),INDEX(DATA2!$C$647:$C$968,MATCH(B42,DATA2!$E$647:$E$968,0)),IF(AND(B42<>"",$H$17=DATA3!$AU$12),INDEX(DATA2!$C$969:$C$1287,MATCH(B42,DATA2!$E$969:$E$1287,0)),""))) ->  | M42: =IF(AND(J42<>"",$H$17=DATA3!$AU$10),INDEX(DATA2!$AU$324:$AU$645,MATCH($E42,DATA2!$C$324:$C$645,0)),IF(AND(J42<>"",$H$17=DATA3!$AU$11),INDEX(DATA2!$AU$647:$AU$968,MATCH($E42,DATA2!$C$647:$C$968,0)),IF(AND(J42<>"",$H$17=DATA3!$AU$12),INDEX(DATA2!$AU$969:$AU$1287,MATCH($E42,DATA2!$C$969:$C$1287,0)),""))) ->  | O42: =IF(AND($M42<>"",$H$17=DATA3!$AU$10),(INDEX(DATA2!$AV$324:$BA$645,MATCH(E42,DATA2!$C$324:$C$645,0),MATCH($F$15,DATA2!$AV$3:$BA$3,0))*(1+UP!$A$3)),IF(AND($M42<>"",$H$17=DATA3!$AU$11),(INDEX(DATA2!$AV$647:$BA$968,MATCH(E42,DATA2!$C$647:$C$968,0),MATCH($F$15,DATA2!$AV$3:$BA$3,0))*(1+UP!$A$3)),IF(AND($M42<>"",$H$17=DATA3!$AU$12),(INDEX(DATA2!$AV$969:$BA$1287,MATCH(E42,DATA2!$C$969:$C$1287,0),MATCH($F$15,DATA2!$AV$3:$BA$3,0))*(1+UP!$A$3)),""))) ->  | P42: =IF(AND($M42<>"",$H$17=#REF!),(INDEX(DATA2!$AV$5:$BA$1291,MATCH(F42,DATA2!$C$5:$C$1291,0),MATCH(#REF!,DATA2!$AV$3:$BA$3,0))),IF(AND($M42<>"",$H$17=#REF!),(INDEX(DATA2!$AV$5:$BA$1291,MATCH(F42,DATA2!$C$5:$C$1291,0),MATCH(#REF!,DATA2!$AV$3:$BA$3,0))),IF(AND($M42<>"",$H$17=#REF!),(INDEX(DATA2!$AV$5:$BA$1291,MATCH(F42,DATA2!$C$5:$C$1291,0),MATCH(#REF!,DATA2!$AV$3:$BA$3,0))),""))) ->  | Y42: 10 | AC42: =IF(AND(Z42<>"",$H$17=DATA3!$AU$10),INDEX(DATA2!$C$1333:$C$1366,MATCH(Z42,DATA2!$E$1333:$E$1366,0)),IF(AND(Z42<>"",$H$17=DATA3!$AU$11),INDEX(DATA2!$C$1372:$C$1405,MATCH(Z42,DATA2!$E$1372:$E$1405,0)),IF(AND(Z42<>"",$H$17=DATA3!$AU$12),INDEX(DATA2!$C$1410:$C$1441,MATCH(Z42,DATA2!$E$1410:$E$1441,0)),""))) ->  | AI42: =IF(AND(Z42<>"",$H$17=DATA3!$AU$10),INDEX(DATA2!$AU$1333:$AU$1366,MATCH($AC42,DATA2!$B$1333:$B$1366,0)),IF(AND(Z42<>"",$H$17=DATA3!$AU$11),INDEX(DATA2!$AU$1372:$AU$1405,MATCH($AC42,DATA2!$B$1372:$B$1405,0)),IF(AND(Z42<>"",$H$17=DATA3!$AU$12),INDEX(DATA2!$AU$1410:$AU$1441,MATCH($AC42,DATA2!$B$1410:$B$1441,0)),""))) ->  | AJ42: =IF(AND(AG42<>"",$H$17=#REF!),INDEX(DATA2!$AU$1331:$AU$1369,MATCH($V44,DATA2!$B$1331:$B$1369,0)),IF(AND(AG42<>"",$H$17=#REF!),INDEX(DATA2!$AU$1292:$AU$1330,MATCH($V44,DATA2!$B$1292:$B$1330,0)),IF(AND(AG42<>"",$H$17=#REF!),INDEX(DATA2!$AU$1370:$AU$1570,MATCH($V44,DATA2!$B$1370:$B$1570,0)),""))) ->  | AK42: =IF(AND($Z42<>"",$H$17=DATA3!$AU$10),(INDEX(DATA2!$AV$1333:$BA$1366,MATCH(AC42,DATA2!$C$1333:$C$1366,0),MATCH($F$15,DATA2!$AV$3:$BA$3,0))*(1+UP!$A$3)),IF(AND($Z42<>"",$H$17=DATA3!$AU$11),(INDEX(DATA2!$AV$1372:$BA$1405,MATCH(AC42,DATA2!$C$1372:$C$1405,0),MATCH($F$15,DATA2!$AV$3:$BA$3,0))*(1+UP!$A$3)),IF(AND($Z42<>"",$H$17=DATA3!$AU$12),(INDEX(DATA2!$AV$1410:$BA$1441,MATCH(AC42,DATA2!$C$1410:$C$1441,0),MATCH($F$15,DATA2!$AV$3:$BA$3,0))*(1+UP!$A$3)),""))) -> 
A43: 19 | E43: =IF(AND(B43<>"",$H$17=DATA3!$AU$10),INDEX(DATA2!$C$324:$C$645,MATCH(B43,DATA2!$E$324:$E$645,0)),IF(AND(B43<>"",$H$17=DATA3!$AU$11),INDEX(DATA2!$C$647:$C$968,MATCH(B43,DATA2!$E$647:$E$968,0)),IF(AND(B43<>"",$H$17=DATA3!$AU$12),INDEX(DATA2!$C$969:$C$1287,MATCH(B43,DATA2!$E$969:$E$1287,0)),""))) ->  | M43: =IF(AND(J43<>"",$H$17=DATA3!$AU$10),INDEX(DATA2!$AU$324:$AU$645,MATCH($E43,DATA2!$C$324:$C$645,0)),IF(AND(J43<>"",$H$17=DATA3!$AU$11),INDEX(DATA2!$AU$647:$AU$968,MATCH($E43,DATA2!$C$647:$C$968,0)),IF(AND(J43<>"",$H$17=DATA3!$AU$12),INDEX(DATA2!$AU$969:$AU$1287,MATCH($E43,DATA2!$C$969:$C$1287,0)),""))) ->  | O43: =IF(AND($M43<>"",$H$17=DATA3!$AU$10),(INDEX(DATA2!$AV$324:$BA$645,MATCH(E43,DATA2!$C$324:$C$645,0),MATCH($F$15,DATA2!$AV$3:$BA$3,0))*(1+UP!$A$3)),IF(AND($M43<>"",$H$17=DATA3!$AU$11),(INDEX(DATA2!$AV$647:$BA$968,MATCH(E43,DATA2!$C$647:$C$968,0),MATCH($F$15,DATA2!$AV$3:$BA$3,0))*(1+UP!$A$3)),IF(AND($M43<>"",$H$17=DATA3!$AU$12),(INDEX(DATA2!$AV$969:$BA$1287,MATCH(E43,DATA2!$C$969:$C$1287,0),MATCH($F$15,DATA2!$AV$3:$BA$3,0))*(1+UP!$A$3)),""))) ->  | P43: =IF(AND($M43<>"",$H$17=#REF!),(INDEX(DATA2!$AV$5:$BA$1291,MATCH(F43,DATA2!$C$5:$C$1291,0),MATCH(#REF!,DATA2!$AV$3:$BA$3,0))),IF(AND($M43<>"",$H$17=#REF!),(INDEX(DATA2!$AV$5:$BA$1291,MATCH(F43,DATA2!$C$5:$C$1291,0),MATCH(#REF!,DATA2!$AV$3:$BA$3,0))),IF(AND($M43<>"",$H$17=#REF!),(INDEX(DATA2!$AV$5:$BA$1291,MATCH(F43,DATA2!$C$5:$C$1291,0),MATCH(#REF!,DATA2!$AV$3:$BA$3,0))),""))) ->  | Y43: 11 | AC43: =IF(AND(Z43<>"",$H$17=DATA3!$AU$10),INDEX(DATA2!$C$1333:$C$1366,MATCH(Z43,DATA2!$E$1333:$E$1366,0)),IF(AND(Z43<>"",$H$17=DATA3!$AU$11),INDEX(DATA2!$C$1372:$C$1405,MATCH(Z43,DATA2!$E$1372:$E$1405,0)),IF(AND(Z43<>"",$H$17=DATA3!$AU$12),INDEX(DATA2!$C$1410:$C$1441,MATCH(Z43,DATA2!$E$1410:$E$1441,0)),""))) ->  | AI43: =IF(AND(Z43<>"",$H$17=DATA3!$AU$10),INDEX(DATA2!$AU$1333:$AU$1366,MATCH($AC43,DATA2!$B$1333:$B$1366,0)),IF(AND(Z43<>"",$H$17=DATA3!$AU$11),INDEX(DATA2!$AU$1372:$AU$1405,MATCH($AC43,DATA2!$B$1372:$B$1405,0)),IF(AND(Z43<>"",$H$17=DATA3!$AU$12),INDEX(DATA2!$AU$1410:$AU$1441,MATCH($AC43,DATA2!$B$1410:$B$1441,0)),""))) ->  | AJ43: =IF(AND(AG43<>"",$H$17=#REF!),INDEX(DATA2!$AU$1331:$AU$1369,MATCH($V45,DATA2!$B$1331:$B$1369,0)),IF(AND(AG43<>"",$H$17=#REF!),INDEX(DATA2!$AU$1292:$AU$1330,MATCH($V45,DATA2!$B$1292:$B$1330,0)),IF(AND(AG43<>"",$H$17=#REF!),INDEX(DATA2!$AU$1370:$AU$1570,MATCH($V45,DATA2!$B$1370:$B$1570,0)),""))) ->  | AK43: =IF(AND($Z43<>"",$H$17=DATA3!$AU$10),(INDEX(DATA2!$AV$1333:$BA$1366,MATCH(AC43,DATA2!$C$1333:$C$1366,0),MATCH($F$15,DATA2!$AV$3:$BA$3,0))*(1+UP!$A$3)),IF(AND($Z43<>"",$H$17=DATA3!$AU$11),(INDEX(DATA2!$AV$1372:$BA$1405,MATCH(AC43,DATA2!$C$1372:$C$1405,0),MATCH($F$15,DATA2!$AV$3:$BA$3,0))*(1+UP!$A$3)),IF(AND($Z43<>"",$H$17=DATA3!$AU$12),(INDEX(DATA2!$AV$1410:$BA$1441,MATCH(AC43,DATA2!$C$1410:$C$1441,0),MATCH($F$15,DATA2!$AV$3:$BA$3,0))*(1+UP!$A$3)),""))) -> 
A44: 20 | E44: =IF(AND(B44<>"",$H$17=DATA3!$AU$10),INDEX(DATA2!$C$324:$C$645,MATCH(B44,DATA2!$E$324:$E$645,0)),IF(AND(B44<>"",$H$17=DATA3!$AU$11),INDEX(DATA2!$C$647:$C$968,MATCH(B44,DATA2!$E$647:$E$968,0)),IF(AND(B44<>"",$H$17=DATA3!$AU$12),INDEX(DATA2!$C$969:$C$1287,MATCH(B44,DATA2!$E$969:$E$1287,0)),""))) ->  | M44: =IF(AND(J44<>"",$H$17=DATA3!$AU$10),INDEX(DATA2!$AU$324:$AU$645,MATCH($E44,DATA2!$C$324:$C$645,0)),IF(AND(J44<>"",$H$17=DATA3!$AU$11),INDEX(DATA2!$AU$647:$AU$968,MATCH($E44,DATA2!$C$647:$C$968,0)),IF(AND(J44<>"",$H$17=DATA3!$AU$12),INDEX(DATA2!$AU$969:$AU$1287,MATCH($E44,DATA2!$C$969:$C$1287,0)),""))) ->  | O44: =IF(AND($M44<>"",$H$17=DATA3!$AU$10),(INDEX(DATA2!$AV$324:$BA$645,MATCH(E44,DATA2!$C$324:$C$645,0),MATCH($F$15,DATA2!$AV$3:$BA$3,0))*(1+UP!$A$3)),IF(AND($M44<>"",$H$17=DATA3!$AU$11),(INDEX(DATA2!$AV$647:$BA$968,MATCH(E44,DATA2!$C$647:$C$968,0),MATCH($F$15,DATA2!$AV$3:$BA$3,0))*(1+UP!$A$3)),IF(AND($M44<>"",$H$17=DATA3!$AU$12),(INDEX(DATA2!$AV$969:$BA$1287,MATCH(E44,DATA2!$C$969:$C$1287,0),MATCH($F$15,DATA2!$AV$3:$BA$3,0))*(1+UP!$A$3)),""))) ->  | P44: =IF(AND($M44<>"",$H$17=#REF!),(INDEX(DATA2!$AV$5:$BA$1291,MATCH(F44,DATA2!$C$5:$C$1291,0),MATCH(#REF!,DATA2!$AV$3:$BA$3,0))),IF(AND($M44<>"",$H$17=#REF!),(INDEX(DATA2!$AV$5:$BA$1291,MATCH(F44,DATA2!$C$5:$C$1291,0),MATCH(#REF!,DATA2!$AV$3:$BA$3,0))),IF(AND($M44<>"",$H$17=#REF!),(INDEX(DATA2!$AV$5:$BA$1291,MATCH(F44,DATA2!$C$5:$C$1291,0),MATCH(#REF!,DATA2!$AV$3:$BA$3,0))),""))) ->  | Y44: 12 | AC44: =IF(AND(Z44<>"",$H$17=DATA3!$AU$10),INDEX(DATA2!$C$1333:$C$1366,MATCH(Z44,DATA2!$E$1333:$E$1366,0)),IF(AND(Z44<>"",$H$17=DATA3!$AU$11),INDEX(DATA2!$C$1372:$C$1405,MATCH(Z44,DATA2!$E$1372:$E$1405,0)),IF(AND(Z44<>"",$H$17=DATA3!$AU$12),INDEX(DATA2!$C$1410:$C$1441,MATCH(Z44,DATA2!$E$1410:$E$1441,0)),""))) ->  | AI44: =IF(AND(Z44<>"",$H$17=DATA3!$AU$10),INDEX(DATA2!$AU$1333:$AU$1366,MATCH($AC44,DATA2!$B$1333:$B$1366,0)),IF(AND(Z44<>"",$H$17=DATA3!$AU$11),INDEX(DATA2!$AU$1372:$AU$1405,MATCH($AC44,DATA2!$B$1372:$B$1405,0)),IF(AND(Z44<>"",$H$17=DATA3!$AU$12),INDEX(DATA2!$AU$1410:$AU$1441,MATCH($AC44,DATA2!$B$1410:$B$1441,0)),""))) ->  | AJ44: =IF(AND(AG44<>"",$H$17=#REF!),INDEX(DATA2!$AU$1331:$AU$1369,MATCH($V46,DATA2!$B$1331:$B$1369,0)),IF(AND(AG44<>"",$H$17=#REF!),INDEX(DATA2!$AU$1292:$AU$1330,MATCH($V46,DATA2!$B$1292:$B$1330,0)),IF(AND(AG44<>"",$H$17=#REF!),INDEX(DATA2!$AU$1370:$AU$1570,MATCH($V46,DATA2!$B$1370:$B$1570,0)),""))) ->  | AK44: =IF(AND($Z44<>"",$H$17=DATA3!$AU$10),(INDEX(DATA2!$AV$1333:$BA$1366,MATCH(AC44,DATA2!$C$1333:$C$1366,0),MATCH($F$15,DATA2!$AV$3:$BA$3,0))*(1+UP!$A$3)),IF(AND($Z44<>"",$H$17=DATA3!$AU$11),(INDEX(DATA2!$AV$1372:$BA$1405,MATCH(AC44,DATA2!$C$1372:$C$1405,0),MATCH($F$15,DATA2!$AV$3:$BA$3,0))*(1+UP!$A$3)),IF(AND($Z44<>"",$H$17=DATA3!$AU$12),(INDEX(DATA2!$AV$1410:$BA$1441,MATCH(AC44,DATA2!$C$1410:$C$1441,0),MATCH($F$15,DATA2!$AV$3:$BA$3,0))*(1+UP!$A$3)),""))) -> 
A45: 21 | E45: =IF(AND(B45<>"",$H$17=DATA3!$AU$10),INDEX(DATA2!$C$324:$C$645,MATCH(B45,DATA2!$E$324:$E$645,0)),IF(AND(B45<>"",$H$17=DATA3!$AU$11),INDEX(DATA2!$C$647:$C$968,MATCH(B45,DATA2!$E$647:$E$968,0)),IF(AND(B45<>"",$H$17=DATA3!$AU$12),INDEX(DATA2!$C$969:$C$1287,MATCH(B45,DATA2!$E$969:$E$1287,0)),""))) ->  | M45: =IF(AND(J45<>"",$H$17=DATA3!$AU$10),INDEX(DATA2!$AU$324:$AU$645,MATCH($E45,DATA2!$C$324:$C$645,0)),IF(AND(J45<>"",$H$17=DATA3!$AU$11),INDEX(DATA2!$AU$647:$AU$968,MATCH($E45,DATA2!$C$647:$C$968,0)),IF(AND(J45<>"",$H$17=DATA3!$AU$12),INDEX(DATA2!$AU$969:$AU$1287,MATCH($E45,DATA2!$C$969:$C$1287,0)),""))) ->  | O45: =IF(AND($M45<>"",$H$17=DATA3!$AU$10),(INDEX(DATA2!$AV$324:$BA$645,MATCH(E45,DATA2!$C$324:$C$645,0),MATCH($F$15,DATA2!$AV$3:$BA$3,0))*(1+UP!$A$3)),IF(AND($M45<>"",$H$17=DATA3!$AU$11),(INDEX(DATA2!$AV$647:$BA$968,MATCH(E45,DATA2!$C$647:$C$968,0),MATCH($F$15,DATA2!$AV$3:$BA$3,0))*(1+UP!$A$3)),IF(AND($M45<>"",$H$17=DATA3!$AU$12),(INDEX(DATA2!$AV$969:$BA$1287,MATCH(E45,DATA2!$C$969:$C$1287,0),MATCH($F$15,DATA2!$AV$3:$BA$3,0))*(1+UP!$A$3)),""))) ->  | P45: =IF(AND($M45<>"",$H$17=#REF!),(INDEX(DATA2!$AV$5:$BA$1291,MATCH(F45,DATA2!$C$5:$C$1291,0),MATCH(#REF!,DATA2!$AV$3:$BA$3,0))),IF(AND($M45<>"",$H$17=#REF!),(INDEX(DATA2!$AV$5:$BA$1291,MATCH(F45,DATA2!$C$5:$C$1291,0),MATCH(#REF!,DATA2!$AV$3:$BA$3,0))),IF(AND($M45<>"",$H$17=#REF!),(INDEX(DATA2!$AV$5:$BA$1291,MATCH(F45,DATA2!$C$5:$C$1291,0),MATCH(#REF!,DATA2!$AV$3:$BA$3,0))),""))) ->  | R45: =IF($M45<>"",(($J45*$O45)),"") ->  | Y45: 13 | AC45: =IF(AND(Z45<>"",$H$17=DATA3!$AU$10),INDEX(DATA2!$C$1333:$C$1366,MATCH(Z45,DATA2!$E$1333:$E$1366,0)),IF(AND(Z45<>"",$H$17=DATA3!$AU$11),INDEX(DATA2!$C$1372:$C$1405,MATCH(Z45,DATA2!$E$1372:$E$1405,0)),IF(AND(Z45<>"",$H$17=DATA3!$AU$12),INDEX(DATA2!$C$1410:$C$1441,MATCH(Z45,DATA2!$E$1410:$E$1441,0)),""))) ->  | AI45: =IF(AND(Z45<>"",$H$17=DATA3!$AU$10),INDEX(DATA2!$AU$1333:$AU$1366,MATCH($AC45,DATA2!$B$1333:$B$1366,0)),IF(AND(Z45<>"",$H$17=DATA3!$AU$11),INDEX(DATA2!$AU$1372:$AU$1405,MATCH($AC45,DATA2!$B$1372:$B$1405,0)),IF(AND(Z45<>"",$H$17=DATA3!$AU$12),INDEX(DATA2!$AU$1410:$AU$1441,MATCH($AC45,DATA2!$B$1410:$B$1441,0)),""))) ->  | AJ45: =IF(AND(AG45<>"",$H$17=#REF!),INDEX(DATA2!$AU$1331:$AU$1369,MATCH($V47,DATA2!$B$1331:$B$1369,0)),IF(AND(AG45<>"",$H$17=#REF!),INDEX(DATA2!$AU$1292:$AU$1330,MATCH($V47,DATA2!$B$1292:$B$1330,0)),IF(AND(AG45<>"",$H$17=#REF!),INDEX(DATA2!$AU$1370:$AU$1570,MATCH($V47,DATA2!$B$1370:$B$1570,0)),""))) ->  | AK45: =IF(AND($Z45<>"",$H$17=DATA3!$AU$10),(INDEX(DATA2!$AV$1333:$BA$1366,MATCH(AC45,DATA2!$C$1333:$C$1366,0),MATCH($F$15,DATA2!$AV$3:$BA$3,0))*(1+UP!$A$3)),IF(AND($Z45<>"",$H$17=DATA3!$AU$11),(INDEX(DATA2!$AV$1372:$BA$1405,MATCH(AC45,DATA2!$C$1372:$C$1405,0),MATCH($F$15,DATA2!$AV$3:$BA$3,0))*(1+UP!$A$3)),IF(AND($Z45<>"",$H$17=DATA3!$AU$12),(INDEX(DATA2!$AV$1410:$BA$1441,MATCH(AC45,DATA2!$C$1410:$C$1441,0),MATCH($F$15,DATA2!$AV$3:$BA$3,0))*(1+UP!$A$3)),""))) -> 
A46: 22 | E46: =IF(AND(B46<>"",$H$17=DATA3!$AU$10),INDEX(DATA2!$C$324:$C$645,MATCH(B46,DATA2!$E$324:$E$645,0)),IF(AND(B46<>"",$H$17=DATA3!$AU$11),INDEX(DATA2!$C$647:$C$968,MATCH(B46,DATA2!$E$647:$E$968,0)),IF(AND(B46<>"",$H$17=DATA3!$AU$12),INDEX(DATA2!$C$969:$C$1287,MATCH(B46,DATA2!$E$969:$E$1287,0)),""))) ->  | M46: =IF(AND(J46<>"",$H$17=DATA3!$AU$10),INDEX(DATA2!$AU$324:$AU$645,MATCH($E46,DATA2!$C$324:$C$645,0)),IF(AND(J46<>"",$H$17=DATA3!$AU$11),INDEX(DATA2!$AU$647:$AU$968,MATCH($E46,DATA2!$C$647:$C$968,0)),IF(AND(J46<>"",$H$17=DATA3!$AU$12),INDEX(DATA2!$AU$969:$AU$1287,MATCH($E46,DATA2!$C$969:$C$1287,0)),""))) ->  | O46: =IF(AND($M46<>"",$H$17=DATA3!$AU$10),(INDEX(DATA2!$AV$324:$BA$645,MATCH(E46,DATA2!$C$324:$C$645,0),MATCH($F$15,DATA2!$AV$3:$BA$3,0))*(1+UP!$A$3)),IF(AND($M46<>"",$H$17=DATA3!$AU$11),(INDEX(DATA2!$AV$647:$BA$968,MATCH(E46,DATA2!$C$647:$C$968,0),MATCH($F$15,DATA2!$AV$3:$BA$3,0))*(1+UP!$A$3)),IF(AND($M46<>"",$H$17=DATA3!$AU$12),(INDEX(DATA2!$AV$969:$BA$1287,MATCH(E46,DATA2!$C$969:$C$1287,0),MATCH($F$15,DATA2!$AV$3:$BA$3,0))*(1+UP!$A$3)),""))) ->  | P46: =IF(AND($M46<>"",$H$17=#REF!),(INDEX(DATA2!$AV$5:$BA$1291,MATCH(F46,DATA2!$C$5:$C$1291,0),MATCH(#REF!,DATA2!$AV$3:$BA$3,0))),IF(AND($M46<>"",$H$17=#REF!),(INDEX(DATA2!$AV$5:$BA$1291,MATCH(F46,DATA2!$C$5:$C$1291,0),MATCH(#REF!,DATA2!$AV$3:$BA$3,0))),IF(AND($M46<>"",$H$17=#REF!),(INDEX(DATA2!$AV$5:$BA$1291,MATCH(F46,DATA2!$C$5:$C$1291,0),MATCH(#REF!,DATA2!$AV$3:$BA$3,0))),""))) ->  | Y46: 14 | AC46: =IF(AND(Z46<>"",$H$17=DATA3!$AU$10),INDEX(DATA2!$C$1333:$C$1366,MATCH(Z46,DATA2!$E$1333:$E$1366,0)),IF(AND(Z46<>"",$H$17=DATA3!$AU$11),INDEX(DATA2!$C$1372:$C$1405,MATCH(Z46,DATA2!$E$1372:$E$1405,0)),IF(AND(Z46<>"",$H$17=DATA3!$AU$12),INDEX(DATA2!$C$1410:$C$1441,MATCH(Z46,DATA2!$E$1410:$E$1441,0)),""))) ->  | AI46: =IF(AND(Z46<>"",$H$17=DATA3!$AU$10),INDEX(DATA2!$AU$1333:$AU$1366,MATCH($AC46,DATA2!$B$1333:$B$1366,0)),IF(AND(Z46<>"",$H$17=DATA3!$AU$11),INDEX(DATA2!$AU$1372:$AU$1405,MATCH($AC46,DATA2!$B$1372:$B$1405,0)),IF(AND(Z46<>"",$H$17=DATA3!$AU$12),INDEX(DATA2!$AU$1410:$AU$1441,MATCH($AC46,DATA2!$B$1410:$B$1441,0)),""))) ->  | AJ46: =IF(AND(AG46<>"",$H$17=#REF!),INDEX(DATA2!$AU$1331:$AU$1369,MATCH($V48,DATA2!$B$1331:$B$1369,0)),IF(AND(AG46<>"",$H$17=#REF!),INDEX(DATA2!$AU$1292:$AU$1330,MATCH($V48,DATA2!$B$1292:$B$1330,0)),IF(AND(AG46<>"",$H$17=#REF!),INDEX(DATA2!$AU$1370:$AU$1570,MATCH($V48,DATA2!$B$1370:$B$1570,0)),""))) ->  | AK46: =IF(AND($Z46<>"",$H$17=DATA3!$AU$10),(INDEX(DATA2!$AV$1333:$BA$1366,MATCH(AC46,DATA2!$C$1333:$C$1366,0),MATCH($F$15,DATA2!$AV$3:$BA$3,0))*(1+UP!$A$3)),IF(AND($Z46<>"",$H$17=DATA3!$AU$11),(INDEX(DATA2!$AV$1372:$BA$1405,MATCH(AC46,DATA2!$C$1372:$C$1405,0),MATCH($F$15,DATA2!$AV$3:$BA$3,0))*(1+UP!$A$3)),IF(AND($Z46<>"",$H$17=DATA3!$AU$12),(INDEX(DATA2!$AV$1410:$BA$1441,MATCH(AC46,DATA2!$C$1410:$C$1441,0),MATCH($F$15,DATA2!$AV$3:$BA$3,0))*(1+UP!$A$3)),""))) -> 
A47: 23 | E47: =IF(AND(B47<>"",$H$17=DATA3!$AU$10),INDEX(DATA2!$C$324:$C$645,MATCH(B47,DATA2!$E$324:$E$645,0)),IF(AND(B47<>"",$H$17=DATA3!$AU$11),INDEX(DATA2!$C$647:$C$968,MATCH(B47,DATA2!$E$647:$E$968,0)),IF(AND(B47<>"",$H$17=DATA3!$AU$12),INDEX(DATA2!$C$969:$C$1287,MATCH(B47,DATA2!$E$969:$E$1287,0)),""))) ->  | M47: =IF(AND(J47<>"",$H$17=DATA3!$AU$10),INDEX(DATA2!$AU$324:$AU$645,MATCH($E47,DATA2!$C$324:$C$645,0)),IF(AND(J47<>"",$H$17=DATA3!$AU$11),INDEX(DATA2!$AU$647:$AU$968,MATCH($E47,DATA2!$C$647:$C$968,0)),IF(AND(J47<>"",$H$17=DATA3!$AU$12),INDEX(DATA2!$AU$969:$AU$1287,MATCH($E47,DATA2!$C$969:$C$1287,0)),""))) ->  | O47: =IF(AND($M47<>"",$H$17=DATA3!$AU$10),(INDEX(DATA2!$AV$324:$BA$645,MATCH(E47,DATA2!$C$324:$C$645,0),MATCH($F$15,DATA2!$AV$3:$BA$3,0))*(1+UP!$A$3)),IF(AND($M47<>"",$H$17=DATA3!$AU$11),(INDEX(DATA2!$AV$647:$BA$968,MATCH(E47,DATA2!$C$647:$C$968,0),MATCH($F$15,DATA2!$AV$3:$BA$3,0))*(1+UP!$A$3)),IF(AND($M47<>"",$H$17=DATA3!$AU$12),(INDEX(DATA2!$AV$969:$BA$1287,MATCH(E47,DATA2!$C$969:$C$1287,0),MATCH($F$15,DATA2!$AV$3:$BA$3,0))*(1+UP!$A$3)),""))) ->  | P47: =IF(AND($M47<>"",$H$17=#REF!),(INDEX(DATA2!$AV$5:$BA$1291,MATCH(F47,DATA2!$C$5:$C$1291,0),MATCH(#REF!,DATA2!$AV$3:$BA$3,0))),IF(AND($M47<>"",$H$17=#REF!),(INDEX(DATA2!$AV$5:$BA$1291,MATCH(F47,DATA2!$C$5:$C$1291,0),MATCH(#REF!,DATA2!$AV$3:$BA$3,0))),IF(AND($M47<>"",$H$17=#REF!),(INDEX(DATA2!$AV$5:$BA$1291,MATCH(F47,DATA2!$C$5:$C$1291,0),MATCH(#REF!,DATA2!$AV$3:$BA$3,0))),""))) ->  | Y47: 15 | AC47: =IF(AND(Z47<>"",$H$17=DATA3!$AU$10),INDEX(DATA2!$C$1333:$C$1366,MATCH(Z47,DATA2!$E$1333:$E$1366,0)),IF(AND(Z47<>"",$H$17=DATA3!$AU$11),INDEX(DATA2!$C$1372:$C$1405,MATCH(Z47,DATA2!$E$1372:$E$1405,0)),IF(AND(Z47<>"",$H$17=DATA3!$AU$12),INDEX(DATA2!$C$1410:$C$1441,MATCH(Z47,DATA2!$E$1410:$E$1441,0)),""))) ->  | AI47: =IF(AND(Z47<>"",$H$17=DATA3!$AU$10),INDEX(DATA2!$AU$1333:$AU$1366,MATCH($AC47,DATA2!$B$1333:$B$1366,0)),IF(AND(Z47<>"",$H$17=DATA3!$AU$11),INDEX(DATA2!$AU$1372:$AU$1405,MATCH($AC47,DATA2!$B$1372:$B$1405,0)),IF(AND(Z47<>"",$H$17=DATA3!$AU$12),INDEX(DATA2!$AU$1410:$AU$1441,MATCH($AC47,DATA2!$B$1410:$B$1441,0)),""))) ->  | AJ47: =IF(AND(AG47<>"",$H$17=#REF!),INDEX(DATA2!$AU$1331:$AU$1369,MATCH($V49,DATA2!$B$1331:$B$1369,0)),IF(AND(AG47<>"",$H$17=#REF!),INDEX(DATA2!$AU$1292:$AU$1330,MATCH($V49,DATA2!$B$1292:$B$1330,0)),IF(AND(AG47<>"",$H$17=#REF!),INDEX(DATA2!$AU$1370:$AU$1570,MATCH($V49,DATA2!$B$1370:$B$1570,0)),""))) ->  | AK47: =IF(AND($Z47<>"",$H$17=DATA3!$AU$10),(INDEX(DATA2!$AV$1333:$BA$1366,MATCH(AC47,DATA2!$C$1333:$C$1366,0),MATCH($F$15,DATA2!$AV$3:$BA$3,0))*(1+UP!$A$3)),IF(AND($Z47<>"",$H$17=DATA3!$AU$11),(INDEX(DATA2!$AV$1372:$BA$1405,MATCH(AC47,DATA2!$C$1372:$C$1405,0),MATCH($F$15,DATA2!$AV$3:$BA$3,0))*(1+UP!$A$3)),IF(AND($Z47<>"",$H$17=DATA3!$AU$12),(INDEX(DATA2!$AV$1410:$BA$1441,MATCH(AC47,DATA2!$C$1410:$C$1441,0),MATCH($F$15,DATA2!$AV$3:$BA$3,0))*(1+UP!$A$3)),""))) -> 
A48: 24 | E48: =IF(AND(B48<>"",$H$17=DATA3!$AU$10),INDEX(DATA2!$C$324:$C$645,MATCH(B48,DATA2!$E$324:$E$645,0)),IF(AND(B48<>"",$H$17=DATA3!$AU$11),INDEX(DATA2!$C$647:$C$968,MATCH(B48,DATA2!$E$647:$E$968,0)),IF(AND(B48<>"",$H$17=DATA3!$AU$12),INDEX(DATA2!$C$969:$C$1287,MATCH(B48,DATA2!$E$969:$E$1287,0)),""))) ->  | M48: =IF(AND(J48<>"",$H$17=DATA3!$AU$10),INDEX(DATA2!$AU$324:$AU$645,MATCH($E48,DATA2!$C$324:$C$645,0)),IF(AND(J48<>"",$H$17=DATA3!$AU$11),INDEX(DATA2!$AU$647:$AU$968,MATCH($E48,DATA2!$C$647:$C$968,0)),IF(AND(J48<>"",$H$17=DATA3!$AU$12),INDEX(DATA2!$AU$969:$AU$1287,MATCH($E48,DATA2!$C$969:$C$1287,0)),""))) ->  | O48: =IF(AND($M48<>"",$H$17=DATA3!$AU$10),(INDEX(DATA2!$AV$324:$BA$645,MATCH(E48,DATA2!$C$324:$C$645,0),MATCH($F$15,DATA2!$AV$3:$BA$3,0))*(1+UP!$A$3)),IF(AND($M48<>"",$H$17=DATA3!$AU$11),(INDEX(DATA2!$AV$647:$BA$968,MATCH(E48,DATA2!$C$647:$C$968,0),MATCH($F$15,DATA2!$AV$3:$BA$3,0))*(1+UP!$A$3)),IF(AND($M48<>"",$H$17=DATA3!$AU$12),(INDEX(DATA2!$AV$969:$BA$1287,MATCH(E48,DATA2!$C$969:$C$1287,0),MATCH($F$15,DATA2!$AV$3:$BA$3,0))*(1+UP!$A$3)),""))) ->  | P48: =IF(AND($M48<>"",$H$17=#REF!),(INDEX(DATA2!$AV$5:$BA$1291,MATCH(F48,DATA2!$C$5:$C$1291,0),MATCH(#REF!,DATA2!$AV$3:$BA$3,0))),IF(AND($M48<>"",$H$17=#REF!),(INDEX(DATA2!$AV$5:$BA$1291,MATCH(F48,DATA2!$C$5:$C$1291,0),MATCH(#REF!,DATA2!$AV$3:$BA$3,0))),IF(AND($M48<>"",$H$17=#REF!),(INDEX(DATA2!$AV$5:$BA$1291,MATCH(F48,DATA2!$C$5:$C$1291,0),MATCH(#REF!,DATA2!$AV$3:$BA$3,0))),""))) ->  | Y48: 16 | AC48: =IF(AND(Z48<>"",$H$17=DATA3!$AU$10),INDEX(DATA2!$C$1333:$C$1366,MATCH(Z48,DATA2!$E$1333:$E$1366,0)),IF(AND(Z48<>"",$H$17=DATA3!$AU$11),INDEX(DATA2!$C$1372:$C$1405,MATCH(Z48,DATA2!$E$1372:$E$1405,0)),IF(AND(Z48<>"",$H$17=DATA3!$AU$12),INDEX(DATA2!$C$1410:$C$1441,MATCH(Z48,DATA2!$E$1410:$E$1441,0)),""))) ->  | AI48: =IF(AND(Z48<>"",$H$17=DATA3!$AU$10),INDEX(DATA2!$AU$1333:$AU$1366,MATCH($AC48,DATA2!$B$1333:$B$1366,0)),IF(AND(Z48<>"",$H$17=DATA3!$AU$11),INDEX(DATA2!$AU$1372:$AU$1405,MATCH($AC48,DATA2!$B$1372:$B$1405,0)),IF(AND(Z48<>"",$H$17=DATA3!$AU$12),INDEX(DATA2!$AU$1410:$AU$1441,MATCH($AC48,DATA2!$B$1410:$B$1441,0)),""))) ->  | AJ48: =IF(AND(AG48<>"",$H$17=#REF!),INDEX(DATA2!$AU$1331:$AU$1369,MATCH($V50,DATA2!$B$1331:$B$1369,0)),IF(AND(AG48<>"",$H$17=#REF!),INDEX(DATA2!$AU$1292:$AU$1330,MATCH($V50,DATA2!$B$1292:$B$1330,0)),IF(AND(AG48<>"",$H$17=#REF!),INDEX(DATA2!$AU$1370:$AU$1570,MATCH($V50,DATA2!$B$1370:$B$1570,0)),""))) ->  | AK48: =IF(AND($Z48<>"",$H$17=DATA3!$AU$10),(INDEX(DATA2!$AV$1333:$BA$1366,MATCH(AC48,DATA2!$C$1333:$C$1366,0),MATCH($F$15,DATA2!$AV$3:$BA$3,0))*(1+UP!$A$3)),IF(AND($Z48<>"",$H$17=DATA3!$AU$11),(INDEX(DATA2!$AV$1372:$BA$1405,MATCH(AC48,DATA2!$C$1372:$C$1405,0),MATCH($F$15,DATA2!$AV$3:$BA$3,0))*(1+UP!$A$3)),IF(AND($Z48<>"",$H$17=DATA3!$AU$12),(INDEX(DATA2!$AV$1410:$BA$1441,MATCH(AC48,DATA2!$C$1410:$C$1441,0),MATCH($F$15,DATA2!$AV$3:$BA$3,0))*(1+UP!$A$3)),""))) -> 
A49: 25 | E49: =IF(AND(B49<>"",$H$17=DATA3!$AU$10),INDEX(DATA2!$C$324:$C$645,MATCH(B49,DATA2!$E$324:$E$645,0)),IF(AND(B49<>"",$H$17=DATA3!$AU$11),INDEX(DATA2!$C$647:$C$968,MATCH(B49,DATA2!$E$647:$E$968,0)),IF(AND(B49<>"",$H$17=DATA3!$AU$12),INDEX(DATA2!$C$969:$C$1287,MATCH(B49,DATA2!$E$969:$E$1287,0)),""))) ->  | M49: =IF(AND(J49<>"",$H$17=DATA3!$AU$10),INDEX(DATA2!$AU$324:$AU$645,MATCH($E49,DATA2!$C$324:$C$645,0)),IF(AND(J49<>"",$H$17=DATA3!$AU$11),INDEX(DATA2!$AU$647:$AU$968,MATCH($E49,DATA2!$C$647:$C$968,0)),IF(AND(J49<>"",$H$17=DATA3!$AU$12),INDEX(DATA2!$AU$969:$AU$1287,MATCH($E49,DATA2!$C$969:$C$1287,0)),""))) ->  | O49: =IF(AND($M49<>"",$H$17=DATA3!$AU$10),(INDEX(DATA2!$AV$324:$BA$645,MATCH(E49,DATA2!$C$324:$C$645,0),MATCH($F$15,DATA2!$AV$3:$BA$3,0))*(1+UP!$A$3)),IF(AND($M49<>"",$H$17=DATA3!$AU$11),(INDEX(DATA2!$AV$647:$BA$968,MATCH(E49,DATA2!$C$647:$C$968,0),MATCH($F$15,DATA2!$AV$3:$BA$3,0))*(1+UP!$A$3)),IF(AND($M49<>"",$H$17=DATA3!$AU$12),(INDEX(DATA2!$AV$969:$BA$1287,MATCH(E49,DATA2!$C$969:$C$1287,0),MATCH($F$15,DATA2!$AV$3:$BA$3,0))*(1+UP!$A$3)),""))) ->  | P49: =IF(AND($M49<>"",$H$17=#REF!),(INDEX(DATA2!$AV$5:$BA$1291,MATCH(F49,DATA2!$C$5:$C$1291,0),MATCH(#REF!,DATA2!$AV$3:$BA$3,0))),IF(AND($M49<>"",$H$17=#REF!),(INDEX(DATA2!$AV$5:$BA$1291,MATCH(F49,DATA2!$C$5:$C$1291,0),MATCH(#REF!,DATA2!$AV$3:$BA$3,0))),IF(AND($M49<>"",$H$17=#REF!),(INDEX(DATA2!$AV$5:$BA$1291,MATCH(F49,DATA2!$C$5:$C$1291,0),MATCH(#REF!,DATA2!$AV$3:$BA$3,0))),""))) ->  | Y49: 17 | AC49: =IF(AND(Z49<>"",$H$17=DATA3!$AU$10),INDEX(DATA2!$C$1333:$C$1366,MATCH(Z49,DATA2!$E$1333:$E$1366,0)),IF(AND(Z49<>"",$H$17=DATA3!$AU$11),INDEX(DATA2!$C$1372:$C$1405,MATCH(Z49,DATA2!$E$1372:$E$1405,0)),IF(AND(Z49<>"",$H$17=DATA3!$AU$12),INDEX(DATA2!$C$1410:$C$1441,MATCH(Z49,DATA2!$E$1410:$E$1441,0)),""))) ->  | AI49: =IF(AND(Z49<>"",$H$17=DATA3!$AU$10),INDEX(DATA2!$AU$1333:$AU$1366,MATCH($AC49,DATA2!$B$1333:$B$1366,0)),IF(AND(Z49<>"",$H$17=DATA3!$AU$11),INDEX(DATA2!$AU$1372:$AU$1405,MATCH($AC49,DATA2!$B$1372:$B$1405,0)),IF(AND(Z49<>"",$H$17=DATA3!$AU$12),INDEX(DATA2!$AU$1410:$AU$1441,MATCH($AC49,DATA2!$B$1410:$B$1441,0)),""))) ->  | AJ49: =IF(AND(AG49<>"",$H$17=#REF!),INDEX(DATA2!$AU$1331:$AU$1369,MATCH($V51,DATA2!$B$1331:$B$1369,0)),IF(AND(AG49<>"",$H$17=#REF!),INDEX(DATA2!$AU$1292:$AU$1330,MATCH($V51,DATA2!$B$1292:$B$1330,0)),IF(AND(AG49<>"",$H$17=#REF!),INDEX(DATA2!$AU$1370:$AU$1570,MATCH($V51,DATA2!$B$1370:$B$1570,0)),""))) ->  | AK49: =IF(AND($Z49<>"",$H$17=DATA3!$AU$10),(INDEX(DATA2!$AV$1333:$BA$1366,MATCH(AC49,DATA2!$C$1333:$C$1366,0),MATCH($F$15,DATA2!$AV$3:$BA$3,0))*(1+UP!$A$3)),IF(AND($Z49<>"",$H$17=DATA3!$AU$11),(INDEX(DATA2!$AV$1372:$BA$1405,MATCH(AC49,DATA2!$C$1372:$C$1405,0),MATCH($F$15,DATA2!$AV$3:$BA$3,0))*(1+UP!$A$3)),IF(AND($Z49<>"",$H$17=DATA3!$AU$12),(INDEX(DATA2!$AV$1410:$BA$1441,MATCH(AC49,DATA2!$C$1410:$C$1441,0),MATCH($F$15,DATA2!$AV$3:$BA$3,0))*(1+UP!$A$3)),""))) -> 
A50: 26 | E50: =IF(AND(B50<>"",$H$17=DATA3!$AU$10),INDEX(DATA2!$C$324:$C$645,MATCH(B50,DATA2!$E$324:$E$645,0)),IF(AND(B50<>"",$H$17=DATA3!$AU$11),INDEX(DATA2!$C$647:$C$968,MATCH(B50,DATA2!$E$647:$E$968,0)),IF(AND(B50<>"",$H$17=DATA3!$AU$12),INDEX(DATA2!$C$969:$C$1287,MATCH(B50,DATA2!$E$969:$E$1287,0)),""))) ->  | M50: =IF(AND(J50<>"",$H$17=DATA3!$AU$10),INDEX(DATA2!$AU$324:$AU$645,MATCH($E50,DATA2!$C$324:$C$645,0)),IF(AND(J50<>"",$H$17=DATA3!$AU$11),INDEX(DATA2!$AU$647:$AU$968,MATCH($E50,DATA2!$C$647:$C$968,0)),IF(AND(J50<>"",$H$17=DATA3!$AU$12),INDEX(DATA2!$AU$969:$AU$1287,MATCH($E50,DATA2!$C$969:$C$1287,0)),""))) ->  | O50: =IF(AND($M50<>"",$H$17=DATA3!$AU$10),(INDEX(DATA2!$AV$324:$BA$645,MATCH(E50,DATA2!$C$324:$C$645,0),MATCH($F$15,DATA2!$AV$3:$BA$3,0))*(1+UP!$A$3)),IF(AND($M50<>"",$H$17=DATA3!$AU$11),(INDEX(DATA2!$AV$647:$BA$968,MATCH(E50,DATA2!$C$647:$C$968,0),MATCH($F$15,DATA2!$AV$3:$BA$3,0))*(1+UP!$A$3)),IF(AND($M50<>"",$H$17=DATA3!$AU$12),(INDEX(DATA2!$AV$969:$BA$1287,MATCH(E50,DATA2!$C$969:$C$1287,0),MATCH($F$15,DATA2!$AV$3:$BA$3,0))*(1+UP!$A$3)),""))) ->  | P50: =IF(AND($M50<>"",$H$17=#REF!),(INDEX(DATA2!$AV$5:$BA$1291,MATCH(F50,DATA2!$C$5:$C$1291,0),MATCH(#REF!,DATA2!$AV$3:$BA$3,0))),IF(AND($M50<>"",$H$17=#REF!),(INDEX(DATA2!$AV$5:$BA$1291,MATCH(F50,DATA2!$C$5:$C$1291,0),MATCH(#REF!,DATA2!$AV$3:$BA$3,0))),IF(AND($M50<>"",$H$17=#REF!),(INDEX(DATA2!$AV$5:$BA$1291,MATCH(F50,DATA2!$C$5:$C$1291,0),MATCH(#REF!,DATA2!$AV$3:$BA$3,0))),""))) ->  | Y50: 18 | AC50: =IF(AND(Z50<>"",$H$17=DATA3!$AU$10),INDEX(DATA2!$C$1333:$C$1366,MATCH(Z50,DATA2!$E$1333:$E$1366,0)),IF(AND(Z50<>"",$H$17=DATA3!$AU$11),INDEX(DATA2!$C$1372:$C$1405,MATCH(Z50,DATA2!$E$1372:$E$1405,0)),IF(AND(Z50<>"",$H$17=DATA3!$AU$12),INDEX(DATA2!$C$1410:$C$1441,MATCH(Z50,DATA2!$E$1410:$E$1441,0)),""))) ->  | AI50: =IF(AND(Z50<>"",$H$17=DATA3!$AU$10),INDEX(DATA2!$AU$1333:$AU$1366,MATCH($AC50,DATA2!$B$1333:$B$1366,0)),IF(AND(Z50<>"",$H$17=DATA3!$AU$11),INDEX(DATA2!$AU$1372:$AU$1405,MATCH($AC50,DATA2!$B$1372:$B$1405,0)),IF(AND(Z50<>"",$H$17=DATA3!$AU$12),INDEX(DATA2!$AU$1410:$AU$1441,MATCH($AC50,DATA2!$B$1410:$B$1441,0)),""))) ->  | AJ50: =IF(AND(AG50<>"",$H$17=#REF!),INDEX(DATA2!$AU$1331:$AU$1369,MATCH($V52,DATA2!$B$1331:$B$1369,0)),IF(AND(AG50<>"",$H$17=#REF!),INDEX(DATA2!$AU$1292:$AU$1330,MATCH($V52,DATA2!$B$1292:$B$1330,0)),IF(AND(AG50<>"",$H$17=#REF!),INDEX(DATA2!$AU$1370:$AU$1570,MATCH($V52,DATA2!$B$1370:$B$1570,0)),""))) ->  | AK50: =IF(AND($Z50<>"",$H$17=DATA3!$AU$10),(INDEX(DATA2!$AV$1333:$BA$1366,MATCH(AC50,DATA2!$C$1333:$C$1366,0),MATCH($F$15,DATA2!$AV$3:$BA$3,0))*(1+UP!$A$3)),IF(AND($Z50<>"",$H$17=DATA3!$AU$11),(INDEX(DATA2!$AV$1372:$BA$1405,MATCH(AC50,DATA2!$C$1372:$C$1405,0),MATCH($F$15,DATA2!$AV$3:$BA$3,0))*(1+UP!$A$3)),IF(AND($Z50<>"",$H$17=DATA3!$AU$12),(INDEX(DATA2!$AV$1410:$BA$1441,MATCH(AC50,DATA2!$C$1410:$C$1441,0),MATCH($F$15,DATA2!$AV$3:$BA$3,0))*(1+UP!$A$3)),""))) -> 
A51: 27 | E51: =IF(AND(B51<>"",$H$17=DATA3!$AU$10),INDEX(DATA2!$C$324:$C$645,MATCH(B51,DATA2!$E$324:$E$645,0)),IF(AND(B51<>"",$H$17=DATA3!$AU$11),INDEX(DATA2!$C$647:$C$968,MATCH(B51,DATA2!$E$647:$E$968,0)),IF(AND(B51<>"",$H$17=DATA3!$AU$12),INDEX(DATA2!$C$969:$C$1287,MATCH(B51,DATA2!$E$969:$E$1287,0)),""))) ->  | M51: =IF(AND(J51<>"",$H$17=DATA3!$AU$10),INDEX(DATA2!$AU$324:$AU$645,MATCH($E51,DATA2!$C$324:$C$645,0)),IF(AND(J51<>"",$H$17=DATA3!$AU$11),INDEX(DATA2!$AU$647:$AU$968,MATCH($E51,DATA2!$C$647:$C$968,0)),IF(AND(J51<>"",$H$17=DATA3!$AU$12),INDEX(DATA2!$AU$969:$AU$1287,MATCH($E51,DATA2!$C$969:$C$1287,0)),""))) ->  | O51: =IF(AND($M51<>"",$H$17=DATA3!$AU$10),(INDEX(DATA2!$AV$324:$BA$645,MATCH(E51,DATA2!$C$324:$C$645,0),MATCH($F$15,DATA2!$AV$3:$BA$3,0))*(1+UP!$A$3)),IF(AND($M51<>"",$H$17=DATA3!$AU$11),(INDEX(DATA2!$AV$647:$BA$968,MATCH(E51,DATA2!$C$647:$C$968,0),MATCH($F$15,DATA2!$AV$3:$BA$3,0))*(1+UP!$A$3)),IF(AND($M51<>"",$H$17=DATA3!$AU$12),(INDEX(DATA2!$AV$969:$BA$1287,MATCH(E51,DATA2!$C$969:$C$1287,0),MATCH($F$15,DATA2!$AV$3:$BA$3,0))*(1+UP!$A$3)),""))) ->  | P51: =IF(AND($M51<>"",$H$17=#REF!),(INDEX(DATA2!$AV$5:$BA$1291,MATCH(F51,DATA2!$C$5:$C$1291,0),MATCH(#REF!,DATA2!$AV$3:$BA$3,0))),IF(AND($M51<>"",$H$17=#REF!),(INDEX(DATA2!$AV$5:$BA$1291,MATCH(F51,DATA2!$C$5:$C$1291,0),MATCH(#REF!,DATA2!$AV$3:$BA$3,0))),IF(AND($M51<>"",$H$17=#REF!),(INDEX(DATA2!$AV$5:$BA$1291,MATCH(F51,DATA2!$C$5:$C$1291,0),MATCH(#REF!,DATA2!$AV$3:$BA$3,0))),""))) ->  | Y51: 19 | AC51: =IF(AND(Z51<>"",$H$17=DATA3!$AU$10),INDEX(DATA2!$C$1333:$C$1366,MATCH(Z51,DATA2!$E$1333:$E$1366,0)),IF(AND(Z51<>"",$H$17=DATA3!$AU$11),INDEX(DATA2!$C$1372:$C$1405,MATCH(Z51,DATA2!$E$1372:$E$1405,0)),IF(AND(Z51<>"",$H$17=DATA3!$AU$12),INDEX(DATA2!$C$1410:$C$1441,MATCH(Z51,DATA2!$E$1410:$E$1441,0)),""))) ->  | AI51: =IF(AND(Z51<>"",$H$17=DATA3!$AU$10),INDEX(DATA2!$AU$1333:$AU$1366,MATCH($AC51,DATA2!$B$1333:$B$1366,0)),IF(AND(Z51<>"",$H$17=DATA3!$AU$11),INDEX(DATA2!$AU$1372:$AU$1405,MATCH($AC51,DATA2!$B$1372:$B$1405,0)),IF(AND(Z51<>"",$H$17=DATA3!$AU$12),INDEX(DATA2!$AU$1410:$AU$1441,MATCH($AC51,DATA2!$B$1410:$B$1441,0)),""))) ->  | AJ51: =IF(AND(AG51<>"",$H$17=#REF!),INDEX(DATA2!$AU$1331:$AU$1369,MATCH($V53,DATA2!$B$1331:$B$1369,0)),IF(AND(AG51<>"",$H$17=#REF!),INDEX(DATA2!$AU$1292:$AU$1330,MATCH($V53,DATA2!$B$1292:$B$1330,0)),IF(AND(AG51<>"",$H$17=#REF!),INDEX(DATA2!$AU$1370:$AU$1570,MATCH($V53,DATA2!$B$1370:$B$1570,0)),""))) ->  | AK51: =IF(AND($Z51<>"",$H$17=DATA3!$AU$10),(INDEX(DATA2!$AV$1333:$BA$1366,MATCH(AC51,DATA2!$C$1333:$C$1366,0),MATCH($F$15,DATA2!$AV$3:$BA$3,0))*(1+UP!$A$3)),IF(AND($Z51<>"",$H$17=DATA3!$AU$11),(INDEX(DATA2!$AV$1372:$BA$1405,MATCH(AC51,DATA2!$C$1372:$C$1405,0),MATCH($F$15,DATA2!$AV$3:$BA$3,0))*(1+UP!$A$3)),IF(AND($Z51<>"",$H$17=DATA3!$AU$12),(INDEX(DATA2!$AV$1410:$BA$1441,MATCH(AC51,DATA2!$C$1410:$C$1441,0),MATCH($F$15,DATA2!$AV$3:$BA$3,0))*(1+UP!$A$3)),""))) -> 
A52: 28 | E52: =IF(AND(B52<>"",$H$17=DATA3!$AU$10),INDEX(DATA2!$C$324:$C$645,MATCH(B52,DATA2!$E$324:$E$645,0)),IF(AND(B52<>"",$H$17=DATA3!$AU$11),INDEX(DATA2!$C$647:$C$968,MATCH(B52,DATA2!$E$647:$E$968,0)),IF(AND(B52<>"",$H$17=DATA3!$AU$12),INDEX(DATA2!$C$969:$C$1287,MATCH(B52,DATA2!$E$969:$E$1287,0)),""))) ->  | M52: =IF(AND(J52<>"",$H$17=DATA3!$AU$10),INDEX(DATA2!$AU$324:$AU$645,MATCH($E52,DATA2!$C$324:$C$645,0)),IF(AND(J52<>"",$H$17=DATA3!$AU$11),INDEX(DATA2!$AU$647:$AU$968,MATCH($E52,DATA2!$C$647:$C$968,0)),IF(AND(J52<>"",$H$17=DATA3!$AU$12),INDEX(DATA2!$AU$969:$AU$1287,MATCH($E52,DATA2!$C$969:$C$1287,0)),""))) ->  | O52: =IF(AND($M52<>"",$H$17=DATA3!$AU$10),(INDEX(DATA2!$AV$324:$BA$645,MATCH(E52,DATA2!$C$324:$C$645,0),MATCH($F$15,DATA2!$AV$3:$BA$3,0))*(1+UP!$A$3)),IF(AND($M52<>"",$H$17=DATA3!$AU$11),(INDEX(DATA2!$AV$647:$BA$968,MATCH(E52,DATA2!$C$647:$C$968,0),MATCH($F$15,DATA2!$AV$3:$BA$3,0))*(1+UP!$A$3)),IF(AND($M52<>"",$H$17=DATA3!$AU$12),(INDEX(DATA2!$AV$969:$BA$1287,MATCH(E52,DATA2!$C$969:$C$1287,0),MATCH($F$15,DATA2!$AV$3:$BA$3,0))*(1+UP!$A$3)),""))) ->  | P52: =IF(AND($M52<>"",$H$17=#REF!),(INDEX(DATA2!$AV$5:$BA$1291,MATCH(F52,DATA2!$C$5:$C$1291,0),MATCH(#REF!,DATA2!$AV$3:$BA$3,0))),IF(AND($M52<>"",$H$17=#REF!),(INDEX(DATA2!$AV$5:$BA$1291,MATCH(F52,DATA2!$C$5:$C$1291,0),MATCH(#REF!,DATA2!$AV$3:$BA$3,0))),IF(AND($M52<>"",$H$17=#REF!),(INDEX(DATA2!$AV$5:$BA$1291,MATCH(F52,DATA2!$C$5:$C$1291,0),MATCH(#REF!,DATA2!$AV$3:$BA$3,0))),""))) ->  | Y52: 20 | AC52: =IF(AND(Z52<>"",$H$17=DATA3!$AU$10),INDEX(DATA2!$C$1333:$C$1366,MATCH(Z52,DATA2!$E$1333:$E$1366,0)),IF(AND(Z52<>"",$H$17=DATA3!$AU$11),INDEX(DATA2!$C$1372:$C$1405,MATCH(Z52,DATA2!$E$1372:$E$1405,0)),IF(AND(Z52<>"",$H$17=DATA3!$AU$12),INDEX(DATA2!$C$1410:$C$1441,MATCH(Z52,DATA2!$E$1410:$E$1441,0)),""))) ->  | AI52: =IF(AND(Z52<>"",$H$17=DATA3!$AU$10),INDEX(DATA2!$AU$1333:$AU$1366,MATCH($AC52,DATA2!$B$1333:$B$1366,0)),IF(AND(Z52<>"",$H$17=DATA3!$AU$11),INDEX(DATA2!$AU$1372:$AU$1405,MATCH($AC52,DATA2!$B$1372:$B$1405,0)),IF(AND(Z52<>"",$H$17=DATA3!$AU$12),INDEX(DATA2!$AU$1410:$AU$1441,MATCH($AC52,DATA2!$B$1410:$B$1441,0)),""))) ->  | AJ52: =IF(AND(AG52<>"",$H$17=#REF!),INDEX(DATA2!$AU$1331:$AU$1369,MATCH($V54,DATA2!$B$1331:$B$1369,0)),IF(AND(AG52<>"",$H$17=#REF!),INDEX(DATA2!$AU$1292:$AU$1330,MATCH($V54,DATA2!$B$1292:$B$1330,0)),IF(AND(AG52<>"",$H$17=#REF!),INDEX(DATA2!$AU$1370:$AU$1570,MATCH($V54,DATA2!$B$1370:$B$1570,0)),""))) ->  | AK52: =IF(AND($Z52<>"",$H$17=DATA3!$AU$10),(INDEX(DATA2!$AV$1333:$BA$1366,MATCH(AC52,DATA2!$C$1333:$C$1366,0),MATCH($F$15,DATA2!$AV$3:$BA$3,0))*(1+UP!$A$3)),IF(AND($Z52<>"",$H$17=DATA3!$AU$11),(INDEX(DATA2!$AV$1372:$BA$1405,MATCH(AC52,DATA2!$C$1372:$C$1405,0),MATCH($F$15,DATA2!$AV$3:$BA$3,0))*(1+UP!$A$3)),IF(AND($Z52<>"",$H$17=DATA3!$AU$12),(INDEX(DATA2!$AV$1410:$BA$1441,MATCH(AC52,DATA2!$C$1410:$C$1441,0),MATCH($F$15,DATA2!$AV$3:$BA$3,0))*(1+UP!$A$3)),""))) -> 
A53: 29 | E53: =IF(AND(B53<>"",$H$17=DATA3!$AU$10),INDEX(DATA2!$C$324:$C$645,MATCH(B53,DATA2!$E$324:$E$645,0)),IF(AND(B53<>"",$H$17=DATA3!$AU$11),INDEX(DATA2!$C$647:$C$968,MATCH(B53,DATA2!$E$647:$E$968,0)),IF(AND(B53<>"",$H$17=DATA3!$AU$12),INDEX(DATA2!$C$969:$C$1287,MATCH(B53,DATA2!$E$969:$E$1287,0)),""))) ->  | M53: =IF(AND(J53<>"",$H$17=DATA3!$AU$10),INDEX(DATA2!$AU$324:$AU$645,MATCH($E53,DATA2!$C$324:$C$645,0)),IF(AND(J53<>"",$H$17=DATA3!$AU$11),INDEX(DATA2!$AU$647:$AU$968,MATCH($E53,DATA2!$C$647:$C$968,0)),IF(AND(J53<>"",$H$17=DATA3!$AU$12),INDEX(DATA2!$AU$969:$AU$1287,MATCH($E53,DATA2!$C$969:$C$1287,0)),""))) ->  | O53: =IF(AND($M53<>"",$H$17=DATA3!$AU$10),(INDEX(DATA2!$AV$324:$BA$645,MATCH(E53,DATA2!$C$324:$C$645,0),MATCH($F$15,DATA2!$AV$3:$BA$3,0))*(1+UP!$A$3)),IF(AND($M53<>"",$H$17=DATA3!$AU$11),(INDEX(DATA2!$AV$647:$BA$968,MATCH(E53,DATA2!$C$647:$C$968,0),MATCH($F$15,DATA2!$AV$3:$BA$3,0))*(1+UP!$A$3)),IF(AND($M53<>"",$H$17=DATA3!$AU$12),(INDEX(DATA2!$AV$969:$BA$1287,MATCH(E53,DATA2!$C$969:$C$1287,0),MATCH($F$15,DATA2!$AV$3:$BA$3,0))*(1+UP!$A$3)),""))) ->  | P53: =IF(AND($M53<>"",$H$17=#REF!),(INDEX(DATA2!$AV$5:$BA$1291,MATCH(F53,DATA2!$C$5:$C$1291,0),MATCH(#REF!,DATA2!$AV$3:$BA$3,0))),IF(AND($M53<>"",$H$17=#REF!),(INDEX(DATA2!$AV$5:$BA$1291,MATCH(F53,DATA2!$C$5:$C$1291,0),MATCH(#REF!,DATA2!$AV$3:$BA$3,0))),IF(AND($M53<>"",$H$17=#REF!),(INDEX(DATA2!$AV$5:$BA$1291,MATCH(F53,DATA2!$C$5:$C$1291,0),MATCH(#REF!,DATA2!$AV$3:$BA$3,0))),""))) ->  | Y53: 21 | AC53: =IF(AND(Z53<>"",$H$17=DATA3!$AU$10),INDEX(DATA2!$C$1333:$C$1366,MATCH(Z53,DATA2!$E$1333:$E$1366,0)),IF(AND(Z53<>"",$H$17=DATA3!$AU$11),INDEX(DATA2!$C$1372:$C$1405,MATCH(Z53,DATA2!$E$1372:$E$1405,0)),IF(AND(Z53<>"",$H$17=DATA3!$AU$12),INDEX(DATA2!$C$1410:$C$1441,MATCH(Z53,DATA2!$E$1410:$E$1441,0)),""))) ->  | AI53: =IF(AND(Z53<>"",$H$17=DATA3!$AU$10),INDEX(DATA2!$AU$1333:$AU$1366,MATCH($AC53,DATA2!$B$1333:$B$1366,0)),IF(AND(Z53<>"",$H$17=DATA3!$AU$11),INDEX(DATA2!$AU$1372:$AU$1405,MATCH($AC53,DATA2!$B$1372:$B$1405,0)),IF(AND(Z53<>"",$H$17=DATA3!$AU$12),INDEX(DATA2!$AU$1410:$AU$1441,MATCH($AC53,DATA2!$B$1410:$B$1441,0)),""))) ->  | AJ53: =IF(AND(AG53<>"",$H$17=#REF!),INDEX(DATA2!$AU$1331:$AU$1369,MATCH($V55,DATA2!$B$1331:$B$1369,0)),IF(AND(AG53<>"",$H$17=#REF!),INDEX(DATA2!$AU$1292:$AU$1330,MATCH($V55,DATA2!$B$1292:$B$1330,0)),IF(AND(AG53<>"",$H$17=#REF!),INDEX(DATA2!$AU$1370:$AU$1570,MATCH($V55,DATA2!$B$1370:$B$1570,0)),""))) ->  | AK53: =IF(AND($Z53<>"",$H$17=DATA3!$AU$10),(INDEX(DATA2!$AV$1333:$BA$1366,MATCH(AC53,DATA2!$C$1333:$C$1366,0),MATCH($F$15,DATA2!$AV$3:$BA$3,0))*(1+UP!$A$3)),IF(AND($Z53<>"",$H$17=DATA3!$AU$11),(INDEX(DATA2!$AV$1372:$BA$1405,MATCH(AC53,DATA2!$C$1372:$C$1405,0),MATCH($F$15,DATA2!$AV$3:$BA$3,0))*(1+UP!$A$3)),IF(AND($Z53<>"",$H$17=DATA3!$AU$12),(INDEX(DATA2!$AV$1410:$BA$1441,MATCH(AC53,DATA2!$C$1410:$C$1441,0),MATCH($F$15,DATA2!$AV$3:$BA$3,0))*(1+UP!$A$3)),""))) -> 
A54: 30 | E54: =IF(AND(B54<>"",$H$17=DATA3!$AU$10),INDEX(DATA2!$C$324:$C$645,MATCH(B54,DATA2!$E$324:$E$645,0)),IF(AND(B54<>"",$H$17=DATA3!$AU$11),INDEX(DATA2!$C$647:$C$968,MATCH(B54,DATA2!$E$647:$E$968,0)),IF(AND(B54<>"",$H$17=DATA3!$AU$12),INDEX(DATA2!$C$969:$C$1287,MATCH(B54,DATA2!$E$969:$E$1287,0)),""))) ->  | M54: =IF(AND(J54<>"",$H$17=DATA3!$AU$10),INDEX(DATA2!$AU$324:$AU$645,MATCH($E54,DATA2!$C$324:$C$645,0)),IF(AND(J54<>"",$H$17=DATA3!$AU$11),INDEX(DATA2!$AU$647:$AU$968,MATCH($E54,DATA2!$C$647:$C$968,0)),IF(AND(J54<>"",$H$17=DATA3!$AU$12),INDEX(DATA2!$AU$969:$AU$1287,MATCH($E54,DATA2!$C$969:$C$1287,0)),""))) ->  | O54: =IF(AND($M54<>"",$H$17=DATA3!$AU$10),(INDEX(DATA2!$AV$324:$BA$645,MATCH(E54,DATA2!$C$324:$C$645,0),MATCH($F$15,DATA2!$AV$3:$BA$3,0))*(1+UP!$A$3)),IF(AND($M54<>"",$H$17=DATA3!$AU$11),(INDEX(DATA2!$AV$647:$BA$968,MATCH(E54,DATA2!$C$647:$C$968,0),MATCH($F$15,DATA2!$AV$3:$BA$3,0))*(1+UP!$A$3)),IF(AND($M54<>"",$H$17=DATA3!$AU$12),(INDEX(DATA2!$AV$969:$BA$1287,MATCH(E54,DATA2!$C$969:$C$1287,0),MATCH($F$15,DATA2!$AV$3:$BA$3,0))*(1+UP!$A$3)),""))) ->  | P54: =IF(AND($M54<>"",$H$17=#REF!),(INDEX(DATA2!$AV$5:$BA$1291,MATCH(F54,DATA2!$C$5:$C$1291,0),MATCH(#REF!,DATA2!$AV$3:$BA$3,0))),IF(AND($M54<>"",$H$17=#REF!),(INDEX(DATA2!$AV$5:$BA$1291,MATCH(F54,DATA2!$C$5:$C$1291,0),MATCH(#REF!,DATA2!$AV$3:$BA$3,0))),IF(AND($M54<>"",$H$17=#REF!),(INDEX(DATA2!$AV$5:$BA$1291,MATCH(F54,DATA2!$C$5:$C$1291,0),MATCH(#REF!,DATA2!$AV$3:$BA$3,0))),""))) ->  | Y54: 22 | AC54: =IF(AND(Z54<>"",$H$17=DATA3!$AU$10),INDEX(DATA2!$C$1333:$C$1366,MATCH(Z54,DATA2!$E$1333:$E$1366,0)),IF(AND(Z54<>"",$H$17=DATA3!$AU$11),INDEX(DATA2!$C$1372:$C$1405,MATCH(Z54,DATA2!$E$1372:$E$1405,0)),IF(AND(Z54<>"",$H$17=DATA3!$AU$12),INDEX(DATA2!$C$1410:$C$1441,MATCH(Z54,DATA2!$E$1410:$E$1441,0)),""))) ->  | AI54: =IF(AND(Z54<>"",$H$17=DATA3!$AU$10),INDEX(DATA2!$AU$1333:$AU$1366,MATCH($AC54,DATA2!$B$1333:$B$1366,0)),IF(AND(Z54<>"",$H$17=DATA3!$AU$11),INDEX(DATA2!$AU$1372:$AU$1405,MATCH($AC54,DATA2!$B$1372:$B$1405,0)),IF(AND(Z54<>"",$H$17=DATA3!$AU$12),INDEX(DATA2!$AU$1410:$AU$1441,MATCH($AC54,DATA2!$B$1410:$B$1441,0)),""))) ->  | AJ54: =IF(AND(AG54<>"",$H$17=#REF!),INDEX(DATA2!$AU$1331:$AU$1369,MATCH($V56,DATA2!$B$1331:$B$1369,0)),IF(AND(AG54<>"",$H$17=#REF!),INDEX(DATA2!$AU$1292:$AU$1330,MATCH($V56,DATA2!$B$1292:$B$1330,0)),IF(AND(AG54<>"",$H$17=#REF!),INDEX(DATA2!$AU$1370:$AU$1570,MATCH($V56,DATA2!$B$1370:$B$1570,0)),""))) ->  | AK54: =IF(AND($Z54<>"",$H$17=DATA3!$AU$10),(INDEX(DATA2!$AV$1333:$BA$1366,MATCH(AC54,DATA2!$C$1333:$C$1366,0),MATCH($F$15,DATA2!$AV$3:$BA$3,0))*(1+UP!$A$3)),IF(AND($Z54<>"",$H$17=DATA3!$AU$11),(INDEX(DATA2!$AV$1372:$BA$1405,MATCH(AC54,DATA2!$C$1372:$C$1405,0),MATCH($F$15,DATA2!$AV$3:$BA$3,0))*(1+UP!$A$3)),IF(AND($Z54<>"",$H$17=DATA3!$AU$12),(INDEX(DATA2!$AV$1410:$BA$1441,MATCH(AC54,DATA2!$C$1410:$C$1441,0),MATCH($F$15,DATA2!$AV$3:$BA$3,0))*(1+UP!$A$3)),""))) -> 
A55: 31 | E55: =IF(AND(B55<>"",$H$17=DATA3!$AU$10),INDEX(DATA2!$C$324:$C$645,MATCH(B55,DATA2!$E$324:$E$645,0)),IF(AND(B55<>"",$H$17=DATA3!$AU$11),INDEX(DATA2!$C$647:$C$968,MATCH(B55,DATA2!$E$647:$E$968,0)),IF(AND(B55<>"",$H$17=DATA3!$AU$12),INDEX(DATA2!$C$969:$C$1287,MATCH(B55,DATA2!$E$969:$E$1287,0)),""))) ->  | M55: =IF(AND(J55<>"",$H$17=DATA3!$AU$10),INDEX(DATA2!$AU$324:$AU$645,MATCH($E55,DATA2!$C$324:$C$645,0)),IF(AND(J55<>"",$H$17=DATA3!$AU$11),INDEX(DATA2!$AU$647:$AU$968,MATCH($E55,DATA2!$C$647:$C$968,0)),IF(AND(J55<>"",$H$17=DATA3!$AU$12),INDEX(DATA2!$AU$969:$AU$1287,MATCH($E55,DATA2!$C$969:$C$1287,0)),""))) ->  | O55: =IF(AND($M55<>"",$H$17=DATA3!$AU$10),(INDEX(DATA2!$AV$324:$BA$645,MATCH(E55,DATA2!$C$324:$C$645,0),MATCH($F$15,DATA2!$AV$3:$BA$3,0))*(1+UP!$A$3)),IF(AND($M55<>"",$H$17=DATA3!$AU$11),(INDEX(DATA2!$AV$647:$BA$968,MATCH(E55,DATA2!$C$647:$C$968,0),MATCH($F$15,DATA2!$AV$3:$BA$3,0))*(1+UP!$A$3)),IF(AND($M55<>"",$H$17=DATA3!$AU$12),(INDEX(DATA2!$AV$969:$BA$1287,MATCH(E55,DATA2!$C$969:$C$1287,0),MATCH($F$15,DATA2!$AV$3:$BA$3,0))*(1+UP!$A$3)),""))) ->  | P55: =IF(AND($M55<>"",$H$17=#REF!),(INDEX(DATA2!$AV$5:$BA$1291,MATCH(F55,DATA2!$C$5:$C$1291,0),MATCH(#REF!,DATA2!$AV$3:$BA$3,0))),IF(AND($M55<>"",$H$17=#REF!),(INDEX(DATA2!$AV$5:$BA$1291,MATCH(F55,DATA2!$C$5:$C$1291,0),MATCH(#REF!,DATA2!$AV$3:$BA$3,0))),IF(AND($M55<>"",$H$17=#REF!),(INDEX(DATA2!$AV$5:$BA$1291,MATCH(F55,DATA2!$C$5:$C$1291,0),MATCH(#REF!,DATA2!$AV$3:$BA$3,0))),""))) ->  | Y55: 23 | AC55: =IF(AND(Z55<>"",$H$17=DATA3!$AU$10),INDEX(DATA2!$C$1333:$C$1366,MATCH(Z55,DATA2!$E$1333:$E$1366,0)),IF(AND(Z55<>"",$H$17=DATA3!$AU$11),INDEX(DATA2!$C$1372:$C$1405,MATCH(Z55,DATA2!$E$1372:$E$1405,0)),IF(AND(Z55<>"",$H$17=DATA3!$AU$12),INDEX(DATA2!$C$1410:$C$1441,MATCH(Z55,DATA2!$E$1410:$E$1441,0)),""))) ->  | AI55: =IF(AND(Z55<>"",$H$17=DATA3!$AU$10),INDEX(DATA2!$AU$1333:$AU$1366,MATCH($AC55,DATA2!$B$1333:$B$1366,0)),IF(AND(Z55<>"",$H$17=DATA3!$AU$11),INDEX(DATA2!$AU$1372:$AU$1405,MATCH($AC55,DATA2!$B$1372:$B$1405,0)),IF(AND(Z55<>"",$H$17=DATA3!$AU$12),INDEX(DATA2!$AU$1410:$AU$1441,MATCH($AC55,DATA2!$B$1410:$B$1441,0)),""))) ->  | AJ55: =IF(AND(AG55<>"",$H$17=#REF!),INDEX(DATA2!$AU$1331:$AU$1369,MATCH($V57,DATA2!$B$1331:$B$1369,0)),IF(AND(AG55<>"",$H$17=#REF!),INDEX(DATA2!$AU$1292:$AU$1330,MATCH($V57,DATA2!$B$1292:$B$1330,0)),IF(AND(AG55<>"",$H$17=#REF!),INDEX(DATA2!$AU$1370:$AU$1570,MATCH($V57,DATA2!$B$1370:$B$1570,0)),""))) ->  | AK55: =IF(AND($Z55<>"",$H$17=DATA3!$AU$10),(INDEX(DATA2!$AV$1333:$BA$1366,MATCH(AC55,DATA2!$C$1333:$C$1366,0),MATCH($F$15,DATA2!$AV$3:$BA$3,0))*(1+UP!$A$3)),IF(AND($Z55<>"",$H$17=DATA3!$AU$11),(INDEX(DATA2!$AV$1372:$BA$1405,MATCH(AC55,DATA2!$C$1372:$C$1405,0),MATCH($F$15,DATA2!$AV$3:$BA$3,0))*(1+UP!$A$3)),IF(AND($Z55<>"",$H$17=DATA3!$AU$12),(INDEX(DATA2!$AV$1410:$BA$1441,MATCH(AC55,DATA2!$C$1410:$C$1441,0),MATCH($F$15,DATA2!$AV$3:$BA$3,0))*(1+UP!$A$3)),""))) -> 
A56: 32 | E56: =IF(AND(B56<>"",$H$17=DATA3!$AU$10),INDEX(DATA2!$C$324:$C$645,MATCH(B56,DATA2!$E$324:$E$645,0)),IF(AND(B56<>"",$H$17=DATA3!$AU$11),INDEX(DATA2!$C$647:$C$968,MATCH(B56,DATA2!$E$647:$E$968,0)),IF(AND(B56<>"",$H$17=DATA3!$AU$12),INDEX(DATA2!$C$969:$C$1287,MATCH(B56,DATA2!$E$969:$E$1287,0)),""))) ->  | M56: =IF(AND(J56<>"",$H$17=DATA3!$AU$10),INDEX(DATA2!$AU$324:$AU$645,MATCH($E56,DATA2!$C$324:$C$645,0)),IF(AND(J56<>"",$H$17=DATA3!$AU$11),INDEX(DATA2!$AU$647:$AU$968,MATCH($E56,DATA2!$C$647:$C$968,0)),IF(AND(J56<>"",$H$17=DATA3!$AU$12),INDEX(DATA2!$AU$969:$AU$1287,MATCH($E56,DATA2!$C$969:$C$1287,0)),""))) ->  | O56: =IF(AND($M56<>"",$H$17=DATA3!$AU$10),(INDEX(DATA2!$AV$324:$BA$645,MATCH(E56,DATA2!$C$324:$C$645,0),MATCH($F$15,DATA2!$AV$3:$BA$3,0))*(1+UP!$A$3)),IF(AND($M56<>"",$H$17=DATA3!$AU$11),(INDEX(DATA2!$AV$647:$BA$968,MATCH(E56,DATA2!$C$647:$C$968,0),MATCH($F$15,DATA2!$AV$3:$BA$3,0))*(1+UP!$A$3)),IF(AND($M56<>"",$H$17=DATA3!$AU$12),(INDEX(DATA2!$AV$969:$BA$1287,MATCH(E56,DATA2!$C$969:$C$1287,0),MATCH($F$15,DATA2!$AV$3:$BA$3,0))*(1+UP!$A$3)),""))) ->  | P56: =IF(AND($M56<>"",$H$17=#REF!),(INDEX(DATA2!$AV$5:$BA$1291,MATCH(F56,DATA2!$C$5:$C$1291,0),MATCH(#REF!,DATA2!$AV$3:$BA$3,0))),IF(AND($M56<>"",$H$17=#REF!),(INDEX(DATA2!$AV$5:$BA$1291,MATCH(F56,DATA2!$C$5:$C$1291,0),MATCH(#REF!,DATA2!$AV$3:$BA$3,0))),IF(AND($M56<>"",$H$17=#REF!),(INDEX(DATA2!$AV$5:$BA$1291,MATCH(F56,DATA2!$C$5:$C$1291,0),MATCH(#REF!,DATA2!$AV$3:$BA$3,0))),""))) ->  | Y56: 24 | AC56: =IF(AND(Z56<>"",$H$17=DATA3!$AU$10),INDEX(DATA2!$C$1333:$C$1366,MATCH(Z56,DATA2!$E$1333:$E$1366,0)),IF(AND(Z56<>"",$H$17=DATA3!$AU$11),INDEX(DATA2!$C$1372:$C$1405,MATCH(Z56,DATA2!$E$1372:$E$1405,0)),IF(AND(Z56<>"",$H$17=DATA3!$AU$12),INDEX(DATA2!$C$1410:$C$1441,MATCH(Z56,DATA2!$E$1410:$E$1441,0)),""))) ->  | AI56: =IF(AND(Z56<>"",$H$17=DATA3!$AU$10),INDEX(DATA2!$AU$1333:$AU$1366,MATCH($AC56,DATA2!$B$1333:$B$1366,0)),IF(AND(Z56<>"",$H$17=DATA3!$AU$11),INDEX(DATA2!$AU$1372:$AU$1405,MATCH($AC56,DATA2!$B$1372:$B$1405,0)),IF(AND(Z56<>"",$H$17=DATA3!$AU$12),INDEX(DATA2!$AU$1410:$AU$1441,MATCH($AC56,DATA2!$B$1410:$B$1441,0)),""))) ->  | AJ56: =IF(AND(AG56<>"",$H$17=#REF!),INDEX(DATA2!$AU$1331:$AU$1369,MATCH($V58,DATA2!$B$1331:$B$1369,0)),IF(AND(AG56<>"",$H$17=#REF!),INDEX(DATA2!$AU$1292:$AU$1330,MATCH($V58,DATA2!$B$1292:$B$1330,0)),IF(AND(AG56<>"",$H$17=#REF!),INDEX(DATA2!$AU$1370:$AU$1570,MATCH($V58,DATA2!$B$1370:$B$1570,0)),""))) ->  | AK56: =IF(AND($Z56<>"",$H$17=DATA3!$AU$10),(INDEX(DATA2!$AV$1333:$BA$1366,MATCH(AC56,DATA2!$C$1333:$C$1366,0),MATCH($F$15,DATA2!$AV$3:$BA$3,0))*(1+UP!$A$3)),IF(AND($Z56<>"",$H$17=DATA3!$AU$11),(INDEX(DATA2!$AV$1372:$BA$1405,MATCH(AC56,DATA2!$C$1372:$C$1405,0),MATCH($F$15,DATA2!$AV$3:$BA$3,0))*(1+UP!$A$3)),IF(AND($Z56<>"",$H$17=DATA3!$AU$12),(INDEX(DATA2!$AV$1410:$BA$1441,MATCH(AC56,DATA2!$C$1410:$C$1441,0),MATCH($F$15,DATA2!$AV$3:$BA$3,0))*(1+UP!$A$3)),""))) -> 
A57: 33 | E57: =IF(AND(B57<>"",$H$17=DATA3!$AU$10),INDEX(DATA2!$C$324:$C$645,MATCH(B57,DATA2!$E$324:$E$645,0)),IF(AND(B57<>"",$H$17=DATA3!$AU$11),INDEX(DATA2!$C$647:$C$968,MATCH(B57,DATA2!$E$647:$E$968,0)),IF(AND(B57<>"",$H$17=DATA3!$AU$12),INDEX(DATA2!$C$969:$C$1287,MATCH(B57,DATA2!$E$969:$E$1287,0)),""))) ->  | M57: =IF(AND(J57<>"",$H$17=DATA3!$AU$10),INDEX(DATA2!$AU$324:$AU$645,MATCH($E57,DATA2!$C$324:$C$645,0)),IF(AND(J57<>"",$H$17=DATA3!$AU$11),INDEX(DATA2!$AU$647:$AU$968,MATCH($E57,DATA2!$C$647:$C$968,0)),IF(AND(J57<>"",$H$17=DATA3!$AU$12),INDEX(DATA2!$AU$969:$AU$1287,MATCH($E57,DATA2!$C$969:$C$1287,0)),""))) ->  | O57: =IF(AND($M57<>"",$H$17=DATA3!$AU$10),(INDEX(DATA2!$AV$324:$BA$645,MATCH(E57,DATA2!$C$324:$C$645,0),MATCH($F$15,DATA2!$AV$3:$BA$3,0))*(1+UP!$A$3)),IF(AND($M57<>"",$H$17=DATA3!$AU$11),(INDEX(DATA2!$AV$647:$BA$968,MATCH(E57,DATA2!$C$647:$C$968,0),MATCH($F$15,DATA2!$AV$3:$BA$3,0))*(1+UP!$A$3)),IF(AND($M57<>"",$H$17=DATA3!$AU$12),(INDEX(DATA2!$AV$969:$BA$1287,MATCH(E57,DATA2!$C$969:$C$1287,0),MATCH($F$15,DATA2!$AV$3:$BA$3,0))*(1+UP!$A$3)),""))) ->  | P57: =IF(AND($M57<>"",$H$17=#REF!),(INDEX(DATA2!$AV$5:$BA$1291,MATCH(F57,DATA2!$C$5:$C$1291,0),MATCH(#REF!,DATA2!$AV$3:$BA$3,0))),IF(AND($M57<>"",$H$17=#REF!),(INDEX(DATA2!$AV$5:$BA$1291,MATCH(F57,DATA2!$C$5:$C$1291,0),MATCH(#REF!,DATA2!$AV$3:$BA$3,0))),IF(AND($M57<>"",$H$17=#REF!),(INDEX(DATA2!$AV$5:$BA$1291,MATCH(F57,DATA2!$C$5:$C$1291,0),MATCH(#REF!,DATA2!$AV$3:$BA$3,0))),""))) ->  | Y57: 25 | AC57: =IF(AND(Z57<>"",$H$17=DATA3!$AU$10),INDEX(DATA2!$C$1333:$C$1366,MATCH(Z57,DATA2!$E$1333:$E$1366,0)),IF(AND(Z57<>"",$H$17=DATA3!$AU$11),INDEX(DATA2!$C$1372:$C$1405,MATCH(Z57,DATA2!$E$1372:$E$1405,0)),IF(AND(Z57<>"",$H$17=DATA3!$AU$12),INDEX(DATA2!$C$1410:$C$1441,MATCH(Z57,DATA2!$E$1410:$E$1441,0)),""))) ->  | AI57: =IF(AND(Z57<>"",$H$17=DATA3!$AU$10),INDEX(DATA2!$AU$1333:$AU$1366,MATCH($AC57,DATA2!$B$1333:$B$1366,0)),IF(AND(Z57<>"",$H$17=DATA3!$AU$11),INDEX(DATA2!$AU$1372:$AU$1405,MATCH($AC57,DATA2!$B$1372:$B$1405,0)),IF(AND(Z57<>"",$H$17=DATA3!$AU$12),INDEX(DATA2!$AU$1410:$AU$1441,MATCH($AC57,DATA2!$B$1410:$B$1441,0)),""))) ->  | AJ57: =IF(AND(AG57<>"",$H$17=#REF!),INDEX(DATA2!$AU$1331:$AU$1369,MATCH($V59,DATA2!$B$1331:$B$1369,0)),IF(AND(AG57<>"",$H$17=#REF!),INDEX(DATA2!$AU$1292:$AU$1330,MATCH($V59,DATA2!$B$1292:$B$1330,0)),IF(AND(AG57<>"",$H$17=#REF!),INDEX(DATA2!$AU$1370:$AU$1570,MATCH($V59,DATA2!$B$1370:$B$1570,0)),""))) ->  | AK57: =IF(AND($Z57<>"",$H$17=DATA3!$AU$10),(INDEX(DATA2!$AV$1333:$BA$1366,MATCH(AC57,DATA2!$C$1333:$C$1366,0),MATCH($F$15,DATA2!$AV$3:$BA$3,0))*(1+UP!$A$3)),IF(AND($Z57<>"",$H$17=DATA3!$AU$11),(INDEX(DATA2!$AV$1372:$BA$1405,MATCH(AC57,DATA2!$C$1372:$C$1405,0),MATCH($F$15,DATA2!$AV$3:$BA$3,0))*(1+UP!$A$3)),IF(AND($Z57<>"",$H$17=DATA3!$AU$12),(INDEX(DATA2!$AV$1410:$BA$1441,MATCH(AC57,DATA2!$C$1410:$C$1441,0),MATCH($F$15,DATA2!$AV$3:$BA$3,0))*(1+UP!$A$3)),""))) -> 
A58: 34 | E58: =IF(AND(B58<>"",$H$17=DATA3!$AU$10),INDEX(DATA2!$C$324:$C$645,MATCH(B58,DATA2!$E$324:$E$645,0)),IF(AND(B58<>"",$H$17=DATA3!$AU$11),INDEX(DATA2!$C$647:$C$968,MATCH(B58,DATA2!$E$647:$E$968,0)),IF(AND(B58<>"",$H$17=DATA3!$AU$12),INDEX(DATA2!$C$969:$C$1287,MATCH(B58,DATA2!$E$969:$E$1287,0)),""))) ->  | M58: =IF(AND(J58<>"",$H$17=DATA3!$AU$10),INDEX(DATA2!$AU$324:$AU$645,MATCH($E58,DATA2!$C$324:$C$645,0)),IF(AND(J58<>"",$H$17=DATA3!$AU$11),INDEX(DATA2!$AU$647:$AU$968,MATCH($E58,DATA2!$C$647:$C$968,0)),IF(AND(J58<>"",$H$17=DATA3!$AU$12),INDEX(DATA2!$AU$969:$AU$1287,MATCH($E58,DATA2!$C$969:$C$1287,0)),""))) ->  | O58: =IF(AND($M58<>"",$H$17=DATA3!$AU$10),(INDEX(DATA2!$AV$324:$BA$645,MATCH(E58,DATA2!$C$324:$C$645,0),MATCH($F$15,DATA2!$AV$3:$BA$3,0))*(1+UP!$A$3)),IF(AND($M58<>"",$H$17=DATA3!$AU$11),(INDEX(DATA2!$AV$647:$BA$968,MATCH(E58,DATA2!$C$647:$C$968,0),MATCH($F$15,DATA2!$AV$3:$BA$3,0))*(1+UP!$A$3)),IF(AND($M58<>"",$H$17=DATA3!$AU$12),(INDEX(DATA2!$AV$969:$BA$1287,MATCH(E58,DATA2!$C$969:$C$1287,0),MATCH($F$15,DATA2!$AV$3:$BA$3,0))*(1+UP!$A$3)),""))) ->  | P58: =IF(AND($M58<>"",$H$17=#REF!),(INDEX(DATA2!$AV$5:$BA$1291,MATCH(F58,DATA2!$C$5:$C$1291,0),MATCH(#REF!,DATA2!$AV$3:$BA$3,0))),IF(AND($M58<>"",$H$17=#REF!),(INDEX(DATA2!$AV$5:$BA$1291,MATCH(F58,DATA2!$C$5:$C$1291,0),MATCH(#REF!,DATA2!$AV$3:$BA$3,0))),IF(AND($M58<>"",$H$17=#REF!),(INDEX(DATA2!$AV$5:$BA$1291,MATCH(F58,DATA2!$C$5:$C$1291,0),MATCH(#REF!,DATA2!$AV$3:$BA$3,0))),""))) ->  | Y58: 26 | AC58: =IF(AND(Z58<>"",$H$17=DATA3!$AU$10),INDEX(DATA2!$C$1333:$C$1366,MATCH(Z58,DATA2!$E$1333:$E$1366,0)),IF(AND(Z58<>"",$H$17=DATA3!$AU$11),INDEX(DATA2!$C$1372:$C$1405,MATCH(Z58,DATA2!$E$1372:$E$1405,0)),IF(AND(Z58<>"",$H$17=DATA3!$AU$12),INDEX(DATA2!$C$1410:$C$1441,MATCH(Z58,DATA2!$E$1410:$E$1441,0)),""))) ->  | AI58: =IF(AND(Z58<>"",$H$17=DATA3!$AU$10),INDEX(DATA2!$AU$1333:$AU$1366,MATCH($AC58,DATA2!$B$1333:$B$1366,0)),IF(AND(Z58<>"",$H$17=DATA3!$AU$11),INDEX(DATA2!$AU$1372:$AU$1405,MATCH($AC58,DATA2!$B$1372:$B$1405,0)),IF(AND(Z58<>"",$H$17=DATA3!$AU$12),INDEX(DATA2!$AU$1410:$AU$1441,MATCH($AC58,DATA2!$B$1410:$B$1441,0)),""))) ->  | AJ58: =IF(AND(AG58<>"",$H$17=#REF!),INDEX(DATA2!$AU$1331:$AU$1369,MATCH($V60,DATA2!$B$1331:$B$1369,0)),IF(AND(AG58<>"",$H$17=#REF!),INDEX(DATA2!$AU$1292:$AU$1330,MATCH($V60,DATA2!$B$1292:$B$1330,0)),IF(AND(AG58<>"",$H$17=#REF!),INDEX(DATA2!$AU$1370:$AU$1570,MATCH($V60,DATA2!$B$1370:$B$1570,0)),""))) ->  | AK58: =IF(AND($Z58<>"",$H$17=DATA3!$AU$10),(INDEX(DATA2!$AV$1333:$BA$1366,MATCH(AC58,DATA2!$C$1333:$C$1366,0),MATCH($F$15,DATA2!$AV$3:$BA$3,0))*(1+UP!$A$3)),IF(AND($Z58<>"",$H$17=DATA3!$AU$11),(INDEX(DATA2!$AV$1372:$BA$1405,MATCH(AC58,DATA2!$C$1372:$C$1405,0),MATCH($F$15,DATA2!$AV$3:$BA$3,0))*(1+UP!$A$3)),IF(AND($Z58<>"",$H$17=DATA3!$AU$12),(INDEX(DATA2!$AV$1410:$BA$1441,MATCH(AC58,DATA2!$C$1410:$C$1441,0),MATCH($F$15,DATA2!$AV$3:$BA$3,0))*(1+UP!$A$3)),""))) -> 
A59: 35 | E59: =IF(AND(B59<>"",$H$17=DATA3!$AU$10),INDEX(DATA2!$C$324:$C$645,MATCH(B59,DATA2!$E$324:$E$645,0)),IF(AND(B59<>"",$H$17=DATA3!$AU$11),INDEX(DATA2!$C$647:$C$968,MATCH(B59,DATA2!$E$647:$E$968,0)),IF(AND(B59<>"",$H$17=DATA3!$AU$12),INDEX(DATA2!$C$969:$C$1287,MATCH(B59,DATA2!$E$969:$E$1287,0)),""))) ->  | M59: =IF(AND(J59<>"",$H$17=DATA3!$AU$10),INDEX(DATA2!$AU$324:$AU$645,MATCH($E59,DATA2!$C$324:$C$645,0)),IF(AND(J59<>"",$H$17=DATA3!$AU$11),INDEX(DATA2!$AU$647:$AU$968,MATCH($E59,DATA2!$C$647:$C$968,0)),IF(AND(J59<>"",$H$17=DATA3!$AU$12),INDEX(DATA2!$AU$969:$AU$1287,MATCH($E59,DATA2!$C$969:$C$1287,0)),""))) ->  | O59: =IF(AND($M59<>"",$H$17=DATA3!$AU$10),(INDEX(DATA2!$AV$324:$BA$645,MATCH(E59,DATA2!$C$324:$C$645,0),MATCH($F$15,DATA2!$AV$3:$BA$3,0))*(1+UP!$A$3)),IF(AND($M59<>"",$H$17=DATA3!$AU$11),(INDEX(DATA2!$AV$647:$BA$968,MATCH(E59,DATA2!$C$647:$C$968,0),MATCH($F$15,DATA2!$AV$3:$BA$3,0))*(1+UP!$A$3)),IF(AND($M59<>"",$H$17=DATA3!$AU$12),(INDEX(DATA2!$AV$969:$BA$1287,MATCH(E59,DATA2!$C$969:$C$1287,0),MATCH($F$15,DATA2!$AV$3:$BA$3,0))*(1+UP!$A$3)),""))) ->  | P59: =IF(AND($M59<>"",$H$17=#REF!),(INDEX(DATA2!$AV$5:$BA$1291,MATCH(F59,DATA2!$C$5:$C$1291,0),MATCH(#REF!,DATA2!$AV$3:$BA$3,0))),IF(AND($M59<>"",$H$17=#REF!),(INDEX(DATA2!$AV$5:$BA$1291,MATCH(F59,DATA2!$C$5:$C$1291,0),MATCH(#REF!,DATA2!$AV$3:$BA$3,0))),IF(AND($M59<>"",$H$17=#REF!),(INDEX(DATA2!$AV$5:$BA$1291,MATCH(F59,DATA2!$C$5:$C$1291,0),MATCH(#REF!,DATA2!$AV$3:$BA$3,0))),""))) ->  | Y59: 27 | AC59: =IF(AND(Z59<>"",$H$17=DATA3!$AU$10),INDEX(DATA2!$C$1333:$C$1366,MATCH(Z59,DATA2!$E$1333:$E$1366,0)),IF(AND(Z59<>"",$H$17=DATA3!$AU$11),INDEX(DATA2!$C$1372:$C$1405,MATCH(Z59,DATA2!$E$1372:$E$1405,0)),IF(AND(Z59<>"",$H$17=DATA3!$AU$12),INDEX(DATA2!$C$1410:$C$1441,MATCH(Z59,DATA2!$E$1410:$E$1441,0)),""))) ->  | AI59: =IF(AND(Z59<>"",$H$17=DATA3!$AU$10),INDEX(DATA2!$AU$1333:$AU$1366,MATCH($AC59,DATA2!$B$1333:$B$1366,0)),IF(AND(Z59<>"",$H$17=DATA3!$AU$11),INDEX(DATA2!$AU$1372:$AU$1405,MATCH($AC59,DATA2!$B$1372:$B$1405,0)),IF(AND(Z59<>"",$H$17=DATA3!$AU$12),INDEX(DATA2!$AU$1410:$AU$1441,MATCH($AC59,DATA2!$B$1410:$B$1441,0)),""))) ->  | AJ59: =IF(AND(AG59<>"",$H$17=#REF!),INDEX(DATA2!$AU$1331:$AU$1369,MATCH($V61,DATA2!$B$1331:$B$1369,0)),IF(AND(AG59<>"",$H$17=#REF!),INDEX(DATA2!$AU$1292:$AU$1330,MATCH($V61,DATA2!$B$1292:$B$1330,0)),IF(AND(AG59<>"",$H$17=#REF!),INDEX(DATA2!$AU$1370:$AU$1570,MATCH($V61,DATA2!$B$1370:$B$1570,0)),""))) ->  | AK59: =IF(AND($Z59<>"",$H$17=DATA3!$AU$10),(INDEX(DATA2!$AV$1333:$BA$1366,MATCH(AC59,DATA2!$C$1333:$C$1366,0),MATCH($F$15,DATA2!$AV$3:$BA$3,0))*(1+UP!$A$3)),IF(AND($Z59<>"",$H$17=DATA3!$AU$11),(INDEX(DATA2!$AV$1372:$BA$1405,MATCH(AC59,DATA2!$C$1372:$C$1405,0),MATCH($F$15,DATA2!$AV$3:$BA$3,0))*(1+UP!$A$3)),IF(AND($Z59<>"",$H$17=DATA3!$AU$12),(INDEX(DATA2!$AV$1410:$BA$1441,MATCH(AC59,DATA2!$C$1410:$C$1441,0),MATCH($F$15,DATA2!$AV$3:$BA$3,0))*(1+UP!$A$3)),""))) -> 
H60: TOTAL | J60: =SUM(J25:J59) -> 0 | O60: TOTAL | Q60: =SUM(Q25:Q59) -> 0 | AF60: TOTAL | AH60: =SUM(AH33:AH57) -> 0 | AK60: TOTAL | AM60: =SUM(AM33:AO57) -> 0
B61: FUNCTIONAL HARDWARE/ MODIFICATIONS | J61: Qty
L62: ITEM # | O62: COST $ | Q62: TOTAL $ | T62: ADDITIONAL INSTRUCTIONS
A63: 1 | E63: =IF(AND(B63<>"",$H$17=DATA3!$AU$10),INDEX(DATA2!$C$1445:$C$1567,MATCH(B63,DATA2!$E$1445:$E$1567,0)),IF(AND(B63<>"",$H$17=DATA3!$AU$11),INDEX(DATA2!$C$1445:$C$1567,MATCH(B63,DATA2!$E$1445:$E$1567,0)),IF(AND(B63<>"",$H$17=DATA3!$AU$12),INDEX(DATA2!$C$1445:$C$1567,MATCH(B63,DATA2!$E$1445:$E$1567,0)),""))) ->  | O63: =IF(AND($J63<>"",$H$17=DATA3!$AU$10),(INDEX(DATA2!$AV$1445:$BA$1567,MATCH(E63,DATA2!$C$1445:$C$1567,0),MATCH($F$15,DATA2!$AV$3:$BA$3,0))*(1+UP!$A$4)),IF(AND($J63<>"",$H$17=DATA3!$AU$11),(INDEX(DATA2!$AV$1445:$BA$1567,MATCH(E63,DATA2!$C$1445:$C$1567,0),MATCH($F$15,DATA2!$AV$3:$BA$3,0))*(1+UP!$A$4)),IF(AND($J63<>"",$H$17=DATA3!$AU$12),(INDEX(DATA2!$AV$1445:$BA$1567,MATCH(E63,DATA2!$C$1445:$C$1567,0),MATCH($F$15,DATA2!$AV$3:$BA$3,0))*(1+UP!$A$4)),""))) ->  | Q63: =IF($J63<>"",$J63*$O63,"") -> 
A64: 2 | E64: =IF(AND(B64<>"",$H$17=DATA3!$AU$10),INDEX(DATA2!$C$1445:$C$1567,MATCH(B64,DATA2!$E$1445:$E$1567,0)),IF(AND(B64<>"",$H$17=DATA3!$AU$11),INDEX(DATA2!$C$1445:$C$1567,MATCH(B64,DATA2!$E$1445:$E$1567,0)),IF(AND(B64<>"",$H$17=DATA3!$AU$12),INDEX(DATA2!$C$1445:$C$1567,MATCH(B64,DATA2!$E$1445:$E$1567,0)),""))) ->  | O64: =IF(AND($J64<>"",$H$17=DATA3!$AU$10),(INDEX(DATA2!$AV$1445:$BA$1567,MATCH(E64,DATA2!$C$1445:$C$1567,0),MATCH($F$15,DATA2!$AV$3:$BA$3,0))*(1+UP!$A$4)),IF(AND($J64<>"",$H$17=DATA3!$AU$11),(INDEX(DATA2!$AV$1445:$BA$1567,MATCH(E64,DATA2!$C$1445:$C$1567,0),MATCH($F$15,DATA2!$AV$3:$BA$3,0))*(1+UP!$A$4)),IF(AND($J64<>"",$H$17=DATA3!$AU$12),(INDEX(DATA2!$AV$1445:$BA$1567,MATCH(E64,DATA2!$C$1445:$C$1567,0),MATCH($F$15,DATA2!$AV$3:$BA$3,0))*(1+UP!$A$4)),IF(AND($J64<>"",$H$17=DATA3!$AU$13),(INDEX(DATA2!$AV$1445:$BA$1567,MATCH(E64,DATA2!$C$1445:$C$1567,0),MATCH($F$15,DATA2!$AV$3:$BA$3,0))*(1+UP!$A$4)),"")))) -> 
A65: 3 | E65: =IF(AND(B65<>"",$H$17=DATA3!$AU$10),INDEX(DATA2!$C$1445:$C$1567,MATCH(B65,DATA2!$E$1445:$E$1567,0)),IF(AND(B65<>"",$H$17=DATA3!$AU$11),INDEX(DATA2!$C$1445:$C$1567,MATCH(B65,DATA2!$E$1445:$E$1567,0)),IF(AND(B65<>"",$H$17=DATA3!$AU$12),INDEX(DATA2!$C$1445:$C$1567,MATCH(B65,DATA2!$E$1445:$E$1567,0)),""))) ->  | O65: =IF(AND($J65<>"",$H$17=DATA3!$AU$10),(INDEX(DATA2!$AV$1445:$BA$1567,MATCH(E65,DATA2!$C$1445:$C$1567,0),MATCH($F$15,DATA2!$AV$3:$BA$3,0))*(1+UP!$A$4)),IF(AND($J65<>"",$H$17=DATA3!$AU$11),(INDEX(DATA2!$AV$1445:$BA$1567,MATCH(E65,DATA2!$C$1445:$C$1567,0),MATCH($F$15,DATA2!$AV$3:$BA$3,0))*(1+UP!$A$4)),IF(AND($J65<>"",$H$17=DATA3!$AU$12),(INDEX(DATA2!$AV$1445:$BA$1567,MATCH(E65,DATA2!$C$1445:$C$1567,0),MATCH($F$15,DATA2!$AV$3:$BA$3,0))*(1+UP!$A$4)),IF(AND($J65<>"",$H$17=DATA3!$AU$13),(INDEX(DATA2!$AV$1445:$BA$1567,MATCH(E65,DATA2!$C$1445:$C$1567,0),MATCH($F$15,DATA2!$AV$3:$BA$3,0))*(1+UP!$A$4)),"")))) -> 
A66: 4 | E66: =IF(AND(B66<>"",$H$17=DATA3!$AU$10),INDEX(DATA2!$C$1445:$C$1567,MATCH(B66,DATA2!$E$1445:$E$1567,0)),IF(AND(B66<>"",$H$17=DATA3!$AU$11),INDEX(DATA2!$C$1445:$C$1567,MATCH(B66,DATA2!$E$1445:$E$1567,0)),IF(AND(B66<>"",$H$17=DATA3!$AU$12),INDEX(DATA2!$C$1445:$C$1567,MATCH(B66,DATA2!$E$1445:$E$1567,0)),""))) ->  | O66: =IF(AND($J66<>"",$H$17=DATA3!$AU$10),(INDEX(DATA2!$AV$1445:$BA$1567,MATCH(E66,DATA2!$C$1445:$C$1567,0),MATCH($F$15,DATA2!$AV$3:$BA$3,0))*(1+UP!$A$4)),IF(AND($J66<>"",$H$17=DATA3!$AU$11),(INDEX(DATA2!$AV$1445:$BA$1567,MATCH(E66,DATA2!$C$1445:$C$1567,0),MATCH($F$15,DATA2!$AV$3:$BA$3,0))*(1+UP!$A$4)),IF(AND($J66<>"",$H$17=DATA3!$AU$12),(INDEX(DATA2!$AV$1445:$BA$1567,MATCH(E66,DATA2!$C$1445:$C$1567,0),MATCH($F$15,DATA2!$AV$3:$BA$3,0))*(1+UP!$A$4)),IF(AND($J66<>"",$H$17=DATA3!$AU$13),(INDEX(DATA2!$AV$1445:$BA$1567,MATCH(E66,DATA2!$C$1445:$C$1567,0),MATCH($F$15,DATA2!$AV$3:$BA$3,0))*(1+UP!$A$4)),"")))) -> 
A67: 5 | E67: =IF(AND(B67<>"",$H$17=DATA3!$AU$10),INDEX(DATA2!$C$1445:$C$1567,MATCH(B67,DATA2!$E$1445:$E$1567,0)),IF(AND(B67<>"",$H$17=DATA3!$AU$11),INDEX(DATA2!$C$1445:$C$1567,MATCH(B67,DATA2!$E$1445:$E$1567,0)),IF(AND(B67<>"",$H$17=DATA3!$AU$12),INDEX(DATA2!$C$1445:$C$1567,MATCH(B67,DATA2!$E$1445:$E$1567,0)),""))) ->  | O67: =IF(AND($J67<>"",$H$17=DATA3!$AU$10),(INDEX(DATA2!$AV$1445:$BA$1567,MATCH(E67,DATA2!$C$1445:$C$1567,0),MATCH($F$15,DATA2!$AV$3:$BA$3,0))*(1+UP!$A$4)),IF(AND($J67<>"",$H$17=DATA3!$AU$11),(INDEX(DATA2!$AV$1445:$BA$1567,MATCH(E67,DATA2!$C$1445:$C$1567,0),MATCH($F$15,DATA2!$AV$3:$BA$3,0))*(1+UP!$A$4)),IF(AND($J67<>"",$H$17=DATA3!$AU$12),(INDEX(DATA2!$AV$1445:$BA$1567,MATCH(E67,DATA2!$C$1445:$C$1567,0),MATCH($F$15,DATA2!$AV$3:$BA$3,0))*(1+UP!$A$4)),IF(AND($J67<>"",$H$17=DATA3!$AU$13),(INDEX(DATA2!$AV$1445:$BA$1567,MATCH(E67,DATA2!$C$1445:$C$1567,0),MATCH($F$15,DATA2!$AV$3:$BA$3,0))*(1+UP!$A$4)),"")))) -> 
A68: 6 | E68: =IF(AND(B68<>"",$H$17=DATA3!$AU$10),INDEX(DATA2!$C$1445:$C$1567,MATCH(B68,DATA2!$E$1445:$E$1567,0)),IF(AND(B68<>"",$H$17=DATA3!$AU$11),INDEX(DATA2!$C$1445:$C$1567,MATCH(B68,DATA2!$E$1445:$E$1567,0)),IF(AND(B68<>"",$H$17=DATA3!$AU$12),INDEX(DATA2!$C$1445:$C$1567,MATCH(B68,DATA2!$E$1445:$E$1567,0)),""))) ->  | O68: =IF(AND($J68<>"",$H$17=DATA3!$AU$10),(INDEX(DATA2!$AV$1445:$BA$1567,MATCH(E68,DATA2!$C$1445:$C$1567,0),MATCH($F$15,DATA2!$AV$3:$BA$3,0))*(1+UP!$A$4)),IF(AND($J68<>"",$H$17=DATA3!$AU$11),(INDEX(DATA2!$AV$1445:$BA$1567,MATCH(E68,DATA2!$C$1445:$C$1567,0),MATCH($F$15,DATA2!$AV$3:$BA$3,0))*(1+UP!$A$4)),IF(AND($J68<>"",$H$17=DATA3!$AU$12),(INDEX(DATA2!$AV$1445:$BA$1567,MATCH(E68,DATA2!$C$1445:$C$1567,0),MATCH($F$15,DATA2!$AV$3:$BA$3,0))*(1+UP!$A$4)),IF(AND($J68<>"",$H$17=DATA3!$AU$13),(INDEX(DATA2!$AV$1445:$BA$1567,MATCH(E68,DATA2!$C$1445:$C$1567,0),MATCH($F$15,DATA2!$AV$3:$BA$3,0))*(1+UP!$A$4)),"")))) -> 
A69: 7 | E69: =IF(AND(B69<>"",$H$17=DATA3!$AU$10),INDEX(DATA2!$C$1445:$C$1567,MATCH(B69,DATA2!$E$1445:$E$1567,0)),IF(AND(B69<>"",$H$17=DATA3!$AU$11),INDEX(DATA2!$C$1445:$C$1567,MATCH(B69,DATA2!$E$1445:$E$1567,0)),IF(AND(B69<>"",$H$17=DATA3!$AU$12),INDEX(DATA2!$C$1445:$C$1567,MATCH(B69,DATA2!$E$1445:$E$1567,0)),""))) ->  | O69: =IF(AND($J69<>"",$H$17=DATA3!$AU$10),(INDEX(DATA2!$AV$1445:$BA$1567,MATCH(E69,DATA2!$C$1445:$C$1567,0),MATCH($F$15,DATA2!$AV$3:$BA$3,0))*(1+UP!$A$4)),IF(AND($J69<>"",$H$17=DATA3!$AU$11),(INDEX(DATA2!$AV$1445:$BA$1567,MATCH(E69,DATA2!$C$1445:$C$1567,0),MATCH($F$15,DATA2!$AV$3:$BA$3,0))*(1+UP!$A$4)),IF(AND($J69<>"",$H$17=DATA3!$AU$12),(INDEX(DATA2!$AV$1445:$BA$1567,MATCH(E69,DATA2!$C$1445:$C$1567,0),MATCH($F$15,DATA2!$AV$3:$BA$3,0))*(1+UP!$A$4)),IF(AND($J69<>"",$H$17=DATA3!$AU$13),(INDEX(DATA2!$AV$1445:$BA$1567,MATCH(E69,DATA2!$C$1445:$C$1567,0),MATCH($F$15,DATA2!$AV$3:$BA$3,0))*(1+UP!$A$4)),"")))) -> 
A70: 8 | E70: =IF(AND(B70<>"",$H$17=DATA3!$AU$10),INDEX(DATA2!$C$1445:$C$1567,MATCH(B70,DATA2!$E$1445:$E$1567,0)),IF(AND(B70<>"",$H$17=DATA3!$AU$11),INDEX(DATA2!$C$1445:$C$1567,MATCH(B70,DATA2!$E$1445:$E$1567,0)),IF(AND(B70<>"",$H$17=DATA3!$AU$12),INDEX(DATA2!$C$1445:$C$1567,MATCH(B70,DATA2!$E$1445:$E$1567,0)),""))) ->  | O70: =IF(AND($J70<>"",$H$17=DATA3!$AU$10),(INDEX(DATA2!$AV$1445:$BA$1567,MATCH(E70,DATA2!$C$1445:$C$1567,0),MATCH($F$15,DATA2!$AV$3:$BA$3,0))*(1+UP!$A$4)),IF(AND($J70<>"",$H$17=DATA3!$AU$11),(INDEX(DATA2!$AV$1445:$BA$1567,MATCH(E70,DATA2!$C$1445:$C$1567,0),MATCH($F$15,DATA2!$AV$3:$BA$3,0))*(1+UP!$A$4)),IF(AND($J70<>"",$H$17=DATA3!$AU$12),(INDEX(DATA2!$AV$1445:$BA$1567,MATCH(E70,DATA2!$C$1445:$C$1567,0),MATCH($F$15,DATA2!$AV$3:$BA$3,0))*(1+UP!$A$4)),IF(AND($J70<>"",$H$17=DATA3!$AU$13),(INDEX(DATA2!$AV$1445:$BA$1567,MATCH(E70,DATA2!$C$1445:$C$1567,0),MATCH($F$15,DATA2!$AV$3:$BA$3,0))*(1+UP!$A$4)),"")))) -> 
H71: TOTAL | J71: =SUM(J63:J70) -> 0 | O71: TOTAL | Q71: =SUM(Q63:S70) -> 0

Sheet DATA1 (hidden)
A4: Finished End data validation
A6: L
A7: R
A8: B
A12: Finished End data validation
A14: L
A15: R
A16: B
A21: Allowable multipliers
B22: blank
A23: 0.4345 | B23: S1
A24: 0.3863 | B24: S2
A25: 0.3477 | B25: S3
A26: 0.3161 | B26: S4
A27: 0.2897 | B27: S5
A28: 0.2674 | B28: S6
A29: 0.2579 | B29: S7_1 Home Depot
A30: 0.2439 | B30: S7_2 Home Depot
A34: 8/4/2017:
A35: V1.11 includes:
A36: Addition of kits:
A37: BDLW302124KW
A38: BDLW302124KA
A39: BDLW302124SHKA
A40: BDLW302124SHKW

Sheet DATA2 (hidden)
A1: Pasted from BDLKIT-Master | C1: Sort so that only correct wood comes up when items are requested | I1: PP consilidated to remove formulas and reduce size. "M" version used as master to do this. HPH 7/16/2013 | AL1: Hardware Prices from Dancik
A2: Unique BDL Kits | Z2: 30
B3: Eliminate BDL prefix | C3: paste special col. B | I3: 0.4693 | J3: 0.4172 | K3: 0.3755 | L3: 0.3414 | M3: 0.3129 | N3: 0.2888 | T3: 0.4693 | U3: 0.4172 | V3: 0.3755 | W3: 0.3414 | X3: 0.3129 | Y3: 0.2888 | Z3: 12 | AV3: 0.4693 | AW3: 0.4172 | AX3: 0.3755 | AY3: 0.3414 | AZ3: 0.3129 | BA3: 0.2888
A4: sku | B4: skuwobdl | C4: ppentry | D4: elim_suffix | F4: Box | G4: qty of | H4: LP | I4: S1 | J4: S2 | K4: S3 | L4: S4 | M4: S5 | N4: S6 | O4: WT | P4: last | Q4: FF | R4: qty of | S4: LP | T4: S1 | U4: S2 | V4: S3 | W4: S4 | X4: S5 | Y4: S6 | Z4: WT | AA4: Component3 | AB4: qty of | AL4: LP | AM4: S1 | AN4: S2 | AO4: S3 | AP4: S4 | AQ4: S5 | AR4: S6 | AS4: WT | AU4: LP_Sum | AV4: S1_Sum | AW4: S2_Sum | AX4: S3_Sum | AY4: S4_Sum | AZ4: S5_Sum | BA4: S6_Sum | BB4: Wt_Sum
A5: May2013-classic KA | G5: component1 | R5: component2 | AB5: component3
A6: BDLVCD30LKA | B6: VCD30LKA | C6: VCD30LKA | D6: VCD30L | E6: VCD30L | F6: BDLVCD30PB | H6: 190.091 | I6: 89.2097063 | J6: 79.3059652 | K6: 71.3791705 | L6: 64.8970674 | M6: 59.4794739 | N6: 54.8982808 | O6: 55 | Q6: BDLVCD30LKAN | S6: 464.607 | T6: 218.0400651 | U6: 193.8340404 | V6: 174.4599285 | W6: 158.6168298 | X6: 145.3755303 | Y6: 134.1785016 | Z6: 30 | AK6: BDLV3CLAS | AL6: 189.387 | AM6: =AL6*0.4693 -> 88.8793191 | AN6: =AL6*0.4172 -> 79.0122564 | AO6: =AL6*0.3755 -> 71.1148185 | AP6: =AL6*0.3414 -> 64.6567218 | AQ6: =AL6*0.3129 -> 59.2591923 | AR6: =AL6*0.2888 -> 54.6949656 | AS6: 11 | AU6: 844.085 | AV6: =SUM(I6, T6, AM6) -> 396.1290905 | AW6: =SUM(J6, U6, AN6) -> 352.152262 | AX6: =SUM(K6, V6, AO6) -> 316.9539175 | AY6: =SUM(L6, W6, AP6) -> 288.170619 | AZ6: =SUM(M6, X6, AQ6) -> 264.1141965 | BA6: =SUM(N6, Y6, AR6) -> 243.771748 | BB6: 96 | BC6: 844.085 | BD6: -0.005636053697
A7: BDLVCD30RKA | B7: VCD30RKA | C7: VCD30RKA | D7: VCD30R | E7: VCD30R | F7: BDLVCD30PB | H7: 190.091 | I7: 89.2097063 | J7: 79.3059652 | K7: 71.3791705 | L7: 64.8970674 | M7: 59.4794739 | N7: 54.8982808 | O7: 55 | Q7: BDLVCD30RKAN | S7: 464.607 | T7: 218.0400651 | U7: 193.8340404 | V7: 174.4599285 | W7: 158.6168298 | X7: 145.3755303 | Y7: 134.1785016 | Z7: 30 | AK7: BDLV3CLAS | AL7: 189.387 | AM7: =AL7*0.4693 -> 88.8793191 | AN7: =AL7*0.4172 -> 79.0122564 | AO7: =AL7*0.3755 -> 71.1148185 | AP7: =AL7*0.3414 -> 64.6567218 | AQ7: =AL7*0.3129 -> 59.2591923 | AR7: =AL7*0.2888 -> 54.6949656 | AS7: 11 | AU7: 844.085 | AV7: 396.1290905 | AW7: 352.152262 | AX7: 316.9539175 | AY7: 288.170619 | AZ7: 264.1141965 | BA7: 243.771748 | BB7: 96 | BC7: 844.085 | BD7: -0.005636053697
A8: BDLB12KA | B8: B12KA | C8: B12KA | D8: B12 | E8: B12 | F8: BDLBU12PB | H8: 172.513 | I8: 80.9603509 | J8: 71.9724236 | K8: 64.7786315 | L8: 58.8959382 | M8: 53.9793177 | N8: 49.8217544 | O8: 45 | Q8: BDLB12KAN | S8: 194.172 | T8: 91.1249196 | U8: 81.0085584 | V8: 72.911586 | W8: 66.2903208 | X8: 60.7564188 | Y8: 56.0768736 | Z8: 12 | AK8: BDLB1CLAS | AL8: 105.413 | AM8: 49.4703209 | AN8: 43.9783036 | AO8: 39.5825815 | AP8: 35.9879982 | AQ8: 32.9837277 | AR8: 30.4432744 | AS8: 6 | AU8: 472.098 | AV8: 221.5555914 | AW8: 196.9592856 | AX8: 177.272799 | AY8: 161.1742572 | AZ8: 147.7194642 | BA8: 136.3419024 | BB8: 63 | BC8: 472.098 | BD8: 0.0003707649691
A9: BDLBFD12KA | B9: BFD12KA | C9: BFD12KA | D9: BFD12 | E9: BFD12 | F9: BDLBU12PB | H9: 172.513 | I9: 80.9603509 | J9: 71.9724236 | K9: 64.7786315 | L9: 58.8959382 | M9: 53.9793177 | N9: 49.8217544 | O9: 45 | Q9: BDLW1230KAN | S9: 142.12 | T9: 66.696916 | U9: 59.292464 | V9: 53.36606 | W9: 48.519768 | X9: 44.469348 | Y9: 41.044256 | Z9: 6 | AK9: BDLW1CLAS | AL9: 16.643 | AM9: 7.8105599 | AN9: 6.9434596 | AO9: 6.2494465 | AP9: 5.6819202 | AQ9: 5.2075947 | AR9: 4.8064984 | AS9: 1 | AU9: 331.276 | AV9: 155.4678268 | AW9: 138.2083472 | AX9: 124.394138 | AY9: 113.0976264 | AZ9: 103.6562604 | BA9: 95.6725088 | BB9: 52 | BC9: 331.276 | BD9: 0.005088429576
A10: BDLDB12KA | B10: DB12KA | C10: DB12KA | D10: DB12 | E10: DB12 | F10: BDLBU12PB | H10: 172.513 | I10: 80.9603509 | J10: 71.9724236 | K10: 64.7786315 | L10: 58.8959382 | M10: 53.9793177 | N10: 49.8217544 | O10: 45 | Q10: BDLDB12KAN | S10: 351.186 | T10: 164.8115898 | U10: 146.5147992 | V10: 131.870343 | W10: 119.8949004 | X10: 109.8860994 | Y10: 101.4225168 | Z10: 28 | AK10: BDLB4CLAS | AL10: 355.102 | AM10: 166.6493686 | AN10: 148.1485544 | AO10: 133.340801 | AP10: 121.2318228 | AQ10: 111.1114158 | AR10: 102.5534576 | AS10: 6 | AU10: 878.801 | AV10: 412.4213093 | AW10: 366.6357772 | AX10: 329.9897755 | AY10: 300.0226614 | AZ10: 274.9768329 | BA10: 253.7977288 | BB10: 79 | BC10: 878.801 | BD10: -0.005405923716
A11: BDLVB12KA | B11: VB12KA | C11: VB12KA | D11: VB12 | E11: VB12 | F11: BDLVB12PB | H11: 151.415 | I11: 71.0590595 | J11: 63.170338 | K11: 56.8563325 | L11: 51.693081 | M11: 47.3777535 | N11: 43.728652 | O11: 40 | Q11: BDLVB12KAN | S11: 184.976 | T11: 86.8092368 | U11: 77.1719872 | V11: 69.458488 | W11: 63.1508064 | X11: 57.8789904 | Y11: 53.4210688 | Z11: 11 | AK11: BDLV1CLAS | AL11: 103.015 | AM11: 48.3449395 | AN11: 42.977858 | AO11: 38.6821325 | AP11: 35.169321 | AQ11: 32.2333935 | AR11: 29.750732 | AS11: 6 | AU11: 439.406 | AV11: 206.2132358 | AW11: 183.3201832 | AX11: 164.996953 | AY11: 150.0132084 | AZ11: 137.4901374 | BA11: 126.9004528 | BB11: 57 | BC11: 439.406 | BD11: -0.0008992115917
A12: BDLVBD12KA | B12: VBD12KA | C12: VBD12KA | D12: VBD12 | E12: VBD12 | F12: BDLVBD12PB | H12: 139.876 | I12: 65.6438068 | J12: 58.3562672 | K12: 52.523438 | L12: 47.7536664 | M12: 43.7672004 | N12: 40.3961888 | O12: 35 | Q12: BDLVBD12KAN | S12: 321.123 | T12: 150.7030239 | U12: 133.9725156 | V12: 120.5816865 | W12: 109.6313922 | X12: 100.4793867 | Y12: 92.7403224 | Z12: 25 | AK12: BDLV2CLAS | AL12: 259.116 | AM12: 121.6031388 | AN12: 108.1031952 | AO12: 97.298058 | AP12: 88.4622024 | AQ12: 81.0773964 | AR12: 74.8327008 | AS12: 16 | AU12: 720.115 | AV12: 337.9499695 | AW12: 300.431978 | AX12: 270.4031825 | AY12: 245.847261 | AZ12: 225.3239835 | BA12: 207.969212 | BB12: 76 | BC12: 720.115 | BD12: -0.005870445344
A13: BDLW3012KA | B13: W3012KA | C13: W3012KA | D13: W3012 | E13: W3012 | F13: BDLW3012PB | H13: 104.544 | I13: 49.0624992 | J13: 43.6157568 | K13: 39.256272 | L13: 35.6913216 | M13: 32.7118176 | N13: 30.1923072 | O13: 25 | Q13: BDLW3012KAN | S13: 167.585 | T13: 78.6476405 | U13: 69.916462 | V13: 62.9281675 | W13: 57.213519 | X13: 52.4373465 | Y13: 48.398548 | Z13: 6 | AK13: BDLW2CLAS | AL13: 33.286 | AM13: 15.6211198 | AN13: 13.8869192 | AO13: 12.498893 | AP13: 11.3638404 | AQ13: 10.4151894 | AR13: 9.6129968 | AS13: 1 | AU13: 305.415 | AV13: 143.3312595 | AW13: 127.419138 | AX13: 114.6833325 | AY13: 104.268681 | AZ13: 95.5643535 | BA13: 88.203852 | BB13: 32 | BC13: 305.415 | BD13: 0.008832303431
A14: BDLW3312KA | B14: W3312KA | C14: W3312KA | D14: W3312 | E14: W3312 | F14: BDLW3312PB | H14: 108.229 | I14: 50.7918697 | J14: 45.1531388 | K14: 40.6399895 | L14: 36.9493806 | M14: 33.8648541 | N14: 31.2565352 | O14: 25 | Q14: BDLW3312KAN | S14: 181.005 | T14: 84.9456465 | U14: 75.515286 | V14: 67.9673775 | W14: 61.795107 | X14: 56.6364645 | Y14: 52.274244 | Z14: 8 | AK14: BDLW2CLAS | AL14: 33.286 | AM14: 15.6211198 | AN14: 13.8869192 | AO14: 12.498893 | AP14: 11.3638404 | AQ14: 10.4151894 | AR14: 9.6129968 | AS14: 1 | AU14: 322.52 | AV14: 151.358636 | AW14: 134.555344 | AX14: 121.10626 | AY14: 110.108328 | AZ14: 100.916508 | BA14: 93.143776 | BB14: 34 | BC14: 322.52 | BD14: 0.00588109951
A15: BDLW3612KA | B15: W3612KA | C15: W3612KA | D15: W3612 | E15: W3612 | F15: BDLW3612PB | H15: 114.268 | I15: 53.6259724 | J15: 47.6726096 | K15: 42.907634 | L15: 39.0110952 | M15: 35.7544572 | N15: 33.0005984 | O15: 25 | Q15: BDLW3612KAN | S15: 194.667 | T15: 91.3572231 | U15: 81.2150724 | V15: 73.0974585 | W15: 66.4593138 | X15: 60.9113043 | Y15: 56.2198296 | Z15: 8 | AK15: BDLW2CLAS | AL15: 33.286 | AM15: 15.6211198 | AN15: 13.8869192 | AO15: 12.498893 | AP15: 11.3638404 | AQ15: 10.4151894 | AR15: 9.6129968 | AS15: 1 | AU15: 342.221 | AV15: 160.6043153 | AW15: 142.7746012 | AX15: 128.5039855 | AY15: 116.8342494 | AZ15: 107.0809509 | BA15: 98.8334248 | BB15: 34 | BC15: 342.221 | BD15: 0.006228425314
A16: BDLB15KA | B16: B15KA | C16: B15KA | D16: B15 | E16: B15 | F16: BDLBU15PB | H16: 186.571 | I16: 87.5577703 | J16: 77.8374212 | K16: 70.0574105 | L16: 63.6953394 | M16: 58.3780659 | N16: 53.8817048 | O16: 50 | Q16: BDLB15KAN | S16: 220.132 | T16: 103.3079476 | U16: 91.8390704 | V16: 82.659566 | W16: 75.1530648 | X16: 68.8793028 | Y16: 63.5741216 | Z16: 13 | AK16: BDLB1CLAS | AL16: 105.413 | AM16: 49.4703209 | AN16: 43.9783036 | AO16: 39.5825815 | AP16: 35.9879982 | AQ16: 32.9837277 | AR16: 30.4432744 | AS16: 6 | AU16: 512.116 | AV16: 240.3360388 | AW16: 213.6547952 | AX16: 192.299558 | AY16: 174.8364024 | AZ16: 160.2410964 | BA16: 147.8991008 | BB16: 69 | BC16: 512.116 | BD16: -0.007867036011
A17: BDLBFD15KA | B17: BFD15KA | C17: BFD15KA | D17: BFD15 | E17: BFD15 | F17: BDLBU15PB | H17: 186.571 | I17: 87.5577703 | J17: 77.8374212 | K17: 70.0574105 | L17: 63.6953394 | M17: 58.3780659 | N17: 53.8817048 | O17: 50 | Q17: BDLW1530KAN | S17: 164.846 | T17: 77.3622278 | U17: 68.7737512 | V17: 61.899673 | W17: 56.2784244 | X17: 51.5803134 | Y17: 47.6075248 | Z17: 8 | AK17: BDLW1CLAS | AL17: 16.643 | AM17: 7.8105599 | AN17: 6.9434596 | AO17: 6.2494465 | AP17: 5.6819202 | AQ17: 5.2075947 | AR17: 4.8064984 | AS17: 1 | AU17: 368.06 | AV17: 172.730558 | AW17: 153.554632 | AX17: 138.20653 | AY17: 125.655684 | AZ17: 115.165974 | BA17: 106.295728 | BB17: 59 | BC17: 368.06 | BD17: -0.006861282762
A18: BDLDB15KA | B18: DB15KA | C18: DB15KA | D18: DB15 | E18: DB15 | F18: BDLBU15PB | H18: 186.571 | I18: 87.5577703 | J18: 77.8374212 | K18: 70.0574105 | L18: 63.6953394 | M18: 58.3780659 | N18: 53.8817048 | O18: 50 | Q18: BDLDB15KAN | S18: 393.305 | T18: 184.5780365 | U18: 164.086846 | V18: 147.6860275 | W18: 134.274327 | X18: 123.0651345 | Y18: 113.586484 | Z18: 34 | AK18: BDLB4CLAS | AL18: 355.102 | AM18: 166.6493686 | AN18: 148.1485544 | AO18: 133.340801 | AP18: 121.2318228 | AQ18: 111.1114158 | AR18: 102.5534576 | AS18: 6 | AU18: 934.978 | AV18: 438.7851754 | AW18: 390.0728216 | AX18: 351.084239 | AY18: 319.2014892 | AZ18: 292.5546162 | BA18: 270.0216464 | BB18: 90 | BC18: 934.978 | BD18: -0.00508416791
A19: BDLVB15KA | B19: VB15KA | C19: VB15KA | D19: VB15 | E19: VB15 | F19: BDLVB15PB | H19: 160.908 | I19: 75.5141244 | J19: 67.1308176 | K19: 60.420954 | L19: 54.9339912 | M19: 50.3481132 | N19: 46.4702304 | O19: 45 | Q19: BDLVB15KAN | S19: 211.431 | T19: 99.2245683 | U19: 88.2090132 | V19: 79.3923405 | W19: 72.1825434 | X19: 66.1567599 | Y19: 61.0612728 | Z19: 13 | AK19: BDLV1CLAS | AL19: 103.015 | AM19: 48.3449395 | AN19: 42.977858 | AO19: 38.6821325 | AP19: 35.169321 | AQ19: 32.2333935 | AR19: 29.750732 | AS19: 6 | AU19: 475.354 | AV19: 223.0836322 | AW19: 198.3176888 | AX19: 178.495427 | AY19: 162.2858556 | AZ19: 148.7382666 | BA19: 137.2822352 | BB19: 64 | BC19: 475.354 | BD19: -0.005748987854
A20: BDLVBD15KA | B20: VBD15KA | C20: VBD15KA | D20: VBD15 | E20: VBD15 | F20: BDLVBD15PB | H20: 147.257 | I20: 69.1077101 | J20: 61.4356204 | K20: 55.2950035 | L20: 50.2735398 | M20: 46.0767153 | N20: 42.5278216 | O20: 40 | Q20: BDLVBD15KAN | S20: 364.364 | T20: 170.9960252 | U20: 152.0126608 | V20: 136.818682 | W20: 124.3938696 | X20: 114.0094956 | Y20: 105.2283232 | Z20: 32 | AK20: BDLV2CLAS | AL20: 259.116 | AM20: 121.6031388 | AN20: 108.1031952 | AO20: 97.298058 | AP20: 88.4622024 | AQ20: 81.0773964 | AR20: 74.8327008 | AS20: 16 | AU20: 770.737 | AV20: 361.7068741 | AW20: 321.5514764 | AX20: 289.4117435 | AY20: 263.1296118 | AZ20: 241.1636073 | BA20: 222.5888456 | BB20: 88 | BC20: 770.737 | BD20: 0.0009183890903
A21: BDLW301515KA | B21: W301515KA | C21: W301515KA | D21: W301515 | E21: W301515 | F21: BDLW301515PB | H21: 123.519 | I21: 57.9674667 | J21: 51.5321268 | K21: 46.3813845 | L21: 42.1693866 | M21: 38.6490951 | N21: 35.6722872 | O21: 30 | Q21: BDLW3015KAN | S21: 174.163 | T21: 81.7346959 | U21: 72.6608036 | V21: 65.3982065 | W21: 59.4592482 | X21: 54.4956027 | Y21: 50.2982744 | Z21: 8 | AK21: BDLW2CLAS | AL21: 33.286 | AM21: 15.6211198 | AN21: 13.8869192 | AO21: 12.498893 | AP21: 11.3638404 | AQ21: 10.4151894 | AR21: 9.6129968 | AS21: 1 | AU21: 330.968 | AV21: 155.3232824 | AW21: 138.0798496 | AX21: 124.278484 | AY21: 112.9924752 | AZ21: 103.5598872 | BA21: 95.5835584 | BB21: 39 | BC21: 330.968 | BD21: -0.006426592798
A22: BDLW3015KA | B22: W3015KA | C22: W3015KA | D22: W3015 | E22: W3015 | F22: BDLW3015PB | H22: 111.925 | I22: 52.5264025 | J22: 46.69511 | K22: 42.0278375 | L22: 38.211195 | M22: 35.0213325 | N22: 32.32394 | O22: 25 | Q22: BDLW3015KAN | S22: 174.163 | T22: 81.7346959 | U22: 72.6608036 | V22: 65.3982065 | W22: 59.4592482 | X22: 54.4956027 | Y22: 50.2982744 | Z22: 8 | AK22: BDLW2CLAS | AL22: 33.286 | AM22: 15.6211198 | AN22: 13.8869192 | AO22: 12.498893 | AP22: 11.3638404 | AQ22: 10.4151894 | AR22: 9.6129968 | AS22: 1 | AU22: 319.374 | AV22: 149.8822182 | AW22: 133.2428328 | AX22: 119.924937 | AY22: 109.0342836 | AZ22: 99.9321246 | BA22: 92.2352112 | BB22: 34 | BC22: 319.374 | BD22: 0.001197528234
A23: BDLW301815KA | B23: W301815KA | C23: W301815KA | D23: W301815 | E23: W301815 | F23: BDLW301815PB | H23: 130.911 | I23: 61.4365323 | J23: 54.6160692 | K23: 49.1570805 | L23: 44.6930154 | M23: 40.9620519 | N23: 37.8070968 | O23: 30 | Q23: BDLW3018KAN | S23: 204.974 | T23: 96.1942982 | U23: 85.5151528 | V23: 76.967737 | W23: 69.9781236 | X23: 64.1363646 | Y23: 59.1964912 | Z23: 10 | AK23: BDLW2CLAS | AL23: 33.286 | AM23: 15.6211198 | AN23: 13.8869192 | AO23: 12.498893 | AP23: 11.3638404 | AQ23: 10.4151894 | AR23: 9.6129968 | AS23: 1 | AU23: 369.171 | AV23: 173.2519503 | AW23: 154.0181412 | AX23: 138.6237105 | AY23: 126.0349794 | AZ23: 115.5136059 | BA23: 106.6165848 | BB23: 41 | BC23: 369.171 | BD23: 0.003777967185
A24: BDLW302115KA | B24: W302115KA | C24: W302115KA | D24: W302115 | E24: W302115 | F24: BDLW302115PB | H24: 166.243 | I24: 78.0178399 | J24: 69.3565796 | K24: 62.4242465 | L24: 56.7553602 | M24: 52.0174347 | N24: 48.0109784 | O24: 40 | Q24: BDLW3021KAN | S24: 206.712 | T24: 97.0099416 | U24: 86.2402464 | V24: 77.620356 | W24: 70.5714768 | X24: 64.6801848 | Y24: 59.6984256 | Z24: 11 | AK24: BDLW2CLAS | AL24: 33.286 | AM24: 15.6211198 | AN24: 13.8869192 | AO24: 12.498893 | AP24: 11.3638404 | AQ24: 10.4151894 | AR24: 9.6129968 | AS24: 1 | AU24: 406.241 | AV24: 190.6489013 | AW24: 169.4837452 | AX24: 152.5434955 | AY24: 138.6906774 | AZ24: 127.1128089 | BA24: 117.3224008 | BB24: 52 | BC24: 406.241 | BD24: 0.0003899424675
A25: BDLW302415KA | B25: W302415KA | C25: W302415KA | D25: W302415 | E25: W302415 | F25: BDLW302415PB | H25: 173.624 | I25: 81.4817432 | J25: 72.4359328 | K25: 65.195812 | L25: 59.2752336 | M25: 54.3269496 | N25: 50.1426112 | O25: 45 | Q25: BDLW3024KAN | S25: 238.271 | T25: 111.8205803 | U25: 99.4066612 | V25: 89.4707605 | W25: 81.3457194 | X25: 74.5549959 | Y25: 68.8126648 | Z25: 12 | AK25: BDLW2CLAS | AL25: 33.286 | AM25: 15.6211198 | AN25: 13.8869192 | AO25: 12.498893 | AP25: 11.3638404 | AQ25: 10.4151894 | AR25: 9.6129968 | AS25: 1 | AU25: 445.181 | AV25: 208.9234433 | AW25: 185.7295132 | AX25: 167.1654655 | AY25: 151.9847934 | AZ25: 139.2971349 | BA25: 128.5682728 | BB25: 58 | BC25: 445.181 | BD25: 0.002989558918
A26: BDLW3315KA | B26: W3315KA | C26: W3315KA | D26: W3315 | E26: W3315 | F26: BDLW3315PB | H26: 117.315 | I26: 55.0559295 | J26: 48.943818 | K26: 44.0517825 | L26: 40.051341 | M26: 36.7078635 | N26: 33.880572 | O26: 25 | Q26: BDLW3315KAN | S26: 198.143 | T26: 92.9885099 | U26: 82.6652596 | V26: 74.4026965 | W26: 67.6460202 | X26: 61.9989447 | Y26: 57.2236984 | Z26: 10 | AK26: BDLW2CLAS | AL26: 33.286 | AM26: 15.6211198 | AN26: 13.8869192 | AO26: 12.498893 | AP26: 11.3638404 | AQ26: 10.4151894 | AR26: 9.6129968 | AS26: 1 | AU26: 348.744 | AV26: 163.6655592 | AW26: 145.4959968 | AX26: 130.953372 | AY26: 119.0612016 | AZ26: 109.1219976 | BA26: 100.7172672 | BB26: 36 | BC26: 348.744 | BD26: 0.003988919668
A27: BDLW3615KA | B27: W3615KA | C27: W3615KA | D27: W3615 | E27: W3615 | F27: BDLW3615PB | H27: 121 | I27: 56.7853 | J27: 50.4812 | K27: 45.4355 | L27: 41.3094 | M27: 37.8609 | N27: 34.9448 | O27: 19.8 | Q27: BDLW3615KAN | S27: 210.694 | T27: 98.8786942 | U27: 87.9015368 | V27: 79.115597 | W27: 71.9309316 | X27: 65.9261526 | Y27: 60.8484272 | Z27: 9 | AK27: BDLW2CLAS | AL27: 33.286 | AM27: 15.6211198 | AN27: 13.8869192 | AO27: 12.498893 | AP27: 11.3638404 | AQ27: 10.4151894 | AR27: 9.6129968 | AS27: 1 | AU27: 364.98 | AV27: 171.285114 | AW27: 152.269656 | AX27: 137.04999 | AY27: 124.604172 | AZ27: 114.202242 | BA27: 105.406224 | BB27: 29.8 | BC27: 364.98 | BD27: 0.001576816535
A28: BDLW3915KA | B28: W3915KA | C28: W3915KA | D28: W3915 | E28: W3915 | F28: BDLW3915PB | H28: 124.696 | I28: 58.5198328 | J28: 52.0231712 | K28: 46.823348 | L28: 42.5712144 | M28: 39.0173784 | N28: 36.0122048 | O28: 30 | Q28: BDLW3915KAN | S28: 227.337 | T28: 106.6892541 | U28: 94.8449964 | V28: 85.3650435 | W28: 77.6128518 | X28: 71.1337473 | Y28: 65.6549256 | Z28: 10 | AK28: BDLW2CLAS | AL28: 33.286 | AM28: 15.6211198 | AN28: 13.8869192 | AO28: 12.498893 | AP28: 11.3638404 | AQ28: 10.4151894 | AR28: 9.6129968 | AS28: 1 | AU28: 385.319 | AV28: 180.8302067 | AW28: 160.7550868 | AX28: 144.6872845 | AY28: 131.5479066 | AZ28: 120.5663151 | BA28: 111.2801272 | BB28: 41 | BC28: 385.319 | BD28: 0.002337523972
A29: BDLWDC273615KA | B29: WDC273615KA | C29: WDC273615KA | D29: WDC273615 | E29: WDC273615 | F29: BDLWDC2736PB | H29: 339.922 | I29: 159.5253946 | J29: 141.8154584 | K29: 127.640711 | L29: 116.0493708 | M29: 106.3615938 | N29: 98.1694736 | O29: 100 | Q29: BDLWDC2436KAN | S29: 235.411 | T29: 110.4783823 | U29: 98.2134692 | V29: 88.3968305 | W29: 80.3693154 | X29: 73.6601019 | Y29: 67.9866968 | Z29: 10 | AK29: BDLW1CLAS | AL29: 16.643 | AM29: 7.8105599 | AN29: 6.9434596 | AO29: 6.2494465 | AP29: 5.6819202 | AQ29: 5.2075947 | AR29: 4.8064984 | AS29: 1 | AU29: 591.976 | AV29: 277.8143368 | AW29: 246.9723872 | AX29: 222.286988 | AY29: 202.1006064 | AZ29: 185.2292904 | BA29: 170.9626688 | BB29: 111 | BC29: 591.976 | BD29: -0.003221819731
A30: BDLWDC274215KA | B30: WDC274215KA | C30: WDC274215KA | D30: WDC274215 | E30: WDC274215 | F30: BDLWDC2742PB | H30: 390.962 | I30: 183.4784666 | J30: 163.1093464 | K30: 146.806231 | L30: 133.4744268 | M30: 122.3320098 | N30: 112.9098256 | O30: 120 | Q30: BDLWDC2442KAN | S30: 259.391 | T30: 121.7321963 | U30: 108.2179252 | V30: 97.4013205 | W30: 88.5560874 | X30: 81.1634439 | Y30: 74.9121208 | Z30: 12 | AK30: BDLW1CLAS | AL30: 16.643 | AM30: 7.8105599 | AN30: 6.9434596 | AO30: 6.2494465 | AP30: 5.6819202 | AQ30: 5.2075947 | AR30: 4.8064984 | AS30: 1 | AU30: 666.996 | AV30: 313.0212228 | AW30: 278.2707312 | AX30: 250.456998 | AY30: 227.7124344 | AZ30: 208.7030484 | BA30: 192.6284448 | BB30: 133 | BC30: 666.996 | BD30: 0.001593863201
A31: BDLB18KA | B31: B18KA | C31: B18KA | D31: B18 | E31: B18 | F31: BDLBU18PB | H31: 195.888 | I31: 91.9302384 | J31: 81.7244736 | K31: 73.555944 | L31: 66.8761632 | M31: 61.2933552 | N31: 56.5724544 | O31: 55 | Q31: BDLB18KAN | S31: 241.494 | T31: 113.3331342 | U31: 100.7512968 | V31: 90.680997 | W31: 82.4460516 | X31: 75.5634726 | Y31: 69.7434672 | Z31: 16 | AK31: BDLB1CLAS | AL31: 105.413 | AM31: 49.4703209 | AN31: 43.9783036 | AO31: 39.5825815 | AP31: 35.9879982 | AQ31: 32.9837277 | AR31: 30.4432744 | AS31: 6 | AU31: 542.795 | AV31: 254.7336935 | AW31: 226.454074 | AX31: 203.8195225 | AY31: 185.310213 | AZ31: 169.8405555 | BA31: 156.759196 | BB31: 77 | BC31: 542.795 | BD31: -0.01260387812
A32: BDLBFD18KA | B32: BFD18KA | C32: BFD18KA | D32: BFD18 | E32: BFD18 | F32: BDLBU18PB | H32: 195.888 | I32: 91.9302384 | J32: 81.7244736 | K32: 73.555944 | L32: 66.8761632 | M32: 61.2933552 | N32: 56.5724544 | O32: 55 | Q32: BDLW1830KAN | S32: 186.967 | T32: 87.7436131 | U32: 78.0026324 | V32: 70.2061085 | W32: 63.8305338 | X32: 58.5019743 | Y32: 53.9960696 | Z32: 10 | AK32: BDLW1CLAS | AL32: 16.643 | AM32: 7.8105599 | AN32: 6.9434596 | AO32: 6.2494465 | AP32: 5.6819202 | AQ32: 5.2075947 | AR32: 4.8064984 | AS32: 1 | AU32: 399.498 | AV32: 187.4844114 | AW32: 166.6705656 | AX32: 150.011499 | AY32: 136.3886172 | AZ32: 125.0029242 | BA32: 115.3750224 | BB32: 66 | BC32: 399.498 | BD32: 0.0007969316003
A33: BDLCPU18KA | B33: CPU18KA | C33: CPU18KA | D33: CPU18 | E33: CPU18 | F33: BDLFDU18PB | H33: 150.48 | I33: 70.620264 | J33: 62.780256 | K33: 56.50524 | L33: 51.373872 | M33: 47.085192 | N33: 43.458624 | O33: 40 | Q33: BDLCPU18KAN | S33: 195.283 | T33: 91.6463119 | U33: 81.4720676 | V33: 73.3287665 | W33: 66.6696162 | X33: 61.1040507 | Y33: 56.3977304 | Z33: 18 | AK33: BDLW1CLAS | AL33: 16.643 | AM33: 7.8105599 | AN33: 6.9434596 | AO33: 6.2494465 | AP33: 5.6819202 | AQ33: 5.2075947 | AR33: 4.8064984 | AS33: 1 | AU33: 362.406 | AV33: 170.0771358 | AW33: 151.1957832 | AX33: 136.083453 | AY33: 123.7254084 | AZ33: 113.3968374 | BA33: 104.6628528 | BB33: 59 | BC33: 362.406 | BD33: -0.0008992115916
A34: BDLDB18KA | B34: DB18KA | C34: DB18KA | D34: DB18 | E34: DB18 | F34: BDLBU18PB | H34: 195.888 | I34: 91.9302384 | J34: 81.7244736 | K34: 73.555944 | L34: 66.8761632 | M34: 61.2933552 | N34: 56.5724544 | O34: 55 | Q34: BDLDB18KAN | S34: 430.826 | T34: 202.1866418 | U34: 179.7406072 | V34: 161.775163 | W34: 147.0839964 | X34: 134.8054554 | Y34: 124.4225488 | Z34: 37 | AK34: BDLB4CLAS | AL34: 355.102 | AM34: 166.6493686 | AN34: 148.1485544 | AO34: 133.340801 | AP34: 121.2318228 | AQ34: 111.1114158 | AR34: 102.5534576 | AS34: 6 | AU34: 981.816 | AV34: 460.7662488 | AW34: 409.6136352 | AX34: 368.671908 | AY34: 335.1919824 | AZ34: 307.2102264 | BA34: 283.5484608 | BB34: 98 | BC34: 981.816 | BD34: -0.001261453228
A35: BDLFD18KA | B35: FD18KA | C35: FD18KA | D35: FD18 | E35: FD18 | F35: BDLFDU18PB | H35: 150.48 | I35: 70.620264 | J35: 62.780256 | K35: 56.50524 | L35: 51.373872 | M35: 47.085192 | N35: 43.458624 | O35: 40 | Q35: BDLFD18KAN | S35: 359.271 | T35: 168.6058803 | U35: 149.8878612 | V35: 134.9062605 | W35: 122.6551194 | X35: 112.4158959 | Y35: 103.7574648 | Z35: 38 | AK35: none | AL35: 0 | AM35: 0 | AN35: 0 | AO35: 0 | AP35: 0 | AQ35: 0 | AR35: 0 | AS35: 0 | AU35: 509.751 | AV35: 239.2261443 | AW35: 212.6681172 | AX35: 191.4115005 | AY35: 174.0289914 | AZ35: 159.5010879 | BA35: 147.2160888 | BB35: 78 | BC35: 509.751 | BD35: 0.004928617089
A36: BDLVB18KA | B36: VB18KA | C36: VB18KA | D36: VB18 | E36: VB18 | F36: BDLVB18PB | H36: 174.801 | I36: 82.0341093 | J36: 72.9269772 | K36: 65.6377755 | L36: 59.6770614 | M36: 54.6952329 | N36: 50.4825288 | O36: 50 | Q36: BDLVB18KAN | S36: 241.494 | T36: 113.3331342 | U36: 100.7512968 | V36: 90.680997 | W36: 82.4460516 | X36: 75.5634726 | Y36: 69.7434672 | Z36: 16 | AK36: BDLV1CLAS | AL36: 103.015 | AM36: 48.3449395 | AN36: 42.977858 | AO36: 38.6821325 | AP36: 35.169321 | AQ36: 32.2333935 | AR36: 29.750732 | AS36: 6 | AU36: 519.31 | AV36: 243.712183 | AW36: 216.656132 | AX36: 195.000905 | AY36: 177.292434 | AZ36: 162.492099 | BA36: 149.976728 | BB36: 72 | BC36: 519.31 | BD36: -0.001001491583
A37: BDLVBD18KA | B37: VBD18KA | C37: VBD18KA | D37: VBD18 | E37: VBD18 | F37: BDLVBD18PB | H37: 154.638 | I37: 72.5716134 | J37: 64.5149736 | K37: 58.066569 | L37: 52.7934132 | M37: 48.3862302 | N37: 44.6594544 | O37: 40 | Q37: BDLVBD18KAN | S37: 407.715 | T37: 191.3406495 | U37: 170.098698 | V37: 153.0969825 | W37: 139.193901 | X37: 127.5740235 | Y37: 117.748092 | Z37: 33 | AK37: BDLV2CLAS | AL37: 259.116 | AM37: 121.6031388 | AN37: 108.1031952 | AO37: 97.298058 | AP37: 88.4622024 | AQ37: 81.0773964 | AR37: 74.8327008 | AS37: 16 | AU37: 821.469 | AV37: 385.5154017 | AW37: 342.7168668 | AX37: 308.4616095 | AY37: 280.4495166 | AZ37: 257.0376501 | BA37: 237.2402472 | BB37: 89 | BC37: 821.469 | BD37: -0.005226933731
A38: BDLW3018KA | B38: W3018KA | C38: W3018KA | D38: W3018 | E38: W3018 | F38: BDLW3018PB | H38: 127.919 | I38: 60.0323867 | J38: 53.3678068 | K38: 48.0335845 | L38: 43.6715466 | M38: 40.0258551 | N38: 36.9430072 | O38: 30 | Q38: BDLW3018KAN | S38: 204.974 | T38: 96.1942982 | U38: 85.5151528 | V38: 76.967737 | W38: 69.9781236 | X38: 64.1363646 | Y38: 59.1964912 | Z38: 10 | AK38: BDLW2CLAS | AL38: 33.286 | AM38: 15.6211198 | AN38: 13.8869192 | AO38: 12.498893 | AP38: 11.3638404 | AQ38: 10.4151894 | AR38: 9.6129968 | AS38: 1 | AU38: 366.179 | AV38: =SUM(I38, T38, AM38) -> 171.8478047 | AW38: =SUM(J38, U38, AN38) -> 152.7698788 | AX38: =SUM(K38, V38, AO38) -> 137.5002145 | AY38: =SUM(L38, W38, AP38) -> 125.0135106 | AZ38: =SUM(M38, X38, AQ38) -> 114.5774091 | BA38: =SUM(N38, Y38, AR38) -> 105.7524952 | BB38: 41 | BC38: 366.179 | BD38: 0.0005902407841
A39: BDLW3318KA | B39: W3318KA | C39: W3318KA | D39: W3318 | E39: W3318 | F39: BDLW3318PB | H39: 124.696 | I39: 58.5198328 | J39: 52.0231712 | K39: 46.823348 | L39: 42.5712144 | M39: 39.0173784 | N39: 36.0122048 | O39: 30 | Q39: BDLW3318KAN | S39: 217.393 | T39: 102.0225349 | U39: 90.6963596 | V39: 81.6310715 | W39: 74.2179702 | X39: 68.0222697 | Y39: 62.7830984 | Z39: 10 | AK39: BDLW2CLAS | AL39: 33.286 | AM39: 15.6211198 | AN39: 13.8869192 | AO39: 12.498893 | AP39: 11.3638404 | AQ39: 10.4151894 | AR39: 9.6129968 | AS39: 1 | AU39: 375.375 | AV39: 176.1634875 | AW39: 156.60645 | AX39: 140.9533125 | AY39: 128.153025 | AZ39: 117.4548375 | BA39: 108.4083 | BB39: 41 | BC39: 375.375 | BD39: -0.002929895589
A40: BDLW3618KA | B40: W3618KA | C40: W3618KA | D40: W3618 | E40: W3618 | F40: BDLW3618PB | H40: 126.049 | I40: 59.1547957 | J40: 52.5876428 | K40: 47.3313995 | L40: 43.0331286 | M40: 39.4407321 | N40: 36.4029512 | O40: 30 | Q40: BDLW3618KAN | S40: 235.906 | T40: 110.7106858 | U40: 98.4199832 | V40: 88.582703 | W40: 80.5383084 | X40: 73.8149874 | Y40: 68.1296528 | Z40: 11 | AK40: BDLW2CLAS | AL40: 33.286 | AM40: 15.6211198 | AN40: 13.8869192 | AO40: 12.498893 | AP40: 11.3638404 | AQ40: 10.4151894 | AR40: 9.6129968 | AS40: 1 | AU40: 395.241 | AV40: 185.4866013 | AW40: 164.8945452 | AX40: 148.4129955 | AY40: 134.9352774 | AZ40: 123.6709089 | BA40: 114.1456008 | BB40: 42 | BC40: 395.241 | BD40: 0.004651608779
A41: BDLW3918KA | B41: W3918KA | C41: W3918KA | D41: W3918 | E41: W3918 | F41: BDLW3918PB | H41: 132.077 | I41: 61.9837361 | J41: 55.1025244 | K41: 49.5949135 | L41: 45.0910878 | M41: 41.3268933 | N41: 38.1438376 | O41: 30 | Q41: BDLW3918KAN | S41: 252.56 | T41: 118.526408 | U41: 105.368032 | V41: 94.83628 | W41: 86.223984 | X41: 79.026024 | Y41: 72.939328 | Z41: 12 | AK41: BDLW2CLAS | AL41: 33.286 | AM41: 15.6211198 | AN41: 13.8869192 | AO41: 12.498893 | AP41: 11.3638404 | AQ41: 10.4151894 | AR41: 9.6129968 | AS41: 1 | AU41: 417.923 | AV41: 196.1312639 | AW41: 174.3574756 | AX41: 156.9300865 | AY41: 142.6789122 | AZ41: 130.7681067 | BA41: 120.6961624 | BB41: 43 | BC41: 417.923 | BD41: 0.004579160452
A42: BDLB21KA | B42: B21KA | C42: B21KA | D42: B21 | E42: B21 | F42: BDLBU21PB | H42: 205.271 | I42: 96.3336803 | J42: 85.6390612 | K42: 77.0792605 | L42: 70.0795194 | M42: 64.2292959 | N42: 59.2822648 | O42: 60 | Q42: BDLB21KAN | S42: 276.155 | T42: 129.5995415 | U42: 115.211866 | V42: 103.6962025 | W42: 94.279317 | X42: 86.4088995 | Y42: 79.753564 | Z42: 17 | AK42: BDLB1CLAS | AL42: 105.413 | AM42: 49.4703209 | AN42: 43.9783036 | AO42: 39.5825815 | AP42: 35.9879982 | AQ42: 32.9837277 | AR42: 30.4432744 | AS42: 6 | AU42: 586.839 | AV42: 275.4035427 | AW42: 244.8292308 | AX42: 220.3580445 | AY42: 200.3468346 | AZ42: 183.6219231 | BA42: 169.4791032 | BB42: 83 | BC42: 586.839 | BD42: -0.004566375453
A43: BDLBFD21KA | B43: BFD21KA | C43: BFD21KA | D43: BFD21 | E43: BFD21 | F43: BDLBU21PB | H43: 205.271 | I43: 96.3336803 | J43: 85.6390612 | K43: 77.0792605 | L43: 70.0795194 | M43: 64.2292959 | N43: 59.2822648 | O43: 60 | Q43: BDLW2130KAN | S43: 205.469 | T43: 96.4266017 | U43: 85.7216668 | V43: 77.1536095 | W43: 70.1471166 | X43: 64.2912501 | Y43: 59.3394472 | Z43: 11 | AK43: BDLW1CLAS | AL43: 16.643 | AM43: 7.8105599 | AN43: 6.9434596 | AO43: 6.2494465 | AP43: 5.6819202 | AQ43: 5.2075947 | AR43: 4.8064984 | AS43: 1 | AU43: 427.383 | AV43: 200.5708419 | AW43: 178.3041876 | AX43: 160.4823165 | AY43: 145.9085562 | AZ43: 133.7281407 | BA43: 123.4282104 | BB43: 72 | BC43: 427.383 | BD43: 0.0002748774771
A44: BDLDB21KA | B44: DB21KA | C44: DB21KA | D44: DB21 | E44: DB21 | F44: BDLBU21PB | H44: 205.271 | I44: 96.3336803 | J44: 85.6390612 | K44: 77.0792605 | L44: 70.0795194 | M44: 64.2292959 | N44: 59.2822648 | O44: 60 | Q44: BDLDB21KAN | S44: 471.449 | T44: 221.2510157 | U44: 196.6885228 | V44: 177.0290995 | W44: 160.9526886 | X44: 147.5163921 | Y44: 136.1544712 | Z44: 40 | AK44: BDLB4CLAS | AL44: 355.102 | AM44: 166.6493686 | AN44: 148.1485544 | AO44: 133.340801 | AP44: 121.2318228 | AQ44: 111.1114158 | AR44: 102.5534576 | AS44: 6 | AU44: 1031.822 | AV44: 484.2340646 | AW44: 430.4761384 | AX44: 387.449161 | AY44: 352.2640308 | AZ44: 322.8571038 | BA44: 297.9901936 | BB44: 106 | BC44: 1031.822 | BD44: 0.005936501172
A45: BDLVBD21KA | B45: VBD21KA | C45: VBD21KA | D45: VBD21 | E45: VBD21 | F45: BDLVBD21PB | H45: 159.269 | I45: 74.7449417 | J45: 66.4470268 | K45: 59.8055095 | L45: 54.3744366 | M45: 49.8352701 | N45: 45.9968872 | O45: 40 | Q45: BDLVBD21KAN | S45: 448.085 | T45: 210.2862905 | U45: 186.941062 | V45: 168.2559175 | W45: 152.976219 | X45: 140.2057965 | Y45: 129.406948 | Z45: 38 | AK45: BDLV2CLAS | AL45: 259.116 | AM45: 121.6031388 | AN45: 108.1031952 | AO45: 97.298058 | AP45: 88.4622024 | AQ45: 81.0773964 | AR45: 74.8327008 | AS45: 16 | AU45: 866.47 | AV45: 406.634371 | AW45: 361.491284 | AX45: 325.359485 | AY45: 295.812858 | AZ45: 271.118463 | BA45: 250.236536 | BB45: 94 | BC45: 866.47 | BD45: -0.007223524398
A46: BDLW3021KA | B46: W3021KA | C46: W3021KA | D46: W3021 | E46: W3021 | F46: BDLW3021PB | H46: 148.72 | I46: 69.794296 | J46: 62.045984 | K46: 55.84436 | L46: 50.773008 | M46: 46.534488 | N46: 42.950336 | O46: 35 | Q46: BDLW3021KAN | S46: 206.712 | T46: 97.0099416 | U46: 86.2402464 | V46: 77.620356 | W46: 70.5714768 | X46: 64.6801848 | Y46: 59.6984256 | Z46: 11 | AK46: BDLW2CLAS | AL46: 33.286 | AM46: 15.6211198 | AN46: 13.8869192 | AO46: 12.498893 | AP46: 11.3638404 | AQ46: 10.4151894 | AR46: 9.6129968 | AS46: 1 | AU46: 388.718 | AV46: 182.4253574 | AW46: 162.1731496 | AX46: 145.963609 | AY46: 132.7083252 | AZ46: 121.6298622 | BA46: 112.2617584 | BB46: 47 | BC46: 388.718 | BD46: -0.001632218197
A47: BDLW3321KA | B47: W3321KA | C47: W3321KA | D47: W3321 | E47: W3321 | F47: BDLW3321PB | H47: 154.693 | I47: 72.5974249 | J47: 64.5379196 | K47: 58.0872215 | L47: 52.8121902 | M47: 48.4034397 | N47: 44.6753384 | O47: 40 | Q47: BDLW3321KAN | S47: 237.028 | T47: 111.2372404 | U47: 98.8880816 | V47: 89.004014 | W47: 80.9213592 | X47: 74.1660612 | Y47: 68.4536864 | Z47: 12 | AK47: BDLW2CLAS | AL47: 33.286 | AM47: 15.6211198 | AN47: 13.8869192 | AO47: 12.498893 | AP47: 11.3638404 | AQ47: 10.4151894 | AR47: 9.6129968 | AS47: 1 | AU47: 425.007 | AV47: 199.4557851 | AW47: 177.3129204 | AX47: 159.5901285 | AY47: 145.0973898 | AZ47: 132.9846903 | BA47: 122.7420216 | BB47: 53 | BC47: 425.007 | BD47: -0.001191135734
A48: BDLW3621KA | B48: W3621KA | C48: W3621KA | D48: W3621 | E48: W3621 | F48: BDLW3621PB | H48: 162.261 | I48: 76.1490873 | J48: 67.6952892 | K48: 60.9290055 | L48: 55.3959054 | M48: 50.7714669 | N48: 46.8609768 | O48: 40 | Q48: BDLW3621KAN | S48: 253.924 | T48: 119.1665332 | U48: 105.9370928 | V48: 95.348462 | W48: 86.6896536 | X48: 79.4528196 | Y48: 73.3332512 | Z48: 11 | AK48: BDLW2CLAS | AL48: 33.286 | AM48: 15.6211198 | AN48: 13.8869192 | AO48: 12.498893 | AP48: 11.3638404 | AQ48: 10.4151894 | AR48: 9.6129968 | AS48: 1 | AU48: 449.471 | AV48: 210.9367403 | AW48: 187.5193012 | AX48: 168.7763605 | AY48: 153.4493994 | AZ48: 140.6394759 | BA48: 129.8072248 | BB48: 52 | BC48: 449.471 | BD48: 0.007826550181
A49: BDLW3921KA | B49: W3921KA | C49: W3921KA | D49: W3921 | E49: W3921 | F49: BDLW3921PB | H49: 168.41 | I49: 79.034813 | J49: 70.260652 | K49: 63.237955 | L49: 57.495174 | M49: 52.695489 | N49: 48.636808 | O49: 45 | Q49: BDLW3921KAN | S49: 276.529 | T49: 129.7750597 | U49: 115.3678988 | V49: 103.8366395 | W49: 94.4070006 | X49: 86.5259241 | Y49: 79.8615752 | Z49: 14 | AK49: BDLW2CLAS | AL49: 33.286 | AM49: 15.6211198 | AN49: 13.8869192 | AO49: 12.498893 | AP49: 11.3638404 | AQ49: 10.4151894 | AR49: 9.6129968 | AS49: 1 | AU49: 478.225 | AV49: 224.4309925 | AW49: 199.51547 | AX49: 179.5734875 | AY49: 163.266015 | AZ49: 149.6366025 | BA49: 138.11138 | BB49: 60 | BC49: 478.225 | BD49: 0.0003728958022
A50: BDLB24KA | B50: B24KA | C50: B24KA | D50: B24 | E50: B24 | F50: BDLBU24PB | H50: 226.369 | I50: 106.2349717 | J50: 94.4411468 | K50: 85.0015595 | L50: 77.2823766 | M50: 70.8308601 | N50: 65.3753672 | O50: 65 | Q50: BDLB24KAN | S50: 302.621 | T50: 142.0200353 | U50: 126.2534812 | V50: 113.6341855 | W50: 103.3148094 | X50: 94.6901109 | Y50: 87.3969448 | Z50: 19 | AK50: BDLB1CLAS | AL50: 105.413 | AM50: 49.4703209 | AN50: 43.9783036 | AO50: 39.5825815 | AP50: 35.9879982 | AQ50: 32.9837277 | AR50: 30.4432744 | AS50: 6 | AU50: 634.403 | AV50: 297.7253279 | AW50: 264.6729316 | AX50: 238.2183265 | AY50: 216.5851842 | AZ50: 198.5046987 | BA50: 183.2155864 | BB50: 90 | BC50: 634.403 | BD50: 0.002959727253
A51: BDLBFD24KA | B51: BFD24KA | C51: BFD24KA | D51: BFD24 | E51: BFD24 | F51: BDLBU24PB | H51: 226.369 | I51: 106.2349717 | J51: 94.4411468 | K51: 85.0015595 | L51: 77.2823766 | M51: 70.8308601 | N51: 65.3753672 | O51: 65 | Q51: BDLW2430KAN | S51: 222.123 | T51: 104.2423239 | U51: 92.6697156 | V51: 83.4071865 | W51: 75.8327922 | X51: 69.5022867 | Y51: 64.1491224 | Z51: 11 | AK51: BDLW1CLAS | AL51: 16.643 | AM51: 7.8105599 | AN51: 6.9434596 | AO51: 6.2494465 | AP51: 5.6819202 | AQ51: 5.2075947 | AR51: 4.8064984 | AS51: 1 | AU51: 465.135 | AV51: 218.2878555 | AW51: 194.054322 | AX51: 174.6581925 | AY51: 158.797089 | AZ51: 145.5407415 | BA51: 134.330988 | BB51: 77 | BC51: 465.135 | BD51: 0.009599403367
A52: BDLDB24KA | B52: DB24KA | C52: DB24KA | D52: DB24 | E52: DB24 | F52: BDLBU24PB | H52: 226.369 | I52: 106.2349717 | J52: 94.4411468 | K52: 85.0015595 | L52: 77.2823766 | M52: 70.8308601 | N52: 65.3753672 | O52: 65 | Q52: BDLDB24KAN | S52: 530.453 | T52: 248.9415929 | U52: 221.3049916 | V52: 199.1851015 | W52: 181.0966542 | X52: 165.9787437 | Y52: 153.1948264 | Z52: 45 | AK52: BDLB4CLAS | AL52: 355.102 | AM52: 166.6493686 | AN52: 148.1485544 | AO52: 133.340801 | AP52: 121.2318228 | AQ52: 111.1114158 | AR52: 102.5534576 | AS52: 6 | AU52: 1111.924 | AV52: 521.8259332 | AW52: 463.8946928 | AX52: 417.527462 | AY52: 379.6108536 | AZ52: 347.9210196 | BA52: 321.1236512 | BB52: 116 | BC52: 1111.924 | BD52: 0.00471340294
A53: BDLPDB24KA | B53: PDB24KA | C53: PDB24KA | D53: PDB24 | E53: PDB24 | F53: BDLBU24PB | H53: 226.369 | I53: 106.2349717 | J53: 94.4411468 | K53: 85.0015595 | L53: 77.2823766 | M53: 70.8308601 | N53: 65.3753672 | O53: 65 | Q53: BDLPDB24KAN | S53: 483.241 | T53: 226.7850013 | U53: 201.6081452 | V53: 181.4569955 | W53: 164.9784774 | X53: 151.2061089 | Y53: 139.5600008 | Z53: 45 | AK53: BDLB5CLAS | AL53: 266.332 | AM53: 124.9896076 | AN53: 111.1137104 | AO53: 100.007666 | AP53: 90.9257448 | AQ53: 83.3352828 | AR53: 76.9166816 | AS53: 25 | AU53: 975.942 | AV53: 458.0095806 | AW53: 407.1630024 | AX53: 366.466221 | AY53: 333.1865988 | AZ53: 305.3722518 | BA53: 281.8520496 | BB53: 135 | BC53: 975.942 | BD53: 0.004998934583
A54: BDLVBD24KA | B54: VBD24KA | C54: VBD24KA | D54: VBD24 | E54: VBD24 | F54: BDLVBD24PB | H54: 166.65 | I54: 78.208845 | J54: 69.52638 | K54: 62.577075 | L54: 56.89431 | M54: 52.144785 | N54: 48.12852 | O54: 45 | Q54: BDLVBD24KAN | S54: 486.475 | T54: 228.3027175 | U54: 202.95737 | V54: 182.6713625 | W54: 166.082565 | X54: 152.2180275 | Y54: 140.49398 | Z54: 44 | AK54: BDLV2CLAS | AL54: 259.116 | AM54: 121.6031388 | AN54: 108.1031952 | AO54: 97.298058 | AP54: 88.4622024 | AQ54: 81.0773964 | AR54: 74.8327008 | AS54: 16 | AU54: 912.241 | AV54: 428.1147013 | AW54: 380.5869452 | AX54: 342.5464955 | AY54: 311.4390774 | AZ54: 285.4402089 | BA54: 263.4552008 | BB54: 105 | BC54: 912.241 | BD54: -0.006002557
A55: BDLVSB24KA | B55: VSB24KA | C55: VSB24KA | D55: VSB24 | E55: VSB24 | F55: BDLVSB24PB | H55: 204.215 | I55: 95.8380995 | J55: 85.198498 | K55: 76.6827325 | L55: 69.719001 | M55: 63.8988735 | N55: 58.977292 | O55: 55 | Q55: BDLVSB24KAN | S55: 255.662 | T55: 119.9821766 | U55: 106.6621864 | V55: 96.001081 | W55: 87.2830068 | X55: 79.9966398 | Y55: 73.8351856 | Z55: 12 | AK55: BDLW2CLAS | AL55: 33.286 | AM55: 15.6211198 | AN55: 13.8869192 | AO55: 12.498893 | AP55: 11.3638404 | AQ55: 10.4151894 | AR55: 9.6129968 | AS55: 1 | AU55: 493.163 | AV55: 231.4413959 | AW55: 205.7476036 | AX55: 185.1827065 | AY55: 168.3658482 | AZ55: 154.3107027 | BA55: 142.4254744 | BB55: 68 | BC55: 493.163 | BD55: 0.00483486043
A56: BDLW301224KA | B56: W301224KA | C56: W301224KA | D56: W301224 | E56: W301224 | F56: BDLW301224PB | H56: 148.665 | I56: 69.7684845 | J56: 62.023038 | K56: 55.8237075 | L56: 50.754231 | M56: 46.5172785 | N56: 42.934452 | O56: 40 | Q56: BDLW3012KAN | S56: 167.585 | T56: 78.6476405 | U56: 69.916462 | V56: 62.9281675 | W56: 57.213519 | X56: 52.4373465 | Y56: 48.398548 | Z56: 6 | AK56: BDLW2CLAS | AL56: 33.286 | AM56: 15.6211198 | AN56: 13.8869192 | AO56: 12.498893 | AP56: 11.3638404 | AQ56: 10.4151894 | AR56: 9.6129968 | AS56: 1 | AU56: 349.536 | AV56: 164.0372448 | AW56: 145.8264192 | AX56: 131.250768 | AY56: 119.3315904 | AZ56: 109.3698144 | BA56: 100.9459968 | BB56: 47 | BC56: 349.536 | BD56: 0.005898146175
A57: BDLW301524KA | B57: W301524KA | C57: W301524KA | D57: W301524 | E57: W301524 | F57: BDLW301524PB | H57: 160.677 | I57: 75.4057161 | J57: 67.0344444 | K57: 60.3342135 | L57: 54.8551278 | M57: 50.2758333 | N57: 46.4035176 | O57: 40 | Q57: BDLW3015KAN | S57: 174.163 | T57: 81.7346959 | U57: 72.6608036 | V57: 65.3982065 | W57: 59.4592482 | X57: 54.4956027 | Y57: 50.2982744 | Z57: 8 | AK57: BDLW2CLAS | AL57: 33.286 | AM57: 15.6211198 | AN57: 13.8869192 | AO57: 12.498893 | AP57: 11.3638404 | AQ57: 10.4151894 | AR57: 9.6129968 | AS57: 1 | AU57: 368.126 | AV57: 172.7615318 | AW57: 153.5821672 | AX57: 138.231313 | AY57: 125.6782164 | AZ57: 115.1866254 | BA57: 106.3147888 | BB57: 49 | BC57: 368.126 | BD57: -0.0001321116557
A58: BDLW302124KA | B58: W302124KA | C58: W302124KA | D58: W302124 | E58: W302124 | F58: BDLW302124PB | H58: 206.8 | I58: 97.05124 | J58: 86.27696 | K58: 77.6534 | L58: 70.60152 | M58: 64.70772 | N58: 59.72384 | O58: 40 | Q58: BDLW3021KAN | S58: 206.712 | T58: 97.0099416 | U58: 86.2402464 | V58: 77.620356 | W58: 70.5714768 | X58: 64.6801848 | Y58: 59.6984256 | Z58: 12 | AK58: BDLW2FULL | AL58: 34.221 | AM58: 16.0599153 | AN58: 14.2770012 | AO58: 12.8499855 | AP58: 11.6830494 | AQ58: 10.7077509 | AR58: 9.8830248 | AS58: 1 | AU58: 447.733 | AV58: 210.1210969 | AW58: 186.7942076 | AX58: 168.1237415 | AY58: 152.8560462 | AZ58: 140.0956557 | BA58: 129.3052904 | BB58: 53 | BC58: 447.733
A59: BDLW3024KA | B59: W3024KA | C59: W3024KA | D59: W3024 | E59: W3024 | F59: BDLW3024PB | H59: 151.481 | I59: 71.0900333 | J59: 63.1978732 | K59: 56.8811155 | L59: 51.7156134 | M59: 47.3984049 | N59: 43.7477128 | O59: 35 | Q59: BDLW3024KAN | S59: 238.271 | T59: 111.8205803 | U59: 99.4066612 | V59: 89.4707605 | W59: 81.3457194 | X59: 74.5549959 | Y59: 68.8126648 | Z59: 12 | AK59: BDLW2CLAS | AL59: 33.286 | AM59: 15.6211198 | AN59: 13.8869192 | AO59: 12.498893 | AP59: 11.3638404 | AQ59: 10.4151894 | AR59: 9.6129968 | AS59: 1 | AU59: 423.038 | AV59: 198.5317334 | AW59: 176.4914536 | AX59: 158.850769 | AY59: 144.4251732 | AZ59: 132.3685902 | BA59: 122.1733744 | BB59: 48 | BC59: 423.038 | BD59: 0.009362880886
A60: BDLW331224KA | B60: W331224KA | C60: W331224KA | D60: W331224 | E60: W331224 | F60: BDLW331224PB | H60: 159.269 | I60: 74.7449417 | J60: 66.4470268 | K60: 59.8055095 | L60: 54.3744366 | M60: 49.8352701 | N60: 45.9968872 | O60: 40 | Q60: BDLW3312KAN | S60: 181.005 | T60: 84.9456465 | U60: 75.515286 | V60: 67.9673775 | W60: 61.795107 | X60: 56.6364645 | Y60: 52.274244 | Z60: 8 | AK60: BDLW2CLAS | AL60: 33.286 | AM60: 15.6211198 | AN60: 13.8869192 | AO60: 12.498893 | AP60: 11.3638404 | AQ60: 10.4151894 | AR60: 9.6129968 | AS60: 1 | AU60: 373.56 | AV60: 175.311708 | AW60: 155.849232 | AX60: 140.27178 | AY60: 127.533384 | AZ60: 116.886924 | BA60: 107.884128 | BB60: 49 | BC60: 373.56 | BD60: 0.006989132751
A61: BDLW331524KA | B61: W331524KA | C61: W331524KA | D61: W331524 | E61: W331524 | F61: BDLW331524PB | H61: 166.65 | I61: 78.208845 | J61: 69.52638 | K61: 62.577075 | L61: 56.89431 | M61: 52.144785 | N61: 48.12852 | O61: 45 | Q61: BDLW3315KAN | S61: 198.143 | T61: 92.9885099 | U61: 82.6652596 | V61: 74.4026965 | W61: 67.6460202 | X61: 61.9989447 | Y61: 57.2236984 | Z61: 10 | AK61: BDLW2CLAS | AL61: 33.286 | AM61: 15.6211198 | AN61: 13.8869192 | AO61: 12.498893 | AP61: 11.3638404 | AQ61: 10.4151894 | AR61: 9.6129968 | AS61: 1 | AU61: 398.079 | AV61: 186.8184747 | AW61: 166.0785588 | AX61: 149.4786645 | AY61: 135.9041706 | AZ61: 124.5589191 | BA61: 114.9652152 | BB61: 56 | BC61: 398.079 | BD61: -4.900916258e-05
A62: BDLW331824KA | B62: W331824KA | C62: W331824KA | D62: W331824 | E62: W331824 | F62: BDLW331824PB | H62: 174.031 | I62: 81.6727483 | J62: 72.6057332 | K62: 65.3486405 | L62: 59.4141834 | M62: 54.4542999 | N62: 50.2601528 | O62: 45 | Q62: BDLW3318KAN | S62: 217.393 | T62: 102.0225349 | U62: 90.6963596 | V62: 81.6310715 | W62: 74.2179702 | X62: 68.0222697 | Y62: 62.7830984 | Z62: 10 | AK62: BDLW2CLAS | AL62: 33.286 | AM62: 15.6211198 | AN62: 13.8869192 | AO62: 12.498893 | AP62: 11.3638404 | AQ62: 10.4151894 | AR62: 9.6129968 | AS62: 1 | AU62: 424.71 | AV62: 199.316403 | AW62: 177.189012 | AX62: 159.478605 | AY62: 144.995994 | AZ62: 132.891759 | BA62: 122.656248 | BB62: 56 | BC62: 424.71 | BD62: -0.006967824419
A63: BDLW332124KA | B63: W332124KA | C63: W332124KA | D63: W332124 | E63: W332124 | F63: BDLW332124PB | H63: 232.573 | I63: 109.1465089 | J63: 97.0294556 | K63: 87.3311615 | L63: 79.4004222 | M63: 72.7720917 | N63: 67.1670824 | O63: 65 | Q63: BDLW3321KAN | S63: 237.028 | T63: 111.2372404 | U63: 98.8880816 | V63: 89.004014 | W63: 80.9213592 | X63: 74.1660612 | Y63: 68.4536864 | Z63: 12 | AK63: BDLW2CLAS | AL63: 33.286 | AM63: 15.6211198 | AN63: 13.8869192 | AO63: 12.498893 | AP63: 11.3638404 | AQ63: 10.4151894 | AR63: 9.6129968 | AS63: 1 | AU63: 502.887 | AV63: 236.0048691 | AW63: 209.8044564 | AX63: 188.8340685 | AY63: 171.6856218 | AZ63: 157.3533423 | BA63: 145.2337656 | BB63: 78 | BC63: 502.887 | BD63: 0.00187726401
A64: BDLW3324KA | B64: W3324KA | C64: W3324KA | D64: W3324 | E64: W3324 | F64: BDLW3324PB | H64: 163.493 | I64: 76.7272649 | J64: 68.2092796 | K64: 61.3916215 | L64: 55.8165102 | M64: 51.1569597 | N64: 47.2167784 | O64: 40 | Q64: BDLW3324KAN | S64: 258.016 | T64: 121.0869088 | U64: 107.6442752 | V64: 96.885008 | W64: 88.0866624 | X64: 80.7332064 | Y64: 74.5150208 | Z64: 13 | AK64: BDLW2CLAS | AL64: 33.286 | AM64: 15.6211198 | AN64: 13.8869192 | AO64: 12.498893 | AP64: 11.3638404 | AQ64: 10.4151894 | AR64: 9.6129968 | AS64: 1 | AU64: 454.795 | AV64: 213.4352935 | AW64: 189.740474 | AX64: 170.7755225 | AY64: 155.267013 | AZ64: 142.3053555 | BA64: 131.344796 | BB64: 54 | BC64: 454.795 | BD64: 0.002311953974
A65: BDLW361224KA | B65: W361224KA | C65: W361224KA | D65: W361224 | E65: W361224 | F65: BDLW361224PB | H65: 165.308 | I65: 77.5790444 | J65: 68.9664976 | K65: 62.073154 | L65: 56.4361512 | M65: 51.7248732 | N65: 47.7409504 | O65: 45 | Q65: BDLW3612KAN | S65: 194.667 | T65: 91.3572231 | U65: 81.2150724 | V65: 73.0974585 | W65: 66.4593138 | X65: 60.9113043 | Y65: 56.2198296 | Z65: 8 | AK65: BDLW2CLAS | AL65: 33.286 | AM65: 15.6211198 | AN65: 13.8869192 | AO65: 12.498893 | AP65: 11.3638404 | AQ65: 10.4151894 | AR65: 9.6129968 | AS65: 1 | AU65: 393.261 | AV65: 184.5573873 | AW65: 164.0684892 | AX65: 147.6695055 | AY65: 134.2593054 | AZ65: 123.0513669 | BA65: 113.5737768 | BB65: 54 | BC65: 393.261 | BD65: 0.007336458555
A66: BDLW361524KA | B66: W361524KA | C66: W361524KA | D66: W361524 | E66: W361524 | F66: BDLW361524PB | H66: 172.634 | I66: 81.0171362 | J66: 72.0229048 | K66: 64.824067 | L66: 58.9372476 | M66: 54.0171786 | N66: 49.8566992 | O66: 45 | Q66: BDLW3615KAN | S66: 210.694 | T66: 98.8786942 | U66: 87.9015368 | V66: 79.115597 | W66: 71.9309316 | X66: 65.9261526 | Y66: 60.8484272 | Z66: 9 | AK66: BDLW2CLAS | AL66: 33.286 | AM66: 15.6211198 | AN66: 13.8869192 | AO66: 12.498893 | AP66: 11.3638404 | AQ66: 10.4151894 | AR66: 9.6129968 | AS66: 1 | AU66: 416.614 | AV66: 195.5169502 | AW66: 173.8113608 | AX66: 156.438557 | AY66: 142.2320196 | AZ66: 130.3585206 | BA66: 120.3181232 | BB66: 55 | BC66: 416.614 | BD66: 0.009976560835
A67: BDLW361824KA | B67: W361824KA | C67: W361824KA | D67: W361824 | E67: W361824 | F67: BDLW361824PB | H67: 184.701 | I67: 86.6801793 | J67: 77.0572572 | K67: 69.3552255 | L67: 63.0569214 | M67: 57.7929429 | N67: 53.3416488 | O67: 50 | Q67: BDLW3618KAN | S67: 235.906 | T67: 110.7106858 | U67: 98.4199832 | V67: 88.582703 | W67: 80.5383084 | X67: 73.8149874 | Y67: 68.1296528 | Z67: 11 | AK67: BDLW2CLAS | AL67: 33.286 | AM67: 15.6211198 | AN67: 13.8869192 | AO67: 12.498893 | AP67: 11.3638404 | AQ67: 10.4151894 | AR67: 9.6129968 | AS67: 1 | AU67: 453.893 | AV67: 213.0119849 | AW67: 189.3641596 | AX67: 170.4368215 | AY67: 154.9590702 | AZ67: 142.0231197 | BA67: 131.0842984 | BB67: 62 | BC67: 453.893 | BD67: 0.0005518857874
A68: BDLW362124KA | B68: W362124KA | C68: W362124KA | D68: W362124 | E68: W362124 | F68: BDLW362124PB | H68: 244.706 | I68: 114.8405258 | J68: 102.0913432 | K68: 91.887103 | L68: 83.5426284 | M68: 76.5685074 | N68: 70.6710928 | O68: 70 | Q68: BDLW3621KAN | S68: 253.924 | T68: 119.1665332 | U68: 105.9370928 | V68: 95.348462 | W68: 86.6896536 | X68: 79.4528196 | Y68: 73.3332512 | Z68: 11 | AK68: BDLW2CLAS | AL68: 33.286 | AM68: 15.6211198 | AN68: 13.8869192 | AO68: 12.498893 | AP68: 11.3638404 | AQ68: 10.4151894 | AR68: 9.6129968 | AS68: 1 | AU68: 531.916 | AV68: 249.6281788 | AW68: 221.9153552 | AX68: 199.734458 | AY68: 181.5961224 | AZ68: 166.4365164 | BA68: 153.6173408 | BB68: 82 | BC68: 531.916 | BD68: 0.005770296186
A69: BDLW362424KA | B69: W362424KA | C69: W362424KA | D69: W362424 | E69: W362424 | F69: BDLW362424PB | H69: 252.087 | I69: 118.3044291 | J69: 105.1706964 | K69: 94.6586685 | L69: 86.0625018 | M69: 78.8780223 | N69: 72.8027256 | O69: 70 | Q69: BDLW3624KAN | S69: 270.446 | T69: 126.9203078 | U69: 112.8300712 | V69: 101.552473 | W69: 92.3302644 | X69: 84.6225534 | Y69: 78.1048048 | Z69: 13 | AK69: BDLW2CLAS | AL69: 33.286 | AM69: 15.6211198 | AN69: 13.8869192 | AO69: 12.498893 | AP69: 11.3638404 | AQ69: 10.4151894 | AR69: 9.6129968 | AS69: 1 | AU69: 555.819 | AV69: 260.8458567 | AW69: 231.8876868 | AX69: 208.7100345 | AY69: 189.7566066 | AZ69: 173.9157651 | BA69: 160.5205272 | BB69: 84 | BC69: 555.819 | BD69: 0.00340294055
A70: BDLW3624KA | B70: W3624KA | C70: W3624KA | D70: W3624 | E70: W3624 | F70: BDLW3624PB | H70: 169.642 | I70: 79.6129906 | J70: 70.7746424 | K70: 63.700571 | L70: 57.9157788 | M70: 53.0809818 | N70: 48.9926096 | O70: 45 | Q70: BDLW3624KAN | S70: 270.446 | T70: 126.9203078 | U70: 112.8300712 | V70: 101.552473 | W70: 92.3302644 | X70: 84.6225534 | Y70: 78.1048048 | Z70: 13 | AK70: BDLW2CLAS | AL70: 33.286 | AM70: 15.6211198 | AN70: 13.8869192 | AO70: 12.498893 | AP70: 11.3638404 | AQ70: 10.4151894 | AR70: 9.6129968 | AS70: 1 | AU70: 473.374 | AV70: =SUM(I70, T70, AM70) -> 222.1544182 | AW70: =SUM(J70, U70, AN70) -> 197.4916328 | AX70: =SUM(K70, V70, AO70) -> 177.751937 | AY70: =SUM(L70, W70, AP70) -> 161.6098836 | AZ70: =SUM(M70, X70, AQ70) -> 148.1187246 | BA70: =SUM(N70, Y70, AR70) -> 136.7104112 | BB70: 59 | BC70: 473.374 | BD70: 0.005459194545
A71: BDLW391524KA | B71: W391524KA | C71: W391524KA | D71: W391524 | E71: W391524 | F71: BDLW391524PB | H71: 183.348 | I71: 86.0452164 | J71: 76.4927856 | K71: 68.847174 | L71: 62.5950072 | M71: 57.3695892 | N71: 52.9509024 | O71: 50 | Q71: BDLW3915KAN | S71: 227.337 | T71: 106.6892541 | U71: 94.8449964 | V71: 85.3650435 | W71: 77.6128518 | X71: 71.1337473 | Y71: 65.6549256 | Z71: 10 | AK71: BDLW2CLAS | AL71: 33.286 | AM71: =AL71*0.4693 -> 15.6211198 | AN71: =AL71*0.4172 -> 13.8869192 | AO71: =AL71*0.3755 -> 12.498893 | AP71: =AL71*0.3414 -> 11.3638404 | AQ71: =AL71*0.3129 -> 10.4151894 | AR71: =AL71*0.2888 -> 9.6129968 | AS71: 1 | AU71: 443.971 | AV71: 208.3555903 | AW71: 185.2247012 | AX71: 166.7111105 | AY71: 151.5716994 | AZ71: 138.9185259 | BA71: 128.2188248 | BB71: 61 | BC71: 443.971 | BD71: -0.00176219902
A72: BDLW391824KA | B72: W391824KA | C72: W391824KA | D72: W391824 | E72: W391824 | F72: BDLW391824PB | H72: 209.308 | I72: 98.2282444 | J72: 87.3232976 | K72: 78.595154 | L72: 71.4577512 | M72: 65.4924732 | N72: 60.4481504 | O72: 60 | Q72: BDLW3918KAN | S72: 252.56 | T72: 118.526408 | U72: 105.368032 | V72: 94.83628 | W72: 86.223984 | X72: 79.026024 | Y72: 72.939328 | Z72: 12 | AK72: BDLW2CLAS | AL72: 33.286 | AM72: 15.6211198 | AN72: 13.8869192 | AO72: 12.498893 | AP72: 11.3638404 | AQ72: 10.4151894 | AR72: 9.6129968 | AS72: 1 | AU72: 495.154 | AV72: 232.3757722 | AW72: 206.5782488 | AX72: 185.930327 | AY72: 169.0455756 | AZ72: 154.9336866 | BA72: 143.0004752 | BB72: 73 | BC72: 495.154 | BD72: 0.003626678031
A73: BDLW392124KA | B73: W392124KA | C73: W392124KA | D73: W392124 | E73: W392124 | F73: BDLW392124PB | H73: 255.486 | I73: 119.8995798 | J73: 106.5887592 | K73: 95.934993 | L73: 87.2229204 | M73: 79.9415694 | N73: 73.7843568 | O73: 75 | Q73: BDLW3921KAN | S73: 276.529 | T73: 129.7750597 | U73: 115.3678988 | V73: 103.8366395 | W73: 94.4070006 | X73: 86.5259241 | Y73: 79.8615752 | Z73: 14 | AK73: BDLW2CLAS | AL73: 33.286 | AM73: 15.6211198 | AN73: 13.8869192 | AO73: 12.498893 | AP73: 11.3638404 | AQ73: 10.4151894 | AR73: 9.6129968 | AS73: 1 | AU73: 565.301 | AV73: 265.2957593 | AW73: 235.8435772 | AX73: 212.2705255 | AY73: 192.9937614 | AZ73: 176.8826829 | BA73: 163.2589288 | BB73: 90 | BC73: 565.301 | BD73: -7.884082686e-05
A74: BDLW392424KA | B74: W392424KA | C74: W392424KA | D74: W392424 | E74: W392424 | F74: BDLW392424PB | H74: 267.553 | I74: 125.5626229 | J74: 111.6231116 | K74: 100.4661515 | L74: 91.3425942 | M74: 83.7173337 | N74: 77.2693064 | O74: 80 | Q74: BDLW3924KAN | S74: 312.686 | T74: 146.7435398 | U74: 130.4525992 | V74: 117.413593 | W74: 106.7510004 | X74: 97.8394494 | Y74: 90.3037168 | Z74: 18 | AK74: BDLW2CLAS | AL74: 33.286 | AM74: 15.6211198 | AN74: 13.8869192 | AO74: 12.498893 | AP74: 11.3638404 | AQ74: 10.4151894 | AR74: 9.6129968 | AS74: 1 | AU74: 613.525 | AV74: 287.9272825 | AW74: 255.96263 | AX74: 230.3786375 | AY74: 209.457435 | AZ74: 191.9719725 | BA74: 177.18602 | BB74: 99 | BC74: 613.525 | BD74: 0.002290645642
A75: BDLW3924KA | B75: W3924KA | C75: W3924KA | D75: W3924 | E75: W3924 | F75: BDLW3924PB | H75: 175.791 | I75: 82.4987163 | J75: 73.3400052 | K75: 66.0095205 | L75: 60.0150474 | M75: 55.0050039 | N75: 50.7684408 | O75: 45 | Q75: BDLW3924KAN | S75: 312.686 | T75: 146.7435398 | U75: 130.4525992 | V75: 117.413593 | W75: 106.7510004 | X75: 97.8394494 | Y75: 90.3037168 | Z75: 18 | AK75: BDLW2CLAS | AL75: 33.286 | AM75: 15.6211198 | AN75: 13.8869192 | AO75: 12.498893 | AP75: 11.3638404 | AQ75: 10.4151894 | AR75: 9.6129968 | AS75: 1 | AU75: 521.763 | AV75: 244.8633759 | AW75: 217.6795236 | AX75: 195.9220065 | AY75: 178.1298882 | AZ75: 163.2596427 | BA75: 150.6851544 | BB75: 64 | BC75: 521.763 | BD75: 0.004408693799
A76: BDLB27KA | B76: B27KA | C76: B27KA | D76: B27 | E76: B27 | F76: BDLBU27PB | H76: 235.796 | I76: 110.6590628 | J76: 98.3740912 | K76: 88.541398 | L76: 80.5007544 | M76: 73.7805684 | N76: 68.0978848 | O76: 65 | Q76: BDLB27KAN | S76: 349.206 | T76: 163.8823758 | U76: 145.6887432 | V76: 131.126853 | W76: 119.2189284 | X76: 109.2665574 | Y76: 100.8506928 | Z76: 24 | AK76: BDLB2CLAS | AL76: 210.837 | AM76: 98.9458041 | AN76: 87.9611964 | AO76: 79.1692935 | AP76: 71.9797518 | AQ76: 65.9708973 | AR76: 60.8897256 | AS76: 13 | AU76: 795.839 | AV76: 373.4872427 | AW76: 332.0240308 | AX76: 298.8375445 | AY76: 271.6994346 | AZ76: 249.0180231 | BA76: 229.8383032 | BB76: 102 | BC76: 795.839 | BD76: 0.001826124014
A77: BDLBFD27KA | B77: BFD27KA | C77: BFD27KA | D77: BFD27 | E77: BFD27 | F77: BDLBU27PB | H77: 235.796 | I77: 110.6590628 | J77: 98.3740912 | K77: 88.541398 | L77: 80.5007544 | M77: 73.7805684 | N77: 68.0978848 | O77: 65 | Q77: BDLW2730KAN | S77: 251.812 | T77: 118.1753716 | U77: 105.0559664 | V77: 94.555406 | W77: 85.9686168 | X77: 78.7919748 | Y77: 72.7233056 | Z77: 13 | AK77: BDLW2CLAS | AL77: 33.286 | AM77: 15.6211198 | AN77: 13.8869192 | AO77: 12.498893 | AP77: 11.3638404 | AQ77: 10.4151894 | AR77: 9.6129968 | AS77: 1 | AU77: 520.894 | AV77: 244.4555542 | AW77: 217.3169768 | AX77: 195.595697 | AY77: 177.8332116 | AZ77: 162.9877326 | BA77: 150.4341872 | BB77: 79 | BC77: 520.894 | BD77: 0.002816961432
A78: BDLVSB27KA | B78: VSB27KA | C78: VSB27KA | D78: VSB27 | E78: VSB27 | F78: BDLVSB27PB | H78: 213.653 | I78: 100.2673529 | J78: 89.1360316 | K78: 80.2267015 | L78: 72.9411342 | M78: 66.8520237 | N78: 61.7029864 | O78: 60 | Q78: BDLVSB27KAN | S78: 274.67 | T78: 128.902631 | U78: 114.592324 | V78: 103.138585 | W78: 93.772338 | X78: 85.944243 | Y78: 79.324696 | Z78: 14 | AK78: BDLW2CLAS | AL78: 33.286 | AM78: 15.6211198 | AN78: 13.8869192 | AO78: 12.498893 | AP78: 11.3638404 | AQ78: 10.4151894 | AR78: 9.6129968 | AS78: 1 | AU78: 521.609 | AV78: 244.7911037 | AW78: 217.6152748 | AX78: 195.8641795 | AY78: 178.0773126 | AZ78: 163.2114561 | BA78: 150.6406792 | BB78: 75 | BC78: 521.609 | BD78: 0.009305348391
A79: BDLB30KA | B79: B30KA | C79: B30KA | D79: B30 | E79: B30 | F79: BDLBU30PB | H79: 245.113 | I79: 115.0315309 | J79: 102.2611436 | K79: 92.0399315 | L79: 83.6815782 | M79: 76.6958577 | N79: 70.7886344 | O79: 70 | Q79: BDLB30KAN | S79: 379.38 | T79: 178.047727 | U79: 158.281508 | V79: 142.460945 | W79: 129.523746 | X79: 118.711131 | Y79: 109.567832 | Z79: 26 | AK79: BDLB2CLAS | AL79: 210.837 | AM79: 98.9458041 | AN79: 87.9611964 | AO79: 79.1692935 | AP79: 71.9797518 | AQ79: 65.9708973 | AR79: 60.8897256 | AS79: 13 | AU79: 835.34 | AV79: 392.025062 | AW79: 348.503848 | AX79: 313.67017 | AY79: 285.185076 | AZ79: 261.377886 | BA79: 241.246192 | BB79: 109 | BC79: 835.34 | BD79: -0.00123588323
A80: BDLBFD30KA | B80: BFD30KA | C80: BFD30KA | D80: BFD30 | E80: BFD30 | F80: BDLBU30PB | H80: 245.113 | I80: 115.0315309 | J80: 102.2611436 | K80: 92.0399315 | L80: 83.6815782 | M80: 76.6958577 | N80: 70.7886344 | O80: 70 | Q80: BDLW3030KAN | S80: 275.286 | T80: 129.1917198 | U80: 114.8493192 | V80: 103.369893 | W80: 93.9826404 | X80: 86.1369894 | Y80: 79.5025968 | Z80: 14 | AK80: BDLW2CLAS | AL80: 33.286 | AM80: 15.6211198 | AN80: 13.8869192 | AO80: 12.498893 | AP80: 11.3638404 | AQ80: 10.4151894 | AR80: 9.6129968 | AS80: 1 | AU80: 553.685 | AV80: 259.8443705 | AW80: 230.997382 | AX80: 207.9087175 | AY80: 189.028059 | AZ80: 173.2480365 | BA80: 159.904228 | BB80: 85 | BC80: 553.685 | BD80: -0.001800554017
A81: BDLPD30KA | B81: PD30KA | C81: PD30KA | D81: PD30 | E81: PD30 | F81: BDLPD30PB | H81: 54.318 | I81: 25.4914374 | J81: 22.6614696 | K81: 20.396409 | L81: 18.5441652 | M81: 16.9961022 | N81: 15.6870384 | O81: 25 | Q81: BDLPD30KAN | S81: 148.082 | T81: 69.4948826 | U81: 61.7798104 | V81: 55.604791 | W81: 50.5551948 | X81: 46.3348578 | Y81: 42.7660816 | Z81: 23 | AK81: none | AL81: 0 | AM81: 0 | AN81: 0 | AO81: 0 | AP81: 0 | AQ81: 0 | AR81: 0 | AS81: 0 | AU81: 202.4 | AV81: 94.98632 | AW81: 84.44128 | AX81: 76.0012 | AY81: 69.09936 | AZ81: 63.33096 | BA81: 58.45312 | BB81: 48 | BC81: 202.4 | BD81: 0.0004261666311
A82: BDLPDB30KA | B82: PDB30KA | C82: PDB30KA | D82: PDB30 | E82: PDB30 | F82: BDLBU30PB | H82: 245.113 | I82: 115.0315309 | J82: 102.2611436 | K82: 92.0399315 | L82: 83.6815782 | M82: 76.6958577 | N82: 70.7886344 | O82: 70 | Q82: BDLPDB30KAN | S82: 571.692 | T82: 268.2950556 | U82: 238.5099024 | V82: 214.670346 | W82: 195.1756488 | X82: 178.8824268 | Y82: 165.1046496 | Z82: 53 | AK82: BDLB5CLAS | AL82: 266.332 | AM82: 124.9896076 | AN82: 111.1137104 | AO82: 100.007666 | AP82: 90.9257448 | AQ82: 83.3352828 | AR82: 76.9166816 | AS82: 25 | AU82: 1083.137 | AV82: 508.3161941 | AW82: 451.8847564 | AX82: 406.7179435 | AY82: 369.7829718 | AZ82: 338.9135673 | BA82: 312.8099656 | BB82: 148 | BC82: 1083.137 | BD82: -0.0007862774345
A83: BDLVSB30KA | B83: VSB30KA | C83: VSB30KA | D83: VSB30 | E83: VSB30 | F83: BDLVSB30PB | H83: 222.97 | I83: 104.639821 | J83: 93.023084 | K83: 83.725235 | L83: 76.121958 | M83: 69.767313 | N83: 64.393736 | O83: 65 | Q83: BDLVSB30KAN | S83: 290.323 | T83: 136.2485839 | U83: 121.1227556 | V83: 109.0162865 | W83: 99.1162722 | X83: 90.8420667 | Y83: 83.8452824 | Z83: 13 | AK83: BDLW2CLAS | AL83: 33.286 | AM83: 15.6211198 | AN83: 13.8869192 | AO83: 12.498893 | AP83: 11.3638404 | AQ83: 10.4151894 | AR83: 9.6129968 | AS83: 1 | AU83: 546.579 | AV83: 256.5095247 | AW83: 228.0327588 | AX83: 205.2404145 | AY83: 186.6020706 | AZ83: 171.0245691 | BA83: 157.8520152 | BB83: 79 | BC83: 546.579 | BD83: 0.009539740038
A84: BDLW0930KA | B84: W0930KA | C84: W0930KA | D84: W0930 | E84: W0930 | F84: BDLW0930PB | H84: 114.378 | I84: 53.6775954 | J84: 47.7185016 | K84: 42.948939 | L84: 39.0486492 | M84: 35.7888762 | N84: 33.0323664 | O84: 25 | Q84: BDLW0930KAN | S84: 124.85 | T84: 58.592105 | U84: 52.08742 | V84: 46.881175 | W84: 42.62379 | X84: 39.065565 | Y84: 36.05668 | Z84: 5 | AK84: BDLW1CLAS | AL84: 16.643 | AM84: 7.8105599 | AN84: 6.9434596 | AO84: 6.2494465 | AP84: 5.6819202 | AQ84: 5.2075947 | AR84: 4.8064984 | AS84: 1 | AU84: 255.871 | AV84: 120.0802603 | AW84: 106.7493812 | AX84: 96.0795605 | AY84: 87.3543594 | AZ84: 80.0620359 | BA84: 73.8955448 | BB84: 31 | BC84: 255.871 | BD84: -0.002401448967
A85: BDLW1230KA | B85: W1230KA | C85: W1230KA | D85: W1230 | E85: W1230 | F85: BDLW1230PB | H85: 126.401 | I85: 59.3199893 | J85: 52.7344972 | K85: 47.4635755 | L85: 43.1533014 | M85: 39.5508729 | N85: 36.5046088 | O85: 25 | Q85: BDLW1230KAN | S85: 142.12 | T85: 66.696916 | U85: 59.292464 | V85: 53.36606 | W85: 48.519768 | X85: 44.469348 | Y85: 41.044256 | Z85: 6 | AK85: BDLW1CLAS | AL85: 16.643 | AM85: 7.8105599 | AN85: 6.9434596 | AO85: 6.2494465 | AP85: 5.6819202 | AQ85: 5.2075947 | AR85: 4.8064984 | AS85: 1 | AU85: 285.164 | AV85: 133.8274652 | AW85: 118.9704208 | AX85: 107.079082 | AY85: 97.3549896 | AZ85: 89.2278156 | BA85: 82.3553632 | BB85: 32 | BC85: 285.164 | BD85: 0.009230769231
A86: BDLW1530KA | B86: W1530KA | C86: W1530KA | D86: W1530 | E86: W1530 | F86: BDLW1530PB | H86: 132.605 | I86: 62.2315265 | J86: 55.322806 | K86: 49.7931775 | L86: 45.271347 | M86: 41.4921045 | N86: 38.296324 | O86: 30 | Q86: BDLW1530KAN | S86: 164.846 | T86: 77.3622278 | U86: 68.7737512 | V86: 61.899673 | W86: 56.2784244 | X86: 51.5803134 | Y86: 47.6075248 | Z86: 8 | AK86: BDLW1CLAS | AL86: 16.643 | AM86: 7.8105599 | AN86: 6.9434596 | AO86: 6.2494465 | AP86: 5.6819202 | AQ86: 5.2075947 | AR86: 4.8064984 | AS86: 1 | AU86: 314.094 | AV86: 147.4043142 | AW86: 131.0400168 | AX86: 117.942297 | AY86: 107.2316916 | AZ86: 98.2800126 | BA86: 90.7103472 | BB86: 39 | BC86: 314.094 | BD86: -0.004427871298
A87: BDLW1830KA | B87: W1830KA | C87: W1830KA | D87: W1830 | E87: W1830 | F87: BDLW1830PB | H87: 144.617 | I87: 67.8687581 | J87: 60.3342124 | K87: 54.3036835 | L87: 49.3722438 | M87: 45.2506593 | N87: 41.7653896 | O87: 35 | Q87: BDLW1830KAN | S87: 186.967 | T87: 87.7436131 | U87: 78.0026324 | V87: 70.2061085 | W87: 63.8305338 | X87: 58.5019743 | Y87: 53.9960696 | Z87: 10 | AK87: BDLW1CLAS | AL87: 16.643 | AM87: 7.8105599 | AN87: 6.9434596 | AO87: 6.2494465 | AP87: 5.6819202 | AQ87: 5.2075947 | AR87: 4.8064984 | AS87: 1 | AU87: 348.227 | AV87: 163.4229311 | AW87: 145.2803044 | AX87: 130.7592385 | AY87: 118.8846978 | AZ87: 108.9602283 | BA87: 100.5679576 | BB87: 46 | BC87: 348.227 | BD87: 0.002772213936
A88: BDLW2130KA | B88: W2130KA | C88: W2130KA | D88: W2130 | E88: W2130 | F88: BDLW2130PB | H88: 152.119 | I88: 71.3894467 | J88: 63.4640468 | K88: 57.1206845 | L88: 51.9334266 | M88: 47.5980351 | N88: 43.9319672 | O88: 35 | Q88: BDLW2130KAN | S88: 205.469 | T88: 96.4266017 | U88: 85.7216668 | V88: 77.1536095 | W88: 70.1471166 | X88: 64.2912501 | Y88: 59.3394472 | Z88: 11 | AK88: BDLW1CLAS | AL88: 16.643 | AM88: 7.8105599 | AN88: 6.9434596 | AO88: 6.2494465 | AP88: 5.6819202 | AQ88: 5.2075947 | AR88: 4.8064984 | AS88: 1 | AU88: 374.231 | AV88: 175.6266083 | AW88: 156.1291732 | AX88: 140.5237405 | AY88: 127.7624634 | AZ88: 117.0968799 | BA88: 108.0779128 | BB88: 47 | BC88: 374.231 | BD88: -0.003083315576
A89: BDLW2430KA | B89: W2430KA | C89: W2430KA | D89: W2430 | E89: W2430 | F89: BDLW2430PB | H89: 164.186 | I89: 77.0524898 | J89: 68.4983992 | K89: 61.651843 | L89: 56.0531004 | M89: 51.3737994 | N89: 47.4169168 | O89: 40 | Q89: BDLW2430KAN | S89: 222.123 | T89: 104.2423239 | U89: 92.6697156 | V89: 83.4071865 | W89: 75.8327922 | X89: 69.5022867 | Y89: 64.1491224 | Z89: 11 | AK89: BDLW1CLAS | AL89: 16.643 | AM89: 7.8105599 | AN89: 6.9434596 | AO89: 6.2494465 | AP89: 5.6819202 | AQ89: 5.2075947 | AR89: 4.8064984 | AS89: 1 | AU89: 402.952 | AV89: 189.1053736 | AW89: 168.1115744 | AX89: 151.308476 | AY89: 137.5678128 | AZ89: 126.0836808 | BA89: 116.3725376 | BB89: 52 | BC89: 402.952 | BD89: -5.113999572e-05
A90: BDLW2730KA | B90: W2730KA | C90: W2730KA | D90: W2730 | E90: W2730 | F90: BDLW2730PB | H90: 177.078 | I90: 83.1027054 | J90: 73.8769416 | K90: 66.492789 | L90: 60.4544292 | M90: 55.4077062 | N90: 51.1401264 | O90: 45 | Q90: BDLW2730KAN | S90: 251.812 | T90: 118.1753716 | U90: 105.0559664 | V90: 94.555406 | W90: 85.9686168 | X90: 78.7919748 | Y90: 72.7233056 | Z90: 13 | AK90: BDLW2CLAS | AL90: 33.286 | AM90: 15.6211198 | AN90: 13.8869192 | AO90: 12.498893 | AP90: 11.3638404 | AQ90: 10.4151894 | AR90: 9.6129968 | AS90: 1 | AU90: 462.176 | AV90: 216.8991968 | AW90: 192.8198272 | AX90: 173.547088 | AY90: 157.7868864 | AZ90: 144.6148704 | BA90: 133.4764288 | BB90: 59 | BC90: 462.176 | BD90: 0.0001875133177
A91: BDLW3030KA | B91: W3030KA | C91: W3030KA | D91: W3030 | E91: W3030 | F91: BDLW3030PB | H91: 189.09 | I91: 88.739937 | J91: 78.888348 | K91: 71.003295 | L91: 64.555326 | M91: 59.166261 | N91: 54.609192 | O91: 50 | Q91: BDLW3030KAN | S91: 275.286 | T91: 129.1917198 | U91: 114.8493192 | V91: 103.369893 | W91: 93.9826404 | X91: 86.1369894 | Y91: 79.5025968 | Z91: 14 | AK91: BDLW2CLAS | AL91: 33.286 | AM91: 15.6211198 | AN91: 13.8869192 | AO91: 12.498893 | AP91: 11.3638404 | AQ91: 10.4151894 | AR91: 9.6129968 | AS91: 1 | AU91: 497.662 | AV91: 233.5527766 | AW91: 207.6245864 | AX91: 186.872081 | AY91: 169.9018068 | AZ91: 155.7184398 | BA91: 143.7247856 | BB91: 65 | BC91: 497.662 | BD91: -0.004888131259
A92: BDLW3330KA | B92: W3330KA | C92: W3330KA | D92: W3330 | E92: W3330 | F92: BDLW3330PB | H92: 195.25 | I92: 91.630825 | J92: 81.4583 | K92: 73.316375 | L92: 66.65835 | M92: 61.093725 | N92: 56.3882 | O92: 50 | Q92: BDLW3330KAN | S92: 298.771 | T92: 140.2132303 | U92: 124.6472612 | V92: 112.1885105 | W92: 102.0004194 | X92: 93.4854459 | Y92: 86.2850648 | Z92: 15 | AK92: BDLW2CLAS | AL92: 33.286 | AM92: 15.6211198 | AN92: 13.8869192 | AO92: 12.498893 | AP92: 11.3638404 | AQ92: 10.4151894 | AR92: 9.6129968 | AS92: 1 | AU92: 527.307 | AV92: 247.4651751 | AW92: 219.9924804 | AX92: 198.0037785 | AY92: 180.0226098 | AZ92: 164.9943603 | BA92: 152.2862616 | BB92: 66 | BC92: 527.307 | BD92: 0.007119113573
A93: BDLW3630KA | B93: W3630KA | C93: W3630KA | D93: W3630 | E93: W3630 | F93: BDLW3630PB | H93: 202.631 | I93: 95.0947283 | J93: 84.5376532 | K93: 76.0879405 | L93: 69.1782234 | M93: 63.4032399 | N93: 58.5198328 | O93: 55 | Q93: BDLW3630KAN | S93: 323.983 | T93: 152.0452219 | U93: 135.1657076 | V93: 121.6556165 | W93: 110.6077962 | X93: 101.3742807 | Y93: 93.5662904 | Z93: 17 | AK93: BDLW2CLAS | AL93: 33.286 | AM93: 15.6211198 | AN93: 13.8869192 | AO93: 12.498893 | AP93: 11.3638404 | AQ93: 10.4151894 | AR93: 9.6129968 | AS93: 1 | AU93: 559.9 | AV93: 262.76107 | AW93: 233.59028 | AX93: 210.24245 | AY93: 191.14986 | AZ93: 175.19271 | BA93: 161.69912 | BB93: 73 | BC93: 559.9 | BD93: -0.0006392499467
A94: BDLW3930KA | B94: W3930KA | C94: W3930KA | D94: W3930 | E94: W3930 | F94: BDLW3930PB | H94: 213.477 | I94: 100.1847561 | J94: 89.0626044 | K94: 80.1606135 | L94: 72.8810478 | M94: 66.7969533 | N94: 61.6521576 | O94: 60 | Q94: BDLW3930KAN | S94: 358.402 | T94: 168.1980586 | U94: 149.5253144 | V94: 134.579951 | W94: 122.3584428 | X94: 112.1439858 | Y94: 103.5064976 | Z94: 20 | AK94: BDLW2CLAS | AL94: 33.286 | AM94: 15.6211198 | AN94: 13.8869192 | AO94: 12.498893 | AP94: 11.3638404 | AQ94: 10.4151894 | AR94: 9.6129968 | AS94: 1 | AU94: 605.165 | AV94: 284.0039345 | AW94: 252.474838 | AX94: 227.2394575 | AY94: 206.603331 | AZ94: 189.3561285 | BA94: 174.771652 | BB94: 81 | BC94: 605.165 | BD94: 0.01149584488
A95: BDLW4230KA | B95: W4230KA | C95: W4230KA | D95: W4230 | E95: W4230 | F95: BDLW4230PB | H95: 220.858 | I95: 103.6486594 | J95: 92.1419576 | K95: 82.932179 | L95: 75.4009212 | M95: 69.1064682 | N95: 63.7837904 | O95: 60 | Q95: BDLW4230KAN | S95: 382.998 | T95: 179.7409614 | U95: 159.7867656 | V95: 143.815749 | W95: 130.7555172 | X95: 119.8400742 | Y95: 110.6098224 | Z95: 22 | AK95: BDLW2CLAS | AL95: 33.286 | AM95: 15.6211198 | AN95: 13.8869192 | AO95: 12.498893 | AP95: 11.3638404 | AQ95: 10.4151894 | AR95: 9.6129968 | AS95: 1 | AU95: 637.142 | AV95: 299.0107406 | AW95: 265.8156424 | AX95: 239.246821 | AY95: 217.5202788 | AZ95: 199.3617318 | BA95: 184.0066096 | BB95: 83 | BC95: 637.142 | BD95: 0.008408267633
A96: BDLWBC3630KA | B96: WBC3630KA | C96: WBC3630KA | D96: WBC3630 | E96: WBC3630 | F96: BDLW3630PB | H96: 202.631 | I96: 95.0947283 | J96: 84.5376532 | K96: 76.0879405 | L96: 69.1782234 | M96: 63.4032399 | N96: 58.5198328 | O96: 55 | Q96: BDLWBC3630KAN | S96: 303.369 | T96: 142.3710717 | U96: 126.5655468 | V96: 113.9150595 | W96: 103.5701766 | X96: 94.9241601 | Y96: 87.6129672 | Z96: 18 | AK96: BDLW1CLAS | AL96: 16.643 | AM96: 7.8105599 | AN96: 6.9434596 | AO96: 6.2494465 | AP96: 5.6819202 | AQ96: 5.2075947 | AR96: 4.8064984 | AS96: 1 | AU96: 522.643 | AV96: 245.2763599 | AW96: 218.0466596 | AX96: 196.2524465 | AY96: 178.4303202 | AZ96: 163.5349947 | BA96: 150.9392984 | BB96: 74 | BC96: 522.643 | BD96: 0.005346260388
A97: BDLWBC4230KA | B97: WBC4230KA | C97: WBC4230KA | D97: WBC4230 | E97: WBC4230 | F97: BDLW4230PB | H97: 220.858 | I97: 103.6486594 | J97: 92.1419576 | K97: 82.932179 | L97: 75.4009212 | M97: 69.1064682 | N97: 63.7837904 | O97: 60 | Q97: BDLWBC4230KAN | S97: 376.783 | T97: 176.8242619 | U97: 157.1938676 | V97: 141.4820165 | W97: 128.6337162 | X97: 117.8954007 | Y97: 108.8149304 | Z97: 22 | AK97: BDLW1CLAS | AL97: 16.643 | AM97: 7.8105599 | AN97: 6.9434596 | AO97: 6.2494465 | AP97: 5.6819202 | AQ97: 5.2075947 | AR97: 4.8064984 | AS97: 1 | AU97: 614.284 | AV97: 288.2834812 | AW97: 256.2792848 | AX97: 230.663642 | AY97: 209.7165576 | AZ97: 192.2094636 | BA97: 177.4052192 | BB97: 83 | BC97: 614.284 | BD97: 0.004031536331
A98: BDLWDC2430KA | B98: WDC2430KA | C98: WDC2430KA | D98: WDC2430 | E98: WDC2430 | F98: BDLWDC2430PB | H98: 274.945 | I98: 129.0316885 | J98: 114.707054 | K98: 103.2418475 | L98: 93.866223 | M98: 86.0302905 | N98: 79.404116 | O98: 75 | Q98: BDLWDC2430KAN | S98: 203.852 | T98: 95.6677436 | U98: 85.0470544 | V98: 76.546426 | W98: 69.5950728 | X98: 63.7852908 | Y98: 58.8724576 | Z98: 9 | AK98: BDLW1CLAS | AL98: 16.643 | AM98: 7.8105599 | AN98: 6.9434596 | AO98: 6.2494465 | AP98: 5.6819202 | AQ98: 5.2075947 | AR98: 4.8064984 | AS98: 1 | AU98: 495.44 | AV98: 232.509992 | AW98: 206.697568 | AX98: 186.03772 | AY98: 169.143216 | AZ98: 155.023176 | BA98: 143.083072 | BB98: 85 | BC98: 495.44 | BD98: -0.0005966332836
A99: BDLB33KA | B99: B33KA | C99: B33KA | D99: B33 | E99: B33 | F99: BDLBU33PB | H99: 266.266 | I99: 124.9586338 | J99: 111.0861752 | K99: 99.982883 | L99: 90.9032124 | M99: 83.3146314 | N99: 76.8976208 | O99: 75 | Q99: BDLB33KAN | S99: 404.47 | T99: 189.8229333 | U99: 168.7494732 | V99: 151.8826155 | W99: 138.0898134 | X99: 126.5621049 | Y99: 116.8141128 | Z99: 34 | AK99: BDLB2CLAS | AL99: 210.837 | AM99: 98.9458041 | AN99: 87.9611964 | AO99: 79.1692935 | AP99: 71.9797518 | AQ99: 65.9708973 | AR99: 60.8897256 | AS99: 13 | AU99: 881.584 | AV99: 413.7273712 | AW99: 367.7968448 | AX99: 331.034792 | AY99: 300.9727776 | AZ99: 275.8476336 | BA99: 254.6014592 | BB99: 122 | BC99: 881.584 | BD99: -0.004704879608
A100: BDLBCC33KA | B100: BCC33KA | C100: BCC33KA | D100: BCC33 | E100: BCC33 | F100: BDLBCC33PB | H100: 384.054 | I100: 180.2365422 | J100: 160.2273288 | K100: 144.212277 | L100: 131.1160356 | M100: 120.1704966 | N100: 110.9147952 | O100: 110 | Q100: BDLBCC33KAN | S100: 305.107 | T100: 143.1867151 | U100: 127.2906404 | V100: 114.5676785 | W100: 104.1635298 | X100: 95.4679803 | Y100: 88.1149016 | Z100: 9 | AK100: BDLB1LS | AL100: 31.999 | AM100: 15.0171307 | AN100: 13.3499828 | AO100: 12.0156245 | AP100: 10.9244586 | AQ100: 10.0124871 | AR100: 9.2413112 | AS100: 1 | AU100: 721.16 | AV100: 338.440388 | AW100: 300.867952 | AX100: 270.79558 | AY100: 246.204024 | AZ100: 225.650964 | BA100: 208.271008 | BB100: 120 | BC100: 721.16 | BD100: 0.01082463243
A101: BDLBFD33KA | B101: BFD33KA | C101: BFD33KA | D101: BFD33 | E101: BFD33 | F101: BDLBU33PB | H101: 266.266 | I101: 124.9586338 | J101: 111.0861752 | K101: 99.982883 | L101: 90.9032124 | M101: 83.3146314 | N101: 76.8976208 | O101: 75 | Q101: BDLW3330KAN | S101: 298.771 | T101: 140.2132303 | U101: 124.6472612 | V101: 112.1885105 | W101: 102.0004194 | X101: 93.4854459 | Y101: 86.2850648 | Z101: 15 | AK101: BDLW2CLAS | AL101: 33.286 | AM101: 15.6211198 | AN101: 13.8869192 | AO101: 12.498893 | AP101: 11.3638404 | AQ101: 10.4151894 | AR101: 9.6129968 | AS101: 1 | AU101: 598.323 | AV101: 280.7929839 | AW101: 249.6203556 | AX101: 224.6702865 | AY101: 204.2674722 | AZ101: 187.2152667 | BA101: 172.7956824 | BB101: 91 | BC101: 598.323 | BD101: 0.002874493927
A102: BDLSB33KA | B102: SB33KA | C102: SB33KA | D102: SB33 | E102: SB33 | F102: BDLBU33PB | H102: 266.266 | I102: 124.9586338 | J102: 111.0861752 | K102: 99.982883 | L102: 90.9032124 | M102: 83.3146314 | N102: 76.8976208 | O102: 75 | Q102: BDLSB33KAN | S102: 306.097 | T102: 143.6513221 | U102: 127.7036684 | V102: 114.9394235 | W102: 104.5015158 | X102: 95.7777513 | Y102: 88.4008136 | Z102: 16 | AK102: BDLW2CLAS | AL102: 33.286 | AM102: 15.6211198 | AN102: 13.8869192 | AO102: 12.498893 | AP102: 11.3638404 | AQ102: 10.4151894 | AR102: 9.6129968 | AS102: 1 | AU102: 605.649 | AV102: =SUM(I102, T102, AM102) -> 284.2310757 | AW102: =SUM(J102, U102, AN102) -> 252.6767628 | AX102: =SUM(K102, V102, AO102) -> 227.4211995 | AY102: =SUM(L102, W102, AP102) -> 206.7685686 | AZ102: =SUM(M102, X102, AQ102) -> 189.5075721 | BA102: =SUM(N102, Y102, AR102) -> 174.9114312 | BB102: 92 | BC102: 605.649 | BD102: -0.0002407841466
A103: BDLVSB33KA | B103: VSB33KA | C103: VSB33KA | D103: VSB33 | E103: VSB33 | F103: BDLVSB33PB | H103: 232.221 | I103: 108.9813153 | J103: 96.8826012 | K103: 87.1989855 | L103: 79.2802494 | M103: 72.6619509 | N103: 67.0654248 | O103: 65 | Q103: BDLVSB33KAN | S103: 310.442 | T103: 145.6904306 | U103: 129.5164024 | V103: 116.570971 | W103: 105.9848988 | X103: 97.1373018 | Y103: 89.6556496 | Z103: 16 | AK103: BDLW2CLAS | AL103: 33.286 | AM103: 15.6211198 | AN103: 13.8869192 | AO103: 12.498893 | AP103: 11.3638404 | AQ103: 10.4151894 | AR103: 9.6129968 | AS103: 1 | AU103: 575.949 | AV103: 270.2928657 | AW103: 240.2859228 | AX103: 216.2688495 | AY103: 196.6289886 | AZ103: 180.2144421 | BA103: 166.3340712 | BB103: 82 | BC103: 575.949 | BD103: -0.002584700618
A104: BDLB36KA | B104: B36KA | C104: B36KA | D104: B36 | E104: B36 | F104: BDLBU36PB | H104: 275.583 | I104: 129.3311019 | J104: 114.9732276 | K104: 103.4814165 | L104: 94.0840362 | M104: 86.2299207 | N104: 79.5883704 | O104: 80 | Q104: BDLB36KAN | S104: 421.751 | T104: 197.9277443 | U104: 175.9545172 | V104: 158.3675005 | W104: 143.9857914 | X104: 131.9658879 | Y104: 121.8016888 | Z104: 30 | AK104: BDLB2CLAS | AL104: 210.837 | AM104: 98.9458041 | AN104: 87.9611964 | AO104: 79.1692935 | AP104: 71.9797518 | AQ104: 65.9708973 | AR104: 60.8897256 | AS104: 13 | AU104: 908.171 | AV104: 426.2046503 | AW104: 378.8889412 | AX104: 341.0182105 | AY104: 310.0495794 | AZ104: 284.1667059 | BA104: 262.2797848 | BB104: 123 | BC104: 908.171 | BD104: -0.002614532282
A105: BDLBCC36KA | B105: BCC36KA | C105: BCC36KA | D105: BCC36 | E105: BCC36 | F105: BDLBCC36PB | H105: 411.884 | I105: 193.2971612 | J105: 171.8380048 | K105: 154.662442 | L105: 140.6171976 | M105: 128.8785036 | N105: 118.9520992 | O105: 120 | Q105: BDLBCC36KAN | S105: 335.291 | T105: 157.3520663 | U105: 139.8834052 | V105: 125.9017705 | W105: 114.4683474 | X105: 104.9125539 | Y105: 96.8320408 | Z105: 11 | AK105: BDLB1LS | AL105: 31.999 | AM105: 15.0171307 | AN105: 13.3499828 | AO105: 12.0156245 | AP105: 10.9244586 | AQ105: 10.0124871 | AR105: 9.2413112 | AS105: 1 | AU105: 779.174 | AV105: 365.6663582 | AW105: 325.0713928 | AX105: 292.579837 | AY105: 266.0100036 | AZ105: 243.8035446 | BA105: 225.0254512 | BB105: 132 | BC105: 779.174 | BD105: 0.004180694652
A106: BDLBDC36KA | B106: BDC36KA | C106: BDC36KA | D106: BDC36 | E106: BDC36 | F106: BDLBDC36PB | H106: 381.997 | I106: 179.2711921 | J106: 159.3691484 | K106: 143.4398735 | L106: 130.4137758 | M106: 119.5268613 | N106: 110.3207336 | O106: 115 | Q106: BDLBDC36KAN | S106: 267.839 | T106: 125.6968427 | U106: 111.7424308 | V106: 100.5735445 | W106: 91.4402346 | X106: 83.8068231 | Y106: 77.3519032 | Z106: 9 | AK106: BDLW1CLAS | AL106: 16.643 | AM106: 7.8105599 | AN106: 6.9434596 | AO106: 6.2494465 | AP106: 5.6819202 | AQ106: 5.2075947 | AR106: 4.8064984 | AS106: 1 | AU106: 666.479 | AV106: 312.7785947 | AW106: 278.0550388 | AX106: 250.2628645 | AY106: 227.5359306 | AZ106: 208.5412791 | BA106: 192.4791352 | BB106: 125 | BC106: 666.479 | BD106: 0.002507990624
A107: BDLBFD36KA | B107: BFD36KA | C107: BFD36KA | D107: BFD36 | E107: BFD36 | F107: BDLBU36PB | H107: 275.583 | I107: 129.3311019 | J107: 114.9732276 | K107: 103.4814165 | L107: 94.0840362 | M107: 86.2299207 | N107: 79.5883704 | O107: 80 | Q107: BDLW3630KAN | S107: 323.983 | T107: 152.0452219 | U107: 135.1657076 | V107: 121.6556165 | W107: 110.6077962 | X107: 101.3742807 | Y107: 93.5662904 | Z107: 17 | AK107: BDLW2CLAS | AL107: 33.286 | AM107: 15.6211198 | AN107: 13.8869192 | AO107: 12.498893 | AP107: 11.3638404 | AQ107: 10.4151894 | AR107: 9.6129968 | AS107: 1 | AU107: 632.852 | AV107: 296.9974436 | AW107: 264.0258544 | AX107: 237.635926 | AY107: 216.0556728 | AZ107: 198.0193908 | BA107: 182.7676576 | BB107: 98 | BC107: 632.852 | BD107: -0.002821223098
A108: BDLSB36KA | B108: SB36KA | C108: SB36KA | D108: SB36 | E108: SB36 | F108: BDLBU36PB | H108: 275.583 | I108: 129.3311019 | J108: 114.9732276 | K108: 103.4814165 | L108: 94.0840362 | M108: 86.2299207 | N108: 79.5883704 | O108: 80 | Q108: BDLSB36KAN | S108: 318.516 | T108: 149.4795588 | U108: 132.8848752 | V108: 119.602758 | W108: 108.7413624 | X108: 99.6636564 | Y108: 91.9874208 | Z108: 16 | AK108: BDLW2CLAS | AL108: 33.286 | AM108: 15.6211198 | AN108: 13.8869192 | AO108: 12.498893 | AP108: 11.3638404 | AQ108: 10.4151894 | AR108: 9.6129968 | AS108: 1 | AU108: 627.385 | AV108: 294.4317805 | AW108: 261.745022 | AX108: 235.5830675 | AY108: 214.189239 | AZ108: 196.3087665 | BA108: 181.188788 | BB108: 97 | BC108: 627.385 | BD108: -0.003718303857
A109: BDLVSB36KA | B109: VSB36KA | C109: VSB36KA | D109: VSB36 | E109: VSB36 | F109: BDLVSB36PB | H109: 241.659 | I109: 113.4105687 | J109: 100.8201348 | K109: 90.7429545 | L109: 82.5023826 | M109: 75.6151011 | N109: 69.7911192 | O109: 70 | Q109: BDLVSB36KAN | S109: 334.301 | T109: 156.8874593 | U109: 139.4703772 | V109: 125.5300255 | W109: 114.1303614 | X109: 104.6027829 | Y109: 96.5461288 | Z109: 19 | AK109: BDLW2CLAS | AL109: 33.286 | AM109: 15.6211198 | AN109: 13.8869192 | AO109: 12.498893 | AP109: 11.3638404 | AQ109: 10.4151894 | AR109: 9.6129968 | AS109: 1 | AU109: 609.246 | AV109: 285.9191478 | AW109: 254.1774312 | AX109: 228.771873 | AY109: 207.9965844 | AZ109: 190.6330734 | BA109: 175.9502448 | BB109: 90 | BC109: 609.246 | BD109: 0.007453654379
A110: BDLVSD36KA | B110: VSD36KA | C110: VSD36KA | D110: VSD36 | E110: VSD36 | F110: BDLVSD36PB | H110: 218.273 | I110: 102.4355189 | J110: 91.0634956 | K110: 81.9615115 | L110: 74.5184022 | M110: 68.2976217 | N110: 63.0372424 | O110: 60 | Q110: BDLVSD36KAN | S110: 455.29 | T110: 213.667597 | U110: 189.946988 | V110: 170.961395 | W110: 155.436006 | X110: 142.460241 | Y110: 131.487752 | Z110: 25 | AK110: BDLV5CLAS | AL110: 206.03 | AM110: 96.689879 | AN110: 85.955716 | AO110: 77.364265 | AP110: 70.338642 | AQ110: 64.466787 | AR110: 59.501464 | AS110: 11 | AU110: 879.593 | AV110: 412.7929949 | AW110: 366.9661996 | AX110: 330.2871715 | AY110: 300.2930502 | AZ110: 275.2246497 | BA110: 254.0264584 | BB110: 96 | BC110: 879.593 | BD110: -0.00775836352
A111: BDLW0936KA | B111: W0936KA | C111: W0936KA | D111: W0936 | E111: W0936 | F111: BDLW0936PB | H111: 128.568 | I111: 60.3369624 | J111: 53.6385696 | K111: 48.277284 | L111: 43.8931152 | M111: 40.2289272 | N111: 37.1304384 | O111: 25 | Q111: BDLW0936KAN | S111: 147.081 | T111: 69.0251133 | U111: 61.3621932 | V111: 55.2289155 | W111: 50.2134534 | X111: 46.0216449 | Y111: 42.4769928 | Z111: 6 | AK111: BDLW1CLAS | AL111: 16.643 | AM111: 7.8105599 | AN111: 6.9434596 | AO111: 6.2494465 | AP111: 5.6819202 | AQ111: 5.2075947 | AR111: 4.8064984 | AS111: 1 | AU111: 292.292 | AV111: 137.1726356 | AW111: 121.9442224 | AX111: 109.755646 | AY111: 99.7884888 | AZ111: 91.4581668 | BA111: 84.4139296 | BB111: 32 | BC111: 292.292 | BD111: 0.0008438099297
A112: BDLW1236KA | B112: W1236KA | C112: W1236KA | D112: W1236 | E112: W1236 | F112: BDLW1236PB | H112: 136.004 | I112: 63.8266772 | J112: 56.7408688 | K112: 51.069502 | L112: 46.4317656 | M112: 42.5556516 | N112: 39.2779552 | O112: 30 | Q112: BDLW1236KAN | S112: 167.332 | T112: 78.5289076 | U112: 69.8109104 | V112: 62.833166 | W112: 57.1271448 | X112: 52.3581828 | Y112: 48.3254816 | Z112: 8 | AK112: BDLW1CLAS | AL112: 16.643 | AM112: 7.8105599 | AN112: 6.9434596 | AO112: 6.2494465 | AP112: 5.6819202 | AQ112: 5.2075947 | AR112: 4.8064984 | AS112: 1 | AU112: 319.979 | AV112: 150.1661447 | AW112: 133.4952388 | AX112: 120.1521145 | AY112: 109.2408306 | AZ112: 100.1214291 | BA112: 92.4099352 | BB112: 39 | BC112: 319.979 | BD112: -0.002819092265
A113: BDLW1536KA | B113: W1536KA | C113: W1536KA | D113: W1536 | E113: W1536 | F113: BDLW1536PB | H113: 148.192 | I113: 69.5465056 | J113: 61.8257024 | K113: 55.646096 | L113: 50.5927488 | M113: 46.3692768 | N113: 42.7978496 | O113: 35 | Q113: BDLW1536KAN | S113: 191.433 | T113: 89.8395069 | U113: 79.8658476 | V113: 71.8830915 | W113: 65.3552262 | X113: 59.8993857 | Y113: 55.2858504 | Z113: 9 | AK113: BDLW1CLAS | AL113: 16.643 | AM113: 7.8105599 | AN113: 6.9434596 | AO113: 6.2494465 | AP113: 5.6819202 | AQ113: 5.2075947 | AR113: 4.8064984 | AS113: 1 | AU113: 356.268 | AV113: 167.1965724 | AW113: 148.6350096 | AX113: 133.778634 | AY113: 121.6298952 | AZ113: 111.4762572 | BA113: 102.8901984 | BB113: 45 | BC113: 356.268 | BD113: -0.002378009802
A114: BDLW1836KA | B114: W1836KA | C114: W1836KA | D114: W1836 | E114: W1836 | F114: BDLW1836PB | H114: 155.573 | I114: 73.0104089 | J114: 64.9050556 | K114: 58.4176615 | L114: 53.1126222 | M114: 48.6787917 | N114: 44.9294824 | O114: 35 | Q114: BDLW1836KAN | S114: 219.758 | T114: 103.1324294 | U114: 91.6830376 | V114: 82.519129 | W114: 75.0253812 | X114: 68.7622782 | Y114: 63.4661104 | Z114: 11 | AK114: BDLW1CLAS | AL114: 16.643 | AM114: 7.8105599 | AN114: 6.9434596 | AO114: 6.2494465 | AP114: 5.6819202 | AQ114: 5.2075947 | AR114: 4.8064984 | AS114: 1 | AU114: 391.974 | AV114: 183.9533982 | AW114: 163.5315528 | AX114: 147.186237 | AY114: 133.8199236 | AZ114: 122.6486646 | BA114: 113.2020912 | BB114: 47 | BC114: 391.974 | BD114: -0.003490304709
A115: BDLW2136KA | B115: W2136KA | C115: W2136KA | D115: W2136 | E115: W2136 | F115: BDLW2136PB | H115: 167.761 | I115: 78.7302373 | J115: 69.9898892 | K115: 62.9942555 | L115: 57.2736054 | M115: 52.4924169 | N115: 48.4493768 | O115: 40 | Q115: BDLW2136KAN | S115: 238.271 | T115: 111.8205803 | U115: 99.4066612 | V115: 89.4707605 | W115: 81.3457194 | X115: 74.5549959 | Y115: 68.8126648 | Z115: 12 | AK115: BDLW1CLAS | AL115: 16.643 | AM115: 7.8105599 | AN115: 6.9434596 | AO115: 6.2494465 | AP115: 5.6819202 | AQ115: 5.2075947 | AR115: 4.8064984 | AS115: 1 | AU115: 422.675 | AV115: 198.3613775 | AW115: 176.34001 | AX115: 158.7144625 | AY115: 144.301245 | AZ115: 132.2550075 | BA115: 122.06854 | BB115: 53 | BC115: 422.675 | BD115: -0.001012145749
A116: BDLW2436KA | B116: W2436KA | C116: W2436KA | D116: W2436 | E116: W2436 | F116: BDLW2436PB | H116: 175.087 | I116: 82.1683291 | J116: 73.0462964 | K116: 65.7451685 | L116: 59.7747018 | M116: 54.7847223 | N116: 50.5651256 | O116: 45 | Q116: BDLW2436KAN | S116: 256.157 | T116: 120.2144801 | U116: 106.8687004 | V116: 96.1869535 | W116: 87.4519998 | X116: 80.1515253 | Y116: 73.9781416 | Z116: 13 | AK116: BDLW1CLAS | AL116: 16.643 | AM116: 7.8105599 | AN116: 6.9434596 | AO116: 6.2494465 | AP116: 5.6819202 | AQ116: 5.2075947 | AR116: 4.8064984 | AS116: 1 | AU116: 447.887 | AV116: 210.1933691 | AW116: 186.8584564 | AX116: 168.1815685 | AY116: 152.9086218 | AZ116: 140.1438423 | BA116: 129.3497656 | BB116: 59 | BC116: 447.887 | BD116: -0.002384402301
A117: BDLW2736KA | B117: W2736KA | C117: W2736KA | D117: W2736 | E117: W2736 | F117: BDLW2736PB | H117: 188.045 | I117: 88.2495185 | J117: 78.452374 | K117: 70.6108975 | L117: 64.198563 | M117: 58.8392805 | N117: 54.307396 | O117: 45 | Q117: BDLW2736KAN | S117: 280.753 | T117: 131.7573829 | U117: 117.1301516 | V117: 105.4227515 | W117: 95.8490742 | X117: 87.8476137 | Y117: 81.0814664 | Z117: 15 | AK117: BDLW2CLAS | AL117: 33.286 | AM117: 15.6211198 | AN117: 13.8869192 | AO117: 12.498893 | AP117: 11.3638404 | AQ117: 10.4151894 | AR117: 9.6129968 | AS117: 1 | AU117: 502.084 | AV117: 235.6280212 | AW117: 209.4694448 | AX117: 188.532542 | AY117: 171.4114776 | AZ117: 157.1020836 | BA117: 145.0018592 | BB117: 61 | BC117: 502.084 | BD117: 0.004883869593
A118: BDLW3036KA | B118: W3036KA | C118: W3036KA | D118: W3036 | E118: W3036 | F118: BDLW3036PB | H118: 200.057 | I118: 93.8867501 | J118: 83.4637804 | K118: 75.1214035 | L118: 68.2994598 | M118: 62.5978353 | N118: 57.7764616 | O118: 50 | Q118: BDLW3036KAN | S118: 310.321 | T118: 145.6336453 | U118: 129.4659212 | V118: 116.5255355 | W118: 105.9435894 | X118: 97.0994409 | Y118: 89.6207048 | Z118: 17 | AK118: BDLW2CLAS | AL118: 33.286 | AM118: 15.6211198 | AN118: 13.8869192 | AO118: 12.498893 | AP118: 11.3638404 | AQ118: 10.4151894 | AR118: 9.6129968 | AS118: 1 | AU118: 543.664 | AV118: 255.1415152 | AW118: 226.8166208 | AX118: 204.145832 | AY118: 185.6068896 | AZ118: 170.1124656 | BA118: 157.0101632 | BB118: 68 | BC118: 543.664 | BD118: 0.006034519497
A119: BDLW3336KA | B119: W3336KA | C119: W3336KA | D119: W3336 | E119: W3336 | F119: BDLW3336PB | H119: 208.956 | I119: 98.0630508 | J119: 87.1764432 | K119: 78.462978 | L119: 71.3375784 | M119: 65.3823324 | N119: 60.3464928 | O119: 55 | Q119: BDLW3336KAN | S119: 330.693 | T119: 155.1942249 | U119: 137.9651196 | V119: 124.1752215 | W119: 112.8985902 | X119: 103.4738397 | Y119: 95.5041384 | Z119: 18 | AK119: BDLW2CLAS | AL119: 33.286 | AM119: 15.6211198 | AN119: 13.8869192 | AO119: 12.498893 | AP119: 11.3638404 | AQ119: 10.4151894 | AR119: 9.6129968 | AS119: 1 | AU119: 572.935 | AV119: 268.8783955 | AW119: 239.028482 | AX119: 215.1370925 | AY119: 195.600009 | AZ119: 179.2713615 | BA119: 165.463628 | BB119: 74 | BC119: 572.935 | BD119: -0.002333262306
A120: BDLW3636KA | B120: W3636KA | C120: W3636KA | D120: W3636 | E120: W3636 | F120: BDLW3636PB | H120: 220.968 | I120: 103.7002824 | J120: 92.1878496 | K120: 82.973484 | L120: 75.4384752 | M120: 69.1408872 | N120: 63.8155584 | O120: 60 | Q120: BDLW3636KAN | S120: 357.159 | T120: 167.6147187 | U120: 149.0067348 | V120: 134.1132045 | W120: 121.9340826 | X120: 111.7550511 | Y120: 103.1475192 | Z120: 20 | AK120: BDLW2CLAS | AL120: 33.286 | AM120: 15.6211198 | AN120: 13.8869192 | AO120: 12.498893 | AP120: 11.3638404 | AQ120: 10.4151894 | AR120: 9.6129968 | AS120: 1 | AU120: 611.413 | AV120: 286.9361209 | AW120: 255.0815036 | AX120: 229.5855815 | AY120: 208.7363982 | AZ120: 191.3111277 | BA120: 176.5760744 | BB120: 81 | BC120: 611.413 | BD120: 0.002171318986
A121: BDLW3936KA | B121: W3936KA | C121: W3936KA | D121: W3936 | E121: W3936 | F121: BDLW3936PB | H121: 228.536 | I121: 107.2519448 | J121: 95.3452192 | K121: 85.815268 | L121: 78.0221904 | M121: 71.5089144 | N121: 66.0011968 | O121: 60 | Q121: BDLW3936KAN | S121: 388.091 | T121: 182.1311063 | U121: 161.9115652 | V121: 145.7281705 | W121: 132.4942674 | X121: 121.4336739 | Y121: 112.0806808 | Z121: 21 | AK121: BDLW2CLAS | AL121: 33.286 | AM121: 15.6211198 | AN121: 13.8869192 | AO121: 12.498893 | AP121: 11.3638404 | AQ121: 10.4151894 | AR121: 9.6129968 | AS121: 1 | AU121: 649.913 | AV121: 305.0041709 | AW121: 271.1437036 | AX121: 244.0423315 | AY121: 221.8802982 | AZ121: 203.3577777 | BA121: 187.6948744 | BB121: 82 | BC121: 649.913 | BD121: 0.009629235031
A122: BDLW4236KA | B122: W4236KA | C122: W4236KA | D122: W4236 | E122: W4236 | F122: BDLW4236PB | H122: 240.603 | I122: 112.9149879 | J122: 100.3795716 | K122: 90.3464265 | L122: 82.1418642 | M122: 75.2846787 | N122: 69.4861464 | O122: 65 | Q122: BDLW4236KAN | S122: 422.499 | T122: 198.2787807 | U122: 176.2665828 | V122: 158.6483745 | W122: 144.2411586 | X122: 132.1999371 | Y122: 122.0177112 | Z122: 24 | AK122: BDLW2CLAS | AL122: 33.286 | AM122: 15.6211198 | AN122: 13.8869192 | AO122: 12.498893 | AP122: 11.3638404 | AQ122: 10.4151894 | AR122: 9.6129968 | AS122: 1 | AU122: 696.388 | AV122: 326.8148884 | AW122: 290.5330736 | AX122: 261.493694 | AY122: 237.7468632 | AZ122: 217.8998052 | BA122: 201.1168544 | BB122: 90 | BC122: 696.388 | BD122: 0.003076923077
A123: BDLWDC2436KA | B123: WDC2436KA | C123: WDC2436KA | D123: WDC2436 | E123: WDC2436 | F123: BDLWDC2436PB | H123: 293.513 | I123: 137.7456509 | J123: 122.4536236 | K123: 110.2141315 | L123: 100.2053382 | M123: 91.8402177 | N123: 84.7665544 | O123: 85 | Q123: BDLWDC2436KAN | S123: 235.411 | T123: 110.4783823 | U123: 98.2134692 | V123: 88.3968305 | W123: 80.3693154 | X123: 73.6601019 | Y123: 67.9866968 | Z123: 10 | AK123: BDLW1CLAS | AL123: 16.643 | AM123: 7.8105599 | AN123: 6.9434596 | AO123: 6.2494465 | AP123: 5.6819202 | AQ123: 5.2075947 | AR123: 4.8064984 | AS123: 1 | AU123: 545.567 | AV123: 256.0345931 | AW123: 227.6105524 | AX123: 204.8604085 | AY123: 186.2565738 | AZ123: 170.7079143 | BA123: 157.5597496 | BB123: 96 | BC123: 545.567 | BD123: -0.002725335606
A124: BDLB39KA | B124: B39KA | C124: B39KA | D124: B39 | E124: B39 | F124: BDLBU39PB | H124: 285.021 | I124: 133.7603553 | J124: 118.9107612 | K124: 107.0253855 | L124: 97.3061694 | M124: 89.1830709 | N124: 82.3140648 | O124: 85 | Q124: BDLB39KAN | S124: 435.919 | T124: 204.5767867 | U124: 181.8654068 | V124: 163.6875845 | W124: 148.8227466 | X124: 136.3990551 | Y124: 125.8934072 | Z124: 31 | AK124: BDLB2CLAS | AL124: 210.837 | AM124: 98.9458041 | AN124: 87.9611964 | AO124: 79.1692935 | AP124: 71.9797518 | AQ124: 65.9708973 | AR124: 60.8897256 | AS124: 13 | AU124: 931.777 | AV124: 437.2829461 | AW124: 388.7373644 | AX124: 349.8822635 | AY124: 318.1086678 | AZ124: 291.5530233 | BA124: 269.0971976 | BB124: 129 | BC124: 931.777 | BD124: 0.006288088643
A125: BDLBFD39KA | B125: BFD39KA | C125: BFD39KA | D125: BFD39 | E125: BFD39 | F125: BDLBU39PB | H125: 285.021 | I125: 133.7603553 | J125: 118.9107612 | K125: 107.0253855 | L125: 97.3061694 | M125: 89.1830709 | N125: 82.3140648 | O125: 85 | Q125: BDLW3930KAN | S125: 358.402 | T125: 168.1980586 | U125: 149.5253144 | V125: 134.579951 | W125: 122.3584428 | X125: 112.1439858 | Y125: 103.5064976 | Z125: 20 | AK125: BDLW2CLAS | AL125: 33.286 | AM125: 15.6211198 | AN125: 13.8869192 | AO125: 12.498893 | AP125: 11.3638404 | AQ125: 10.4151894 | AR125: 9.6129968 | AS125: 1 | AU125: 676.709 | AV125: 317.5795337 | AW125: 282.3229948 | AX125: 254.1042295 | AY125: 231.0284526 | AZ125: 211.7422461 | BA125: 195.4335592 | BB125: 106 | BC125: 676.709 | BD125: 0.007813765182
A126: BDLB42KA | B126: B42KA | C126: B42KA | D126: B42 | E126: B42 | F126: BDLBU42PB | H126: 298.969 | I126: 140.3061517 | J126: 124.7298668 | K126: 112.2628595 | L126: 102.0680166 | M126: 93.5474001 | N126: 86.3422472 | O126: 90 | Q126: BDLB42KAN | S126: 459.767 | T126: 215.7686531 | U126: 191.8147924 | V126: 172.6425085 | W126: 156.9644538 | X126: 143.8610943 | Y126: 132.7807096 | Z126: 34 | AK126: BDLB2CLAS | AL126: 210.837 | AM126: 98.9458041 | AN126: 87.9611964 | AO126: 79.1692935 | AP126: 71.9797518 | AQ126: 65.9708973 | AR126: 60.8897256 | AS126: 13 | AU126: 969.573 | AV126: 455.0206089 | AW126: 404.5058556 | AX126: 364.0746615 | AY126: 331.0122222 | AZ126: 303.3793917 | BA126: 280.0126824 | BB126: 137 | BC126: 969.573 | BD126: 0.004472618794
A127: BDLBBC42KA | B127: BBC42KA | C127: BBC42KA | D127: BBC42 | E127: BBC42 | F127: BDLBU42PB | H127: 298.969 | I127: 140.3061517 | J127: 124.7298668 | K127: 112.2628595 | L127: 102.0680166 | M127: 93.5474001 | N127: 86.3422472 | O127: 90 | Q127: BDLBBC42KAN | S127: 327.459 | T127: 153.6765087 | U127: 136.6158948 | V127: 122.9608545 | W127: 111.7945026 | X127: 102.4619211 | Y127: 94.5701592 | Z127: 24 | AK127: BDLB1CLAS | AL127: 105.413 | AM127: 49.4703209 | AN127: 43.9783036 | AO127: 39.5825815 | AP127: 35.9879982 | AQ127: 32.9837277 | AR127: 30.4432744 | AS127: 6 | AU127: 731.841 | AV127: 343.4529813 | AW127: 305.3240652 | AX127: 274.8062955 | AY127: 249.8505174 | AZ127: 228.9930489 | BA127: 211.3556808 | BB127: 120 | BC127: 731.841 | BD127: -0.006428723631
A128: BDLBFD42KA | B128: BFD42KA | C128: BFD42KA | D128: BFD42 | E128: BFD42 | F128: BDLBU42PB | H128: 298.969 | I128: 140.3061517 | J128: 124.7298668 | K128: 112.2628595 | L128: 102.0680166 | M128: 93.5474001 | N128: 86.3422472 | O128: 90 | Q128: BDLW4230KAN | S128: 382.998 | T128: 179.7409614 | U128: 159.7867656 | V128: 143.815749 | W128: 130.7555172 | X128: 119.8400742 | Y128: 110.6098224 | Z128: 22 | AK128: BDLW2CLAS | AL128: 33.286 | AM128: 15.6211198 | AN128: 13.8869192 | AO128: 12.498893 | AP128: 11.3638404 | AQ128: 10.4151894 | AR128: 9.6129968 | AS128: 1 | AU128: 715.253 | AV128: 335.6682329 | AW128: 298.4035516 | AX128: 268.5775015 | AY128: 244.1873742 | AZ128: 223.8026637 | BA128: 206.5650664 | BB128: 113 | BC128: 715.253 | BD128: 0.008393351801
A129: BDLCSB42KA | B129: CSB42KA | C129: CSB42KA | D129: CSB42 | E129: CSB42 | F129: BDLCSB42PB | H129: 424.072 | I129: 199.0169896 | J129: 176.9228384 | K129: 159.239036 | L129: 144.7781808 | M129: 132.6921288 | N129: 122.4719936 | O129: 130 | Q129: BDLCSB42KAN | S129: 309.331 | T129: 145.1690383 | U129: 129.0528932 | V129: 116.1537905 | W129: 105.6056034 | X129: 96.7896699 | Y129: 89.3347928 | Z129: 15 | AK129: BDLW2CLAS | AL129: 33.286 | AM129: 15.6211198 | AN129: 13.8869192 | AO129: 12.498893 | AP129: 11.3638404 | AQ129: 10.4151894 | AR129: 9.6129968 | AS129: 1 | AU129: 766.689 | AV129: 359.8071477 | AW129: 319.8626508 | AX129: 287.8917195 | AY129: 261.7476246 | AZ129: 239.8969881 | BA129: 221.4197832 | BB129: 146 | BC129: 766.689 | BD129: 0.005128915406
A130: BDLVSD42KA | B130: VSD42KA | C130: VSD42KA | D130: VSD42 | E130: VSD42 | F130: BDLVSD42PB | H130: 232.221 | I130: 108.9813153 | J130: 96.8826012 | K130: 87.1989855 | L130: 79.2802494 | M130: 72.6619509 | N130: 67.0654248 | O130: 65 | Q130: BDLVSD42KAN | S130: 492.063 | T130: 230.9251659 | U130: 205.2886836 | V130: 184.7696565 | W130: 167.9903082 | X130: 153.9665127 | Y130: 142.1077944 | Z130: 29 | AK130: BDLV4CLAS | AL130: 206.03 | AM130: 96.689879 | AN130: 85.955716 | AO130: 77.364265 | AP130: 70.338642 | AQ130: 64.466787 | AR130: 59.501464 | AS130: 11 | AU130: 930.314 | AV130: 436.5963602 | AW130: 388.1270008 | AX130: 349.332907 | AY130: 317.6091996 | AZ130: 291.0952506 | BA130: 268.6746832 | BB130: 105 | BC130: 930.314 | BD130: -0.004726187939
A131: BDLW0942KA | B131: W0942KA | C131: W0942KA | D131: W0942 | E131: W0942 | F131: BDLW0942PB | H131: 144.683 | I131: 67.8997319 | J131: 60.3617476 | K131: 54.3284665 | L131: 49.3947762 | M131: 45.2713107 | N131: 41.7844504 | O131: 35 | Q131: BDLW0942KAN | S131: 164.978 | T131: 77.4241754 | U131: 68.8288216 | V131: 61.949239 | W131: 56.3234892 | X131: 51.6216162 | Y131: 47.6456464 | Z131: 7 | AK131: BDLW1CLAS | AL131: 16.643 | AM131: 7.8105599 | AN131: 6.9434596 | AO131: 6.2494465 | AP131: 5.6819202 | AQ131: 5.2075947 | AR131: 4.8064984 | AS131: 1 | AU131: 326.304 | AV131: 153.1344672 | AW131: 136.1340288 | AX131: 122.527152 | AY131: 111.4001856 | AZ131: 102.1005216 | BA131: 94.2365952 | BB131: 43 | BC131: 326.304 | BD131: 0.008847219263
A132: BDLW1242KA | B132: W1242KA | C132: W1242KA | D132: W1242 | E132: W1242 | F132: BDLW1242PB | H132: 152.064 | I132: 71.3636352 | J132: 63.4411008 | K132: 57.100032 | L132: 51.9146496 | M132: 47.5808256 | N132: 43.9160832 | O132: 35 | Q132: BDLW1242KAN | S132: 187.704 | T132: 88.0894872 | U132: 78.3101088 | V132: 70.482852 | W132: 64.0821456 | X132: 58.7325816 | Y132: 54.2089152 | Z132: 9 | AK132: BDLW1CLAS | AL132: 16.643 | AM132: 7.8105599 | AN132: 6.9434596 | AO132: 6.2494465 | AP132: 5.6819202 | AQ132: 5.2075947 | AR132: 4.8064984 | AS132: 1 | AU132: 356.411 | AV132: 167.2636823 | AW132: 148.6946692 | AX132: 133.8323305 | AY132: 121.6787154 | AZ132: 111.5210019 | BA132: 102.9314968 | BB132: 45 | BC132: 356.411 | BD132: -0.0002279991476
A133: BDLW1542KA | B133: W1542KA | C133: W1542KA | D133: W1542 | E133: W1542 | F133: BDLW1542PB | H133: 165.594 | I133: 77.7132642 | J133: 69.0858168 | K133: 62.180547 | L133: 56.5337916 | M133: 51.8143626 | N133: 47.8235472 | O133: 40 | Q133: BDLW1542KAN | S133: 216.029 | T133: 101.3824097 | U133: 90.1272988 | V133: 81.1188895 | W133: 73.7523006 | X133: 67.5954741 | Y133: 62.3891752 | Z133: 11 | AK133: BDLW1CLAS | AL133: 16.643 | AM133: 7.8105599 | AN133: 6.9434596 | AO133: 6.2494465 | AP133: 5.6819202 | AQ133: 5.2075947 | AR133: 4.8064984 | AS133: 1 | AU133: 398.266 | AV133: 186.9062338 | AW133: 166.1565752 | AX133: 149.548883 | AY133: 135.9680124 | AZ133: 124.6174314 | BA133: 115.0192208 | BB133: 52 | BC133: 398.266 | BD133: -0.004777327935
A134: BDLW1842KA | B134: W1842KA | C134: W1842KA | D134: W1842 | E134: W1842 | F134: BDLW1842PB | H134: 177.672 | I134: 83.3814696 | J134: 74.1247584 | K134: 66.715836 | L134: 60.6572208 | M134: 55.5935688 | N134: 51.3116736 | O134: 45 | Q134: BDLW1842KAN | S134: 242.363 | T134: 113.7409559 | U134: 101.1138436 | V134: 91.0073065 | W134: 82.7427282 | X134: 75.8353827 | Y134: 69.9944344 | Z134: 14 | AK134: BDLW1CLAS | AL134: 16.643 | AM134: 7.8105599 | AN134: 6.9434596 | AO134: 6.2494465 | AP134: 5.6819202 | AQ134: 5.2075947 | AR134: 4.8064984 | AS134: 1 | AU134: 436.678 | AV134: =SUM(I134, T134, AM134) -> 204.9329854 | AW134: =SUM(J134, U134, AN134) -> 182.1820616 | AX134: =SUM(K134, V134, AO134) -> 163.972589 | AY134: =SUM(L134, W134, AP134) -> 149.0818692 | AZ134: =SUM(M134, X134, AQ134) -> 136.6365462 | BA134: =SUM(N134, Y134, AR134) -> 126.1126064 | BB134: 60 | BC134: 436.678 | BD134: -0.0006094182825
A135: BDLW2142KA | B135: W2142KA | C135: W2142KA | D135: W2142 | E135: W2142 | F135: BDLW2142PB | H135: 189.739 | I135: 89.0445127 | J135: 79.1591108 | K135: 71.2469945 | L135: 64.7768946 | M135: 59.3693331 | N135: 54.7966232 | O135: 45 | Q135: BDLW2142KAN | S135: 270.314 | T135: 126.8583602 | U135: 112.7750008 | V135: 101.502907 | W135: 92.2851996 | X135: 84.5812506 | Y135: 78.0666832 | Z135: 14 | AK135: BDLW1CLAS | AL135: 16.643 | AM135: =AL135*0.4693 -> 7.8105599 | AN135: =AL135*0.4172 -> 6.9434596 | AO135: =AL135*0.3755 -> 6.2494465 | AP135: =AL135*0.3414 -> 5.6819202 | AQ135: =AL135*0.3129 -> 5.2075947 | AR135: =AL135*0.2888 -> 4.8064984 | AS135: 1 | AU135: 476.696 | AV135: 223.7134328 | AW135: 198.8775712 | AX135: 178.999348 | AY135: 162.7440144 | AZ135: 149.1581784 | BA135: 137.6698048 | BB135: 60 | BC135: 476.696 | BD135: -0.004585552951
A136: BDLW2442KA | B136: W2442KA | C136: W2442KA | D136: W2442 | E136: W2442 | F136: BDLW2442PB | H136: 198.528 | I136: 93.1691904 | J136: 82.8258816 | K136: 74.547264 | L136: 67.7774592 | M136: 62.1194112 | N136: 57.3348864 | O136: 50 | Q136: BDLW2442KAN | S136: 290.697 | T136: 136.4241021 | U136: 121.2787884 | V136: 109.1567235 | W136: 99.2439558 | X136: 90.9590913 | Y136: 83.9532936 | Z136: 15 | AK136: BDLW1CLAS | AL136: 16.643 | AM136: 7.8105599 | AN136: 6.9434596 | AO136: 6.2494465 | AP136: 5.6819202 | AQ136: 5.2075947 | AR136: 4.8064984 | AS136: 1 | AU136: 505.868 | AV136: 237.4038524 | AW136: 211.0481296 | AX136: 189.953434 | AY136: 172.7033352 | AZ136: 158.2860972 | BA136: 146.0946784 | BB136: 66 | BC136: 505.868 | BD136: 0.003588323034
A137: BDLW2742KA | B137: W2742KA | C137: W2742KA | D137: W2742 | E137: W2742 | F137: BDLW2742PB | H137: 217.393 | I137: 102.0225349 | J137: 90.6963596 | K137: 81.6310715 | L137: 74.2179702 | M137: 68.0222697 | N137: 62.7830984 | O137: 55 | Q137: BDLW2742KAN | S137: 323.983 | T137: 152.0452219 | U137: 135.1657076 | V137: 121.6556165 | W137: 110.6077962 | X137: 101.3742807 | Y137: 93.5662904 | Z137: 17 | AK137: BDLW2CLAS | AL137: 33.286 | AM137: 15.6211198 | AN137: 13.8869192 | AO137: 12.498893 | AP137: 11.3638404 | AQ137: 10.4151894 | AR137: 9.6129968 | AS137: 1 | AU137: 574.662 | AV137: 269.6888766 | AW137: 239.7489864 | AX137: 215.785581 | AY137: 196.1896068 | AZ137: 179.8117398 | BA137: 165.9623856 | BB137: 73 | BC137: 574.662 | BD137: -0.004888131259
A138: BDLW3042KA | B138: W3042KA | C138: W3042KA | D138: W3042 | E138: W3042 | F138: BDLW3042PB | H138: 229.416 | I138: 107.6649288 | J138: 95.7123552 | K138: 86.145708 | L138: 78.3226224 | M138: 71.7842664 | N138: 66.2553408 | O138: 60 | Q138: BDLW3042KAN | S138: 353.551 | T138: 165.9214843 | U138: 147.5014772 | V138: 132.7584005 | W138: 120.7023114 | X138: 110.6261079 | Y138: 102.1055288 | Z138: 19 | AK138: BDLW2CLAS | AL138: 33.286 | AM138: 15.6211198 | AN138: 13.8869192 | AO138: 12.498893 | AP138: 11.3638404 | AQ138: 10.4151894 | AR138: 9.6129968 | AS138: 1 | AU138: 616.253 | AV138: 289.2075329 | AW138: 257.1007516 | AX138: 231.4030015 | AY138: 210.3887742 | AZ138: 192.8255637 | BA138: 177.9738664 | BB138: 80 | BC138: 616.253 | BD138: 0.006262518645
A139: BDLW3342KA | B139: W3342KA | C139: W3342KA | D139: W3342 | E139: W3342 | F139: BDLW3342PB | H139: 241.538 | I139: 113.3537834 | J139: 100.7696536 | K139: 90.697519 | L139: 82.4610732 | M139: 75.5772402 | N139: 69.7561744 | O139: 65 | Q139: BDLW3342KAN | S139: 383.735 | T139: 180.0868355 | U139: 160.094242 | V139: 144.0924925 | W139: 131.007129 | X139: 120.0706815 | Y139: 110.822668 | Z139: 21 | AK139: BDLW2CLAS | AL139: 33.286 | AM139: 15.6211198 | AN139: 13.8869192 | AO139: 12.498893 | AP139: 11.3638404 | AQ139: 10.4151894 | AR139: 9.6129968 | AS139: 1 | AU139: 658.559 | AV139: 309.0617387 | AW139: 274.7508148 | AX139: 247.2889045 | AY139: 224.8320426 | AZ139: 206.0631111 | BA139: 190.1918392 | BB139: 87 | BC139: 658.559 | BD139: -0.003799275517
A140: BDLW3642KA | B140: W3642KA | C140: W3642KA | D140: W3642 | E140: W3642 | F140: BDLW3642PB | H140: 250.327 | I140: 117.4784611 | J140: 104.4364244 | K140: 93.9977885 | L140: 85.4616378 | M140: 78.3273183 | N140: 72.2944376 | O140: 65 | Q140: BDLW3642KAN | S140: 412.192 | T140: 193.4417056 | U140: 171.9665024 | V140: 154.778096 | W140: 140.7223488 | X140: 128.9748768 | Y140: 119.0410496 | Z140: 22 | AK140: BDLW2CLAS | AL140: 33.286 | AM140: 15.6211198 | AN140: 13.8869192 | AO140: 12.498893 | AP140: 11.3638404 | AQ140: 10.4151894 | AR140: 9.6129968 | AS140: 1 | AU140: 695.805 | AV140: 326.5412865 | AW140: 290.289846 | AX140: 261.2747775 | AY140: 237.547827 | AZ140: 217.7173845 | BA140: 200.948484 | BB140: 88 | BC140: 695.805 | BD140: 0.003654378862
A141: BDLW3942KA | B141: W3942KA | C141: W3942KA | D141: W3942 | E141: W3942 | F141: BDLW3942PB | H141: 262.46 | I141: 123.172478 | J141: 109.498312 | K141: 98.55373 | L141: 89.603844 | M141: 82.123734 | N141: 75.798448 | O141: 70 | Q141: BDLW3942KAN | S141: 452.441 | T141: 212.3305613 | U141: 188.7583852 | V141: 169.8915955 | W141: 154.4633574 | X141: 141.5687889 | Y141: 130.6649608 | Z141: 23 | AK141: BDLW2CLAS | AL141: 33.286 | AM141: 15.6211198 | AN141: 13.8869192 | AO141: 12.498893 | AP141: 11.3638404 | AQ141: 10.4151894 | AR141: 9.6129968 | AS141: 1 | AU141: 748.187 | AV141: 351.1241591 | AW141: 312.1436164 | AX141: 280.9442185 | AY141: 255.4310418 | AZ141: 234.1077123 | BA141: 216.0764056 | BB141: 94 | BC141: 748.187 | BD141: 0.005925847006
A142: BDLW4242KA | B142: W4242KA | C142: W4242KA | D142: W4242 | E142: W4242 | F142: BDLW4242PB | H142: 275.935 | I142: 129.4962955 | J142: 115.120082 | K142: 103.6135925 | L142: 94.204209 | M142: 86.3400615 | N142: 79.690028 | O142: 75 | Q142: BDLW4242KAN | S142: 481.998 | T142: 226.2016614 | U142: 201.0895656 | V142: 180.990249 | W142: 164.5541172 | X142: 150.8171742 | Y142: 139.2010224 | Z142: 25 | AK142: BDLW2CLAS | AL142: 33.286 | AM142: 15.6211198 | AN142: 13.8869192 | AO142: 12.498893 | AP142: 11.3638404 | AQ142: 10.4151894 | AR142: 9.6129968 | AS142: 1 | AU142: 791.219 | AV142: 371.3190767 | AW142: 330.0965668 | AX142: 297.1027345 | AY142: 270.1221666 | AZ142: 247.5724251 | BA142: 228.5040472 | BB142: 101 | BC142: 791.219 | BD142: -0.004694225442
A143: BDLWDC2442KA | B143: WDC2442KA | C143: WDC2442KA | D143: WDC2442 | E143: WDC2442 | F143: BDLWDC2442PB | H143: 335.302 | I143: 157.3572286 | J143: 139.8879944 | K143: 125.905901 | L143: 114.4721028 | M143: 104.9159958 | N143: 96.8352176 | O143: 100 | Q143: BDLWDC2442KAN | S143: 259.391 | T143: 121.7321963 | U143: 108.2179252 | V143: 97.4013205 | W143: 88.5560874 | X143: 81.1634439 | Y143: 74.9121208 | Z143: 12 | AK143: BDLW1CLAS | AL143: 16.643 | AM143: 7.8105599 | AN143: 6.9434596 | AO143: 6.2494465 | AP143: 5.6819202 | AQ143: 5.2075947 | AR143: 4.8064984 | AS143: 1 | AU143: 611.336 | AV143: 286.8999848 | AW143: 255.0493792 | AX143: 229.556668 | AY143: 208.7101104 | AZ143: 191.2870344 | BA143: 176.5538368 | BB143: 113 | BC143: 611.336 | BD143: 0.008881312593
A144: BDLVCD48KA | B144: VCD48KA | C144: VCD48KA | D144: VCD48 | E144: VCD48 | F144: BDLVCD48PB | H144: 239.019 | I144: 112.1716167 | J144: 99.7187268 | K144: 89.7516345 | L144: 81.6010866 | M144: 74.7890451 | N144: 69.0286872 | O144: 70 | Q144: BDLVCD48KAN | S144: 753.071 | T144: 353.4162203 | U144: 314.1812212 | V144: 282.7781605 | W144: 257.0984394 | X144: 235.6359159 | Y144: 217.4869048 | Z144: 58 | AK144: BDLV6CLAS | AL144: 551.529 | AM144: 258.8325597 | AN144: 230.0978988 | AO144: 207.0991395 | AP144: 188.2920006 | AQ144: 172.5734241 | AR144: 159.2815752 | AS144: 33 | AU144: 1543.619 | AV144: 724.4203967 | AW144: 643.9978468 | AX144: 579.6289345 | AY144: 526.9915266 | AZ144: 482.9983851 | BA144: 445.7971672 | BB144: 161 | BC144: 1543.619 | BD144: 0.006386106968
A145: BDLVCD36LKA | B145: VCD36LKA | C145: VCD36LKA | D145: VCD36L | E145: VCD36L | F145: BDLVCD36PB | H145: 203.984 | I145: 95.7296912 | J145: 85.1021248 | K145: 76.595992 | L145: 69.6401376 | M145: 63.8265936 | N145: 58.9105792 | O145: 60 | Q145: BDLVCD36LKAN | S145: 506.726 | T145: 237.8065118 | U145: 211.4060872 | V145: 190.275613 | W145: 172.9962564 | X145: 158.5545654 | Y145: 146.3424688 | Z145: 31 | AK145: BDLV4CLAS | AL145: 206.03 | AM145: 96.689879 | AN145: 85.955716 | AO145: 77.364265 | AP145: 70.338642 | AQ145: 64.466787 | AR145: 59.501464 | AS145: 11 | AU145: 916.74 | AV145: 430.226082 | AW145: 382.463928 | AX145: 344.23587 | AY145: 312.975036 | AZ145: 286.847946 | BA145: 264.754512 | BB145: 102 | BC145: 916.74 | BD145: 0.005582782868
A146: BDLVCD36RKA | B146: VCD36RKA | C146: VCD36RKA | D146: VCD36R | E146: VCD36R | F146: BDLVCD36PB | H146: 203.984 | I146: 95.7296912 | J146: 85.1021248 | K146: 76.595992 | L146: 69.6401376 | M146: 63.8265936 | N146: 58.9105792 | O146: 60 | Q146: BDLVCD36RKAN | S146: 506.726 | T146: 237.8065118 | U146: 211.4060872 | V146: 190.275613 | W146: 172.9962564 | X146: 158.5545654 | Y146: 146.3424688 | Z146: 31 | AK146: BDLV4CLAS | AL146: 206.03 | AM146: 96.689879 | AN146: 85.955716 | AO146: 77.364265 | AP146: 70.338642 | AQ146: 64.466787 | AR146: 59.501464 | AS146: 11 | AU146: 916.74 | AV146: 430.226082 | AW146: 382.463928 | AX146: 344.23587 | AY146: 312.975036 | AZ146: 286.847946 | BA146: 264.754512 | BB146: 102 | BC146: 916.74 | BD146: 0.005582782868
A147: BDLOC302484KA | B147: OC302484KA | C147: OC302484KA | D147: OC302484 | E147: OC302484
A148: BDLU182484KA | B148: U182484KA | C148: U182484KA | D148: U182484 | E148: U182484 | F148: BDLU182484PB | H148: 464.794 | I148: 218.1278242 | J148: 193.9120568 | K148: 174.530147 | L148: 158.6806716 | M148: 145.4340426 | N148: 134.2325072 | O148: 140 | Q148: BDLU182484KAN | S148: 442.002 | T148: 207.4315386 | U148: 184.4032344 | V148: 165.971751 | W148: 150.8994828 | X148: 138.3024258 | Y148: 127.6501776 | Z148: 22 | AK148: BDLB8CLAS | AL148: 41.602 | AM148: 19.5238186 | AN148: 17.3563544 | AO148: 15.621551 | AP148: 14.2029228 | AQ148: 13.0172658 | AR148: 12.0146576 | AS148: 6 | AU148: 948.398 | AV148: =SUM(I148, T148, AM148) -> 445.0831814 | AW148: =SUM(J148, U148, AN148) -> 395.6716456 | AX148: =SUM(K148, V148, AO148) -> 356.123449 | AY148: =SUM(L148, W148, AP148) -> 323.7830772 | AZ148: =SUM(M148, X148, AQ148) -> 296.7537342 | BA148: =SUM(N148, Y148, AR148) -> 273.8973424 | BB148: 168 | BC148: 948.398 | BD148: -0.006234817814
A149: BDLU242484KA | B149: U242484KA | C149: U242484KA | D149: U242484 | E149: U242484 | F149: BDLU242484PB | H149: 529.551 | I149: 248.5182843 | J149: 220.9286772 | K149: 198.8464005 | L149: 180.7887114 | M149: 165.6965079 | N149: 152.9343288 | O149: 160 | Q149: BDLU242484KAN | S149: 532.07 | T149: 249.700451 | U149: 221.979604 | V149: 199.792285 | W149: 181.648698 | X149: 166.484703 | Y149: 153.661816 | Z149: 27 | AK149: BDLB8CLAS | AL149: 41.602 | AM149: 19.5238186 | AN149: 17.3563544 | AO149: 15.621551 | AP149: 14.2029228 | AQ149: 13.0172658 | AR149: 12.0146576 | AS149: 6 | AU149: 1103.223 | AV149: 517.7425539 | AW149: 460.2646356 | AX149: 414.2602365 | AY149: 376.6403322 | AZ149: 345.1984767 | BA149: 318.6108024 | BB149: 193 | BC149: 1103.223 | BD149: 0.00223524398
A150: BDLU182490KA | B150: U182490KA | C150: U182490KA | D150: U182490 | E150: U182490 | F150: BDLU182490PB | H150: 476.806 | I150: 223.7650558 | J150: 198.9234632 | K150: 179.040653 | L150: 162.7815684 | M150: 149.1925974 | N150: 137.7015728 | O150: 140 | Q150: BDLU182490KAN | S150: 489.83 | T150: 229.877219 | U150: 204.357076 | V150: 183.931165 | W150: 167.227962 | X150: 153.267807 | Y150: 141.462904 | Z150: 32 | AK150: BDLB8CLAS | AL150: 41.602 | AM150: 19.5238186 | AN150: 17.3563544 | AO150: 15.621551 | AP150: 14.2029228 | AQ150: 13.0172658 | AR150: 12.0146576 | AS150: 6 | AU150: 1008.238 | AV150: 473.1660934 | AW150: 420.6368936 | AX150: 378.593369 | AY150: 344.2124532 | AZ150: 315.4776702 | BA150: 291.1791344 | BB150: 178 | BC150: 1008.238 | BD150: -0.006405284466
A151: BDLU242490KA | B151: U242490KA | C151: U242490KA | D151: U242490 | E151: U242490 | F151: BDLU242490PB | H151: 546.249 | I151: 256.3546557 | J151: 227.8950828 | K151: 205.1164995 | L151: 186.4894086 | M151: 170.9213121 | N151: 157.7567112 | O151: 165 | Q151: BDLU242490KAN | S151: 556.908 | T151: 261.3569244 | U151: 232.3420176 | V151: 209.118954 | W151: 190.1283912 | X151: 174.2565132 | Y151: 160.8350304 | Z151: 32 | AK151: BDLB8CLAS | AL151: 41.602 | AM151: 19.5238186 | AN151: 17.3563544 | AO151: 15.621551 | AP151: 14.2029228 | AQ151: 13.0172658 | AR151: 12.0146576 | AS151: 6 | AU151: 1144.759 | AV151: 537.2353987 | AW151: 477.5934548 | AX151: 429.8570045 | AY151: 390.8207226 | AZ151: 358.1950911 | BA151: 330.6063992 | BB151: 203 | BC151: 1144.759 | BD151: -0.006782441935
A152: BDLU182496KA | B152: U182496KA | C152: U182496KA | D152: U182496 | E152: U182496 | F152: BDLU182496PB | H152: 512.083 | I152: 240.3205519 | J152: 213.6410276 | K152: 192.2871665 | L152: 174.8251362 | M152: 160.2307707 | N152: 147.8895704 | O152: 155 | Q152: BDLU182496KAN | S152: 511.192 | T152: 239.9024056 | U152: 213.2693024 | V152: 191.952596 | W152: 174.5209488 | X152: 159.9519768 | Y152: 147.6322496 | Z152: 25 | AK152: BDLB8CLAS | AL152: 41.602 | AM152: 19.5238186 | AN152: 17.3563544 | AO152: 15.621551 | AP152: 14.2029228 | AQ152: 13.0172658 | AR152: 12.0146576 | AS152: 6 | AU152: 1064.877 | AV152: 499.7467761 | AW152: 444.2666844 | AX152: 399.8613135 | AY152: 363.5490078 | AZ152: 333.2000133 | BA152: 307.5364776 | BB152: 186 | BC152: 1064.877 | BD152: -0.01011932666
A153: BDLU242496KA | B153: U242496KA | C153: U242496KA | D153: U242496 | E153: U242496 | F153: BDLU242496PB | H153: 584.221 | I153: 274.1749153 | J153: 243.7370012 | K153: 219.3749855 | L153: 199.4530494 | M153: 182.8027509 | N153: 168.7230248 | O153: 180 | Q153: BDLU242496KAN | S153: 602.877 | T153: 282.9301761 | U153: 251.5202844 | V153: 226.3803135 | W153: 205.8222078 | X153: 188.6402133 | Y153: 174.1108776 | Z153: 32 | AK153: BDLB8CLAS | AL153: 41.602 | AM153: 19.5238186 | AN153: 17.3563544 | AO153: 15.621551 | AP153: 14.2029228 | AQ153: 13.0172658 | AR153: 12.0146576 | AS153: 6 | AU153: 1228.7 | AV153: 576.62891 | AW153: 512.61364 | AX153: 461.37685 | AY153: 419.47818 | AZ153: 384.46023 | BA153: 354.84856 | BB153: 218 | BC153: 1228.7 | BD153: -0.00191774984
A154: BDLBBC39LKA | B154: BBC39LKA | C154: BBC39LKA | D154: BBC39L | E154: BBC39L | F154: BDLBU39PB | H154: 285.021 | I154: 133.7603553 | J154: 118.9107612 | K154: 107.0253855 | L154: 97.3061694 | M154: 89.1830709 | N154: 82.3140648 | O154: 85 | Q154: BDLBBC39LKAN | S154: 322.124 | T154: 151.1727932 | U154: 134.3901328 | V154: 120.957562 | W154: 109.9731336 | X154: 100.7925996 | Y154: 93.0294112 | Z154: 22 | AK154: BDLB1CLAS | AL154: 105.413 | AM154: 49.4703209 | AN154: 43.9783036 | AO154: 39.5825815 | AP154: 35.9879982 | AQ154: 32.9837277 | AR154: 30.4432744 | AS154: 6 | AU154: 712.558 | AV154: 334.4034694 | AW154: 297.2791976 | AX154: 267.565529 | AY154: 243.2673012 | AZ154: 222.9593982 | BA154: 205.7867504 | BB154: 113 | BC154: 712.558 | BD154: -0.00180268485
A155: BDLBBC39RKA | B155: BBC39RKA | C155: BBC39RKA | D155: BBC39R | E155: BBC39R | F155: BDLBU39PB | H155: 285.021 | I155: 133.7603553 | J155: 118.9107612 | K155: 107.0253855 | L155: 97.3061694 | M155: 89.1830709 | N155: 82.3140648 | O155: 85 | Q155: BDLBBC39RKAN | S155: 322.124 | T155: 151.1727932 | U155: 134.3901328 | V155: 120.957562 | W155: 109.9731336 | X155: 100.7925996 | Y155: 93.0294112 | Z155: 22 | AK155: BDLB1CLAS | AL155: 105.413 | AM155: 49.4703209 | AN155: 43.9783036 | AO155: 39.5825815 | AP155: 35.9879982 | AQ155: 32.9837277 | AR155: 30.4432744 | AS155: 6 | AU155: 712.558 | AV155: 334.4034694 | AW155: 297.2791976 | AX155: 267.565529 | AY155: 243.2673012 | AZ155: 222.9593982 | BA155: 205.7867504 | BB155: 113 | BC155: 712.558 | BD155: -0.00180268485
A156: BDLB9KA | B156: B9KA | C156: B9KA | D156: B9 | E156: B9 | F156: BDLBU9PB | H156: 163.196 | I156: 76.5878828 | J156: 68.0853712 | K156: 61.280098 | L156: 55.7151144 | M156: 51.0640284 | N156: 47.1310048 | O156: 40 | Q156: BDLB9KAN | S156: 167.706 | T156: 78.7044258 | U156: 69.9669432 | V156: 62.973603 | W156: 57.2548284 | X156: 52.4752074 | Y156: 48.4334928 | Z156: 10 | AK156: BDLB3CLAS | AL156: 105.413 | AM156: 49.4703209 | AN156: 43.9783036 | AO156: 39.5825815 | AP156: 35.9879982 | AQ156: 32.9837277 | AR156: 30.4432744 | AS156: 6 | AU156: 436.315 | AV156: 204.7626295 | AW156: 182.030618 | AX156: 163.8362825 | AY156: 148.957941 | AZ156: 136.5229635 | BA156: 126.007772 | BB156: 56 | BC156: 436.315 | BD156: -0.004591945451
A157: BDLBBCKA | B157: BBCKA | C157: BBCKA | D157: BBC | E157: BBC
A158: BDLOT332412KA | B158: OT332412KA | C158: OT332412KA | D158: OT332412 | E158: OT332412 | F158: BDLOT332412PB | H158: 159.269 | I158: 74.7449417 | J158: 66.4470268 | K158: 59.8055095 | L158: 54.3744366 | M158: 49.8352701 | N158: 45.9968872 | O158: 40 | Q158: BDLOT332412KAN | S158: 175.78 | T158: 82.493554 | U158: 73.335416 | V158: 66.00539 | W158: 60.011292 | X158: 55.001562 | Y158: 50.765264 | Z158: 10 | AK158: BDLW2CLAS | AL158: 33.286 | AM158: 15.6211198 | AN158: 13.8869192 | AO158: 12.498893 | AP158: 11.3638404 | AQ158: 10.4151894 | AR158: 9.6129968 | AS158: 1 | AU158: 368.335 | AV158: =SUM(I158, T158, AM158) -> 172.8596155 | AW158: 153.669362 | AX158: 138.3097925 | AY158: 125.749569 | AZ158: 115.2520215 | BA158: 106.375148 | BB158: 51 | BC158: 368.335 | BD158: 0.0002237374813
A159: BDLOT332418KA | B159: OT332418KA | C159: OT332418KA | D159: OT332418 | E159: OT332418 | F159: BDLOT332418PB | H159: 183.997 | I159: 86.3497921 | J159: 76.7635484 | K159: 69.0908735 | L159: 62.8165758 | M159: 57.5726613 | N159: 53.1383336 | O159: 50 | Q159: BDLOT332418KAN | S159: 217.03 | T159: 101.852179 | U159: 90.544916 | V159: 81.494765 | W159: 74.094042 | X159: 67.908687 | Y159: 62.678264 | Z159: 13 | AK159: BDLW2CLAS | AL159: 33.286 | AM159: 15.6211198 | AN159: 13.8869192 | AO159: 12.498893 | AP159: 11.3638404 | AQ159: 10.4151894 | AR159: 9.6129968 | AS159: 1 | AU159: 434.313 | AV159: 203.8230909 | AW159: 181.1953836 | AX159: 163.0845315 | AY159: 148.2744582 | AZ159: 135.8965377 | BA159: 125.4295944 | BB159: 64 | BC159: 434.313 | BD159: 0.005793735351
A160: BDLOT332424KA | B160: OT332424KA | C160: OT332424KA | D160: OT332424 | E160: OT332424 | F160: BDLOT332424PB | H160: 241.428 | I160: 113.3021604 | J160: 100.7237616 | K160: 90.656214 | L160: 82.4235192 | M160: 75.5428212 | N160: 69.7244064 | O160: 70 | Q160: BDLOT332424KAN | S160: 255.783 | T160: 120.0389619 | U160: 106.7126676 | V160: 96.0465165 | W160: 87.3243162 | X160: 80.0345007 | Y160: 73.8701304 | Z160: 16 | AK160: BDLW2CLAS | AL160: 33.286 | AM160: 15.6211198 | AN160: 13.8869192 | AO160: 12.498893 | AP160: 11.3638404 | AQ160: 10.4151894 | AR160: 9.6129968 | AS160: 1 | AU160: 530.497 | AV160: 248.9622421 | AW160: 221.3233484 | AX160: 199.2016235 | AY160: 181.1116758 | AZ160: 165.9925113 | BA160: 153.2075336 | BB160: 87 | BC160: 530.497 | BD160: 0.004924355423
A161: BDLOB332472KA | B161: OB332472KA | C161: OB332472KA | D161: OB332472 | E161: OB332472 | F161: BDLOB332472PB | H161: 354.288 | I161: 166.2673584 | J161: 147.8089536 | K161: 133.035144 | L161: 120.9539232 | M161: 110.8567152 | N161: 102.3183744 | O161: 100 | Q161: BDLOB332472KAN | S161: 371.69 | T161: 174.434117 | U161: 155.069068 | V161: 139.569595 | W161: 126.894966 | X161: 116.301801 | Y161: 107.344072 | Z161: 28 | AK161: BDLB6CLAS | AL161: 88.781 | AM161: 41.6649233 | AN161: 37.0394332 | AO161: 33.3372655 | AP161: 30.3098334 | AQ161: 27.7795749 | AR161: 25.6399528 | AS161: 20 | AU161: 814.759 | AV161: 382.3663987 | AW161: 339.9174548 | AX161: 305.9420045 | AY161: 278.1587226 | AZ161: 254.9380911 | BA161: 235.3023992 | BB161: 148 | BC161: 814.759 | BD161: 0.01026422331
A162: BDLOD332415KA | B162: OD332415KA | C162: OD332415KA | D162: OD332415 | E162: OD332415 | F162: BDLOD332415PB | H162: 190.091 | I162: 89.2097063 | J162: 79.3059652 | K162: 71.3791705 | L162: 64.8970674 | M162: 59.4794739 | N162: 54.8982808 | O162: 55 | Q162: BDLOD332415KAN | S162: 325.974 | T162: 152.9795982 | U162: 135.9963528 | V162: 122.403237 | W162: 111.2875236 | X162: 101.9972646 | Y162: 94.1412912 | Z162: 26 | AK162: BDLB6CLAS | AL162: 88.781 | AM162: 41.6649233 | AN162: 37.0394332 | AO162: 33.3372655 | AP162: 30.3098334 | AQ162: 27.7795749 | AR162: 25.6399528 | AS162: 20 | AU162: 604.846 | AV162: 283.8542278 | AW162: 252.3417512 | AX162: 227.119673 | AY162: 206.4944244 | AZ162: 189.2563134 | BA162: 174.6795248 | BB162: 101 | BC162: 604.846 | BD162: 0.004896654592
A163: BDLW332424KA | B163: W332424KA | C163: W332424KA | D163: W332424 | E163: W332424 | F163: BDLW332424PB | H163: 241.428 | I163: 113.3021604 | J163: 100.7237616 | K163: 90.656214 | L163: 82.4235192 | M163: 75.5428212 | N163: 69.7244064 | Q163: BDLW3324KAN | S163: 258.016 | T163: 121.0869088 | U163: 107.6442752 | V163: 96.885008 | W163: 88.0866624 | X163: 80.7332064 | Y163: 74.5150208 | AK163: BDLW2CLAS | AL163: 33.286 | AM163: 15.6211198 | AN163: 13.8869192 | AO163: 12.498893 | AP163: 11.3638404 | AQ163: 10.4151894 | AR163: 9.6129968 | AU163: 532.73 | AV163: 250.010189 | AW163: 222.254956 | AX163: 200.040115 | AY163: 181.874022 | AZ163: 166.691217 | BA163: 153.852424 | BC163: 532.73
A164: BDLBFD9KA | B164: BFD9KA | C164: BFD9KA | D164: BFD9 | E164: BFD9 | F164: BDLBU9PB | H164: 163.196 | I164: 76.5878828 | J164: 68.0853712 | K164: 61.280098 | L164: 55.7151144 | M164: 51.0640284 | N164: 47.1310048 | O164: 40 | Q164: BDLW0930KAN | S164: 124.85 | T164: 58.592105 | U164: 52.08742 | V164: 46.881175 | W164: 42.62379 | X164: 39.065565 | Y164: 36.05668 | Z164: 5 | AK164: BDLW1CLAS | AL164: 16.643 | AM164: 7.8105599 | AN164: 6.9434596 | AO164: 6.2494465 | AP164: 5.6819202 | AQ164: 5.2075947 | AR164: 4.8064984 | AS164: 1 | AU164: 304.689 | AV164: 142.9905477 | AW164: 127.1162508 | AX164: 114.4107195 | AY164: 104.0208246 | AZ164: 95.3371881 | BA164: 87.9941832 | BB164: 46 | BC164: 304.689 | BD164: 0.00299808225
A165: FF | H165: 0 | I165: 0 | J165: 0 | K165: 0 | L165: 0 | M165: 0 | N165: 0 | S165: 0 | T165: 0 | U165: 0 | V165: 0 | W165: 0 | X165: 0 | Y165: 0
A166: BDLVCD30LKAN | B166: VCD30LKAN | C166: VCD30LKAN | E166: VCD30LKAN | H166: 464.607 | I166: 218.0400651 | J166: 193.8340404 | K166: 174.4599285 | L166: 158.6168298 | M166: 145.3755303 | N166: 134.1785016 | O166: 30 | Q166: BDLVCD30LKAN | S166: 464.607 | T166: 218.0400651 | U166: 193.8340404 | V166: 174.4599285 | W166: 158.6168298 | X166: 145.3755303 | Y166: 134.1785016 | Z166: 30 | AU166: 464.607 | AV166: 218.0400651 | AW166: 193.8340404 | AX166: 174.4599285 | AY166: 158.6168298 | AZ166: 145.3755303 | BA166: 134.1785016 | BB166: 30
A167: BDLVCD30RKAN | B167: VCD30RKAN | C167: VCD30RKAN | E167: VCD30RKAN | H167: 464.607 | I167: 218.0400651 | J167: 193.8340404 | K167: 174.4599285 | L167: 158.6168298 | M167: 145.3755303 | N167: 134.1785016 | O167: 30 | Q167: BDLVCD30RKAN | S167: 464.607 | T167: 218.0400651 | U167: 193.8340404 | V167: 174.4599285 | W167: 158.6168298 | X167: 145.3755303 | Y167: 134.1785016 | Z167: 30 | AU167: 464.607 | AV167: 218.0400651 | AW167: 193.8340404 | AX167: 174.4599285 | AY167: 158.6168298 | AZ167: 145.3755303 | BA167: 134.1785016 | BB167: 30
A168: BDLB12KAN | B168: B12KAN | C168: B12KAN | E168: B12KAN | H168: 194.172 | I168: 91.1249196 | J168: 81.0085584 | K168: 72.911586 | L168: 66.2903208 | M168: 60.7564188 | N168: 56.0768736 | O168: 12 | Q168: BDLB12KAN | S168: 194.172 | T168: 91.1249196 | U168: 81.0085584 | V168: 72.911586 | W168: 66.2903208 | X168: 60.7564188 | Y168: 56.0768736 | Z168: 12 | AU168: 194.172 | AV168: 91.1249196 | AW168: 81.0085584 | AX168: 72.911586 | AY168: 66.2903208 | AZ168: 60.7564188 | BA168: 56.0768736 | BB168: 12
A169: BDLW1230KAN | B169: W1230KAN | C169: W1230KAN | E169: W1230KAN | H169: 142.12 | I169: 66.696916 | J169: 59.292464 | K169: 53.36606 | L169: 48.519768 | M169: 44.469348 | N169: 41.044256 | O169: 6 | Q169: BDLW1230KAN | S169: 142.12 | T169: 66.696916 | U169: 59.292464 | V169: 53.36606 | W169: 48.519768 | X169: 44.469348 | Y169: 41.044256 | Z169: 6 | AU169: 142.12 | AV169: 66.696916 | AW169: 59.292464 | AX169: 53.36606 | AY169: 48.519768 | AZ169: 44.469348 | BA169: 41.044256 | BB169: 6
A170: BDLDB12KAN | B170: DB12KAN | C170: DB12KAN | E170: DB12KAN | H170: 351.186 | I170: 164.8115898 | J170: 146.5147992 | K170: 131.870343 | L170: 119.8949004 | M170: 109.8860994 | N170: 101.4225168 | O170: 28 | Q170: BDLDB12KAN | S170: 351.186 | T170: 164.8115898 | U170: 146.5147992 | V170: 131.870343 | W170: 119.8949004 | X170: 109.8860994 | Y170: 101.4225168 | Z170: 28 | AU170: 351.186 | AV170: 164.8115898 | AW170: 146.5147992 | AX170: 131.870343 | AY170: 119.8949004 | AZ170: 109.8860994 | BA170: 101.4225168 | BB170: 28
A171: BDLVB12KAN | B171: VB12KAN | C171: VB12KAN | E171: VB12KAN | H171: 184.976 | I171: 86.8092368 | J171: 77.1719872 | K171: 69.458488 | L171: 63.1508064 | M171: 57.8789904 | N171: 53.4210688 | O171: 11 | Q171: BDLVB12KAN | S171: 184.976 | T171: 86.8092368 | U171: 77.1719872 | V171: 69.458488 | W171: 63.1508064 | X171: 57.8789904 | Y171: 53.4210688 | Z171: 11 | AU171: 184.976 | AV171: 86.8092368 | AW171: 77.1719872 | AX171: 69.458488 | AY171: 63.1508064 | AZ171: 57.8789904 | BA171: 53.4210688 | BB171: 11
A172: BDLVBD12KAN | B172: VBD12KAN | C172: VBD12KAN | E172: VBD12KAN | H172: 321.123 | I172: 150.7030239 | J172: 133.9725156 | K172: 120.5816865 | L172: 109.6313922 | M172: 100.4793867 | N172: 92.7403224 | O172: 25 | Q172: BDLVBD12KAN | S172: 321.123 | T172: 150.7030239 | U172: 133.9725156 | V172: 120.5816865 | W172: 109.6313922 | X172: 100.4793867 | Y172: 92.7403224 | Z172: 25 | AU172: 321.123 | AV172: 150.7030239 | AW172: 133.9725156 | AX172: 120.5816865 | AY172: 109.6313922 | AZ172: 100.4793867 | BA172: 92.7403224 | BB172: 25
A173: BDLW3012KAN | B173: W3012KAN | C173: W3012KAN | E173: W3012KAN | H173: 167.585 | I173: 78.6476405 | J173: 69.916462 | K173: 62.9281675 | L173: 57.213519 | M173: 52.4373465 | N173: 48.398548 | O173: 6 | Q173: BDLW3012KAN | S173: 167.585 | T173: 78.6476405 | U173: 69.916462 | V173: 62.9281675 | W173: 57.213519 | X173: 52.4373465 | Y173: 48.398548 | Z173: 6 | AU173: 167.585 | AV173: 78.6476405 | AW173: 69.916462 | AX173: 62.9281675 | AY173: 57.213519 | AZ173: 52.4373465 | BA173: 48.398548 | BB173: 6
A174: BDLW3312KAN | B174: W3312KAN | C174: W3312KAN | E174: W3312KAN | H174: 181.005 | I174: 84.9456465 | J174: 75.515286 | K174: 67.9673775 | L174: 61.795107 | M174: 56.6364645 | N174: 52.274244 | O174: 8 | Q174: BDLW3312KAN | S174: 181.005 | T174: 84.9456465 | U174: 75.515286 | V174: 67.9673775 | W174: 61.795107 | X174: 56.6364645 | Y174: 52.274244 | Z174: 8 | AU174: 181.005 | AV174: 84.9456465 | AW174: 75.515286 | AX174: 67.9673775 | AY174: 61.795107 | AZ174: 56.6364645 | BA174: 52.274244 | BB174: 8
A175: BDLW3612KAN | B175: W3612KAN | C175: W3612KAN | E175: W3612KAN | H175: 194.667 | I175: 91.3572231 | J175: 81.2150724 | K175: 73.0974585 | L175: 66.4593138 | M175: 60.9113043 | N175: 56.2198296 | O175: 8 | Q175: BDLW3612KAN | S175: 194.667 | T175: 91.3572231 | U175: 81.2150724 | V175: 73.0974585 | W175: 66.4593138 | X175: 60.9113043 | Y175: 56.2198296 | Z175: 8 | AU175: 194.667 | AV175: 91.3572231 | AW175: 81.2150724 | AX175: 73.0974585 | AY175: 66.4593138 | AZ175: 60.9113043 | BA175: 56.2198296 | BB175: 8
A176: BDLB15KAN | B176: B15KAN | C176: B15KAN | E176: B15KAN | H176: 220.132 | I176: 103.3079476 | J176: 91.8390704 | K176: 82.659566 | L176: 75.1530648 | M176: 68.8793028 | N176: 63.5741216 | O176: 13 | Q176: BDLB15KAN | S176: 220.132 | T176: 103.3079476 | U176: 91.8390704 | V176: 82.659566 | W176: 75.1530648 | X176: 68.8793028 | Y176: 63.5741216 | Z176: 13 | AU176: 220.132 | AV176: 103.3079476 | AW176: 91.8390704 | AX176: 82.659566 | AY176: 75.1530648 | AZ176: 68.8793028 | BA176: 63.5741216 | BB176: 13
A177: BDLW1530KAN | B177: W1530KAN | C177: W1530KAN | E177: W1530KAN | H177: 164.846 | I177: 77.3622278 | J177: 68.7737512 | K177: 61.899673 | L177: 56.2784244 | M177: 51.5803134 | N177: 47.6075248 | O177: 8 | Q177: BDLW1530KAN | S177: 164.846 | T177: 77.3622278 | U177: 68.7737512 | V177: 61.899673 | W177: 56.2784244 | X177: 51.5803134 | Y177: 47.6075248 | Z177: 8 | AU177: 164.846 | AV177: 77.3622278 | AW177: 68.7737512 | AX177: 61.899673 | AY177: 56.2784244 | AZ177: 51.5803134 | BA177: 47.6075248 | BB177: 8
A178: BDLDB15KAN | B178: DB15KAN | C178: DB15KAN | E178: DB15KAN | H178: 393.305 | I178: 184.5780365 | J178: 164.086846 | K178: 147.6860275 | L178: 134.274327 | M178: 123.0651345 | N178: 113.586484 | O178: 34 | Q178: BDLDB15KAN | S178: 393.305 | T178: 184.5780365 | U178: 164.086846 | V178: 147.6860275 | W178: 134.274327 | X178: 123.0651345 | Y178: 113.586484 | Z178: 34 | AU178: 393.305 | AV178: 184.5780365 | AW178: 164.086846 | AX178: 147.6860275 | AY178: 134.274327 | AZ178: 123.0651345 | BA178: 113.586484 | BB178: 34
A179: BDLVB15KAN | B179: VB15KAN | C179: VB15KAN | E179: VB15KAN | H179: 211.431 | I179: 99.2245683 | J179: 88.2090132 | K179: 79.3923405 | L179: 72.1825434 | M179: 66.1567599 | N179: 61.0612728 | O179: 13 | Q179: BDLVB15KAN | S179: 211.431 | T179: 99.2245683 | U179: 88.2090132 | V179: 79.3923405 | W179: 72.1825434 | X179: 66.1567599 | Y179: 61.0612728 | Z179: 13 | AU179: 211.431 | AV179: 99.2245683 | AW179: 88.2090132 | AX179: 79.3923405 | AY179: 72.1825434 | AZ179: 66.1567599 | BA179: 61.0612728 | BB179: 13
A180: BDLVBD15KAN | B180: VBD15KAN | C180: VBD15KAN | E180: VBD15KAN | H180: 364.364 | I180: 170.9960252 | J180: 152.0126608 | K180: 136.818682 | L180: 124.3938696 | M180: 114.0094956 | N180: 105.2283232 | O180: 32 | Q180: BDLVBD15KAN | S180: 364.364 | T180: 170.9960252 | U180: 152.0126608 | V180: 136.818682 | W180: 124.3938696 | X180: 114.0094956 | Y180: 105.2283232 | Z180: 32 | AU180: 364.364 | AV180: 170.9960252 | AW180: 152.0126608 | AX180: 136.818682 | AY180: 124.3938696 | AZ180: 114.0094956 | BA180: 105.2283232 | BB180: 32
A181: BDLW3015KAN | B181: W3015KAN | C181: W3015KAN | E181: W3015KAN | H181: 174.163 | I181: 81.7346959 | J181: 72.6608036 | K181: 65.3982065 | L181: 59.4592482 | M181: 54.4956027 | N181: 50.2982744 | O181: 8 | Q181: BDLW3015KAN | S181: 174.163 | T181: 81.7346959 | U181: 72.6608036 | V181: 65.3982065 | W181: 59.4592482 | X181: 54.4956027 | Y181: 50.2982744 | Z181: 8 | AU181: 174.163 | AV181: 81.7346959 | AW181: 72.6608036 | AX181: 65.3982065 | AY181: 59.4592482 | AZ181: 54.4956027 | BA181: 50.2982744 | BB181: 8
A182: BDLW3015KAN | B182: W3015KAN | C182: W3015KAN | E182: W3015KAN | H182: 174.163 | I182: 81.7346959 | J182: 72.6608036 | K182: 65.3982065 | L182: 59.4592482 | M182: 54.4956027 | N182: 50.2982744 | O182: 8 | Q182: BDLW3015KAN | S182: 174.163 | T182: 81.7346959 | U182: 72.6608036 | V182: 65.3982065 | W182: 59.4592482 | X182: 54.4956027 | Y182: 50.2982744 | Z182: 8 | AU182: 174.163 | AV182: 81.7346959 | AW182: 72.6608036 | AX182: 65.3982065 | AY182: 59.4592482 | AZ182: 54.4956027 | BA182: 50.2982744 | BB182: 8
A183: BDLW3018KAN | B183: W3018KAN | C183: W3018KAN | E183: W3018KAN | H183: 204.974 | I183: 96.1942982 | J183: 85.5151528 | K183: 76.967737 | L183: 69.9781236 | M183: 64.1363646 | N183: 59.1964912 | O183: 10 | Q183: BDLW3018KAN | S183: 204.974 | T183: 96.1942982 | U183: 85.5151528 | V183: 76.967737 | W183: 69.9781236 | X183: 64.1363646 | Y183: 59.1964912 | Z183: 10 | AU183: 204.974 | AV183: 96.1942982 | AW183: 85.5151528 | AX183: 76.967737 | AY183: 69.9781236 | AZ183: 64.1363646 | BA183: 59.1964912 | BB183: 10
A184: BDLW3021KAN | B184: W3021KAN | C184: W3021KAN | E184: W3021KAN | H184: 206.712 | I184: 97.0099416 | J184: 86.2402464 | K184: 77.620356 | L184: 70.5714768 | M184: 64.6801848 | N184: 59.6984256 | O184: 11 | Q184: BDLW3021KAN | S184: 206.712 | T184: 97.0099416 | U184: 86.2402464 | V184: 77.620356 | W184: 70.5714768 | X184: 64.6801848 | Y184: 59.6984256 | Z184: 11 | AU184: 206.712 | AV184: 97.0099416 | AW184: 86.2402464 | AX184: 77.620356 | AY184: 70.5714768 | AZ184: 64.6801848 | BA184: 59.6984256 | BB184: 11
A185: BDLW3024KAN | B185: W3024KAN | C185: W3024KAN | E185: W3024KAN | H185: 238.271 | I185: 111.8205803 | J185: 99.4066612 | K185: 89.4707605 | L185: 81.3457194 | M185: 74.5549959 | N185: 68.8126648 | O185: 12 | Q185: BDLW3024KAN | S185: 238.271 | T185: 111.8205803 | U185: 99.4066612 | V185: 89.4707605 | W185: 81.3457194 | X185: 74.5549959 | Y185: 68.8126648 | Z185: 12 | AU185: 238.271 | AV185: 111.8205803 | AW185: 99.4066612 | AX185: 89.4707605 | AY185: 81.3457194 | AZ185: 74.5549959 | BA185: 68.8126648 | BB185: 12
A186: BDLW3315KAN | B186: W3315KAN | C186: W3315KAN | E186: W3315KAN | H186: 198.143 | I186: 92.9885099 | J186: 82.6652596 | K186: 74.4026965 | L186: 67.6460202 | M186: 61.9989447 | N186: 57.2236984 | O186: 10 | Q186: BDLW3315KAN | S186: 198.143 | T186: 92.9885099 | U186: 82.6652596 | V186: 74.4026965 | W186: 67.6460202 | X186: 61.9989447 | Y186: 57.2236984 | Z186: 10 | AU186: 198.143 | AV186: 92.9885099 | AW186: 82.6652596 | AX186: 74.4026965 | AY186: 67.6460202 | AZ186: 61.9989447 | BA186: 57.2236984 | BB186: 10
A187: BDLW3615KAN | B187: W3615KAN | C187: W3615KAN | E187: W3615KAN | H187: 210.694 | I187: 98.8786942 | J187: 87.9015368 | K187: 79.115597 | L187: 71.9309316 | M187: 65.9261526 | N187: 60.8484272 | O187: 9 | Q187: BDLW3615KAN | S187: 210.694 | T187: 98.8786942 | U187: 87.9015368 | V187: 79.115597 | W187: 71.9309316 | X187: 65.9261526 | Y187: 60.8484272 | Z187: 9 | AU187: 210.694 | AV187: 98.8786942 | AW187: 87.9015368 | AX187: 79.115597 | AY187: 71.9309316 | AZ187: 65.9261526 | BA187: 60.8484272 | BB187: 9
A188: BDLW3915KAN | B188: W3915KAN | C188: W3915KAN | E188: W3915KAN | H188: 227.337 | I188: 106.6892541 | J188: 94.8449964 | K188: 85.3650435 | L188: 77.6128518 | M188: 71.1337473 | N188: 65.6549256 | O188: 10 | Q188: BDLW3915KAN | S188: 227.337 | T188: 106.6892541 | U188: 94.8449964 | V188: 85.3650435 | W188: 77.6128518 | X188: 71.1337473 | Y188: 65.6549256 | Z188: 10 | AU188: 227.337 | AV188: 106.6892541 | AW188: 94.8449964 | AX188: 85.3650435 | AY188: 77.6128518 | AZ188: 71.1337473 | BA188: 65.6549256 | BB188: 10
A189: BDLWDC2436KAN | B189: WDC2436KAN | C189: WDC2436KAN | E189: WDC2436KAN | H189: 235.411 | I189: 110.4783823 | J189: 98.2134692 | K189: 88.3968305 | L189: 80.3693154 | M189: 73.6601019 | N189: 67.9866968 | O189: 10 | Q189: BDLWDC2436KAN | S189: 235.411 | T189: 110.4783823 | U189: 98.2134692 | V189: 88.3968305 | W189: 80.3693154 | X189: 73.6601019 | Y189: 67.9866968 | Z189: 10 | AU189: 235.411 | AV189: 110.4783823 | AW189: 98.2134692 | AX189: 88.3968305 | AY189: 80.3693154 | AZ189: 73.6601019 | BA189: 67.9866968 | BB189: 10
A190: BDLWDC2442KAN | B190: WDC2442KAN | C190: WDC2442KAN | E190: WDC2442KAN | H190: 259.391 | I190: 121.7321963 | J190: 108.2179252 | K190: 97.4013205 | L190: 88.5560874 | M190: 81.1634439 | N190: 74.9121208 | O190: 12 | Q190: BDLWDC2442KAN | S190: 259.391 | T190: 121.7321963 | U190: 108.2179252 | V190: 97.4013205 | W190: 88.5560874 | X190: 81.1634439 | Y190: 74.9121208 | Z190: 12 | AU190: 259.391 | AV190: 121.7321963 | AW190: 108.2179252 | AX190: 97.4013205 | AY190: 88.5560874 | AZ190: 81.1634439 | BA190: 74.9121208 | BB190: 12
A191: BDLB18KAN | B191: B18KAN | C191: B18KAN | E191: B18KAN | H191: 241.494 | I191: 113.3331342 | J191: 100.7512968 | K191: 90.680997 | L191: 82.4460516 | M191: 75.5634726 | N191: 69.7434672 | O191: 16 | Q191: BDLB18KAN | S191: 241.494 | T191: 113.3331342 | U191: 100.7512968 | V191: 90.680997 | W191: 82.4460516 | X191: 75.5634726 | Y191: 69.7434672 | Z191: 16 | AU191: 241.494 | AV191: 113.3331342 | AW191: 100.7512968 | AX191: 90.680997 | AY191: 82.4460516 | AZ191: 75.5634726 | BA191: 69.7434672 | BB191: 16
A192: BDLW1830KAN | B192: W1830KAN | C192: W1830KAN | E192: W1830KAN | H192: 186.967 | I192: 87.7436131 | J192: 78.0026324 | K192: 70.2061085 | L192: 63.8305338 | M192: 58.5019743 | N192: 53.9960696 | O192: 10 | Q192: BDLW1830KAN | S192: 186.967 | T192: 87.7436131 | U192: 78.0026324 | V192: 70.2061085 | W192: 63.8305338 | X192: 58.5019743 | Y192: 53.9960696 | Z192: 10 | AU192: 186.967 | AV192: 87.7436131 | AW192: 78.0026324 | AX192: 70.2061085 | AY192: 63.8305338 | AZ192: 58.5019743 | BA192: 53.9960696 | BB192: 10
A193: BDLCPU18KAN | B193: CPU18KAN | C193: CPU18KAN | E193: CPU18KAN | H193: 195.283 | I193: 91.6463119 | J193: 81.4720676 | K193: 73.3287665 | L193: 66.6696162 | M193: 61.1040507 | N193: 56.3977304 | O193: 18 | Q193: BDLCPU18KAN | S193: 195.283 | T193: 91.6463119 | U193: 81.4720676 | V193: 73.3287665 | W193: 66.6696162 | X193: 61.1040507 | Y193: 56.3977304 | Z193: 18 | AU193: 195.283 | AV193: 91.6463119 | AW193: 81.4720676 | AX193: 73.3287665 | AY193: 66.6696162 | AZ193: 61.1040507 | BA193: 56.3977304 | BB193: 18
A194: BDLDB18KAN | B194: DB18KAN | C194: DB18KAN | E194: DB18KAN | H194: 430.826 | I194: 202.1866418 | J194: 179.7406072 | K194: 161.775163 | L194: 147.0839964 | M194: 134.8054554 | N194: 124.4225488 | O194: 37 | Q194: BDLDB18KAN | S194: 430.826 | T194: 202.1866418 | U194: 179.7406072 | V194: 161.775163 | W194: 147.0839964 | X194: 134.8054554 | Y194: 124.4225488 | Z194: 37 | AU194: 430.826 | AV194: 202.1866418 | AW194: 179.7406072 | AX194: 161.775163 | AY194: 147.0839964 | AZ194: 134.8054554 | BA194: 124.4225488 | BB194: 37
A195: BDLFD18KAN | B195: FD18KAN | C195: FD18KAN | E195: FD18KAN | H195: 359.271 | I195: 168.6058803 | J195: 149.8878612 | K195: 134.9062605 | L195: 122.6551194 | M195: 112.4158959 | N195: 103.7574648 | O195: 38 | Q195: BDLFD18KAN | S195: 359.271 | T195: 168.6058803 | U195: 149.8878612 | V195: 134.9062605 | W195: 122.6551194 | X195: 112.4158959 | Y195: 103.7574648 | Z195: 38 | AU195: 359.271 | AV195: 168.6058803 | AW195: 149.8878612 | AX195: 134.9062605 | AY195: 122.6551194 | AZ195: 112.4158959 | BA195: 103.7574648 | BB195: 38
A196: BDLVB18KAN | B196: VB18KAN | C196: VB18KAN | E196: VB18KAN | H196: 241.494 | I196: 113.3331342 | J196: 100.7512968 | K196: 90.680997 | L196: 82.4460516 | M196: 75.5634726 | N196: 69.7434672 | O196: 16 | Q196: BDLVB18KAN | S196: 241.494 | T196: 113.3331342 | U196: 100.7512968 | V196: 90.680997 | W196: 82.4460516 | X196: 75.5634726 | Y196: 69.7434672 | Z196: 16 | AU196: 241.494 | AV196: 113.3331342 | AW196: 100.7512968 | AX196: 90.680997 | AY196: 82.4460516 | AZ196: 75.5634726 | BA196: 69.7434672 | BB196: 16
A197: BDLVBD18KAN | B197: VBD18KAN | C197: VBD18KAN | E197: VBD18KAN | H197: 407.715 | I197: 191.3406495 | J197: 170.098698 | K197: 153.0969825 | L197: 139.193901 | M197: 127.5740235 | N197: 117.748092 | O197: 33 | Q197: BDLVBD18KAN | S197: 407.715 | T197: 191.3406495 | U197: 170.098698 | V197: 153.0969825 | W197: 139.193901 | X197: 127.5740235 | Y197: 117.748092 | Z197: 33 | AU197: 407.715 | AV197: 191.3406495 | AW197: 170.098698 | AX197: 153.0969825 | AY197: 139.193901 | AZ197: 127.5740235 | BA197: 117.748092 | BB197: 33
A198: BDLW3018KAN | B198: W3018KAN | C198: W3018KAN | E198: W3018KAN | H198: 204.974 | I198: 96.1942982 | J198: 85.5151528 | K198: 76.967737 | L198: 69.9781236 | M198: 64.1363646 | N198: 59.1964912 | O198: 10 | Q198: BDLW3018KAN | S198: 204.974 | T198: 96.1942982 | U198: 85.5151528 | V198: 76.967737 | W198: 69.9781236 | X198: 64.1363646 | Y198: 59.1964912 | Z198: 10 | AU198: 204.974 | AV198: 96.1942982 | AW198: 85.5151528 | AX198: 76.967737 | AY198: 69.9781236 | AZ198: 64.1363646 | BA198: 59.1964912 | BB198: 10
A199: BDLW3318KAN | B199: W3318KAN | C199: W3318KAN | E199: W3318KAN | H199: 217.393 | I199: 102.0225349 | J199: 90.6963596 | K199: 81.6310715 | L199: 74.2179702 | M199: 68.0222697 | N199: 62.7830984 | O199: 10 | Q199: BDLW3318KAN | S199: 217.393 | T199: 102.0225349 | U199: 90.6963596 | V199: 81.6310715 | W199: 74.2179702 | X199: 68.0222697 | Y199: 62.7830984 | Z199: 10 | AU199: 217.393 | AV199: 102.0225349 | AW199: 90.6963596 | AX199: 81.6310715 | AY199: 74.2179702 | AZ199: 68.0222697 | BA199: 62.7830984 | BB199: 10
A200: BDLW3618KAN | B200: W3618KAN | C200: W3618KAN | E200: W3618KAN | H200: 235.906 | I200: 110.7106858 | J200: 98.4199832 | K200: 88.582703 | L200: 80.5383084 | M200: 73.8149874 | N200: 68.1296528 | O200: 11 | Q200: BDLW3618KAN | S200: 235.906 | T200: 110.7106858 | U200: 98.4199832 | V200: 88.582703 | W200: 80.5383084 | X200: 73.8149874 | Y200: 68.1296528 | Z200: 11 | AU200: 235.906 | AV200: 110.7106858 | AW200: 98.4199832 | AX200: 88.582703 | AY200: 80.5383084 | AZ200: 73.8149874 | BA200: 68.1296528 | BB200: 11
... 2316 more rows

Sheet DATA3 (hidden)
AP5: Keep | AQ5: Keep | AR5: Keep
B6: To place order: E-MAIL orders@midwestfloors.com or FAX 801-972-5254
BO7: Allowable mulitpliers | BX7: CO Finish
B8: 2014 Version
Z9: Midwest Use Only | AU9: Select_Wood | AW9: select fruit | AX9: apple | CG9: SKA | CJ9: SKANotPainted | CN9: SKAPainted | CS9: CKA | CV9: CKANotPainted | CZ9: CKAPainted | DE9: CM | DI9: CMNotPainted | DN9: CMPainted | DT9: Select | ED9: knotty_alder_painted paint item numbers
C10: Account Name: | Z10: Reference Number: | AP10: Hinge Value | AU10: Shaker_Knotty_Alder | AW10: apple | AX10: peeled | BX10: Shaker KA - Kodiak | CG10: Shaker_KA_Kodiak_ | CJ10: Shaker_KA_Kodiak | CS10: Knotty_Alder_Natural_ | CV10: Knotty_Alder_Natural | DE10: Shaker_White_Birch | DI10: Shaker_Maple_Aspire | DT10: Winter_Haven_Birch
Z11: Order # | AU11: Shaker_White_Birch | AW11: orange | AX11: quartered | BX11: Shaker KA - Painted | CG11: Shaker_KA_Painted | CN11: Aspen Gray | CS11: Knotty_Alder_Painted | CZ11: Antique Brown | DE11: Shaker_Maple_Aspire_Painted | DN11: Aspen Gray | DT11: Maple_Winter_Haven_
Z12: Ship VIA: | AP12: L | AU12: Winter_Haven_Birch | AW12: peach | CN12: Burnished Black | CZ12: Aspen Gray | DN12: Burnished Black | ED12: ItemNumberAG
C13: Sidemark: | Z13: Confirmed Delivery Date: | AP13: R | AU13: Winter_Haven_Birch | AZ13: Assemble options: | BX13: Red Oak - Burnished Black | CN13: Colonial Cream | CZ13: Burnished Black | DN13: Colonial Cream | ED13: ItemNumberBB
C14: Completed by: | BX14: Red Oak - Colonial Cream | CN14: Crushed Oregano | CZ14: Colonial Cream | DN14: Crushed Oregano | ED14: ItemNumberCC
B15: 2015_1.02 | G15: cabinetdesign@midwestfloors.com - 801-975-6125 | BX15: Red Oak - Midnight | CN15: Designer White | CZ15: Crushed Oregano | DN15: Designer White
AF16: Order Total: | AP16: Finished End data validation | AZ16: Yes | BX16: Blank | CN16: Frappe | CZ16: Designer White | DN16: Frappe
C17: Order Date: | U17: Estimate: | Z17: =+I29+W29+W26+X32+X33 ->  | AZ17: No | BO17: painted multiplier | BX17: Blank | CN17: Holly Berry | CZ17: Frappe | DN17: Holly Berry
C18: Requested Ship Date: | U18: DOES NOT INCLUDE TAX OR FREIGHT | AP18: L | BO18: =+G25*1 -> 0 | CN18: Midnight | CZ18: Holly Berry | DN18: Midnight
C19: P.O. # / Sidemark | U19: Confirmed Estimate: | AF19: Sign to place order: | AP19: R | AZ19: Assembly charge: | BO19: non-painted multiplier | CN19: Mountain Smoke | CZ19: Midnight | DN19: Mountain Smoke
C20: Contact: | N20: at | AP20: B | AZ20: =IF(CAB!E16="yes",17,0) -> 0 | BO20: =+G25 -> 0 | CN20: Oatmeal | CZ20: Mountain Smoke | DN20: Oatmeal
AF21: Date: | AZ21: Repackaging charge: | CN21: River Rock | CZ21: Oatmeal | DN21: River Rock
C22: CABINETS | Q22: Total Items: | W22: =+I30+W27 -> 0 | AC22: Notes: | AU22: test for paint charge: | AZ22: =IF(CAB!#REF!="yes",10,0) ->  | CN22: Slate Brown | CZ22: River Rock | DN22: Slate Brown
C23: Assemble | F23: No | J23: Repackage | N23: No | AS23: =AND(CAB!E16="yes",CAB!#REF!="yes") ->  | AU23: =IF(G26=CG11,"true",IF(G26=CS11,"true",IF(G26=DE11,"true","false"))) ->  | CN23: Tuscan Olive | CZ23: Slate Brown | DN23: Tuscan Olive
C24: Wood | I24: =+CAB!H17 -> Select_Wood | Q24: =IF($AS$23=TRUE,"Cannot have YES for both Assemble and Repackage") ->  | CZ24: Toffee
C25: Price Factor | P25: ACCESSORIES | CZ25: Tuscan Olive
C26: Wood Species | G26: =CAB!#REF! ->  | Q26: Total Accessory Cost | W26: =SUM($AJ$36:$AL$52) -> 0 | CZ26: Van Dyke
C27: Wood Finish | Q27: Total Accessories | W27: =+$AD$53 -> 0
E28: =IF($AZ$32=TRUE,"Please reselect Wood Species") -> FALSE | K28: =IF($AU$32=TRUE,"Please reselect Wood Finish") -> FALSE | CN28: 2016 version: | CZ28: 2016 version:
C29: Total Cabinet Cost | I29: =SUM($R$36:$T$65) -> 0 | Q29: Total Modification Cost: | W29: =SUM($AJ$56:$AL$65) -> 0 | AU29: Data for wood/finish selection (G19-G20): | CN29: List of colors | CP29: List of color item#s SHKAN | CZ29: List of colors | DB29: List of color item#s - KAN
C30: Total Cabinet Items | I30: =J66 -> 0 | Q30: Total Weight: | W30: =+$AR$85 -> 0
AU31: =IF(G26=CG10,INDEX(CJ10:CJ10,MATCH(G27,CJ10:CJ10,0)),IF(G26=CG11,INDEX(CN11:CN24,MATCH(G27,CN11:CN24,0)),IF(G26=CS10,INDEX(CV10:CV10,MATCH(G27,CV10:CV10,0)),IF(G26=CS11,INDEX(CZ11:CZ27,MATCH(G27,CZ11:CZ27,0)),IF(G26=DE10,INDEX(DI10:DI10,MATCH(G27,DI10:DI10,0)),IF(G26=DE11,INDEX(DN11:DN24,MATCH(G27,DN11:DN24,0)),7)))))) ->  | AY31: =IF(I24=AU10,VLOOKUP(G26,CG10:CG11,1,FALSE),IF(I24=AU11,VLOOKUP(G26,CS10:CS11,1,FALSE),IF(I24=AU12,VLOOKUP(G26,DE10:DE11,1,FALSE)))) -> FALSE | CN31: =+CN11 -> Aspen Gray | CP31: LABPAINTSHKANAG | CZ31: =+CZ11 -> Antique Brown | DB31: LABPAINTKANAB
J32: Quantity | K32: Hinge L or R | L32: Finished End | Q32: Paint Charge | X32: =IF($AU$23="true",(ROUND(((I29+W26)*0.3),2)),0) ->  | AB32: =+G27 -> 0 | AU32: =ISNA(AU31) -> FALSE | AZ32: =ISNA(AY31) -> FALSE | CN32: =+CN12 -> Burnished Black | CP32: LABPAINTSHKANBB | CZ32: =+CZ12 -> Aspen Gray | DB32: LABPAINTKANAG
Q33: Assembly/Repackaging: | X33: =($AZ$20+$AZ$22)*$J$66 ->  | AD33: Quantity | AU33: =IF(AU32=TRUE,"one",) -> 0 | CN33: Colonial Cream | CP33: LABPAINTSHKANCC | CZ33: Burnished Black | DB33: LABPAINTKANBB
N34: =IF(($G$26=$AU$34),$BO$20,$BO$18) ->  | AP34: Weight Calculation | AU34: Shaker KA - Kodiak | AV34: Shaker KA - Painted | AW34: Red Oak - Chestnut | AX34: Red Oak - Painted | AY34: =G26 ->  | CN34: Crushed Oregano | CP34: LABPAINTSHKANCO | CZ34: Colonial Cream | DB34: LABPAINTKANCC
B35: Items: | E35: Full SKU: | M35: List $ | P35: Cost $ | R35: Total $ | V35: Accessory: | Z35: Full SKU: | AF35: List $ | AH35: Cost $ | AJ35: Total $ | CN35: Designer White | CP35: LABPAINTSHKANDW | CZ35: Crushed Oregano | DB35: LABPAINTKANCO
A36: 1 | E36: =IF(AND(B36<>"",$I$24=$AU$10),INDEX(DATA2!$C$326:$C$645,MATCH(B36,DATA2!$E$326:$E$645,0)),IF(AND(B36<>"",$I$24=$AU$11),INDEX(DATA2!$C$6:$C$320,MATCH(B36,DATA2!$E$6:$E$320,0)),IF(AND(B36<>"",$I$24=$AU$12),INDEX(DATA2!$C$648:$C$967,MATCH(B36,DATA2!$E$648:$E$967,0)),IF(AND(B36<>"",$I$24=$AU$13),INDEX(DATA2!$C$971:$C$1287,MATCH(B36,DATA2!$E$971:$E$1287,0)),"")))) ->  | M36: =IF(AND(J36<>"",$I$24=$AU$10),INDEX(DATA2!$AU$326:$AU$645,MATCH($E36,DATA2!$C$326:$C$645,0)),IF(AND(J36<>"",$I$24=$AU$11),INDEX(DATA2!$AU$6:$AU$323,MATCH($E36,DATA2!$C$6:$C$323,0)),IF(AND(J36<>"",$I$24=$AU$12),INDEX(DATA2!$AU$648:$AU$967,MATCH($E36,DATA2!$C$648:$C$967,0)),IF(AND(J36<>"",$I$24=$AU$13),INDEX(DATA2!$AU$971:$AU$1287,MATCH($E36,DATA2!$C$971:$C$1287,0)),"")))) ->  | P36: =IF(AND($M36<>"",$I$24=$AU$10),(INDEX(DATA2!$AV$5:$BA$1291,MATCH(E36,DATA2!$C$5:$C$1291,0),MATCH($N$34,DATA2!$AV$3:$BA$3,0))),IF(AND($M36<>"",$I$24=$AU$11),(INDEX(DATA2!$AV$6:$BA$1291,MATCH(E36,DATA2!$C$6:$C$1291,0),MATCH($N$34,DATA2!$AV$3:$BA$3,0))),IF(AND($M36<>"",$I$24=$AU$12),(INDEX(DATA2!$AV$5:$BA$1291,MATCH(E36,DATA2!$C$5:$C$1291,0),MATCH($N$34,DATA2!$AV$3:$BA$3,0))),IF(AND($M36<>"",$I$24=$AU$13),(INDEX(DATA2!$AV$6:$BA$1291,MATCH(E36,DATA2!$C$6:$C$1291,0),MATCH($N$34,DATA2!$AV$3:$BA$3,0))),"")))) ->  | Q36: =IF(AND($M36<>"",$I$24=$AU$10),(INDEX(DATA2!$AV$5:$BA$1291,MATCH(G36,DATA2!$C$5:$C$1291,0),MATCH($N$34,DATA2!$AV$3:$BA$3,0))),IF(AND($M36<>"",$I$24=$AU$11),(INDEX(DATA2!$AV$5:$BA$1291,MATCH(G36,DATA2!$C$5:$C$1291,0),MATCH($N$34,DATA2!$AV$3:$BA$3,0))),IF(AND($M36<>"",$I$24=$AU$12),(INDEX(DATA2!$AV$5:$BA$1291,MATCH(G36,DATA2!$C$5:$C$1291,0),MATCH($N$34,DATA2!$AV$3:$BA$3,0))),""))) ->  | R36: =IF($M36<>"",(($J36*$P36)),"") ->  | S36: =IF($M36<>"",(($J36*$O36)),"") ->  | U36: 1 | Y36: =IF(AND(V36<>"",$I$24=$AU$10),INDEX(DATA2!$C$1333:$C$1366,MATCH(V36,DATA2!$E$1333:$E$1366,0)),IF(AND(V36<>"",$I$24=$AU$11),INDEX(DATA2!$C$1294:$C$1326,MATCH(V36,DATA2!$E$1294:$E$1326,0)),IF(AND(V36<>"",$I$24=$AU$12),INDEX(DATA2!$C$1372:$C$1405,MATCH(V36,DATA2!$E$1372:$E$1405,0)),IF(AND(V36<>"",$I$24=$AU$13),INDEX(DATA2!$C$1410:$C$1441,MATCH(V36,DATA2!$E$1410:$E$1441,0)),"")))) ->  | AF36: =IF(AND(AD36<>"",$I$24=$AU$10),INDEX(DATA2!$AU$1333:$AU$1366,MATCH($Y36,DATA2!$B$1333:$B$1366,0)),IF(AND(AD36<>"",$I$24=$AU$11),INDEX(DATA2!$AU$1294:$AU$1326,MATCH($Y36,DATA2!$B$1294:$B$1326,0)),IF(AND(AD36<>"",$I$24=$AU$12),INDEX(DATA2!$AU$1372:$AU$1405,MATCH($Y36,DATA2!$B$1372:$B$1405,0)),IF(AND(AD36<>"",$I$24=$AU$13),INDEX(DATA2!$AU$1410:$AU$1441,MATCH($Y36,DATA2!$B$1410:$B$1441,0)),"")))) ->  | AG36: =IF(AND(AD36<>"",$I$24=$AU$10),INDEX(DATA2!$AU$1331:$AU$1369,MATCH($V36,DATA2!$B$1331:$B$1369,0)),IF(AND(AD36<>"",$I$24=$AU$11),INDEX(DATA2!$AU$1292:$AU$1330,MATCH($V36,DATA2!$B$1292:$B$1330,0)),IF(AND(AD36<>"",$I$24=$AU$12),INDEX(DATA2!$AU$1370:$AU$1570,MATCH($V36,DATA2!$B$1370:$B$1570,0)),""))) ->  | AH36: =IF(AND($AD36<>"",$I$24=$AU$10),(INDEX(DATA2!$AV$1333:$BA$1366,MATCH(Y36,DATA2!$C$1333:$C$1366,0),MATCH($N$34,DATA2!$AV$3:$BA$3,0))),IF(AND($AD36<>"",$I$24=$AU$11),(INDEX(DATA2!$AV$1294:$BA$1326,MATCH(Y36,DATA2!$C$1294:$C$1326,0),MATCH($N$34,DATA2!$AV$3:$BA$3,0))),IF(AND($AD36<>"",$I$24=$AU$12),(INDEX(DATA2!$AV$1372:$BA$1405,MATCH(Y36,DATA2!$C$1372:$C$1405,0),MATCH($N$34,DATA2!$AV$3:$BA$3,0))),IF(AND($AD36<>"",$I$24=$AU$13),(INDEX(DATA2!$AV$1410:$BA$1441,MATCH(Y36,DATA2!$C$1410:$C$1441,0),MATCH($N$34,DATA2!$AV$3:$BA$3,0))),"")))) ->  | AJ36: =IF($AF36<>"",$AD36*$AH36,"") ->  | AP36: =IF(CAB!$H$17=$AU$10,INDEX(DATA2!$BB$325:$BB$645,MATCH(CAB!E25,DATA2!$C$325:$C$645,0)),IF(CAB!$H$17=$AU$11,INDEX(DATA2!$BB$6:$BB$323,MATCH(CAB!E25,DATA2!$C$6:$C$323,0)),IF(CAB!$H$17=$AU$12,INDEX(DATA2!$BB$648:$BB$967,MATCH(CAB!E25,DATA2!$C$648:$C$967,0)),IF(CAB!$H$17=$AU$13,INDEX(DATA2!$BB$971:$BB$1287,MATCH(CAB!E25,DATA2!$C$971:$C$1287,0)),"")))) ->  | AR36: =IF(CAB!J25<>0,CAB!J25*AP36,0) -> 0 | AU36: Knotty Alder - Kodiak | AV36: Shaker KA - Burnished Black | AW36: Red Oak - Chestnut | AX36: Red Oak - Burnished Black | AY36: =IF($AY$34=$AU$34,AU36,IF($AY$34=$AV$34,AV36,IF($AY$34=$AW$34,AW36,IF($AY$34=$AX$34,AX36,2)))) ->  | BB36: =+AD36*AF36 ->  | BC36: =+BB36 ->  | BD36: =+BC36*$G$25 ->  | CN36: Frappe | CP36: LABPAINTSHKANF | CZ36: Designer White | DB36: LABPAINTKANDW
A37: 2 | E37: =IF(AND(B37<>"",$I$24=$AU$10),INDEX(DATA2!$C$326:$C$645,MATCH(B37,DATA2!$E$326:$E$645,0)),IF(AND(B37<>"",$I$24=$AU$11),INDEX(DATA2!$C$6:$C$320,MATCH(B37,DATA2!$E$6:$E$320,0)),IF(AND(B37<>"",$I$24=$AU$12),INDEX(DATA2!$C$648:$C$967,MATCH(B37,DATA2!$E$648:$E$967,0)),IF(AND(B37<>"",$I$24=$AU$13),INDEX(DATA2!$C$971:$C$1287,MATCH(B37,DATA2!$E$971:$E$1287,0)),"")))) ->  | M37: =IF(AND(J37<>"",$I$24=$AU$10),INDEX(DATA2!$AU$326:$AU$645,MATCH($E37,DATA2!$C$326:$C$645,0)),IF(AND(J37<>"",$I$24=$AU$11),INDEX(DATA2!$AU$6:$AU$323,MATCH($E37,DATA2!$C$6:$C$323,0)),IF(AND(J37<>"",$I$24=$AU$12),INDEX(DATA2!$AU$648:$AU$967,MATCH($E37,DATA2!$C$648:$C$967,0)),IF(AND(J37<>"",$I$24=$AU$13),INDEX(DATA2!$AU$971:$AU$1287,MATCH($E37,DATA2!$C$971:$C$1287,0)),"")))) ->  | P37: =IF(AND($M37<>"",$I$24=$AU$10),(INDEX(DATA2!$AV$5:$BA$1291,MATCH(E37,DATA2!$C$5:$C$1291,0),MATCH($N$34,DATA2!$AV$3:$BA$3,0))),IF(AND($M37<>"",$I$24=$AU$11),(INDEX(DATA2!$AV$6:$BA$1291,MATCH(E37,DATA2!$C$6:$C$1291,0),MATCH($N$34,DATA2!$AV$3:$BA$3,0))),IF(AND($M37<>"",$I$24=$AU$12),(INDEX(DATA2!$AV$5:$BA$1291,MATCH(E37,DATA2!$C$5:$C$1291,0),MATCH($N$34,DATA2!$AV$3:$BA$3,0))),IF(AND($M37<>"",$I$24=$AU$13),(INDEX(DATA2!$AV$6:$BA$1291,MATCH(E37,DATA2!$C$6:$C$1291,0),MATCH($N$34,DATA2!$AV$3:$BA$3,0))),"")))) ->  | Q37: =IF(AND($M37<>"",$I$24=$AU$10),(INDEX(DATA2!$AV$5:$BA$1291,MATCH(G37,DATA2!$C$5:$C$1291,0),MATCH($N$34,DATA2!$AV$3:$BA$3,0))),IF(AND($M37<>"",$I$24=$AU$11),(INDEX(DATA2!$AV$5:$BA$1291,MATCH(G37,DATA2!$C$5:$C$1291,0),MATCH($N$34,DATA2!$AV$3:$BA$3,0))),IF(AND($M37<>"",$I$24=$AU$12),(INDEX(DATA2!$AV$5:$BA$1291,MATCH(G37,DATA2!$C$5:$C$1291,0),MATCH($N$34,DATA2!$AV$3:$BA$3,0))),""))) ->  | R37: =IF($M37<>"",(($J37*$P37)),"") ->  | U37: 2 | Y37: =IF(AND(V37<>"",$I$24=$AU$10),INDEX(DATA2!$C$1333:$C$1366,MATCH(V37,DATA2!$E$1333:$E$1366,0)),IF(AND(V37<>"",$I$24=$AU$11),INDEX(DATA2!$C$1294:$C$1326,MATCH(V37,DATA2!$E$1294:$E$1326,0)),IF(AND(V37<>"",$I$24=$AU$12),INDEX(DATA2!$C$1372:$C$1405,MATCH(V37,DATA2!$E$1372:$E$1405,0)),IF(AND(V37<>"",$I$24=$AU$13),INDEX(DATA2!$C$1410:$C$1441,MATCH(V37,DATA2!$E$1410:$E$1441,0)),"")))) ->  | AF37: =IF(AND(AD37<>"",$I$24=$AU$10),INDEX(DATA2!$AU$1333:$AU$1366,MATCH($Y37,DATA2!$B$1333:$B$1366,0)),IF(AND(AD37<>"",$I$24=$AU$11),INDEX(DATA2!$AU$1294:$AU$1326,MATCH($Y37,DATA2!$B$1294:$B$1326,0)),IF(AND(AD37<>"",$I$24=$AU$12),INDEX(DATA2!$AU$1372:$AU$1405,MATCH($Y37,DATA2!$B$1372:$B$1405,0)),IF(AND(AD37<>"",$I$24=$AU$13),INDEX(DATA2!$AU$1410:$AU$1441,MATCH($Y37,DATA2!$B$1410:$B$1441,0)),"")))) ->  | AG37: =IF(AND(AD37<>"",$I$24=$AU$10),INDEX(DATA2!$AU$1331:$AU$1369,MATCH($V37,DATA2!$B$1331:$B$1369,0)),IF(AND(AD37<>"",$I$24=$AU$11),INDEX(DATA2!$AU$1292:$AU$1330,MATCH($V37,DATA2!$B$1292:$B$1330,0)),IF(AND(AD37<>"",$I$24=$AU$12),INDEX(DATA2!$AU$1370:$AU$1570,MATCH($V37,DATA2!$B$1370:$B$1570,0)),""))) ->  | AH37: =IF(AND($AD37<>"",$I$24=$AU$10),(INDEX(DATA2!$AV$1333:$BA$1366,MATCH(Y37,DATA2!$C$1333:$C$1366,0),MATCH($N$34,DATA2!$AV$3:$BA$3,0))),IF(AND($AD37<>"",$I$24=$AU$11),(INDEX(DATA2!$AV$1294:$BA$1326,MATCH(Y37,DATA2!$C$1294:$C$1326,0),MATCH($N$34,DATA2!$AV$3:$BA$3,0))),IF(AND($AD37<>"",$I$24=$AU$12),(INDEX(DATA2!$AV$1372:$BA$1405,MATCH(Y37,DATA2!$C$1372:$C$1405,0),MATCH($N$34,DATA2!$AV$3:$BA$3,0))),IF(AND($AD37<>"",$I$24=$AU$13),(INDEX(DATA2!$AV$1410:$BA$1441,MATCH(Y37,DATA2!$C$1410:$C$1441,0),MATCH($N$34,DATA2!$AV$3:$BA$3,0))),"")))) ->  | AJ37: =IF($AF37<>"",$AD37*$AH37,"") ->  | AP37: =IF(CAB!$H$17=$AU$10,INDEX(DATA2!$BB$325:$BB$645,MATCH(CAB!E26,DATA2!$C$325:$C$645,0)),IF(CAB!$H$17=$AU$11,INDEX(DATA2!$BB$6:$BB$323,MATCH(CAB!E26,DATA2!$C$6:$C$323,0)),IF(CAB!$H$17=$AU$12,INDEX(DATA2!$BB$648:$BB$967,MATCH(CAB!E26,DATA2!$C$648:$C$967,0)),IF(CAB!$H$17=$AU$13,INDEX(DATA2!$BB$971:$BB$1287,MATCH(CAB!E26,DATA2!$C$971:$C$1287,0)),"")))) ->  | AR37: =IF(CAB!J26<>0,CAB!J26*AP37,0) -> 0 | AU37: blank | AV37: Shaker KA - Honeysuckle | AW37: blank | AX37: Red Oak - Colonial Cream | BB37: =+AD37*AF37 ->  | BC37: =+BC36+BB37 ->  | BD37: =+BC37*$G$25 ->  | CN37: Holly Berry | CP37: LABPAINTSHKANHB | CZ37: Frappe | DB37: LABPAINTKANFRA
A38: 3 | E38: =IF(AND(B38<>"",$I$24=$AU$10),INDEX(DATA2!$C$326:$C$645,MATCH(B38,DATA2!$E$326:$E$645,0)),IF(AND(B38<>"",$I$24=$AU$11),INDEX(DATA2!$C$6:$C$320,MATCH(B38,DATA2!$E$6:$E$320,0)),IF(AND(B38<>"",$I$24=$AU$12),INDEX(DATA2!$C$648:$C$967,MATCH(B38,DATA2!$E$648:$E$967,0)),IF(AND(B38<>"",$I$24=$AU$13),INDEX(DATA2!$C$971:$C$1287,MATCH(B38,DATA2!$E$971:$E$1287,0)),"")))) ->  | M38: =IF(AND(J38<>"",$I$24=$AU$10),INDEX(DATA2!$AU$326:$AU$645,MATCH($E38,DATA2!$C$326:$C$645,0)),IF(AND(J38<>"",$I$24=$AU$11),INDEX(DATA2!$AU$6:$AU$323,MATCH($E38,DATA2!$C$6:$C$323,0)),IF(AND(J38<>"",$I$24=$AU$12),INDEX(DATA2!$AU$648:$AU$967,MATCH($E38,DATA2!$C$648:$C$967,0)),IF(AND(J38<>"",$I$24=$AU$13),INDEX(DATA2!$AU$971:$AU$1287,MATCH($E38,DATA2!$C$971:$C$1287,0)),"")))) ->  | P38: =IF(AND($M38<>"",$I$24=$AU$10),(INDEX(DATA2!$AV$5:$BA$1291,MATCH(E38,DATA2!$C$5:$C$1291,0),MATCH($N$34,DATA2!$AV$3:$BA$3,0))),IF(AND($M38<>"",$I$24=$AU$11),(INDEX(DATA2!$AV$6:$BA$1291,MATCH(E38,DATA2!$C$6:$C$1291,0),MATCH($N$34,DATA2!$AV$3:$BA$3,0))),IF(AND($M38<>"",$I$24=$AU$12),(INDEX(DATA2!$AV$5:$BA$1291,MATCH(E38,DATA2!$C$5:$C$1291,0),MATCH($N$34,DATA2!$AV$3:$BA$3,0))),IF(AND($M38<>"",$I$24=$AU$13),(INDEX(DATA2!$AV$6:$BA$1291,MATCH(E38,DATA2!$C$6:$C$1291,0),MATCH($N$34,DATA2!$AV$3:$BA$3,0))),"")))) ->  | Q38: =IF(AND($M38<>"",$I$24=$AU$10),(INDEX(DATA2!$AV$5:$BA$1291,MATCH(G38,DATA2!$C$5:$C$1291,0),MATCH($N$34,DATA2!$AV$3:$BA$3,0))),IF(AND($M38<>"",$I$24=$AU$11),(INDEX(DATA2!$AV$5:$BA$1291,MATCH(G38,DATA2!$C$5:$C$1291,0),MATCH($N$34,DATA2!$AV$3:$BA$3,0))),IF(AND($M38<>"",$I$24=$AU$12),(INDEX(DATA2!$AV$5:$BA$1291,MATCH(G38,DATA2!$C$5:$C$1291,0),MATCH($N$34,DATA2!$AV$3:$BA$3,0))),""))) ->  | U38: 3 | Y38: =IF(AND(V38<>"",$I$24=$AU$10),INDEX(DATA2!$C$1333:$C$1366,MATCH(V38,DATA2!$E$1333:$E$1366,0)),IF(AND(V38<>"",$I$24=$AU$11),INDEX(DATA2!$C$1294:$C$1326,MATCH(V38,DATA2!$E$1294:$E$1326,0)),IF(AND(V38<>"",$I$24=$AU$12),INDEX(DATA2!$C$1372:$C$1405,MATCH(V38,DATA2!$E$1372:$E$1405,0)),IF(AND(V38<>"",$I$24=$AU$13),INDEX(DATA2!$C$1410:$C$1441,MATCH(V38,DATA2!$E$1410:$E$1441,0)),"")))) ->  | AF38: =IF(AND(AD38<>"",$I$24=$AU$10),INDEX(DATA2!$AU$1333:$AU$1366,MATCH($Y38,DATA2!$B$1333:$B$1366,0)),IF(AND(AD38<>"",$I$24=$AU$11),INDEX(DATA2!$AU$1294:$AU$1326,MATCH($Y38,DATA2!$B$1294:$B$1326,0)),IF(AND(AD38<>"",$I$24=$AU$12),INDEX(DATA2!$AU$1372:$AU$1405,MATCH($Y38,DATA2!$B$1372:$B$1405,0)),IF(AND(AD38<>"",$I$24=$AU$13),INDEX(DATA2!$AU$1410:$AU$1441,MATCH($Y38,DATA2!$B$1410:$B$1441,0)),"")))) ->  | AG38: =IF(AND(AD38<>"",$I$24=$AU$10),INDEX(DATA2!$AU$1331:$AU$1369,MATCH($V38,DATA2!$B$1331:$B$1369,0)),IF(AND(AD38<>"",$I$24=$AU$11),INDEX(DATA2!$AU$1292:$AU$1330,MATCH($V38,DATA2!$B$1292:$B$1330,0)),IF(AND(AD38<>"",$I$24=$AU$12),INDEX(DATA2!$AU$1370:$AU$1570,MATCH($V38,DATA2!$B$1370:$B$1570,0)),""))) ->  | AH38: =IF(AND($AD38<>"",$I$24=$AU$10),(INDEX(DATA2!$AV$1333:$BA$1366,MATCH(Y38,DATA2!$C$1333:$C$1366,0),MATCH($N$34,DATA2!$AV$3:$BA$3,0))),IF(AND($AD38<>"",$I$24=$AU$11),(INDEX(DATA2!$AV$1294:$BA$1326,MATCH(Y38,DATA2!$C$1294:$C$1326,0),MATCH($N$34,DATA2!$AV$3:$BA$3,0))),IF(AND($AD38<>"",$I$24=$AU$12),(INDEX(DATA2!$AV$1372:$BA$1405,MATCH(Y38,DATA2!$C$1372:$C$1405,0),MATCH($N$34,DATA2!$AV$3:$BA$3,0))),IF(AND($AD38<>"",$I$24=$AU$13),(INDEX(DATA2!$AV$1410:$BA$1441,MATCH(Y38,DATA2!$C$1410:$C$1441,0),MATCH($N$34,DATA2!$AV$3:$BA$3,0))),"")))) ->  | AP38: =IF(CAB!$H$17=$AU$10,INDEX(DATA2!$BB$325:$BB$645,MATCH(CAB!E27,DATA2!$C$325:$C$645,0)),IF(CAB!$H$17=$AU$11,INDEX(DATA2!$BB$6:$BB$323,MATCH(CAB!E27,DATA2!$C$6:$C$323,0)),IF(CAB!$H$17=$AU$12,INDEX(DATA2!$BB$648:$BB$967,MATCH(CAB!E27,DATA2!$C$648:$C$967,0)),IF(CAB!$H$17=$AU$13,INDEX(DATA2!$BB$971:$BB$1287,MATCH(CAB!E27,DATA2!$C$971:$C$1287,0)),"")))) ->  | AR38: =IF(CAB!J27<>0,CAB!J27*AP38,0) -> 0 | AU38: blank | AV38: Shaker KA - Midnight | AW38: blank | AX38: Red Oak - Midnight | BC38: =+BC37+BB38 ->  | CN38: Midnight | CP38: LABPAINTSHKANMID | CZ38: Holly Berry | DB38: LABPAINTKANHB
A39: 4 | E39: =IF(AND(B39<>"",$I$24=$AU$10),INDEX(DATA2!$C$326:$C$645,MATCH(B39,DATA2!$E$326:$E$645,0)),IF(AND(B39<>"",$I$24=$AU$11),INDEX(DATA2!$C$6:$C$320,MATCH(B39,DATA2!$E$6:$E$320,0)),IF(AND(B39<>"",$I$24=$AU$12),INDEX(DATA2!$C$648:$C$967,MATCH(B39,DATA2!$E$648:$E$967,0)),IF(AND(B39<>"",$I$24=$AU$13),INDEX(DATA2!$C$971:$C$1287,MATCH(B39,DATA2!$E$971:$E$1287,0)),"")))) ->  | M39: =IF(AND(J39<>"",$I$24=$AU$10),INDEX(DATA2!$AU$326:$AU$645,MATCH($E39,DATA2!$C$326:$C$645,0)),IF(AND(J39<>"",$I$24=$AU$11),INDEX(DATA2!$AU$6:$AU$323,MATCH($E39,DATA2!$C$6:$C$323,0)),IF(AND(J39<>"",$I$24=$AU$12),INDEX(DATA2!$AU$648:$AU$967,MATCH($E39,DATA2!$C$648:$C$967,0)),IF(AND(J39<>"",$I$24=$AU$13),INDEX(DATA2!$AU$971:$AU$1287,MATCH($E39,DATA2!$C$971:$C$1287,0)),"")))) ->  | P39: =IF(AND($M39<>"",$I$24=$AU$10),(INDEX(DATA2!$AV$5:$BA$1291,MATCH(E39,DATA2!$C$5:$C$1291,0),MATCH($N$34,DATA2!$AV$3:$BA$3,0))),IF(AND($M39<>"",$I$24=$AU$11),(INDEX(DATA2!$AV$6:$BA$1291,MATCH(E39,DATA2!$C$6:$C$1291,0),MATCH($N$34,DATA2!$AV$3:$BA$3,0))),IF(AND($M39<>"",$I$24=$AU$12),(INDEX(DATA2!$AV$5:$BA$1291,MATCH(E39,DATA2!$C$5:$C$1291,0),MATCH($N$34,DATA2!$AV$3:$BA$3,0))),IF(AND($M39<>"",$I$24=$AU$13),(INDEX(DATA2!$AV$6:$BA$1291,MATCH(E39,DATA2!$C$6:$C$1291,0),MATCH($N$34,DATA2!$AV$3:$BA$3,0))),"")))) ->  | Q39: =IF(AND($M39<>"",$I$24=$AU$10),(INDEX(DATA2!$AV$5:$BA$1291,MATCH(G39,DATA2!$C$5:$C$1291,0),MATCH($N$34,DATA2!$AV$3:$BA$3,0))),IF(AND($M39<>"",$I$24=$AU$11),(INDEX(DATA2!$AV$5:$BA$1291,MATCH(G39,DATA2!$C$5:$C$1291,0),MATCH($N$34,DATA2!$AV$3:$BA$3,0))),IF(AND($M39<>"",$I$24=$AU$12),(INDEX(DATA2!$AV$5:$BA$1291,MATCH(G39,DATA2!$C$5:$C$1291,0),MATCH($N$34,DATA2!$AV$3:$BA$3,0))),""))) ->  | U39: 4 | Y39: =IF(AND(V39<>"",$I$24=$AU$10),INDEX(DATA2!$C$1333:$C$1366,MATCH(V39,DATA2!$E$1333:$E$1366,0)),IF(AND(V39<>"",$I$24=$AU$11),INDEX(DATA2!$C$1294:$C$1326,MATCH(V39,DATA2!$E$1294:$E$1326,0)),IF(AND(V39<>"",$I$24=$AU$12),INDEX(DATA2!$C$1372:$C$1405,MATCH(V39,DATA2!$E$1372:$E$1405,0)),IF(AND(V39<>"",$I$24=$AU$13),INDEX(DATA2!$C$1410:$C$1441,MATCH(V39,DATA2!$E$1410:$E$1441,0)),"")))) ->  | AF39: =IF(AND(AD39<>"",$I$24=$AU$10),INDEX(DATA2!$AU$1333:$AU$1366,MATCH($Y39,DATA2!$B$1333:$B$1366,0)),IF(AND(AD39<>"",$I$24=$AU$11),INDEX(DATA2!$AU$1294:$AU$1326,MATCH($Y39,DATA2!$B$1294:$B$1326,0)),IF(AND(AD39<>"",$I$24=$AU$12),INDEX(DATA2!$AU$1372:$AU$1405,MATCH($Y39,DATA2!$B$1372:$B$1405,0)),IF(AND(AD39<>"",$I$24=$AU$13),INDEX(DATA2!$AU$1410:$AU$1441,MATCH($Y39,DATA2!$B$1410:$B$1441,0)),"")))) ->  | AG39: =IF(AND(AD39<>"",$I$24=$AU$10),INDEX(DATA2!$AU$1331:$AU$1369,MATCH($V39,DATA2!$B$1331:$B$1369,0)),IF(AND(AD39<>"",$I$24=$AU$11),INDEX(DATA2!$AU$1292:$AU$1330,MATCH($V39,DATA2!$B$1292:$B$1330,0)),IF(AND(AD39<>"",$I$24=$AU$12),INDEX(DATA2!$AU$1370:$AU$1570,MATCH($V39,DATA2!$B$1370:$B$1570,0)),""))) ->  | AH39: =IF(AND($AD39<>"",$I$24=$AU$10),(INDEX(DATA2!$AV$1333:$BA$1366,MATCH(Y39,DATA2!$C$1333:$C$1366,0),MATCH($N$34,DATA2!$AV$3:$BA$3,0))),IF(AND($AD39<>"",$I$24=$AU$11),(INDEX(DATA2!$AV$1294:$BA$1326,MATCH(Y39,DATA2!$C$1294:$C$1326,0),MATCH($N$34,DATA2!$AV$3:$BA$3,0))),IF(AND($AD39<>"",$I$24=$AU$12),(INDEX(DATA2!$AV$1372:$BA$1405,MATCH(Y39,DATA2!$C$1372:$C$1405,0),MATCH($N$34,DATA2!$AV$3:$BA$3,0))),IF(AND($AD39<>"",$I$24=$AU$13),(INDEX(DATA2!$AV$1410:$BA$1441,MATCH(Y39,DATA2!$C$1410:$C$1441,0),MATCH($N$34,DATA2!$AV$3:$BA$3,0))),"")))) ->  | AP39: =IF(CAB!$H$17=$AU$10,INDEX(DATA2!$BB$325:$BB$645,MATCH(CAB!E28,DATA2!$C$325:$C$645,0)),IF(CAB!$H$17=$AU$11,INDEX(DATA2!$BB$6:$BB$323,MATCH(CAB!E28,DATA2!$C$6:$C$323,0)),IF(CAB!$H$17=$AU$12,INDEX(DATA2!$BB$648:$BB$967,MATCH(CAB!E28,DATA2!$C$648:$C$967,0)),IF(CAB!$H$17=$AU$13,INDEX(DATA2!$BB$971:$BB$1287,MATCH(CAB!E28,DATA2!$C$971:$C$1287,0)),"")))) ->  | AR39: =IF(CAB!J28<>0,CAB!J28*AP39,0) -> 0 | AU39: blank | AV39: Shaker KA - Oatmeal | AW39: blank | AX39: blank | CN39: Mountain Smoke | CP39: LABPAINTSHKANMS | CZ39: Midnight | DB39: LABPAINTKANMID
A40: 5 | E40: =IF(AND(B40<>"",$I$24=$AU$10),INDEX(DATA2!$C$326:$C$645,MATCH(B40,DATA2!$E$326:$E$645,0)),IF(AND(B40<>"",$I$24=$AU$11),INDEX(DATA2!$C$6:$C$320,MATCH(B40,DATA2!$E$6:$E$320,0)),IF(AND(B40<>"",$I$24=$AU$12),INDEX(DATA2!$C$648:$C$967,MATCH(B40,DATA2!$E$648:$E$967,0)),IF(AND(B40<>"",$I$24=$AU$13),INDEX(DATA2!$C$971:$C$1287,MATCH(B40,DATA2!$E$971:$E$1287,0)),"")))) ->  | M40: =IF(AND(J40<>"",$I$24=$AU$10),INDEX(DATA2!$AU$326:$AU$645,MATCH($E40,DATA2!$C$326:$C$645,0)),IF(AND(J40<>"",$I$24=$AU$11),INDEX(DATA2!$AU$6:$AU$323,MATCH($E40,DATA2!$C$6:$C$323,0)),IF(AND(J40<>"",$I$24=$AU$12),INDEX(DATA2!$AU$648:$AU$967,MATCH($E40,DATA2!$C$648:$C$967,0)),IF(AND(J40<>"",$I$24=$AU$13),INDEX(DATA2!$AU$971:$AU$1287,MATCH($E40,DATA2!$C$971:$C$1287,0)),"")))) ->  | P40: =IF(AND($M40<>"",$I$24=$AU$10),(INDEX(DATA2!$AV$5:$BA$1291,MATCH(E40,DATA2!$C$5:$C$1291,0),MATCH($N$34,DATA2!$AV$3:$BA$3,0))),IF(AND($M40<>"",$I$24=$AU$11),(INDEX(DATA2!$AV$6:$BA$1291,MATCH(E40,DATA2!$C$6:$C$1291,0),MATCH($N$34,DATA2!$AV$3:$BA$3,0))),IF(AND($M40<>"",$I$24=$AU$12),(INDEX(DATA2!$AV$5:$BA$1291,MATCH(E40,DATA2!$C$5:$C$1291,0),MATCH($N$34,DATA2!$AV$3:$BA$3,0))),IF(AND($M40<>"",$I$24=$AU$13),(INDEX(DATA2!$AV$6:$BA$1291,MATCH(E40,DATA2!$C$6:$C$1291,0),MATCH($N$34,DATA2!$AV$3:$BA$3,0))),"")))) ->  | Q40: =IF(AND($M40<>"",$I$24=$AU$10),(INDEX(DATA2!$AV$5:$BA$1291,MATCH(G40,DATA2!$C$5:$C$1291,0),MATCH($N$34,DATA2!$AV$3:$BA$3,0))),IF(AND($M40<>"",$I$24=$AU$11),(INDEX(DATA2!$AV$5:$BA$1291,MATCH(G40,DATA2!$C$5:$C$1291,0),MATCH($N$34,DATA2!$AV$3:$BA$3,0))),IF(AND($M40<>"",$I$24=$AU$12),(INDEX(DATA2!$AV$5:$BA$1291,MATCH(G40,DATA2!$C$5:$C$1291,0),MATCH($N$34,DATA2!$AV$3:$BA$3,0))),""))) ->  | U40: 5 | Y40: =IF(AND(V40<>"",$I$24=$AU$10),INDEX(DATA2!$C$1333:$C$1366,MATCH(V40,DATA2!$E$1333:$E$1366,0)),IF(AND(V40<>"",$I$24=$AU$11),INDEX(DATA2!$C$1294:$C$1326,MATCH(V40,DATA2!$E$1294:$E$1326,0)),IF(AND(V40<>"",$I$24=$AU$12),INDEX(DATA2!$C$1372:$C$1405,MATCH(V40,DATA2!$E$1372:$E$1405,0)),IF(AND(V40<>"",$I$24=$AU$13),INDEX(DATA2!$C$1410:$C$1441,MATCH(V40,DATA2!$E$1410:$E$1441,0)),"")))) ->  | AF40: =IF(AND(AD40<>"",$I$24=$AU$10),INDEX(DATA2!$AU$1333:$AU$1366,MATCH($Y40,DATA2!$B$1333:$B$1366,0)),IF(AND(AD40<>"",$I$24=$AU$11),INDEX(DATA2!$AU$1294:$AU$1326,MATCH($Y40,DATA2!$B$1294:$B$1326,0)),IF(AND(AD40<>"",$I$24=$AU$12),INDEX(DATA2!$AU$1372:$AU$1405,MATCH($Y40,DATA2!$B$1372:$B$1405,0)),IF(AND(AD40<>"",$I$24=$AU$13),INDEX(DATA2!$AU$1410:$AU$1441,MATCH($Y40,DATA2!$B$1410:$B$1441,0)),"")))) ->  | AG40: =IF(AND(AD40<>"",$I$24=$AU$10),INDEX(DATA2!$AU$1331:$AU$1369,MATCH($V40,DATA2!$B$1331:$B$1369,0)),IF(AND(AD40<>"",$I$24=$AU$11),INDEX(DATA2!$AU$1292:$AU$1330,MATCH($V40,DATA2!$B$1292:$B$1330,0)),IF(AND(AD40<>"",$I$24=$AU$12),INDEX(DATA2!$AU$1370:$AU$1570,MATCH($V40,DATA2!$B$1370:$B$1570,0)),""))) ->  | AH40: =IF(AND($AD40<>"",$I$24=$AU$10),(INDEX(DATA2!$AV$1333:$BA$1366,MATCH(Y40,DATA2!$C$1333:$C$1366,0),MATCH($N$34,DATA2!$AV$3:$BA$3,0))),IF(AND($AD40<>"",$I$24=$AU$11),(INDEX(DATA2!$AV$1294:$BA$1326,MATCH(Y40,DATA2!$C$1294:$C$1326,0),MATCH($N$34,DATA2!$AV$3:$BA$3,0))),IF(AND($AD40<>"",$I$24=$AU$12),(INDEX(DATA2!$AV$1372:$BA$1405,MATCH(Y40,DATA2!$C$1372:$C$1405,0),MATCH($N$34,DATA2!$AV$3:$BA$3,0))),IF(AND($AD40<>"",$I$24=$AU$13),(INDEX(DATA2!$AV$1410:$BA$1441,MATCH(Y40,DATA2!$C$1410:$C$1441,0),MATCH($N$34,DATA2!$AV$3:$BA$3,0))),"")))) ->  | AP40: =IF(CAB!$H$17=$AU$10,INDEX(DATA2!$BB$325:$BB$645,MATCH(CAB!E29,DATA2!$C$325:$C$645,0)),IF(CAB!$H$17=$AU$11,INDEX(DATA2!$BB$6:$BB$323,MATCH(CAB!E29,DATA2!$C$6:$C$323,0)),IF(CAB!$H$17=$AU$12,INDEX(DATA2!$BB$648:$BB$967,MATCH(CAB!E29,DATA2!$C$648:$C$967,0)),IF(CAB!$H$17=$AU$13,INDEX(DATA2!$BB$971:$BB$1287,MATCH(CAB!E29,DATA2!$C$971:$C$1287,0)),"")))) ->  | AR40: =IF(CAB!J29<>0,CAB!J29*AP40,0) -> 0 | AU40: blank | AV40: Shaker KA - Portobello | AW40: blank | AX40: blank | CN40: Oatmeal | CP40: LABPAINTSHKANOAT | CZ40: Mountain Smoke | DB40: LABPAINTKANMS
A41: 6 | E41: =IF(AND(B41<>"",$I$24=$AU$10),INDEX(DATA2!$C$326:$C$645,MATCH(B41,DATA2!$E$326:$E$645,0)),IF(AND(B41<>"",$I$24=$AU$11),INDEX(DATA2!$C$6:$C$320,MATCH(B41,DATA2!$E$6:$E$320,0)),IF(AND(B41<>"",$I$24=$AU$12),INDEX(DATA2!$C$648:$C$967,MATCH(B41,DATA2!$E$648:$E$967,0)),IF(AND(B41<>"",$I$24=$AU$13),INDEX(DATA2!$C$971:$C$1287,MATCH(B41,DATA2!$E$971:$E$1287,0)),"")))) ->  | M41: =IF(AND(J41<>"",$I$24=$AU$10),INDEX(DATA2!$AU$326:$AU$645,MATCH($E41,DATA2!$C$326:$C$645,0)),IF(AND(J41<>"",$I$24=$AU$11),INDEX(DATA2!$AU$6:$AU$323,MATCH($E41,DATA2!$C$6:$C$323,0)),IF(AND(J41<>"",$I$24=$AU$12),INDEX(DATA2!$AU$648:$AU$967,MATCH($E41,DATA2!$C$648:$C$967,0)),IF(AND(J41<>"",$I$24=$AU$13),INDEX(DATA2!$AU$971:$AU$1287,MATCH($E41,DATA2!$C$971:$C$1287,0)),"")))) ->  | P41: =IF(AND($M41<>"",$I$24=$AU$10),(INDEX(DATA2!$AV$5:$BA$1291,MATCH(E41,DATA2!$C$5:$C$1291,0),MATCH($N$34,DATA2!$AV$3:$BA$3,0))),IF(AND($M41<>"",$I$24=$AU$11),(INDEX(DATA2!$AV$6:$BA$1291,MATCH(E41,DATA2!$C$6:$C$1291,0),MATCH($N$34,DATA2!$AV$3:$BA$3,0))),IF(AND($M41<>"",$I$24=$AU$12),(INDEX(DATA2!$AV$5:$BA$1291,MATCH(E41,DATA2!$C$5:$C$1291,0),MATCH($N$34,DATA2!$AV$3:$BA$3,0))),IF(AND($M41<>"",$I$24=$AU$13),(INDEX(DATA2!$AV$6:$BA$1291,MATCH(E41,DATA2!$C$6:$C$1291,0),MATCH($N$34,DATA2!$AV$3:$BA$3,0))),"")))) ->  | Q41: =IF(AND($M41<>"",$I$24=$AU$10),(INDEX(DATA2!$AV$5:$BA$1291,MATCH(G41,DATA2!$C$5:$C$1291,0),MATCH($N$34,DATA2!$AV$3:$BA$3,0))),IF(AND($M41<>"",$I$24=$AU$11),(INDEX(DATA2!$AV$5:$BA$1291,MATCH(G41,DATA2!$C$5:$C$1291,0),MATCH($N$34,DATA2!$AV$3:$BA$3,0))),IF(AND($M41<>"",$I$24=$AU$12),(INDEX(DATA2!$AV$5:$BA$1291,MATCH(G41,DATA2!$C$5:$C$1291,0),MATCH($N$34,DATA2!$AV$3:$BA$3,0))),""))) ->  | U41: 6 | Y41: =IF(AND(V41<>"",$I$24=$AU$10),INDEX(DATA2!$C$1333:$C$1366,MATCH(V41,DATA2!$E$1333:$E$1366,0)),IF(AND(V41<>"",$I$24=$AU$11),INDEX(DATA2!$C$1294:$C$1326,MATCH(V41,DATA2!$E$1294:$E$1326,0)),IF(AND(V41<>"",$I$24=$AU$12),INDEX(DATA2!$C$1372:$C$1405,MATCH(V41,DATA2!$E$1372:$E$1405,0)),IF(AND(V41<>"",$I$24=$AU$13),INDEX(DATA2!$C$1410:$C$1441,MATCH(V41,DATA2!$E$1410:$E$1441,0)),"")))) ->  | AF41: =IF(AND(AD41<>"",$I$24=$AU$10),INDEX(DATA2!$AU$1333:$AU$1366,MATCH($Y41,DATA2!$B$1333:$B$1366,0)),IF(AND(AD41<>"",$I$24=$AU$11),INDEX(DATA2!$AU$1294:$AU$1326,MATCH($Y41,DATA2!$B$1294:$B$1326,0)),IF(AND(AD41<>"",$I$24=$AU$12),INDEX(DATA2!$AU$1372:$AU$1405,MATCH($Y41,DATA2!$B$1372:$B$1405,0)),IF(AND(AD41<>"",$I$24=$AU$13),INDEX(DATA2!$AU$1410:$AU$1441,MATCH($Y41,DATA2!$B$1410:$B$1441,0)),"")))) ->  | AG41: =IF(AND(AD41<>"",$I$24=$AU$10),INDEX(DATA2!$AU$1331:$AU$1369,MATCH($V41,DATA2!$B$1331:$B$1369,0)),IF(AND(AD41<>"",$I$24=$AU$11),INDEX(DATA2!$AU$1292:$AU$1330,MATCH($V41,DATA2!$B$1292:$B$1330,0)),IF(AND(AD41<>"",$I$24=$AU$12),INDEX(DATA2!$AU$1370:$AU$1570,MATCH($V41,DATA2!$B$1370:$B$1570,0)),""))) ->  | AH41: =IF(AND($AD41<>"",$I$24=$AU$10),(INDEX(DATA2!$AV$1333:$BA$1366,MATCH(Y41,DATA2!$C$1333:$C$1366,0),MATCH($N$34,DATA2!$AV$3:$BA$3,0))),IF(AND($AD41<>"",$I$24=$AU$11),(INDEX(DATA2!$AV$1294:$BA$1326,MATCH(Y41,DATA2!$C$1294:$C$1326,0),MATCH($N$34,DATA2!$AV$3:$BA$3,0))),IF(AND($AD41<>"",$I$24=$AU$12),(INDEX(DATA2!$AV$1372:$BA$1405,MATCH(Y41,DATA2!$C$1372:$C$1405,0),MATCH($N$34,DATA2!$AV$3:$BA$3,0))),IF(AND($AD41<>"",$I$24=$AU$13),(INDEX(DATA2!$AV$1410:$BA$1441,MATCH(Y41,DATA2!$C$1410:$C$1441,0),MATCH($N$34,DATA2!$AV$3:$BA$3,0))),"")))) ->  | AP41: =IF(CAB!$H$17=$AU$10,INDEX(DATA2!$BB$325:$BB$645,MATCH(CAB!E30,DATA2!$C$325:$C$645,0)),IF(CAB!$H$17=$AU$11,INDEX(DATA2!$BB$6:$BB$323,MATCH(CAB!E30,DATA2!$C$6:$C$323,0)),IF(CAB!$H$17=$AU$12,INDEX(DATA2!$BB$648:$BB$967,MATCH(CAB!E30,DATA2!$C$648:$C$967,0)),IF(CAB!$H$17=$AU$13,INDEX(DATA2!$BB$971:$BB$1287,MATCH(CAB!E30,DATA2!$C$971:$C$1287,0)),"")))) ->  | AR41: =IF(CAB!J30<>0,CAB!J30*AP41,0) -> 0 | AU41: blank | AV41: Shaker KA - River Rock | AW41: blank | AX41: blank | CN41: River Rock | CP41: LABPAINTSHKANRR | CZ41: Oatmeal | DB41: LABPAINTKANOAT
A42: 7 | E42: =IF(AND(B42<>"",$I$24=$AU$10),INDEX(DATA2!$C$326:$C$645,MATCH(B42,DATA2!$E$326:$E$645,0)),IF(AND(B42<>"",$I$24=$AU$11),INDEX(DATA2!$C$6:$C$320,MATCH(B42,DATA2!$E$6:$E$320,0)),IF(AND(B42<>"",$I$24=$AU$12),INDEX(DATA2!$C$648:$C$967,MATCH(B42,DATA2!$E$648:$E$967,0)),IF(AND(B42<>"",$I$24=$AU$13),INDEX(DATA2!$C$971:$C$1287,MATCH(B42,DATA2!$E$971:$E$1287,0)),"")))) ->  | M42: =IF(AND(J42<>"",$I$24=$AU$10),INDEX(DATA2!$AU$326:$AU$645,MATCH($E42,DATA2!$C$326:$C$645,0)),IF(AND(J42<>"",$I$24=$AU$11),INDEX(DATA2!$AU$6:$AU$323,MATCH($E42,DATA2!$C$6:$C$323,0)),IF(AND(J42<>"",$I$24=$AU$12),INDEX(DATA2!$AU$648:$AU$967,MATCH($E42,DATA2!$C$648:$C$967,0)),IF(AND(J42<>"",$I$24=$AU$13),INDEX(DATA2!$AU$971:$AU$1287,MATCH($E42,DATA2!$C$971:$C$1287,0)),"")))) ->  | P42: =IF(AND($M42<>"",$I$24=$AU$10),(INDEX(DATA2!$AV$5:$BA$1291,MATCH(E42,DATA2!$C$5:$C$1291,0),MATCH($N$34,DATA2!$AV$3:$BA$3,0))),IF(AND($M42<>"",$I$24=$AU$11),(INDEX(DATA2!$AV$6:$BA$1291,MATCH(E42,DATA2!$C$6:$C$1291,0),MATCH($N$34,DATA2!$AV$3:$BA$3,0))),IF(AND($M42<>"",$I$24=$AU$12),(INDEX(DATA2!$AV$5:$BA$1291,MATCH(E42,DATA2!$C$5:$C$1291,0),MATCH($N$34,DATA2!$AV$3:$BA$3,0))),IF(AND($M42<>"",$I$24=$AU$13),(INDEX(DATA2!$AV$6:$BA$1291,MATCH(E42,DATA2!$C$6:$C$1291,0),MATCH($N$34,DATA2!$AV$3:$BA$3,0))),"")))) ->  | Q42: =IF(AND($M42<>"",$I$24=$AU$10),(INDEX(DATA2!$AV$5:$BA$1291,MATCH(G42,DATA2!$C$5:$C$1291,0),MATCH($N$34,DATA2!$AV$3:$BA$3,0))),IF(AND($M42<>"",$I$24=$AU$11),(INDEX(DATA2!$AV$5:$BA$1291,MATCH(G42,DATA2!$C$5:$C$1291,0),MATCH($N$34,DATA2!$AV$3:$BA$3,0))),IF(AND($M42<>"",$I$24=$AU$12),(INDEX(DATA2!$AV$5:$BA$1291,MATCH(G42,DATA2!$C$5:$C$1291,0),MATCH($N$34,DATA2!$AV$3:$BA$3,0))),""))) ->  | U42: 7 | Y42: =IF(AND(V42<>"",$I$24=$AU$10),INDEX(DATA2!$C$1333:$C$1366,MATCH(V42,DATA2!$E$1333:$E$1366,0)),IF(AND(V42<>"",$I$24=$AU$11),INDEX(DATA2!$C$1294:$C$1326,MATCH(V42,DATA2!$E$1294:$E$1326,0)),IF(AND(V42<>"",$I$24=$AU$12),INDEX(DATA2!$C$1372:$C$1405,MATCH(V42,DATA2!$E$1372:$E$1405,0)),IF(AND(V42<>"",$I$24=$AU$13),INDEX(DATA2!$C$1410:$C$1441,MATCH(V42,DATA2!$E$1410:$E$1441,0)),"")))) ->  | AF42: =IF(AND(AD42<>"",$I$24=$AU$10),INDEX(DATA2!$AU$1333:$AU$1366,MATCH($Y42,DATA2!$B$1333:$B$1366,0)),IF(AND(AD42<>"",$I$24=$AU$11),INDEX(DATA2!$AU$1294:$AU$1326,MATCH($Y42,DATA2!$B$1294:$B$1326,0)),IF(AND(AD42<>"",$I$24=$AU$12),INDEX(DATA2!$AU$1372:$AU$1405,MATCH($Y42,DATA2!$B$1372:$B$1405,0)),IF(AND(AD42<>"",$I$24=$AU$13),INDEX(DATA2!$AU$1410:$AU$1441,MATCH($Y42,DATA2!$B$1410:$B$1441,0)),"")))) ->  | AG42: =IF(AND(AD42<>"",$I$24=$AU$10),INDEX(DATA2!$AU$1331:$AU$1369,MATCH($V42,DATA2!$B$1331:$B$1369,0)),IF(AND(AD42<>"",$I$24=$AU$11),INDEX(DATA2!$AU$1292:$AU$1330,MATCH($V42,DATA2!$B$1292:$B$1330,0)),IF(AND(AD42<>"",$I$24=$AU$12),INDEX(DATA2!$AU$1370:$AU$1570,MATCH($V42,DATA2!$B$1370:$B$1570,0)),""))) ->  | AH42: =IF(AND($AD42<>"",$I$24=$AU$10),(INDEX(DATA2!$AV$1333:$BA$1366,MATCH(Y42,DATA2!$C$1333:$C$1366,0),MATCH($N$34,DATA2!$AV$3:$BA$3,0))),IF(AND($AD42<>"",$I$24=$AU$11),(INDEX(DATA2!$AV$1294:$BA$1326,MATCH(Y42,DATA2!$C$1294:$C$1326,0),MATCH($N$34,DATA2!$AV$3:$BA$3,0))),IF(AND($AD42<>"",$I$24=$AU$12),(INDEX(DATA2!$AV$1372:$BA$1405,MATCH(Y42,DATA2!$C$1372:$C$1405,0),MATCH($N$34,DATA2!$AV$3:$BA$3,0))),IF(AND($AD42<>"",$I$24=$AU$13),(INDEX(DATA2!$AV$1410:$BA$1441,MATCH(Y42,DATA2!$C$1410:$C$1441,0),MATCH($N$34,DATA2!$AV$3:$BA$3,0))),"")))) ->  | AP42: =IF(CAB!$H$17=$AU$10,INDEX(DATA2!$BB$325:$BB$645,MATCH(CAB!E31,DATA2!$C$325:$C$645,0)),IF(CAB!$H$17=$AU$11,INDEX(DATA2!$BB$6:$BB$323,MATCH(CAB!E31,DATA2!$C$6:$C$323,0)),IF(CAB!$H$17=$AU$12,INDEX(DATA2!$BB$648:$BB$967,MATCH(CAB!E31,DATA2!$C$648:$C$967,0)),IF(CAB!$H$17=$AU$13,INDEX(DATA2!$BB$971:$BB$1287,MATCH(CAB!E31,DATA2!$C$971:$C$1287,0)),"")))) ->  | AR42: =IF(CAB!J31<>0,CAB!J31*AP42,0) -> 0 | AU42: blank | AV42: Shaker KA - Tuscan Olive | AW42: blank | AX42: blank | CN42: Slate Brown | CP42: LABPAINTSHKANSB | CZ42: River Rock | DB42: LABPAINTKANRR
A43: 8 | E43: =IF(AND(B43<>"",$I$24=$AU$10),INDEX(DATA2!$C$326:$C$645,MATCH(B43,DATA2!$E$326:$E$645,0)),IF(AND(B43<>"",$I$24=$AU$11),INDEX(DATA2!$C$6:$C$320,MATCH(B43,DATA2!$E$6:$E$320,0)),IF(AND(B43<>"",$I$24=$AU$12),INDEX(DATA2!$C$648:$C$967,MATCH(B43,DATA2!$E$648:$E$967,0)),IF(AND(B43<>"",$I$24=$AU$13),INDEX(DATA2!$C$971:$C$1287,MATCH(B43,DATA2!$E$971:$E$1287,0)),"")))) ->  | M43: =IF(AND(J43<>"",$I$24=$AU$10),INDEX(DATA2!$AU$326:$AU$645,MATCH($E43,DATA2!$C$326:$C$645,0)),IF(AND(J43<>"",$I$24=$AU$11),INDEX(DATA2!$AU$6:$AU$323,MATCH($E43,DATA2!$C$6:$C$323,0)),IF(AND(J43<>"",$I$24=$AU$12),INDEX(DATA2!$AU$648:$AU$967,MATCH($E43,DATA2!$C$648:$C$967,0)),IF(AND(J43<>"",$I$24=$AU$13),INDEX(DATA2!$AU$971:$AU$1287,MATCH($E43,DATA2!$C$971:$C$1287,0)),"")))) ->  | P43: =IF(AND($M43<>"",$I$24=$AU$10),(INDEX(DATA2!$AV$5:$BA$1291,MATCH(E43,DATA2!$C$5:$C$1291,0),MATCH($N$34,DATA2!$AV$3:$BA$3,0))),IF(AND($M43<>"",$I$24=$AU$11),(INDEX(DATA2!$AV$6:$BA$1291,MATCH(E43,DATA2!$C$6:$C$1291,0),MATCH($N$34,DATA2!$AV$3:$BA$3,0))),IF(AND($M43<>"",$I$24=$AU$12),(INDEX(DATA2!$AV$5:$BA$1291,MATCH(E43,DATA2!$C$5:$C$1291,0),MATCH($N$34,DATA2!$AV$3:$BA$3,0))),IF(AND($M43<>"",$I$24=$AU$13),(INDEX(DATA2!$AV$6:$BA$1291,MATCH(E43,DATA2!$C$6:$C$1291,0),MATCH($N$34,DATA2!$AV$3:$BA$3,0))),"")))) ->  | Q43: =IF(AND($M43<>"",$I$24=$AU$10),(INDEX(DATA2!$AV$5:$BA$1291,MATCH(G43,DATA2!$C$5:$C$1291,0),MATCH($N$34,DATA2!$AV$3:$BA$3,0))),IF(AND($M43<>"",$I$24=$AU$11),(INDEX(DATA2!$AV$5:$BA$1291,MATCH(G43,DATA2!$C$5:$C$1291,0),MATCH($N$34,DATA2!$AV$3:$BA$3,0))),IF(AND($M43<>"",$I$24=$AU$12),(INDEX(DATA2!$AV$5:$BA$1291,MATCH(G43,DATA2!$C$5:$C$1291,0),MATCH($N$34,DATA2!$AV$3:$BA$3,0))),""))) ->  | U43: 8 | Y43: =IF(AND(V43<>"",$I$24=$AU$10),INDEX(DATA2!$C$1333:$C$1366,MATCH(V43,DATA2!$E$1333:$E$1366,0)),IF(AND(V43<>"",$I$24=$AU$11),INDEX(DATA2!$C$1294:$C$1326,MATCH(V43,DATA2!$E$1294:$E$1326,0)),IF(AND(V43<>"",$I$24=$AU$12),INDEX(DATA2!$C$1372:$C$1405,MATCH(V43,DATA2!$E$1372:$E$1405,0)),IF(AND(V43<>"",$I$24=$AU$13),INDEX(DATA2!$C$1410:$C$1441,MATCH(V43,DATA2!$E$1410:$E$1441,0)),"")))) ->  | AF43: =IF(AND(AD43<>"",$I$24=$AU$10),INDEX(DATA2!$AU$1333:$AU$1366,MATCH($Y43,DATA2!$B$1333:$B$1366,0)),IF(AND(AD43<>"",$I$24=$AU$11),INDEX(DATA2!$AU$1294:$AU$1326,MATCH($Y43,DATA2!$B$1294:$B$1326,0)),IF(AND(AD43<>"",$I$24=$AU$12),INDEX(DATA2!$AU$1372:$AU$1405,MATCH($Y43,DATA2!$B$1372:$B$1405,0)),IF(AND(AD43<>"",$I$24=$AU$13),INDEX(DATA2!$AU$1410:$AU$1441,MATCH($Y43,DATA2!$B$1410:$B$1441,0)),"")))) ->  | AG43: =IF(AND(AD43<>"",$I$24=$AU$10),INDEX(DATA2!$AU$1331:$AU$1369,MATCH($V43,DATA2!$B$1331:$B$1369,0)),IF(AND(AD43<>"",$I$24=$AU$11),INDEX(DATA2!$AU$1292:$AU$1330,MATCH($V43,DATA2!$B$1292:$B$1330,0)),IF(AND(AD43<>"",$I$24=$AU$12),INDEX(DATA2!$AU$1370:$AU$1570,MATCH($V43,DATA2!$B$1370:$B$1570,0)),""))) ->  | AH43: =IF(AND($AD43<>"",$I$24=$AU$10),(INDEX(DATA2!$AV$1333:$BA$1366,MATCH(Y43,DATA2!$C$1333:$C$1366,0),MATCH($N$34,DATA2!$AV$3:$BA$3,0))),IF(AND($AD43<>"",$I$24=$AU$11),(INDEX(DATA2!$AV$1294:$BA$1326,MATCH(Y43,DATA2!$C$1294:$C$1326,0),MATCH($N$34,DATA2!$AV$3:$BA$3,0))),IF(AND($AD43<>"",$I$24=$AU$12),(INDEX(DATA2!$AV$1372:$BA$1405,MATCH(Y43,DATA2!$C$1372:$C$1405,0),MATCH($N$34,DATA2!$AV$3:$BA$3,0))),IF(AND($AD43<>"",$I$24=$AU$13),(INDEX(DATA2!$AV$1410:$BA$1441,MATCH(Y43,DATA2!$C$1410:$C$1441,0),MATCH($N$34,DATA2!$AV$3:$BA$3,0))),"")))) ->  | AP43: =IF(CAB!$H$17=$AU$10,INDEX(DATA2!$BB$325:$BB$645,MATCH(CAB!E32,DATA2!$C$325:$C$645,0)),IF(CAB!$H$17=$AU$11,INDEX(DATA2!$BB$6:$BB$323,MATCH(CAB!E32,DATA2!$C$6:$C$323,0)),IF(CAB!$H$17=$AU$12,INDEX(DATA2!$BB$648:$BB$967,MATCH(CAB!E32,DATA2!$C$648:$C$967,0)),IF(CAB!$H$17=$AU$13,INDEX(DATA2!$BB$971:$BB$1287,MATCH(CAB!E32,DATA2!$C$971:$C$1287,0)),"")))) ->  | AR43: =IF(CAB!J32<>0,CAB!J32*AP43,0) -> 0 | AU43: blank | AV43: Knotty Alder - Midnight | AW43: blank | AX43: blank | CN43: Tuscan Olive | CP43: LABPAINTSHKANTO | CZ43: Slate Brown | DB43: LABPAINTKANSB
A44: 9 | E44: =IF(AND(B44<>"",$I$24=$AU$10),INDEX(DATA2!$C$326:$C$645,MATCH(B44,DATA2!$E$326:$E$645,0)),IF(AND(B44<>"",$I$24=$AU$11),INDEX(DATA2!$C$6:$C$320,MATCH(B44,DATA2!$E$6:$E$320,0)),IF(AND(B44<>"",$I$24=$AU$12),INDEX(DATA2!$C$648:$C$967,MATCH(B44,DATA2!$E$648:$E$967,0)),IF(AND(B44<>"",$I$24=$AU$13),INDEX(DATA2!$C$971:$C$1287,MATCH(B44,DATA2!$E$971:$E$1287,0)),"")))) ->  | M44: =IF(AND(J44<>"",$I$24=$AU$10),INDEX(DATA2!$AU$326:$AU$645,MATCH($E44,DATA2!$C$326:$C$645,0)),IF(AND(J44<>"",$I$24=$AU$11),INDEX(DATA2!$AU$6:$AU$323,MATCH($E44,DATA2!$C$6:$C$323,0)),IF(AND(J44<>"",$I$24=$AU$12),INDEX(DATA2!$AU$648:$AU$967,MATCH($E44,DATA2!$C$648:$C$967,0)),IF(AND(J44<>"",$I$24=$AU$13),INDEX(DATA2!$AU$971:$AU$1287,MATCH($E44,DATA2!$C$971:$C$1287,0)),"")))) ->  | P44: =IF(AND($M44<>"",$I$24=$AU$10),(INDEX(DATA2!$AV$5:$BA$1291,MATCH(E44,DATA2!$C$5:$C$1291,0),MATCH($N$34,DATA2!$AV$3:$BA$3,0))),IF(AND($M44<>"",$I$24=$AU$11),(INDEX(DATA2!$AV$6:$BA$1291,MATCH(E44,DATA2!$C$6:$C$1291,0),MATCH($N$34,DATA2!$AV$3:$BA$3,0))),IF(AND($M44<>"",$I$24=$AU$12),(INDEX(DATA2!$AV$5:$BA$1291,MATCH(E44,DATA2!$C$5:$C$1291,0),MATCH($N$34,DATA2!$AV$3:$BA$3,0))),IF(AND($M44<>"",$I$24=$AU$13),(INDEX(DATA2!$AV$6:$BA$1291,MATCH(E44,DATA2!$C$6:$C$1291,0),MATCH($N$34,DATA2!$AV$3:$BA$3,0))),"")))) ->  | Q44: =IF(AND($M44<>"",$I$24=$AU$10),(INDEX(DATA2!$AV$5:$BA$1291,MATCH(G44,DATA2!$C$5:$C$1291,0),MATCH($N$34,DATA2!$AV$3:$BA$3,0))),IF(AND($M44<>"",$I$24=$AU$11),(INDEX(DATA2!$AV$5:$BA$1291,MATCH(G44,DATA2!$C$5:$C$1291,0),MATCH($N$34,DATA2!$AV$3:$BA$3,0))),IF(AND($M44<>"",$I$24=$AU$12),(INDEX(DATA2!$AV$5:$BA$1291,MATCH(G44,DATA2!$C$5:$C$1291,0),MATCH($N$34,DATA2!$AV$3:$BA$3,0))),""))) ->  | U44: 9 | Y44: =IF(AND(V44<>"",$I$24=$AU$10),INDEX(DATA2!$C$1333:$C$1366,MATCH(V44,DATA2!$E$1333:$E$1366,0)),IF(AND(V44<>"",$I$24=$AU$11),INDEX(DATA2!$C$1294:$C$1326,MATCH(V44,DATA2!$E$1294:$E$1326,0)),IF(AND(V44<>"",$I$24=$AU$12),INDEX(DATA2!$C$1372:$C$1405,MATCH(V44,DATA2!$E$1372:$E$1405,0)),IF(AND(V44<>"",$I$24=$AU$13),INDEX(DATA2!$C$1410:$C$1441,MATCH(V44,DATA2!$E$1410:$E$1441,0)),"")))) ->  | AF44: =IF(AND(AD44<>"",$I$24=$AU$10),INDEX(DATA2!$AU$1333:$AU$1366,MATCH($Y44,DATA2!$B$1333:$B$1366,0)),IF(AND(AD44<>"",$I$24=$AU$11),INDEX(DATA2!$AU$1294:$AU$1326,MATCH($Y44,DATA2!$B$1294:$B$1326,0)),IF(AND(AD44<>"",$I$24=$AU$12),INDEX(DATA2!$AU$1372:$AU$1405,MATCH($Y44,DATA2!$B$1372:$B$1405,0)),IF(AND(AD44<>"",$I$24=$AU$13),INDEX(DATA2!$AU$1410:$AU$1441,MATCH($Y44,DATA2!$B$1410:$B$1441,0)),"")))) ->  | AG44: =IF(AND(AD44<>"",$I$24=$AU$10),INDEX(DATA2!$AU$1331:$AU$1369,MATCH($V44,DATA2!$B$1331:$B$1369,0)),IF(AND(AD44<>"",$I$24=$AU$11),INDEX(DATA2!$AU$1292:$AU$1330,MATCH($V44,DATA2!$B$1292:$B$1330,0)),IF(AND(AD44<>"",$I$24=$AU$12),INDEX(DATA2!$AU$1370:$AU$1570,MATCH($V44,DATA2!$B$1370:$B$1570,0)),""))) ->  | AH44: =IF(AND($AD44<>"",$I$24=$AU$10),(INDEX(DATA2!$AV$1333:$BA$1366,MATCH(Y44,DATA2!$C$1333:$C$1366,0),MATCH($N$34,DATA2!$AV$3:$BA$3,0))),IF(AND($AD44<>"",$I$24=$AU$11),(INDEX(DATA2!$AV$1294:$BA$1326,MATCH(Y44,DATA2!$C$1294:$C$1326,0),MATCH($N$34,DATA2!$AV$3:$BA$3,0))),IF(AND($AD44<>"",$I$24=$AU$12),(INDEX(DATA2!$AV$1372:$BA$1405,MATCH(Y44,DATA2!$C$1372:$C$1405,0),MATCH($N$34,DATA2!$AV$3:$BA$3,0))),IF(AND($AD44<>"",$I$24=$AU$13),(INDEX(DATA2!$AV$1410:$BA$1441,MATCH(Y44,DATA2!$C$1410:$C$1441,0),MATCH($N$34,DATA2!$AV$3:$BA$3,0))),"")))) ->  | AP44: =IF(CAB!$H$17=$AU$10,INDEX(DATA2!$BB$325:$BB$645,MATCH(CAB!E33,DATA2!$C$325:$C$645,0)),IF(CAB!$H$17=$AU$11,INDEX(DATA2!$BB$6:$BB$323,MATCH(CAB!E33,DATA2!$C$6:$C$323,0)),IF(CAB!$H$17=$AU$12,INDEX(DATA2!$BB$648:$BB$967,MATCH(CAB!E33,DATA2!$C$648:$C$967,0)),IF(CAB!$H$17=$AU$13,INDEX(DATA2!$BB$971:$BB$1287,MATCH(CAB!E33,DATA2!$C$971:$C$1287,0)),"")))) ->  | AR44: =IF(CAB!J33<>0,CAB!J33*AP44,0) -> 0 | AU44: blank | AV44: Knotty Alder - Nutmeg | AW44: blank | AX44: blank | CN44: 0 | CZ44: Toffee | DB44: LABPAINTKANTOF
A45: 10 | E45: =IF(AND(B45<>"",$I$24=$AU$10),INDEX(DATA2!$C$326:$C$645,MATCH(B45,DATA2!$E$326:$E$645,0)),IF(AND(B45<>"",$I$24=$AU$11),INDEX(DATA2!$C$6:$C$320,MATCH(B45,DATA2!$E$6:$E$320,0)),IF(AND(B45<>"",$I$24=$AU$12),INDEX(DATA2!$C$648:$C$967,MATCH(B45,DATA2!$E$648:$E$967,0)),IF(AND(B45<>"",$I$24=$AU$13),INDEX(DATA2!$C$971:$C$1287,MATCH(B45,DATA2!$E$971:$E$1287,0)),"")))) ->  | M45: =IF(AND(J45<>"",$I$24=$AU$10),INDEX(DATA2!$AU$326:$AU$645,MATCH($E45,DATA2!$C$326:$C$645,0)),IF(AND(J45<>"",$I$24=$AU$11),INDEX(DATA2!$AU$6:$AU$323,MATCH($E45,DATA2!$C$6:$C$323,0)),IF(AND(J45<>"",$I$24=$AU$12),INDEX(DATA2!$AU$648:$AU$967,MATCH($E45,DATA2!$C$648:$C$967,0)),IF(AND(J45<>"",$I$24=$AU$13),INDEX(DATA2!$AU$971:$AU$1287,MATCH($E45,DATA2!$C$971:$C$1287,0)),"")))) ->  | P45: =IF(AND($M45<>"",$I$24=$AU$10),(INDEX(DATA2!$AV$5:$BA$1291,MATCH(E45,DATA2!$C$5:$C$1291,0),MATCH($N$34,DATA2!$AV$3:$BA$3,0))),IF(AND($M45<>"",$I$24=$AU$11),(INDEX(DATA2!$AV$6:$BA$1291,MATCH(E45,DATA2!$C$6:$C$1291,0),MATCH($N$34,DATA2!$AV$3:$BA$3,0))),IF(AND($M45<>"",$I$24=$AU$12),(INDEX(DATA2!$AV$5:$BA$1291,MATCH(E45,DATA2!$C$5:$C$1291,0),MATCH($N$34,DATA2!$AV$3:$BA$3,0))),IF(AND($M45<>"",$I$24=$AU$13),(INDEX(DATA2!$AV$6:$BA$1291,MATCH(E45,DATA2!$C$6:$C$1291,0),MATCH($N$34,DATA2!$AV$3:$BA$3,0))),"")))) ->  | Q45: =IF(AND($M45<>"",$I$24=$AU$10),(INDEX(DATA2!$AV$5:$BA$1291,MATCH(G45,DATA2!$C$5:$C$1291,0),MATCH($N$34,DATA2!$AV$3:$BA$3,0))),IF(AND($M45<>"",$I$24=$AU$11),(INDEX(DATA2!$AV$5:$BA$1291,MATCH(G45,DATA2!$C$5:$C$1291,0),MATCH($N$34,DATA2!$AV$3:$BA$3,0))),IF(AND($M45<>"",$I$24=$AU$12),(INDEX(DATA2!$AV$5:$BA$1291,MATCH(G45,DATA2!$C$5:$C$1291,0),MATCH($N$34,DATA2!$AV$3:$BA$3,0))),""))) ->  | U45: 10 | Y45: =IF(AND(V45<>"",$I$24=$AU$10),INDEX(DATA2!$C$1333:$C$1366,MATCH(V45,DATA2!$E$1333:$E$1366,0)),IF(AND(V45<>"",$I$24=$AU$11),INDEX(DATA2!$C$1294:$C$1326,MATCH(V45,DATA2!$E$1294:$E$1326,0)),IF(AND(V45<>"",$I$24=$AU$12),INDEX(DATA2!$C$1372:$C$1405,MATCH(V45,DATA2!$E$1372:$E$1405,0)),IF(AND(V45<>"",$I$24=$AU$13),INDEX(DATA2!$C$1410:$C$1441,MATCH(V45,DATA2!$E$1410:$E$1441,0)),"")))) ->  | AF45: =IF(AND(AD45<>"",$I$24=$AU$10),INDEX(DATA2!$AU$1333:$AU$1366,MATCH($Y45,DATA2!$B$1333:$B$1366,0)),IF(AND(AD45<>"",$I$24=$AU$11),INDEX(DATA2!$AU$1294:$AU$1326,MATCH($Y45,DATA2!$B$1294:$B$1326,0)),IF(AND(AD45<>"",$I$24=$AU$12),INDEX(DATA2!$AU$1372:$AU$1405,MATCH($Y45,DATA2!$B$1372:$B$1405,0)),IF(AND(AD45<>"",$I$24=$AU$13),INDEX(DATA2!$AU$1410:$AU$1441,MATCH($Y45,DATA2!$B$1410:$B$1441,0)),"")))) ->  | AG45: =IF(AND(AD45<>"",$I$24=$AU$10),INDEX(DATA2!$AU$1331:$AU$1369,MATCH($V45,DATA2!$B$1331:$B$1369,0)),IF(AND(AD45<>"",$I$24=$AU$11),INDEX(DATA2!$AU$1292:$AU$1330,MATCH($V45,DATA2!$B$1292:$B$1330,0)),IF(AND(AD45<>"",$I$24=$AU$12),INDEX(DATA2!$AU$1370:$AU$1570,MATCH($V45,DATA2!$B$1370:$B$1570,0)),""))) ->  | AH45: =IF(AND($AD45<>"",$I$24=$AU$10),(INDEX(DATA2!$AV$1333:$BA$1366,MATCH(Y45,DATA2!$C$1333:$C$1366,0),MATCH($N$34,DATA2!$AV$3:$BA$3,0))),IF(AND($AD45<>"",$I$24=$AU$11),(INDEX(DATA2!$AV$1294:$BA$1326,MATCH(Y45,DATA2!$C$1294:$C$1326,0),MATCH($N$34,DATA2!$AV$3:$BA$3,0))),IF(AND($AD45<>"",$I$24=$AU$12),(INDEX(DATA2!$AV$1372:$BA$1405,MATCH(Y45,DATA2!$C$1372:$C$1405,0),MATCH($N$34,DATA2!$AV$3:$BA$3,0))),IF(AND($AD45<>"",$I$24=$AU$13),(INDEX(DATA2!$AV$1410:$BA$1441,MATCH(Y45,DATA2!$C$1410:$C$1441,0),MATCH($N$34,DATA2!$AV$3:$BA$3,0))),"")))) ->  | AP45: =IF(CAB!$H$17=$AU$10,INDEX(DATA2!$BB$325:$BB$645,MATCH(CAB!E34,DATA2!$C$325:$C$645,0)),IF(CAB!$H$17=$AU$11,INDEX(DATA2!$BB$6:$BB$323,MATCH(CAB!E34,DATA2!$C$6:$C$323,0)),IF(CAB!$H$17=$AU$12,INDEX(DATA2!$BB$648:$BB$967,MATCH(CAB!E34,DATA2!$C$648:$C$967,0)),IF(CAB!$H$17=$AU$13,INDEX(DATA2!$BB$971:$BB$1287,MATCH(CAB!E34,DATA2!$C$971:$C$1287,0)),"")))) ->  | AR45: =IF(CAB!J34<>0,CAB!J34*AP45,0) -> 0 | AU45: blank | AV45: Knotty Alder - Oatmeal | AW45: blank | AX45: blank | CN45: 0 | CZ45: Tuscan Olive | DB45: LABPAINTKANTO
A46: 11 | E46: =IF(AND(B46<>"",$I$24=$AU$10),INDEX(DATA2!$C$326:$C$645,MATCH(B46,DATA2!$E$326:$E$645,0)),IF(AND(B46<>"",$I$24=$AU$11),INDEX(DATA2!$C$6:$C$320,MATCH(B46,DATA2!$E$6:$E$320,0)),IF(AND(B46<>"",$I$24=$AU$12),INDEX(DATA2!$C$648:$C$967,MATCH(B46,DATA2!$E$648:$E$967,0)),IF(AND(B46<>"",$I$24=$AU$13),INDEX(DATA2!$C$971:$C$1287,MATCH(B46,DATA2!$E$971:$E$1287,0)),"")))) ->  | M46: =IF(AND(J46<>"",$I$24=$AU$10),INDEX(DATA2!$AU$326:$AU$645,MATCH($E46,DATA2!$C$326:$C$645,0)),IF(AND(J46<>"",$I$24=$AU$11),INDEX(DATA2!$AU$6:$AU$323,MATCH($E46,DATA2!$C$6:$C$323,0)),IF(AND(J46<>"",$I$24=$AU$12),INDEX(DATA2!$AU$648:$AU$967,MATCH($E46,DATA2!$C$648:$C$967,0)),IF(AND(J46<>"",$I$24=$AU$13),INDEX(DATA2!$AU$971:$AU$1287,MATCH($E46,DATA2!$C$971:$C$1287,0)),"")))) ->  | P46: =IF(AND($M46<>"",$I$24=$AU$10),(INDEX(DATA2!$AV$5:$BA$1291,MATCH(E46,DATA2!$C$5:$C$1291,0),MATCH($N$34,DATA2!$AV$3:$BA$3,0))),IF(AND($M46<>"",$I$24=$AU$11),(INDEX(DATA2!$AV$6:$BA$1291,MATCH(E46,DATA2!$C$6:$C$1291,0),MATCH($N$34,DATA2!$AV$3:$BA$3,0))),IF(AND($M46<>"",$I$24=$AU$12),(INDEX(DATA2!$AV$5:$BA$1291,MATCH(E46,DATA2!$C$5:$C$1291,0),MATCH($N$34,DATA2!$AV$3:$BA$3,0))),IF(AND($M46<>"",$I$24=$AU$13),(INDEX(DATA2!$AV$6:$BA$1291,MATCH(E46,DATA2!$C$6:$C$1291,0),MATCH($N$34,DATA2!$AV$3:$BA$3,0))),"")))) ->  | Q46: =IF(AND($M46<>"",$I$24=$AU$10),(INDEX(DATA2!$AV$5:$BA$1291,MATCH(G46,DATA2!$C$5:$C$1291,0),MATCH($N$34,DATA2!$AV$3:$BA$3,0))),IF(AND($M46<>"",$I$24=$AU$11),(INDEX(DATA2!$AV$5:$BA$1291,MATCH(G46,DATA2!$C$5:$C$1291,0),MATCH($N$34,DATA2!$AV$3:$BA$3,0))),IF(AND($M46<>"",$I$24=$AU$12),(INDEX(DATA2!$AV$5:$BA$1291,MATCH(G46,DATA2!$C$5:$C$1291,0),MATCH($N$34,DATA2!$AV$3:$BA$3,0))),""))) ->  | U46: 11 | Y46: =IF(AND(V46<>"",$I$24=$AU$10),INDEX(DATA2!$C$1333:$C$1366,MATCH(V46,DATA2!$E$1333:$E$1366,0)),IF(AND(V46<>"",$I$24=$AU$11),INDEX(DATA2!$C$1294:$C$1326,MATCH(V46,DATA2!$E$1294:$E$1326,0)),IF(AND(V46<>"",$I$24=$AU$12),INDEX(DATA2!$C$1372:$C$1405,MATCH(V46,DATA2!$E$1372:$E$1405,0)),IF(AND(V46<>"",$I$24=$AU$13),INDEX(DATA2!$C$1410:$C$1441,MATCH(V46,DATA2!$E$1410:$E$1441,0)),"")))) ->  | AF46: =IF(AND(AD46<>"",$I$24=$AU$10),INDEX(DATA2!$AU$1333:$AU$1366,MATCH($Y46,DATA2!$B$1333:$B$1366,0)),IF(AND(AD46<>"",$I$24=$AU$11),INDEX(DATA2!$AU$1294:$AU$1326,MATCH($Y46,DATA2!$B$1294:$B$1326,0)),IF(AND(AD46<>"",$I$24=$AU$12),INDEX(DATA2!$AU$1372:$AU$1405,MATCH($Y46,DATA2!$B$1372:$B$1405,0)),IF(AND(AD46<>"",$I$24=$AU$13),INDEX(DATA2!$AU$1410:$AU$1441,MATCH($Y46,DATA2!$B$1410:$B$1441,0)),"")))) ->  | AG46: =IF(AND(AD46<>"",$I$24=$AU$10),INDEX(DATA2!$AU$1331:$AU$1369,MATCH($V46,DATA2!$B$1331:$B$1369,0)),IF(AND(AD46<>"",$I$24=$AU$11),INDEX(DATA2!$AU$1292:$AU$1330,MATCH($V46,DATA2!$B$1292:$B$1330,0)),IF(AND(AD46<>"",$I$24=$AU$12),INDEX(DATA2!$AU$1370:$AU$1570,MATCH($V46,DATA2!$B$1370:$B$1570,0)),""))) ->  | AH46: =IF(AND($AD46<>"",$I$24=$AU$10),(INDEX(DATA2!$AV$1333:$BA$1366,MATCH(Y46,DATA2!$C$1333:$C$1366,0),MATCH($N$34,DATA2!$AV$3:$BA$3,0))),IF(AND($AD46<>"",$I$24=$AU$11),(INDEX(DATA2!$AV$1294:$BA$1326,MATCH(Y46,DATA2!$C$1294:$C$1326,0),MATCH($N$34,DATA2!$AV$3:$BA$3,0))),IF(AND($AD46<>"",$I$24=$AU$12),(INDEX(DATA2!$AV$1372:$BA$1405,MATCH(Y46,DATA2!$C$1372:$C$1405,0),MATCH($N$34,DATA2!$AV$3:$BA$3,0))),IF(AND($AD46<>"",$I$24=$AU$13),(INDEX(DATA2!$AV$1410:$BA$1441,MATCH(Y46,DATA2!$C$1410:$C$1441,0),MATCH($N$34,DATA2!$AV$3:$BA$3,0))),"")))) ->  | AP46: =IF(CAB!$H$17=$AU$10,INDEX(DATA2!$BB$325:$BB$645,MATCH(CAB!E35,DATA2!$C$325:$C$645,0)),IF(CAB!$H$17=$AU$11,INDEX(DATA2!$BB$6:$BB$323,MATCH(CAB!E35,DATA2!$C$6:$C$323,0)),IF(CAB!$H$17=$AU$12,INDEX(DATA2!$BB$648:$BB$967,MATCH(CAB!E35,DATA2!$C$648:$C$967,0)),IF(CAB!$H$17=$AU$13,INDEX(DATA2!$BB$971:$BB$1287,MATCH(CAB!E35,DATA2!$C$971:$C$1287,0)),"")))) ->  | AR46: =IF(CAB!J35<>0,CAB!J35*AP46,0) -> 0 | AU46: blank | AV46: Knotty Alder - Portobello | AW46: blank | AX46: blank | CN46: 0 | CZ46: Van Dyke | DB46: LABPAINTKANVD
A47: 12 | E47: =IF(AND(B47<>"",$I$24=$AU$10),INDEX(DATA2!$C$326:$C$645,MATCH(B47,DATA2!$E$326:$E$645,0)),IF(AND(B47<>"",$I$24=$AU$11),INDEX(DATA2!$C$6:$C$320,MATCH(B47,DATA2!$E$6:$E$320,0)),IF(AND(B47<>"",$I$24=$AU$12),INDEX(DATA2!$C$648:$C$967,MATCH(B47,DATA2!$E$648:$E$967,0)),IF(AND(B47<>"",$I$24=$AU$13),INDEX(DATA2!$C$971:$C$1287,MATCH(B47,DATA2!$E$971:$E$1287,0)),"")))) ->  | M47: =IF(AND(J47<>"",$I$24=$AU$10),INDEX(DATA2!$AU$326:$AU$645,MATCH($E47,DATA2!$C$326:$C$645,0)),IF(AND(J47<>"",$I$24=$AU$11),INDEX(DATA2!$AU$6:$AU$323,MATCH($E47,DATA2!$C$6:$C$323,0)),IF(AND(J47<>"",$I$24=$AU$12),INDEX(DATA2!$AU$648:$AU$967,MATCH($E47,DATA2!$C$648:$C$967,0)),IF(AND(J47<>"",$I$24=$AU$13),INDEX(DATA2!$AU$971:$AU$1287,MATCH($E47,DATA2!$C$971:$C$1287,0)),"")))) ->  | P47: =IF(AND($M47<>"",$I$24=$AU$10),(INDEX(DATA2!$AV$5:$BA$1291,MATCH(E47,DATA2!$C$5:$C$1291,0),MATCH($N$34,DATA2!$AV$3:$BA$3,0))),IF(AND($M47<>"",$I$24=$AU$11),(INDEX(DATA2!$AV$6:$BA$1291,MATCH(E47,DATA2!$C$6:$C$1291,0),MATCH($N$34,DATA2!$AV$3:$BA$3,0))),IF(AND($M47<>"",$I$24=$AU$12),(INDEX(DATA2!$AV$5:$BA$1291,MATCH(E47,DATA2!$C$5:$C$1291,0),MATCH($N$34,DATA2!$AV$3:$BA$3,0))),IF(AND($M47<>"",$I$24=$AU$13),(INDEX(DATA2!$AV$6:$BA$1291,MATCH(E47,DATA2!$C$6:$C$1291,0),MATCH($N$34,DATA2!$AV$3:$BA$3,0))),"")))) ->  | Q47: =IF(AND($M47<>"",$I$24=$AU$10),(INDEX(DATA2!$AV$5:$BA$1291,MATCH(G47,DATA2!$C$5:$C$1291,0),MATCH($N$34,DATA2!$AV$3:$BA$3,0))),IF(AND($M47<>"",$I$24=$AU$11),(INDEX(DATA2!$AV$5:$BA$1291,MATCH(G47,DATA2!$C$5:$C$1291,0),MATCH($N$34,DATA2!$AV$3:$BA$3,0))),IF(AND($M47<>"",$I$24=$AU$12),(INDEX(DATA2!$AV$5:$BA$1291,MATCH(G47,DATA2!$C$5:$C$1291,0),MATCH($N$34,DATA2!$AV$3:$BA$3,0))),""))) ->  | U47: 12 | Y47: =IF(AND(V47<>"",$I$24=$AU$10),INDEX(DATA2!$C$1333:$C$1366,MATCH(V47,DATA2!$E$1333:$E$1366,0)),IF(AND(V47<>"",$I$24=$AU$11),INDEX(DATA2!$C$1294:$C$1326,MATCH(V47,DATA2!$E$1294:$E$1326,0)),IF(AND(V47<>"",$I$24=$AU$12),INDEX(DATA2!$C$1372:$C$1405,MATCH(V47,DATA2!$E$1372:$E$1405,0)),IF(AND(V47<>"",$I$24=$AU$13),INDEX(DATA2!$C$1410:$C$1441,MATCH(V47,DATA2!$E$1410:$E$1441,0)),"")))) ->  | AF47: =IF(AND(AD47<>"",$I$24=$AU$10),INDEX(DATA2!$AU$1333:$AU$1366,MATCH($Y47,DATA2!$B$1333:$B$1366,0)),IF(AND(AD47<>"",$I$24=$AU$11),INDEX(DATA2!$AU$1294:$AU$1326,MATCH($Y47,DATA2!$B$1294:$B$1326,0)),IF(AND(AD47<>"",$I$24=$AU$12),INDEX(DATA2!$AU$1372:$AU$1405,MATCH($Y47,DATA2!$B$1372:$B$1405,0)),IF(AND(AD47<>"",$I$24=$AU$13),INDEX(DATA2!$AU$1410:$AU$1441,MATCH($Y47,DATA2!$B$1410:$B$1441,0)),"")))) ->  | AG47: =IF(AND(AD47<>"",$I$24=$AU$10),INDEX(DATA2!$AU$1331:$AU$1369,MATCH($V47,DATA2!$B$1331:$B$1369,0)),IF(AND(AD47<>"",$I$24=$AU$11),INDEX(DATA2!$AU$1292:$AU$1330,MATCH($V47,DATA2!$B$1292:$B$1330,0)),IF(AND(AD47<>"",$I$24=$AU$12),INDEX(DATA2!$AU$1370:$AU$1570,MATCH($V47,DATA2!$B$1370:$B$1570,0)),""))) ->  | AH47: =IF(AND($AD47<>"",$I$24=$AU$10),(INDEX(DATA2!$AV$1333:$BA$1366,MATCH(Y47,DATA2!$C$1333:$C$1366,0),MATCH($N$34,DATA2!$AV$3:$BA$3,0))),IF(AND($AD47<>"",$I$24=$AU$11),(INDEX(DATA2!$AV$1294:$BA$1326,MATCH(Y47,DATA2!$C$1294:$C$1326,0),MATCH($N$34,DATA2!$AV$3:$BA$3,0))),IF(AND($AD47<>"",$I$24=$AU$12),(INDEX(DATA2!$AV$1372:$BA$1405,MATCH(Y47,DATA2!$C$1372:$C$1405,0),MATCH($N$34,DATA2!$AV$3:$BA$3,0))),IF(AND($AD47<>"",$I$24=$AU$13),(INDEX(DATA2!$AV$1410:$BA$1441,MATCH(Y47,DATA2!$C$1410:$C$1441,0),MATCH($N$34,DATA2!$AV$3:$BA$3,0))),"")))) ->  | AP47: =IF(CAB!$H$17=$AU$10,INDEX(DATA2!$BB$325:$BB$645,MATCH(CAB!E36,DATA2!$C$325:$C$645,0)),IF(CAB!$H$17=$AU$11,INDEX(DATA2!$BB$6:$BB$323,MATCH(CAB!E36,DATA2!$C$6:$C$323,0)),IF(CAB!$H$17=$AU$12,INDEX(DATA2!$BB$648:$BB$967,MATCH(CAB!E36,DATA2!$C$648:$C$967,0)),IF(CAB!$H$17=$AU$13,INDEX(DATA2!$BB$971:$BB$1287,MATCH(CAB!E36,DATA2!$C$971:$C$1287,0)),"")))) ->  | AR47: =IF(CAB!J36<>0,CAB!J36*AP47,0) -> 0 | AU47: blank | AV47: Knotty Alder - River Rock | AW47: blank | AX47: blank
A48: 13 | E48: =IF(AND(B48<>"",$I$24=$AU$10),INDEX(DATA2!$C$326:$C$645,MATCH(B48,DATA2!$E$326:$E$645,0)),IF(AND(B48<>"",$I$24=$AU$11),INDEX(DATA2!$C$6:$C$320,MATCH(B48,DATA2!$E$6:$E$320,0)),IF(AND(B48<>"",$I$24=$AU$12),INDEX(DATA2!$C$648:$C$967,MATCH(B48,DATA2!$E$648:$E$967,0)),IF(AND(B48<>"",$I$24=$AU$13),INDEX(DATA2!$C$971:$C$1287,MATCH(B48,DATA2!$E$971:$E$1287,0)),"")))) ->  | M48: =IF(AND(J48<>"",$I$24=$AU$10),INDEX(DATA2!$AU$326:$AU$645,MATCH($E48,DATA2!$C$326:$C$645,0)),IF(AND(J48<>"",$I$24=$AU$11),INDEX(DATA2!$AU$6:$AU$323,MATCH($E48,DATA2!$C$6:$C$323,0)),IF(AND(J48<>"",$I$24=$AU$12),INDEX(DATA2!$AU$648:$AU$967,MATCH($E48,DATA2!$C$648:$C$967,0)),IF(AND(J48<>"",$I$24=$AU$13),INDEX(DATA2!$AU$971:$AU$1287,MATCH($E48,DATA2!$C$971:$C$1287,0)),"")))) ->  | P48: =IF(AND($M48<>"",$I$24=$AU$10),(INDEX(DATA2!$AV$5:$BA$1291,MATCH(E48,DATA2!$C$5:$C$1291,0),MATCH($N$34,DATA2!$AV$3:$BA$3,0))),IF(AND($M48<>"",$I$24=$AU$11),(INDEX(DATA2!$AV$6:$BA$1291,MATCH(E48,DATA2!$C$6:$C$1291,0),MATCH($N$34,DATA2!$AV$3:$BA$3,0))),IF(AND($M48<>"",$I$24=$AU$12),(INDEX(DATA2!$AV$5:$BA$1291,MATCH(E48,DATA2!$C$5:$C$1291,0),MATCH($N$34,DATA2!$AV$3:$BA$3,0))),IF(AND($M48<>"",$I$24=$AU$13),(INDEX(DATA2!$AV$6:$BA$1291,MATCH(E48,DATA2!$C$6:$C$1291,0),MATCH($N$34,DATA2!$AV$3:$BA$3,0))),"")))) ->  | Q48: =IF(AND($M48<>"",$I$24=$AU$10),(INDEX(DATA2!$AV$5:$BA$1291,MATCH(G48,DATA2!$C$5:$C$1291,0),MATCH($N$34,DATA2!$AV$3:$BA$3,0))),IF(AND($M48<>"",$I$24=$AU$11),(INDEX(DATA2!$AV$5:$BA$1291,MATCH(G48,DATA2!$C$5:$C$1291,0),MATCH($N$34,DATA2!$AV$3:$BA$3,0))),IF(AND($M48<>"",$I$24=$AU$12),(INDEX(DATA2!$AV$5:$BA$1291,MATCH(G48,DATA2!$C$5:$C$1291,0),MATCH($N$34,DATA2!$AV$3:$BA$3,0))),""))) ->  | U48: 13 | Y48: =IF(AND(V48<>"",$I$24=$AU$10),INDEX(DATA2!$C$1333:$C$1366,MATCH(V48,DATA2!$E$1333:$E$1366,0)),IF(AND(V48<>"",$I$24=$AU$11),INDEX(DATA2!$C$1294:$C$1326,MATCH(V48,DATA2!$E$1294:$E$1326,0)),IF(AND(V48<>"",$I$24=$AU$12),INDEX(DATA2!$C$1372:$C$1405,MATCH(V48,DATA2!$E$1372:$E$1405,0)),IF(AND(V48<>"",$I$24=$AU$13),INDEX(DATA2!$C$1410:$C$1441,MATCH(V48,DATA2!$E$1410:$E$1441,0)),"")))) ->  | AF48: =IF(AND(AD48<>"",$I$24=$AU$10),INDEX(DATA2!$AU$1333:$AU$1366,MATCH($Y48,DATA2!$B$1333:$B$1366,0)),IF(AND(AD48<>"",$I$24=$AU$11),INDEX(DATA2!$AU$1294:$AU$1326,MATCH($Y48,DATA2!$B$1294:$B$1326,0)),IF(AND(AD48<>"",$I$24=$AU$12),INDEX(DATA2!$AU$1372:$AU$1405,MATCH($Y48,DATA2!$B$1372:$B$1405,0)),IF(AND(AD48<>"",$I$24=$AU$13),INDEX(DATA2!$AU$1410:$AU$1441,MATCH($Y48,DATA2!$B$1410:$B$1441,0)),"")))) ->  | AG48: =IF(AND(AD48<>"",$I$24=$AU$10),INDEX(DATA2!$AU$1331:$AU$1369,MATCH($V48,DATA2!$B$1331:$B$1369,0)),IF(AND(AD48<>"",$I$24=$AU$11),INDEX(DATA2!$AU$1292:$AU$1330,MATCH($V48,DATA2!$B$1292:$B$1330,0)),IF(AND(AD48<>"",$I$24=$AU$12),INDEX(DATA2!$AU$1370:$AU$1570,MATCH($V48,DATA2!$B$1370:$B$1570,0)),""))) ->  | AH48: =IF(AND($AD48<>"",$I$24=$AU$10),(INDEX(DATA2!$AV$1333:$BA$1366,MATCH(Y48,DATA2!$C$1333:$C$1366,0),MATCH($N$34,DATA2!$AV$3:$BA$3,0))),IF(AND($AD48<>"",$I$24=$AU$11),(INDEX(DATA2!$AV$1294:$BA$1326,MATCH(Y48,DATA2!$C$1294:$C$1326,0),MATCH($N$34,DATA2!$AV$3:$BA$3,0))),IF(AND($AD48<>"",$I$24=$AU$12),(INDEX(DATA2!$AV$1372:$BA$1405,MATCH(Y48,DATA2!$C$1372:$C$1405,0),MATCH($N$34,DATA2!$AV$3:$BA$3,0))),IF(AND($AD48<>"",$I$24=$AU$13),(INDEX(DATA2!$AV$1410:$BA$1441,MATCH(Y48,DATA2!$C$1410:$C$1441,0),MATCH($N$34,DATA2!$AV$3:$BA$3,0))),"")))) ->  | AP48: =IF(CAB!$H$17=$AU$10,INDEX(DATA2!$BB$325:$BB$645,MATCH(CAB!E37,DATA2!$C$325:$C$645,0)),IF(CAB!$H$17=$AU$11,INDEX(DATA2!$BB$6:$BB$323,MATCH(CAB!E37,DATA2!$C$6:$C$323,0)),IF(CAB!$H$17=$AU$12,INDEX(DATA2!$BB$648:$BB$967,MATCH(CAB!E37,DATA2!$C$648:$C$967,0)),IF(CAB!$H$17=$AU$13,INDEX(DATA2!$BB$971:$BB$1287,MATCH(CAB!E37,DATA2!$C$971:$C$1287,0)),"")))) ->  | AR48: =IF(CAB!J37<>0,CAB!J37*AP48,0) -> 0 | AU48: blank | AV48: Knotty Alder - Toffee | AW48: blank | AX48: blank
A49: 14 | E49: =IF(AND(B49<>"",$I$24=$AU$10),INDEX(DATA2!$C$326:$C$645,MATCH(B49,DATA2!$E$326:$E$645,0)),IF(AND(B49<>"",$I$24=$AU$11),INDEX(DATA2!$C$6:$C$320,MATCH(B49,DATA2!$E$6:$E$320,0)),IF(AND(B49<>"",$I$24=$AU$12),INDEX(DATA2!$C$648:$C$967,MATCH(B49,DATA2!$E$648:$E$967,0)),IF(AND(B49<>"",$I$24=$AU$13),INDEX(DATA2!$C$971:$C$1287,MATCH(B49,DATA2!$E$971:$E$1287,0)),"")))) ->  | M49: =IF(AND(J49<>"",$I$24=$AU$10),INDEX(DATA2!$AU$326:$AU$645,MATCH($E49,DATA2!$C$326:$C$645,0)),IF(AND(J49<>"",$I$24=$AU$11),INDEX(DATA2!$AU$6:$AU$323,MATCH($E49,DATA2!$C$6:$C$323,0)),IF(AND(J49<>"",$I$24=$AU$12),INDEX(DATA2!$AU$648:$AU$967,MATCH($E49,DATA2!$C$648:$C$967,0)),IF(AND(J49<>"",$I$24=$AU$13),INDEX(DATA2!$AU$971:$AU$1287,MATCH($E49,DATA2!$C$971:$C$1287,0)),"")))) ->  | P49: =IF(AND($M49<>"",$I$24=$AU$10),(INDEX(DATA2!$AV$5:$BA$1291,MATCH(E49,DATA2!$C$5:$C$1291,0),MATCH($N$34,DATA2!$AV$3:$BA$3,0))),IF(AND($M49<>"",$I$24=$AU$11),(INDEX(DATA2!$AV$6:$BA$1291,MATCH(E49,DATA2!$C$6:$C$1291,0),MATCH($N$34,DATA2!$AV$3:$BA$3,0))),IF(AND($M49<>"",$I$24=$AU$12),(INDEX(DATA2!$AV$5:$BA$1291,MATCH(E49,DATA2!$C$5:$C$1291,0),MATCH($N$34,DATA2!$AV$3:$BA$3,0))),IF(AND($M49<>"",$I$24=$AU$13),(INDEX(DATA2!$AV$6:$BA$1291,MATCH(E49,DATA2!$C$6:$C$1291,0),MATCH($N$34,DATA2!$AV$3:$BA$3,0))),"")))) ->  | Q49: =IF(AND($M49<>"",$I$24=$AU$10),(INDEX(DATA2!$AV$5:$BA$1291,MATCH(G49,DATA2!$C$5:$C$1291,0),MATCH($N$34,DATA2!$AV$3:$BA$3,0))),IF(AND($M49<>"",$I$24=$AU$11),(INDEX(DATA2!$AV$5:$BA$1291,MATCH(G49,DATA2!$C$5:$C$1291,0),MATCH($N$34,DATA2!$AV$3:$BA$3,0))),IF(AND($M49<>"",$I$24=$AU$12),(INDEX(DATA2!$AV$5:$BA$1291,MATCH(G49,DATA2!$C$5:$C$1291,0),MATCH($N$34,DATA2!$AV$3:$BA$3,0))),""))) ->  | U49: 14 | Y49: =IF(AND(V49<>"",$I$24=$AU$10),INDEX(DATA2!$C$1333:$C$1366,MATCH(V49,DATA2!$E$1333:$E$1366,0)),IF(AND(V49<>"",$I$24=$AU$11),INDEX(DATA2!$C$1294:$C$1326,MATCH(V49,DATA2!$E$1294:$E$1326,0)),IF(AND(V49<>"",$I$24=$AU$12),INDEX(DATA2!$C$1372:$C$1405,MATCH(V49,DATA2!$E$1372:$E$1405,0)),IF(AND(V49<>"",$I$24=$AU$13),INDEX(DATA2!$C$1410:$C$1441,MATCH(V49,DATA2!$E$1410:$E$1441,0)),"")))) ->  | AF49: =IF(AND(AD49<>"",$I$24=$AU$10),INDEX(DATA2!$AU$1333:$AU$1366,MATCH($Y49,DATA2!$B$1333:$B$1366,0)),IF(AND(AD49<>"",$I$24=$AU$11),INDEX(DATA2!$AU$1294:$AU$1326,MATCH($Y49,DATA2!$B$1294:$B$1326,0)),IF(AND(AD49<>"",$I$24=$AU$12),INDEX(DATA2!$AU$1372:$AU$1405,MATCH($Y49,DATA2!$B$1372:$B$1405,0)),IF(AND(AD49<>"",$I$24=$AU$13),INDEX(DATA2!$AU$1410:$AU$1441,MATCH($Y49,DATA2!$B$1410:$B$1441,0)),"")))) ->  | AG49: =IF(AND(AD49<>"",$I$24=$AU$10),INDEX(DATA2!$AU$1331:$AU$1369,MATCH($V49,DATA2!$B$1331:$B$1369,0)),IF(AND(AD49<>"",$I$24=$AU$11),INDEX(DATA2!$AU$1292:$AU$1330,MATCH($V49,DATA2!$B$1292:$B$1330,0)),IF(AND(AD49<>"",$I$24=$AU$12),INDEX(DATA2!$AU$1370:$AU$1570,MATCH($V49,DATA2!$B$1370:$B$1570,0)),""))) ->  | AH49: =IF(AND($AD49<>"",$I$24=$AU$10),(INDEX(DATA2!$AV$1333:$BA$1366,MATCH(Y49,DATA2!$C$1333:$C$1366,0),MATCH($N$34,DATA2!$AV$3:$BA$3,0))),IF(AND($AD49<>"",$I$24=$AU$11),(INDEX(DATA2!$AV$1294:$BA$1326,MATCH(Y49,DATA2!$C$1294:$C$1326,0),MATCH($N$34,DATA2!$AV$3:$BA$3,0))),IF(AND($AD49<>"",$I$24=$AU$12),(INDEX(DATA2!$AV$1372:$BA$1405,MATCH(Y49,DATA2!$C$1372:$C$1405,0),MATCH($N$34,DATA2!$AV$3:$BA$3,0))),IF(AND($AD49<>"",$I$24=$AU$13),(INDEX(DATA2!$AV$1410:$BA$1441,MATCH(Y49,DATA2!$C$1410:$C$1441,0),MATCH($N$34,DATA2!$AV$3:$BA$3,0))),"")))) ->  | AP49: =IF(CAB!$H$17=$AU$10,INDEX(DATA2!$BB$325:$BB$645,MATCH(CAB!E38,DATA2!$C$325:$C$645,0)),IF(CAB!$H$17=$AU$11,INDEX(DATA2!$BB$6:$BB$323,MATCH(CAB!E38,DATA2!$C$6:$C$323,0)),IF(CAB!$H$17=$AU$12,INDEX(DATA2!$BB$648:$BB$967,MATCH(CAB!E38,DATA2!$C$648:$C$967,0)),IF(CAB!$H$17=$AU$13,INDEX(DATA2!$BB$971:$BB$1287,MATCH(CAB!E38,DATA2!$C$971:$C$1287,0)),"")))) ->  | AR49: =IF(CAB!J38<>0,CAB!J38*AP49,0) -> 0 | AU49: blank | AV49: Knotty Alder - Tuscan Olive | AW49: blank | AX49: blank
